Workbook

Sheet Inicio
N2: Fonte: GPP a partir de dados
A4: Caracterização dos Apoios a Agricultores Portugueses no âmbito do Pedido Único da PAC - 2022
A10: 1. | B10: Seleccione a variável, o tipo de classes de dimensão e o grupo de produtores a representar:
A15: 2. | B15: Visualize os gráficos respetivos:
B20: Visualize a base de dados:
B25: Copie os dados obtidos para um novo ficheiro:

Sheet Base (hidden)
D4: Tipo de Beneficiário: | G4: =INDEX(Sheet6!$P$1:$P$6,Sheet3!$A$2) -> Todos os Produtores do PU | N4: Valor total: | P4: =+Base!$DS$34 -> 173695 | R4: =+"(" & (INDEX(Sheet6!$G$2:$G$117,Sheet3!$C$1)) & ")" -> (Nº )
D5: =+INDEX(Sheet6!$D$2:$D$117,Sheet3!$C$1)&" segundo Orientação Técnico Económica e "&INDEX(Sheet6!$M$3:$M$6,Sheet3!$B$1)&" e por NUTSIII em " &Sheet6!$B$1 -> (1) - Nº de Beneficiários segundo Orientação Técnico Económica e Classe de DE e por NUTSIII em 2021 | AH5: =+D5& " (cont.)" -> (1) - Nº de Beneficiários segundo Orientação Técnico Económica e Classe de DE e por NUTSIII em 2021 (cont.) | BQ5: =+AH5 -> (1) - Nº de Beneficiários segundo Orientação Técnico Económica e Classe de DE e por NUTSIII em 2021 (cont.) | CU5: =+INDEX(Sheet6!$D$2:$D$117,Sheet3!$C$1)&" segundo Orientação Técnico Económica por NUTSIII em " &Sheet6!B1 -> (1) - Nº de Beneficiários segundo Orientação Técnico Económica por NUTSIII em 2021 | DN5: =+INDEX(Sheet6!$D$2:$D$117,Sheet3!$C$1)&CHAR(10)& "segundo "&INDEX(Sheet6!$M$3:$M$6,Sheet3!$B$1)& " por NUTSIII em " &Sheet6!$B$1 -> (1) - Nº de Beneficiários segundo Classe de DE por NUTSIII em 2021
C7: =+"Unidade: "&INDEX(Sheet6!$G$2:$G$117,Sheet3!$C$1) -> Unidade: Nº
C8: OTE | D8: Não classificadas | I8: Arvenses e Outras Cult pred. Regadio | N8: Arvenses e Outras Cult pred. Sequeiro | S8: Arroz | X8: Horticultura e Industriais | AC8: Horticultura e Floricultura | AH8: Vinhos | AM8: Fruticultura | AR8: Olival | AW8: Policultura | BB8: Bovinos Leite | BG8: Bov. Carne semi-int. (>1 < 3CN por ha SF) | BL8: Bov. Carne Int (>= 3CN por ha SF) | BQ8: Bov. Carne Extensivos (<1 CN por ha SF) | BV8: Outros Ruminantes | CA8: Mistas | CF8: Pousio e Pastagem | CK8: Tomate Indústria | CP8: Plantas tuberosas | CU8: Não classificadas | CV8: Arvenses e Outras Cult pred. Regadio | CW8: Arvenses e Outras Cult pred. Sequeiro | CX8: Arroz | CY8: Horticultura e Industriais | CZ8: Horticultura e Floricultura | DA8: Vinhos | DB8: Fruticultura | DC8: Olival | DD8: Policultura | DE8: Bovinos Leite | DF8: =+BG8 -> Bov. Carne semi-int. (>1 < 3CN por ha SF) | DG8: =+BL8 -> Bov. Carne Int (>= 3CN por ha SF) | DH8: =+BQ8 -> Bov. Carne Extensivos (<1 CN por ha SF) | DI8: Outros Ruminantes | DJ8: Mistas | DK8: Pousio e Pastagem | DL8: Tomate Indústria | DM8: Plantas tuberosas | DN8: MP | DO8: P | DP8: M | DQ8: G | DR8: MG | DS8: Total
C9: =+INDEX(Sheet6!M3:M6,Sheet3!B1) -> Classe de DE | D9: MP | E9: P | F9: M | G9: G | H9: MG | I9: MP | J9: P | K9: M | L9: G | M9: MG | N9: MP | O9: P | P9: M | Q9: G | R9: MG | S9: MP | T9: P | U9: M | V9: G | W9: MG | X9: MP | Y9: P | Z9: M | AA9: G | AB9: MG | AC9: MP | AD9: P | AE9: M | AF9: G | AG9: MG | AH9: MP | AI9: P | AJ9: M | AK9: G | AL9: MG | AM9: MP | AN9: P | AO9: M | AP9: G | AQ9: MG | AR9: MP | AS9: P | AT9: M | AU9: G | AV9: MG | AW9: MP | AX9: P | AY9: M | AZ9: G | BA9: MG | BB9: MP | BC9: P | BD9: M | BE9: G | BF9: MG | BG9: MP | BH9: P | BI9: M | BJ9: G | BK9: MG | BL9: MP | BM9: P | BN9: M | BO9: G | BP9: MG | BQ9: MP | BR9: P | BS9: M | BT9: G | BU9: MG | BV9: MP | BW9: P | BX9: M | BY9: G | BZ9: MG | CA9: MP | CB9: P | CC9: M | CD9: G | CE9: MG | CF9: MP | CG9: P | CH9: M | CI9: G | CJ9: MG | CK9: MP | CL9: P | CM9: M | CN9: G | CO9: MG | CP9: MP | CQ9: P | CR9: M | CS9: G | CT9: MG | CV9: Arvenses e Outras Cult pred. Regadio
A10: NUTS II | B10: Cód. | C10: NUTS III | AG10: =+"Unidade: "&INDEX(Sheet6!$G$2:$G$117,Sheet3!$C$1) -> Unidade: Nº | BK10: =+"Unidade: "&INDEX(Sheet6!$G$2:$G$117,Sheet3!$C$1) -> Unidade: Nº | BP10: =+"Unidade: "&INDEX(Sheet6!$G$2:$G$117,Sheet3!$C$1) -> Unidade: Nº | CT10: =+"Unidade: "&INDEX(Sheet6!$G$2:$G$117,Sheet3!$C$1) -> Unidade: Nº | DS10: =+"Unidade: "&INDEX(Sheet6!$G$2:$G$117,Sheet3!$C$1) -> Unidade: Nº
A11: Norte | B11: 111 | C11: Alto Minho | D11: =+Sheet3!D8/Sheet3!$F$1 -> 0 | E11: =+Sheet3!E8/Sheet3!$F$1 -> 0 | F11: =+Sheet3!F8/Sheet3!$F$1 -> 0 | G11: =+Sheet3!G8/Sheet3!$F$1 -> 0 | H11: =+Sheet3!H8/Sheet3!$F$1 -> 0 | I11: =+Sheet3!I8/Sheet3!$F$1 -> 288 | J11: =+Sheet3!J8/Sheet3!$F$1 -> 13 | K11: =+Sheet3!K8/Sheet3!$F$1 -> 0 | L11: =+Sheet3!L8/Sheet3!$F$1 -> 0 | M11: =+Sheet3!M8/Sheet3!$F$1 -> 0 | N11: =+Sheet3!N8/Sheet3!$F$1 -> 128 | O11: =+Sheet3!O8/Sheet3!$F$1 -> 5 | P11: =+Sheet3!P8/Sheet3!$F$1 -> 0 | Q11: =+Sheet3!Q8/Sheet3!$F$1 -> 0 | R11: =+Sheet3!R8/Sheet3!$F$1 -> 0 | S11: =+Sheet3!S8/Sheet3!$F$1 -> 0 | T11: =+Sheet3!T8/Sheet3!$F$1 -> 0 | U11: =+Sheet3!U8/Sheet3!$F$1 -> 0 | V11: =+Sheet3!V8/Sheet3!$F$1 -> 0 | W11: =+Sheet3!W8/Sheet3!$F$1 -> 0 | X11: =+Sheet3!X8/Sheet3!$F$1 -> 0 | Y11: =+Sheet3!Y8/Sheet3!$F$1 -> 0 | Z11: =+Sheet3!Z8/Sheet3!$F$1 -> 0 | AA11: =+Sheet3!AA8/Sheet3!$F$1 -> 0 | AB11: =+Sheet3!AB8/Sheet3!$F$1 -> 0 | AC11: =+Sheet3!AC8/Sheet3!$F$1 -> 83 | AD11: =+Sheet3!AD8/Sheet3!$F$1 -> 73 | AE11: =+Sheet3!AE8/Sheet3!$F$1 -> 18 | AF11: =+Sheet3!AF8/Sheet3!$F$1 -> 4 | AG11: =+Sheet3!AG8/Sheet3!$F$1 -> 0 | AH11: =+Sheet3!AH8/Sheet3!$F$1 -> 379 | AI11: =+Sheet3!AI8/Sheet3!$F$1 -> 353 | AJ11: =+Sheet3!AJ8/Sheet3!$F$1 -> 29 | AK11: =+Sheet3!AK8/Sheet3!$F$1 -> 0 | AL11: =+Sheet3!AL8/Sheet3!$F$1 -> 0 | AM11: =+Sheet3!AM8/Sheet3!$F$1 -> 42 | AN11: =+Sheet3!AN8/Sheet3!$F$1 -> 68 | AO11: =+Sheet3!AO8/Sheet3!$F$1 -> 58 | AP11: =+Sheet3!AP8/Sheet3!$F$1 -> 3 | AQ11: =+Sheet3!AQ8/Sheet3!$F$1 -> 0 | AR11: =+Sheet3!AR8/Sheet3!$F$1 -> 0 | AS11: =+Sheet3!AS8/Sheet3!$F$1 -> 0 | AT11: =+Sheet3!AT8/Sheet3!$F$1 -> 0 | AU11: =+Sheet3!AU8/Sheet3!$F$1 -> 0 | AV11: =+Sheet3!AV8/Sheet3!$F$1 -> 0 | AW11: =+Sheet3!AW8/Sheet3!$F$1 -> 1935 | AX11: =+Sheet3!AX8/Sheet3!$F$1 -> 332 | AY11: =+Sheet3!AY8/Sheet3!$F$1 -> 8 | AZ11: =+Sheet3!AZ8/Sheet3!$F$1 -> 0 | BA11: =+Sheet3!BA8/Sheet3!$F$1 -> 0 | BB11: =+Sheet3!BB8/Sheet3!$F$1 -> 0 | BC11: =+Sheet3!BC8/Sheet3!$F$1 -> 5 | BD11: =+Sheet3!BD8/Sheet3!$F$1 -> 17 | BE11: =+Sheet3!BE8/Sheet3!$F$1 -> 36 | BF11: =+Sheet3!BF8/Sheet3!$F$1 -> 0 | BG11: =+Sheet3!BG8/Sheet3!$F$1 -> 123 | BH11: =+Sheet3!BH8/Sheet3!$F$1 -> 128 | BI11: =+Sheet3!BI8/Sheet3!$F$1 -> 20 | BJ11: =+Sheet3!BJ8/Sheet3!$F$1 -> 0 | BK11: =+Sheet3!BK8/Sheet3!$F$1 -> 0 | BL11: =+Sheet3!BL8/Sheet3!$F$1 -> 76 | BM11: =+Sheet3!BM8/Sheet3!$F$1 -> 93 | BN11: =+Sheet3!BN8/Sheet3!$F$1 -> 15 | BO11: =+Sheet3!BO8/Sheet3!$F$1 -> 0 | BP11: =+Sheet3!BP8/Sheet3!$F$1 -> 0 | BQ11: =+Sheet3!BQ8/Sheet3!$F$1 -> 209 | BR11: =+Sheet3!BR8/Sheet3!$F$1 -> 463 | BS11: =+Sheet3!BS8/Sheet3!$F$1 -> 152 | BT11: =+Sheet3!BT8/Sheet3!$F$1 -> 24 | BU11: =+Sheet3!BU8/Sheet3!$F$1 -> 10 | BV11: =+Sheet3!BV8/Sheet3!$F$1 -> 692 | BW11: =+Sheet3!BW8/Sheet3!$F$1 -> 579 | BX11: =+Sheet3!BX8/Sheet3!$F$1 -> 40 | BY11: =+Sheet3!BY8/Sheet3!$F$1 -> 0 | BZ11: =+Sheet3!BZ8/Sheet3!$F$1 -> 0 | CA11: =+Sheet3!CA8/Sheet3!$F$1 -> 746 | CB11: =+Sheet3!CB8/Sheet3!$F$1 -> 320 | CC11: =+Sheet3!CC8/Sheet3!$F$1 -> 5 | CD11: =+Sheet3!CD8/Sheet3!$F$1 -> 0 | CE11: =+Sheet3!CE8/Sheet3!$F$1 -> 0 | CF11: =+Sheet3!CF8/Sheet3!$F$1 -> 312 | CG11: =+Sheet3!CG8/Sheet3!$F$1 -> 27 | CH11: =+Sheet3!CH8/Sheet3!$F$1 -> 3 | CI11: =+Sheet3!CI8/Sheet3!$F$1 -> 0 | CJ11: =+Sheet3!CJ8/Sheet3!$F$1 -> 0 | CK11: =+Sheet3!CK8/Sheet3!$F$1 -> 0 | CL11: =+Sheet3!CL8/Sheet3!$F$1 -> 0 | CM11: =+Sheet3!CM8/Sheet3!$F$1 -> 0 | CN11: =+Sheet3!CN8/Sheet3!$F$1 -> 0 | CO11: =+Sheet3!CO8/Sheet3!$F$1 -> 0 | CP11: =+Sheet3!CP8/Sheet3!$F$1 -> 0 | CQ11: =+Sheet3!CQ8/Sheet3!$F$1 -> 0 | CR11: =+Sheet3!CR8/Sheet3!$F$1 -> 0 | CS11: =+Sheet3!CS8/Sheet3!$F$1 -> 0 | CT11: =+Sheet3!CT8/Sheet3!$F$1 -> 0 | CU11: =+Sheet3!CU8/Sheet3!$F$1 -> 0 | CV11: =+Sheet3!CV8/Sheet3!$F$1 -> 305 | CW11: =+Sheet3!CW8/Sheet3!$F$1 -> 134 | CX11: =+Sheet3!CX8/Sheet3!$F$1 -> 0 | CY11: =+Sheet3!CY8/Sheet3!$F$1 -> 0 | CZ11: =+Sheet3!CZ8/Sheet3!$F$1 -> 182 | DA11: =+Sheet3!DA8/Sheet3!$F$1 -> 765 | DB11: =+Sheet3!DB8/Sheet3!$F$1 -> 175 | DC11: =+Sheet3!DC8/Sheet3!$F$1 -> 0 | DD11: =+Sheet3!DD8/Sheet3!$F$1 -> 2279 | DE11: =+Sheet3!DE8/Sheet3!$F$1 -> 61 | DF11: =+Sheet3!DF8/Sheet3!$F$1 -> 272 | DG11: =+Sheet3!DG8/Sheet3!$F$1 -> 186 | DH11: =+Sheet3!DH8/Sheet3!$F$1 -> 860 | DI11: =+Sheet3!DI8/Sheet3!$F$1 -> 1315 | DJ11: =+Sheet3!DJ8/Sheet3!$F$1 -> 1071 | DK11: =+Sheet3!DK8/Sheet3!$F$1 -> 344 | DL11: =+Sheet3!DL8/Sheet3!$F$1 -> 0 | DM11: =+Sheet3!DM8/Sheet3!$F$1 -> 0 | DN11: =+Sheet3!DN8/Sheet3!$F$1 -> 5020 | DO11: =+Sheet3!DO8/Sheet3!$F$1 -> 2468 | DP11: =+Sheet3!DP8/Sheet3!$F$1 -> 377 | DQ11: =+Sheet3!DQ8/Sheet3!$F$1 -> 76 | DR11: =+Sheet3!DR8/Sheet3!$F$1 -> 13 | DS11: =SUM(DN11:DR11) -> 7954
B12: 112 | C12: Cávado | D12: =+Sheet3!D9/Sheet3!$F$1 -> 0 | E12: =+Sheet3!E9/Sheet3!$F$1 -> 0 | F12: =+Sheet3!F9/Sheet3!$F$1 -> 0 | G12: =+Sheet3!G9/Sheet3!$F$1 -> 0 | H12: =+Sheet3!H9/Sheet3!$F$1 -> 0 | I12: =+Sheet3!I9/Sheet3!$F$1 -> 883 | J12: =+Sheet3!J9/Sheet3!$F$1 -> 113 | K12: =+Sheet3!K9/Sheet3!$F$1 -> 5 | L12: =+Sheet3!L9/Sheet3!$F$1 -> 6 | M12: =+Sheet3!M9/Sheet3!$F$1 -> 0 | N12: =+Sheet3!N9/Sheet3!$F$1 -> 283 | O12: =+Sheet3!O9/Sheet3!$F$1 -> 32 | P12: =+Sheet3!P9/Sheet3!$F$1 -> 0 | Q12: =+Sheet3!Q9/Sheet3!$F$1 -> 0 | R12: =+Sheet3!R9/Sheet3!$F$1 -> 0 | S12: =+Sheet3!S9/Sheet3!$F$1 -> 0 | T12: =+Sheet3!T9/Sheet3!$F$1 -> 0 | U12: =+Sheet3!U9/Sheet3!$F$1 -> 0 | V12: =+Sheet3!V9/Sheet3!$F$1 -> 0 | W12: =+Sheet3!W9/Sheet3!$F$1 -> 0 | X12: =+Sheet3!X9/Sheet3!$F$1 -> 0 | Y12: =+Sheet3!Y9/Sheet3!$F$1 -> 0 | Z12: =+Sheet3!Z9/Sheet3!$F$1 -> 0 | AA12: =+Sheet3!AA9/Sheet3!$F$1 -> 0 | AB12: =+Sheet3!AB9/Sheet3!$F$1 -> 0 | AC12: =+Sheet3!AC9/Sheet3!$F$1 -> 204 | AD12: =+Sheet3!AD9/Sheet3!$F$1 -> 195 | AE12: =+Sheet3!AE9/Sheet3!$F$1 -> 40 | AF12: =+Sheet3!AF9/Sheet3!$F$1 -> 0 | AG12: =+Sheet3!AG9/Sheet3!$F$1 -> 0 | AH12: =+Sheet3!AH9/Sheet3!$F$1 -> 40 | AI12: =+Sheet3!AI9/Sheet3!$F$1 -> 63 | AJ12: =+Sheet3!AJ9/Sheet3!$F$1 -> 16 | AK12: =+Sheet3!AK9/Sheet3!$F$1 -> 0 | AL12: =+Sheet3!AL9/Sheet3!$F$1 -> 0 | AM12: =+Sheet3!AM9/Sheet3!$F$1 -> 29 | AN12: =+Sheet3!AN9/Sheet3!$F$1 -> 112 | AO12: =+Sheet3!AO9/Sheet3!$F$1 -> 98 | AP12: =+Sheet3!AP9/Sheet3!$F$1 -> 6 | AQ12: =+Sheet3!AQ9/Sheet3!$F$1 -> 0 | AR12: =+Sheet3!AR9/Sheet3!$F$1 -> 0 | AS12: =+Sheet3!AS9/Sheet3!$F$1 -> 0 | AT12: =+Sheet3!AT9/Sheet3!$F$1 -> 0 | AU12: =+Sheet3!AU9/Sheet3!$F$1 -> 0 | AV12: =+Sheet3!AV9/Sheet3!$F$1 -> 0 | AW12: =+Sheet3!AW9/Sheet3!$F$1 -> 1628 | AX12: =+Sheet3!AX9/Sheet3!$F$1 -> 425 | AY12: =+Sheet3!AY9/Sheet3!$F$1 -> 16 | AZ12: =+Sheet3!AZ9/Sheet3!$F$1 -> 0 | BA12: =+Sheet3!BA9/Sheet3!$F$1 -> 0 | BB12: =+Sheet3!BB9/Sheet3!$F$1 -> 0 | BC12: =+Sheet3!BC9/Sheet3!$F$1 -> 25 | BD12: =+Sheet3!BD9/Sheet3!$F$1 -> 102 | BE12: =+Sheet3!BE9/Sheet3!$F$1 -> 259 | BF12: =+Sheet3!BF9/Sheet3!$F$1 -> 14 | BG12: =+Sheet3!BG9/Sheet3!$F$1 -> 33 | BH12: =+Sheet3!BH9/Sheet3!$F$1 -> 62 | BI12: =+Sheet3!BI9/Sheet3!$F$1 -> 4 | BJ12: =+Sheet3!BJ9/Sheet3!$F$1 -> 0 | BK12: =+Sheet3!BK9/Sheet3!$F$1 -> 0 | BL12: =+Sheet3!BL9/Sheet3!$F$1 -> 150 | BM12: =+Sheet3!BM9/Sheet3!$F$1 -> 421 | BN12: =+Sheet3!BN9/Sheet3!$F$1 -> 85 | BO12: =+Sheet3!BO9/Sheet3!$F$1 -> 4 | BP12: =+Sheet3!BP9/Sheet3!$F$1 -> 0 | BQ12: =+Sheet3!BQ9/Sheet3!$F$1 -> 43 | BR12: =+Sheet3!BR9/Sheet3!$F$1 -> 97 | BS12: =+Sheet3!BS9/Sheet3!$F$1 -> 23 | BT12: =+Sheet3!BT9/Sheet3!$F$1 -> 4 | BU12: =+Sheet3!BU9/Sheet3!$F$1 -> 0 | BV12: =+Sheet3!BV9/Sheet3!$F$1 -> 155 | BW12: =+Sheet3!BW9/Sheet3!$F$1 -> 131 | BX12: =+Sheet3!BX9/Sheet3!$F$1 -> 18 | BY12: =+Sheet3!BY9/Sheet3!$F$1 -> 4 | BZ12: =+Sheet3!BZ9/Sheet3!$F$1 -> 0 | CA12: =+Sheet3!CA9/Sheet3!$F$1 -> 357 | CB12: =+Sheet3!CB9/Sheet3!$F$1 -> 244 | CC12: =+Sheet3!CC9/Sheet3!$F$1 -> 14 | CD12: =+Sheet3!CD9/Sheet3!$F$1 -> 0 | CE12: =+Sheet3!CE9/Sheet3!$F$1 -> 0 | CF12: =+Sheet3!CF9/Sheet3!$F$1 -> 575 | CG12: =+Sheet3!CG9/Sheet3!$F$1 -> 242 | CH12: =+Sheet3!CH9/Sheet3!$F$1 -> 0 | CI12: =+Sheet3!CI9/Sheet3!$F$1 -> 0 | CJ12: =+Sheet3!CJ9/Sheet3!$F$1 -> 0 | CK12: =+Sheet3!CK9/Sheet3!$F$1 -> 0 | CL12: =+Sheet3!CL9/Sheet3!$F$1 -> 0 | CM12: =+Sheet3!CM9/Sheet3!$F$1 -> 0 | CN12: =+Sheet3!CN9/Sheet3!$F$1 -> 0 | CO12: =+Sheet3!CO9/Sheet3!$F$1 -> 0 | CP12: =+Sheet3!CP9/Sheet3!$F$1 -> 0 | CQ12: =+Sheet3!CQ9/Sheet3!$F$1 -> 0 | CR12: =+Sheet3!CR9/Sheet3!$F$1 -> 0 | CS12: =+Sheet3!CS9/Sheet3!$F$1 -> 0 | CT12: =+Sheet3!CT9/Sheet3!$F$1 -> 0 | CU12: =+Sheet3!CU9/Sheet3!$F$1 -> 0 | CV12: =+Sheet3!CV9/Sheet3!$F$1 -> 1011 | CW12: =+Sheet3!CW9/Sheet3!$F$1 -> 316 | CX12: =+Sheet3!CX9/Sheet3!$F$1 -> 0 | CY12: =+Sheet3!CY9/Sheet3!$F$1 -> 0 | CZ12: =+Sheet3!CZ9/Sheet3!$F$1 -> 443 | DA12: =+Sheet3!DA9/Sheet3!$F$1 -> 125 | DB12: =+Sheet3!DB9/Sheet3!$F$1 -> 246 | DC12: =+Sheet3!DC9/Sheet3!$F$1 -> 0 | DD12: =+Sheet3!DD9/Sheet3!$F$1 -> 2073 | DE12: =+Sheet3!DE9/Sheet3!$F$1 -> 401 | DF12: =+Sheet3!DF9/Sheet3!$F$1 -> 100 | DG12: =+Sheet3!DG9/Sheet3!$F$1 -> 662 | DH12: =+Sheet3!DH9/Sheet3!$F$1 -> 170 | DI12: =+Sheet3!DI9/Sheet3!$F$1 -> 308 | DJ12: =+Sheet3!DJ9/Sheet3!$F$1 -> 615 | DK12: =+Sheet3!DK9/Sheet3!$F$1 -> 821 | DL12: =+Sheet3!DL9/Sheet3!$F$1 -> 0 | DM12: =+Sheet3!DM9/Sheet3!$F$1 -> 0 | DN12: =+Sheet3!DN9/Sheet3!$F$1 -> 4387 | DO12: =+Sheet3!DO9/Sheet3!$F$1 -> 2173 | DP12: =+Sheet3!DP9/Sheet3!$F$1 -> 431 | DQ12: =+Sheet3!DQ9/Sheet3!$F$1 -> 292 | DR12: =+Sheet3!DR9/Sheet3!$F$1 -> 14 | DS12: =SUM(DN12:DR12) -> 7297
B13: 119 | C13: Ave | D13: =+Sheet3!D10/Sheet3!$F$1 -> 0 | E13: =+Sheet3!E10/Sheet3!$F$1 -> 0 | F13: =+Sheet3!F10/Sheet3!$F$1 -> 0 | G13: =+Sheet3!G10/Sheet3!$F$1 -> 0 | H13: =+Sheet3!H10/Sheet3!$F$1 -> 0 | I13: =+Sheet3!I10/Sheet3!$F$1 -> 433 | J13: =+Sheet3!J10/Sheet3!$F$1 -> 30 | K13: =+Sheet3!K10/Sheet3!$F$1 -> 6 | L13: =+Sheet3!L10/Sheet3!$F$1 -> 0 | M13: =+Sheet3!M10/Sheet3!$F$1 -> 0 | N13: =+Sheet3!N10/Sheet3!$F$1 -> 133 | O13: =+Sheet3!O10/Sheet3!$F$1 -> 10 | P13: =+Sheet3!P10/Sheet3!$F$1 -> 0 | Q13: =+Sheet3!Q10/Sheet3!$F$1 -> 0 | R13: =+Sheet3!R10/Sheet3!$F$1 -> 0 | S13: =+Sheet3!S10/Sheet3!$F$1 -> 0 | T13: =+Sheet3!T10/Sheet3!$F$1 -> 0 | U13: =+Sheet3!U10/Sheet3!$F$1 -> 0 | V13: =+Sheet3!V10/Sheet3!$F$1 -> 0 | W13: =+Sheet3!W10/Sheet3!$F$1 -> 0 | X13: =+Sheet3!X10/Sheet3!$F$1 -> 0 | Y13: =+Sheet3!Y10/Sheet3!$F$1 -> 0 | Z13: =+Sheet3!Z10/Sheet3!$F$1 -> 0 | AA13: =+Sheet3!AA10/Sheet3!$F$1 -> 0 | AB13: =+Sheet3!AB10/Sheet3!$F$1 -> 0 | AC13: =+Sheet3!AC10/Sheet3!$F$1 -> 53 | AD13: =+Sheet3!AD10/Sheet3!$F$1 -> 49 | AE13: =+Sheet3!AE10/Sheet3!$F$1 -> 14 | AF13: =+Sheet3!AF10/Sheet3!$F$1 -> 8 | AG13: =+Sheet3!AG10/Sheet3!$F$1 -> 0 | AH13: =+Sheet3!AH10/Sheet3!$F$1 -> 103 | AI13: =+Sheet3!AI10/Sheet3!$F$1 -> 143 | AJ13: =+Sheet3!AJ10/Sheet3!$F$1 -> 30 | AK13: =+Sheet3!AK10/Sheet3!$F$1 -> 0 | AL13: =+Sheet3!AL10/Sheet3!$F$1 -> 0 | AM13: =+Sheet3!AM10/Sheet3!$F$1 -> 14 | AN13: =+Sheet3!AN10/Sheet3!$F$1 -> 77 | AO13: =+Sheet3!AO10/Sheet3!$F$1 -> 90 | AP13: =+Sheet3!AP10/Sheet3!$F$1 -> 14 | AQ13: =+Sheet3!AQ10/Sheet3!$F$1 -> 0 | AR13: =+Sheet3!AR10/Sheet3!$F$1 -> 0 | AS13: =+Sheet3!AS10/Sheet3!$F$1 -> 0 | AT13: =+Sheet3!AT10/Sheet3!$F$1 -> 0 | AU13: =+Sheet3!AU10/Sheet3!$F$1 -> 0 | AV13: =+Sheet3!AV10/Sheet3!$F$1 -> 0 | AW13: =+Sheet3!AW10/Sheet3!$F$1 -> 618 | AX13: =+Sheet3!AX10/Sheet3!$F$1 -> 202 | AY13: =+Sheet3!AY10/Sheet3!$F$1 -> 13 | AZ13: =+Sheet3!AZ10/Sheet3!$F$1 -> 0 | BA13: =+Sheet3!BA10/Sheet3!$F$1 -> 0 | BB13: =+Sheet3!BB10/Sheet3!$F$1 -> 0 | BC13: =+Sheet3!BC10/Sheet3!$F$1 -> 15 | BD13: =+Sheet3!BD10/Sheet3!$F$1 -> 19 | BE13: =+Sheet3!BE10/Sheet3!$F$1 -> 88 | BF13: =+Sheet3!BF10/Sheet3!$F$1 -> 6 | BG13: =+Sheet3!BG10/Sheet3!$F$1 -> 49 | BH13: =+Sheet3!BH10/Sheet3!$F$1 -> 95 | BI13: =+Sheet3!BI10/Sheet3!$F$1 -> 10 | BJ13: =+Sheet3!BJ10/Sheet3!$F$1 -> 0 | BK13: =+Sheet3!BK10/Sheet3!$F$1 -> 0 | BL13: =+Sheet3!BL10/Sheet3!$F$1 -> 115 | BM13: =+Sheet3!BM10/Sheet3!$F$1 -> 173 | BN13: =+Sheet3!BN10/Sheet3!$F$1 -> 29 | BO13: =+Sheet3!BO10/Sheet3!$F$1 -> 0 | BP13: =+Sheet3!BP10/Sheet3!$F$1 -> 0 | BQ13: =+Sheet3!BQ10/Sheet3!$F$1 -> 62 | BR13: =+Sheet3!BR10/Sheet3!$F$1 -> 339 | BS13: =+Sheet3!BS10/Sheet3!$F$1 -> 43 | BT13: =+Sheet3!BT10/Sheet3!$F$1 -> 0 | BU13: =+Sheet3!BU10/Sheet3!$F$1 -> 0 | BV13: =+Sheet3!BV10/Sheet3!$F$1 -> 243 | BW13: =+Sheet3!BW10/Sheet3!$F$1 -> 511 | BX13: =+Sheet3!BX10/Sheet3!$F$1 -> 73 | BY13: =+Sheet3!BY10/Sheet3!$F$1 -> 0 | BZ13: =+Sheet3!BZ10/Sheet3!$F$1 -> 0 | CA13: =+Sheet3!CA10/Sheet3!$F$1 -> 248 | CB13: =+Sheet3!CB10/Sheet3!$F$1 -> 184 | CC13: =+Sheet3!CC10/Sheet3!$F$1 -> 24 | CD13: =+Sheet3!CD10/Sheet3!$F$1 -> 0 | CE13: =+Sheet3!CE10/Sheet3!$F$1 -> 0 | CF13: =+Sheet3!CF10/Sheet3!$F$1 -> 459 | CG13: =+Sheet3!CG10/Sheet3!$F$1 -> 131 | CH13: =+Sheet3!CH10/Sheet3!$F$1 -> 0 | CI13: =+Sheet3!CI10/Sheet3!$F$1 -> 0 | CJ13: =+Sheet3!CJ10/Sheet3!$F$1 -> 0 | CK13: =+Sheet3!CK10/Sheet3!$F$1 -> 0 | CL13: =+Sheet3!CL10/Sheet3!$F$1 -> 0 | CM13: =+Sheet3!CM10/Sheet3!$F$1 -> 0 | CN13: =+Sheet3!CN10/Sheet3!$F$1 -> 0 | CO13: =+Sheet3!CO10/Sheet3!$F$1 -> 0 | CP13: =+Sheet3!CP10/Sheet3!$F$1 -> 0 | CQ13: =+Sheet3!CQ10/Sheet3!$F$1 -> 0 | CR13: =+Sheet3!CR10/Sheet3!$F$1 -> 0 | CS13: =+Sheet3!CS10/Sheet3!$F$1 -> 0 | CT13: =+Sheet3!CT10/Sheet3!$F$1 -> 0 | CU13: =+Sheet3!CU10/Sheet3!$F$1 -> 3 | CV13: =+Sheet3!CV10/Sheet3!$F$1 -> 478 | CW13: =+Sheet3!CW10/Sheet3!$F$1 -> 144 | CX13: =+Sheet3!CX10/Sheet3!$F$1 -> 0 | CY13: =+Sheet3!CY10/Sheet3!$F$1 -> 0 | CZ13: =+Sheet3!CZ10/Sheet3!$F$1 -> 129 | DA13: =+Sheet3!DA10/Sheet3!$F$1 -> 278 | DB13: =+Sheet3!DB10/Sheet3!$F$1 -> 198 | DC13: =+Sheet3!DC10/Sheet3!$F$1 -> 4 | DD13: =+Sheet3!DD10/Sheet3!$F$1 -> 838 | DE13: =+Sheet3!DE10/Sheet3!$F$1 -> 133 | DF13: =+Sheet3!DF10/Sheet3!$F$1 -> 155 | DG13: =+Sheet3!DG10/Sheet3!$F$1 -> 320 | DH13: =+Sheet3!DH10/Sheet3!$F$1 -> 445 | DI13: =+Sheet3!DI10/Sheet3!$F$1 -> 833 | DJ13: =+Sheet3!DJ10/Sheet3!$F$1 -> 456 | DK13: =+Sheet3!DK10/Sheet3!$F$1 -> 592 | DL13: =+Sheet3!DL10/Sheet3!$F$1 -> 0 | DM13: =+Sheet3!DM10/Sheet3!$F$1 -> 0 | DN13: =+Sheet3!DN10/Sheet3!$F$1 -> 2541 | DO13: =+Sheet3!DO10/Sheet3!$F$1 -> 1967 | DP13: =+Sheet3!DP10/Sheet3!$F$1 -> 370 | DQ13: =+Sheet3!DQ10/Sheet3!$F$1 -> 124 | DR13: =+Sheet3!DR10/Sheet3!$F$1 -> 6 | DS13: 5008
B14: 11A | C14: Área Metropolitana do Porto | D14: =+Sheet3!D11/Sheet3!$F$1 -> 0 | E14: =+Sheet3!E11/Sheet3!$F$1 -> 0 | F14: =+Sheet3!F11/Sheet3!$F$1 -> 0 | G14: =+Sheet3!G11/Sheet3!$F$1 -> 0 | H14: =+Sheet3!H11/Sheet3!$F$1 -> 0 | I14: =+Sheet3!I11/Sheet3!$F$1 -> 773 | J14: =+Sheet3!J11/Sheet3!$F$1 -> 67 | K14: =+Sheet3!K11/Sheet3!$F$1 -> 5 | L14: =+Sheet3!L11/Sheet3!$F$1 -> 0 | M14: =+Sheet3!M11/Sheet3!$F$1 -> 0 | N14: =+Sheet3!N11/Sheet3!$F$1 -> 108 | O14: =+Sheet3!O11/Sheet3!$F$1 -> 3 | P14: =+Sheet3!P11/Sheet3!$F$1 -> 0 | Q14: =+Sheet3!Q11/Sheet3!$F$1 -> 0 | R14: =+Sheet3!R11/Sheet3!$F$1 -> 0 | S14: =+Sheet3!S11/Sheet3!$F$1 -> 0 | T14: =+Sheet3!T11/Sheet3!$F$1 -> 0 | U14: =+Sheet3!U11/Sheet3!$F$1 -> 0 | V14: =+Sheet3!V11/Sheet3!$F$1 -> 0 | W14: =+Sheet3!W11/Sheet3!$F$1 -> 0 | X14: =+Sheet3!X11/Sheet3!$F$1 -> 0 | Y14: =+Sheet3!Y11/Sheet3!$F$1 -> 0 | Z14: =+Sheet3!Z11/Sheet3!$F$1 -> 0 | AA14: =+Sheet3!AA11/Sheet3!$F$1 -> 0 | AB14: =+Sheet3!AB11/Sheet3!$F$1 -> 0 | AC14: =+Sheet3!AC11/Sheet3!$F$1 -> 54 | AD14: =+Sheet3!AD11/Sheet3!$F$1 -> 124 | AE14: =+Sheet3!AE11/Sheet3!$F$1 -> 48 | AF14: =+Sheet3!AF11/Sheet3!$F$1 -> 4 | AG14: =+Sheet3!AG11/Sheet3!$F$1 -> 0 | AH14: =+Sheet3!AH11/Sheet3!$F$1 -> 35 | AI14: =+Sheet3!AI11/Sheet3!$F$1 -> 52 | AJ14: =+Sheet3!AJ11/Sheet3!$F$1 -> 8 | AK14: =+Sheet3!AK11/Sheet3!$F$1 -> 0 | AL14: =+Sheet3!AL11/Sheet3!$F$1 -> 0 | AM14: =+Sheet3!AM11/Sheet3!$F$1 -> 36 | AN14: =+Sheet3!AN11/Sheet3!$F$1 -> 98 | AO14: =+Sheet3!AO11/Sheet3!$F$1 -> 89 | AP14: =+Sheet3!AP11/Sheet3!$F$1 -> 8 | AQ14: =+Sheet3!AQ11/Sheet3!$F$1 -> 0 | AR14: =+Sheet3!AR11/Sheet3!$F$1 -> 0 | AS14: =+Sheet3!AS11/Sheet3!$F$1 -> 0 | AT14: =+Sheet3!AT11/Sheet3!$F$1 -> 0 | AU14: =+Sheet3!AU11/Sheet3!$F$1 -> 0 | AV14: =+Sheet3!AV11/Sheet3!$F$1 -> 0 | AW14: =+Sheet3!AW11/Sheet3!$F$1 -> 655 | AX14: =+Sheet3!AX11/Sheet3!$F$1 -> 228 | AY14: =+Sheet3!AY11/Sheet3!$F$1 -> 17 | AZ14: =+Sheet3!AZ11/Sheet3!$F$1 -> 0 | BA14: =+Sheet3!BA11/Sheet3!$F$1 -> 0 | BB14: =+Sheet3!BB11/Sheet3!$F$1 -> 11 | BC14: =+Sheet3!BC11/Sheet3!$F$1 -> 38 | BD14: =+Sheet3!BD11/Sheet3!$F$1 -> 99 | BE14: =+Sheet3!BE11/Sheet3!$F$1 -> 384 | BF14: =+Sheet3!BF11/Sheet3!$F$1 -> 39 | BG14: =+Sheet3!BG11/Sheet3!$F$1 -> 19 | BH14: =+Sheet3!BH11/Sheet3!$F$1 -> 20 | BI14: =+Sheet3!BI11/Sheet3!$F$1 -> 3 | BJ14: =+Sheet3!BJ11/Sheet3!$F$1 -> 0 | BK14: =+Sheet3!BK11/Sheet3!$F$1 -> 0 | BL14: =+Sheet3!BL11/Sheet3!$F$1 -> 109 | BM14: =+Sheet3!BM11/Sheet3!$F$1 -> 279 | BN14: =+Sheet3!BN11/Sheet3!$F$1 -> 100 | BO14: =+Sheet3!BO11/Sheet3!$F$1 -> 5 | BP14: =+Sheet3!BP11/Sheet3!$F$1 -> 0 | BQ14: =+Sheet3!BQ11/Sheet3!$F$1 -> 13 | BR14: =+Sheet3!BR11/Sheet3!$F$1 -> 31 | BS14: =+Sheet3!BS11/Sheet3!$F$1 -> 0 | BT14: =+Sheet3!BT11/Sheet3!$F$1 -> 0 | BU14: =+Sheet3!BU11/Sheet3!$F$1 -> 0 | BV14: =+Sheet3!BV11/Sheet3!$F$1 -> 63 | BW14: =+Sheet3!BW11/Sheet3!$F$1 -> 81 | BX14: =+Sheet3!BX11/Sheet3!$F$1 -> 11 | BY14: =+Sheet3!BY11/Sheet3!$F$1 -> 0 | BZ14: =+Sheet3!BZ11/Sheet3!$F$1 -> 0 | CA14: =+Sheet3!CA11/Sheet3!$F$1 -> 258 | CB14: =+Sheet3!CB11/Sheet3!$F$1 -> 113 | CC14: =+Sheet3!CC11/Sheet3!$F$1 -> 13 | CD14: =+Sheet3!CD11/Sheet3!$F$1 -> 0 | CE14: =+Sheet3!CE11/Sheet3!$F$1 -> 0 | CF14: =+Sheet3!CF11/Sheet3!$F$1 -> 386 | CG14: =+Sheet3!CG11/Sheet3!$F$1 -> 382 | CH14: =+Sheet3!CH11/Sheet3!$F$1 -> 9 | CI14: =+Sheet3!CI11/Sheet3!$F$1 -> 0 | CJ14: =+Sheet3!CJ11/Sheet3!$F$1 -> 0 | CK14: =+Sheet3!CK11/Sheet3!$F$1 -> 0 | CL14: =+Sheet3!CL11/Sheet3!$F$1 -> 0 | CM14: =+Sheet3!CM11/Sheet3!$F$1 -> 0 | CN14: =+Sheet3!CN11/Sheet3!$F$1 -> 0 | CO14: =+Sheet3!CO11/Sheet3!$F$1 -> 0 | CP14: =+Sheet3!CP11/Sheet3!$F$1 -> 4 | CQ14: =+Sheet3!CQ11/Sheet3!$F$1 -> 0 | CR14: =+Sheet3!CR11/Sheet3!$F$1 -> 0 | CS14: =+Sheet3!CS11/Sheet3!$F$1 -> 0 | CT14: =+Sheet3!CT11/Sheet3!$F$1 -> 0 | CU14: =+Sheet3!CU11/Sheet3!$F$1 -> 0 | CV14: =+Sheet3!CV11/Sheet3!$F$1 -> 852 | CW14: =+Sheet3!CW11/Sheet3!$F$1 -> 112 | CX14: =+Sheet3!CX11/Sheet3!$F$1 -> 0 | CY14: =+Sheet3!CY11/Sheet3!$F$1 -> 0 | CZ14: =+Sheet3!CZ11/Sheet3!$F$1 -> 235 | DA14: =+Sheet3!DA11/Sheet3!$F$1 -> 97 | DB14: =+Sheet3!DB11/Sheet3!$F$1 -> 233 | DC14: =+Sheet3!DC11/Sheet3!$F$1 -> 0 | DD14: =+Sheet3!DD11/Sheet3!$F$1 -> 904 | DE14: =+Sheet3!DE11/Sheet3!$F$1 -> 575 | DF14: =+Sheet3!DF11/Sheet3!$F$1 -> 43 | DG14: =+Sheet3!DG11/Sheet3!$F$1 -> 494 | DH14: =+Sheet3!DH11/Sheet3!$F$1 -> 50 | DI14: =+Sheet3!DI11/Sheet3!$F$1 -> 162 | DJ14: =+Sheet3!DJ11/Sheet3!$F$1 -> 385 | DK14: =+Sheet3!DK11/Sheet3!$F$1 -> 777 | DL14: =+Sheet3!DL11/Sheet3!$F$1 -> 0 | DM14: =+Sheet3!DM11/Sheet3!$F$1 -> 7 | DN14: =+Sheet3!DN11/Sheet3!$F$1 -> 2533 | DO14: =+Sheet3!DO11/Sheet3!$F$1 -> 1531 | DP14: =+Sheet3!DP11/Sheet3!$F$1 -> 416 | DQ14: =+Sheet3!DQ11/Sheet3!$F$1 -> 411 | DR14: =+Sheet3!DR11/Sheet3!$F$1 -> 39 | DS14: 4930
B15: 11B | C15: Alto Tâmega | D15: =+Sheet3!D12/Sheet3!$F$1 -> 0 | E15: =+Sheet3!E12/Sheet3!$F$1 -> 9 | F15: =+Sheet3!F12/Sheet3!$F$1 -> 6 | G15: =+Sheet3!G12/Sheet3!$F$1 -> 0 | H15: =+Sheet3!H12/Sheet3!$F$1 -> 0 | I15: =+Sheet3!I12/Sheet3!$F$1 -> 162 | J15: =+Sheet3!J12/Sheet3!$F$1 -> 7 | K15: =+Sheet3!K12/Sheet3!$F$1 -> 0 | L15: =+Sheet3!L12/Sheet3!$F$1 -> 0 | M15: =+Sheet3!M12/Sheet3!$F$1 -> 0 | N15: =+Sheet3!N12/Sheet3!$F$1 -> 575 | O15: =+Sheet3!O12/Sheet3!$F$1 -> 7 | P15: =+Sheet3!P12/Sheet3!$F$1 -> 0 | Q15: =+Sheet3!Q12/Sheet3!$F$1 -> 4 | R15: =+Sheet3!R12/Sheet3!$F$1 -> 0 | S15: =+Sheet3!S12/Sheet3!$F$1 -> 0 | T15: =+Sheet3!T12/Sheet3!$F$1 -> 0 | U15: =+Sheet3!U12/Sheet3!$F$1 -> 0 | V15: =+Sheet3!V12/Sheet3!$F$1 -> 0 | W15: =+Sheet3!W12/Sheet3!$F$1 -> 0 | X15: =+Sheet3!X12/Sheet3!$F$1 -> 0 | Y15: =+Sheet3!Y12/Sheet3!$F$1 -> 0 | Z15: =+Sheet3!Z12/Sheet3!$F$1 -> 0 | AA15: =+Sheet3!AA12/Sheet3!$F$1 -> 0 | AB15: =+Sheet3!AB12/Sheet3!$F$1 -> 0 | AC15: =+Sheet3!AC12/Sheet3!$F$1 -> 697 | AD15: =+Sheet3!AD12/Sheet3!$F$1 -> 557 | AE15: =+Sheet3!AE12/Sheet3!$F$1 -> 18 | AF15: =+Sheet3!AF12/Sheet3!$F$1 -> 0 | AG15: =+Sheet3!AG12/Sheet3!$F$1 -> 0 | AH15: =+Sheet3!AH12/Sheet3!$F$1 -> 64 | AI15: =+Sheet3!AI12/Sheet3!$F$1 -> 34 | AJ15: =+Sheet3!AJ12/Sheet3!$F$1 -> 5 | AK15: =+Sheet3!AK12/Sheet3!$F$1 -> 0 | AL15: =+Sheet3!AL12/Sheet3!$F$1 -> 0 | AM15: =+Sheet3!AM12/Sheet3!$F$1 -> 1268 | AN15: =+Sheet3!AN12/Sheet3!$F$1 -> 233 | AO15: =+Sheet3!AO12/Sheet3!$F$1 -> 34 | AP15: =+Sheet3!AP12/Sheet3!$F$1 -> 3 | AQ15: =+Sheet3!AQ12/Sheet3!$F$1 -> 0 | AR15: =+Sheet3!AR12/Sheet3!$F$1 -> 267 | AS15: =+Sheet3!AS12/Sheet3!$F$1 -> 7 | AT15: =+Sheet3!AT12/Sheet3!$F$1 -> 3 | AU15: =+Sheet3!AU12/Sheet3!$F$1 -> 0 | AV15: =+Sheet3!AV12/Sheet3!$F$1 -> 0 | AW15: =+Sheet3!AW12/Sheet3!$F$1 -> 3355 | AX15: =+Sheet3!AX12/Sheet3!$F$1 -> 825 | AY15: =+Sheet3!AY12/Sheet3!$F$1 -> 6 | AZ15: =+Sheet3!AZ12/Sheet3!$F$1 -> 0 | BA15: =+Sheet3!BA12/Sheet3!$F$1 -> 0 | BB15: =+Sheet3!BB12/Sheet3!$F$1 -> 3 | BC15: =+Sheet3!BC12/Sheet3!$F$1 -> 26 | BD15: =+Sheet3!BD12/Sheet3!$F$1 -> 15 | BE15: =+Sheet3!BE12/Sheet3!$F$1 -> 6 | BF15: =+Sheet3!BF12/Sheet3!$F$1 -> 0 | BG15: =+Sheet3!BG12/Sheet3!$F$1 -> 26 | BH15: =+Sheet3!BH12/Sheet3!$F$1 -> 120 | BI15: =+Sheet3!BI12/Sheet3!$F$1 -> 25 | BJ15: =+Sheet3!BJ12/Sheet3!$F$1 -> 0 | BK15: =+Sheet3!BK12/Sheet3!$F$1 -> 0 | BL15: =+Sheet3!BL12/Sheet3!$F$1 -> 26 | BM15: =+Sheet3!BM12/Sheet3!$F$1 -> 36 | BN15: =+Sheet3!BN12/Sheet3!$F$1 -> 7 | BO15: =+Sheet3!BO12/Sheet3!$F$1 -> 0 | BP15: =+Sheet3!BP12/Sheet3!$F$1 -> 0 | BQ15: =+Sheet3!BQ12/Sheet3!$F$1 -> 218 | BR15: =+Sheet3!BR12/Sheet3!$F$1 -> 1181 | BS15: =+Sheet3!BS12/Sheet3!$F$1 -> 145 | BT15: =+Sheet3!BT12/Sheet3!$F$1 -> 8 | BU15: =+Sheet3!BU12/Sheet3!$F$1 -> 0 | BV15: =+Sheet3!BV12/Sheet3!$F$1 -> 709 | BW15: =+Sheet3!BW12/Sheet3!$F$1 -> 919 | BX15: =+Sheet3!BX12/Sheet3!$F$1 -> 121 | BY15: =+Sheet3!BY12/Sheet3!$F$1 -> 0 | BZ15: =+Sheet3!BZ12/Sheet3!$F$1 -> 0 | CA15: =+Sheet3!CA12/Sheet3!$F$1 -> 355 | CB15: =+Sheet3!CB12/Sheet3!$F$1 -> 396 | CC15: =+Sheet3!CC12/Sheet3!$F$1 -> 20 | CD15: =+Sheet3!CD12/Sheet3!$F$1 -> 0 | CE15: =+Sheet3!CE12/Sheet3!$F$1 -> 0 | CF15: =+Sheet3!CF12/Sheet3!$F$1 -> 490 | CG15: =+Sheet3!CG12/Sheet3!$F$1 -> 6 | CH15: =+Sheet3!CH12/Sheet3!$F$1 -> 0 | CI15: =+Sheet3!CI12/Sheet3!$F$1 -> 0 | CJ15: =+Sheet3!CJ12/Sheet3!$F$1 -> 0 | CK15: =+Sheet3!CK12/Sheet3!$F$1 -> 0 | CL15: =+Sheet3!CL12/Sheet3!$F$1 -> 0 | CM15: =+Sheet3!CM12/Sheet3!$F$1 -> 0 | CN15: =+Sheet3!CN12/Sheet3!$F$1 -> 0 | CO15: =+Sheet3!CO12/Sheet3!$F$1 -> 0 | CP15: =+Sheet3!CP12/Sheet3!$F$1 -> 39 | CQ15: =+Sheet3!CQ12/Sheet3!$F$1 -> 0 | CR15: =+Sheet3!CR12/Sheet3!$F$1 -> 0 | CS15: =+Sheet3!CS12/Sheet3!$F$1 -> 0 | CT15: =+Sheet3!CT12/Sheet3!$F$1 -> 0 | CU15: =+Sheet3!CU12/Sheet3!$F$1 -> 19 | CV15: =+Sheet3!CV12/Sheet3!$F$1 -> 172 | CW15: =+Sheet3!CW12/Sheet3!$F$1 -> 591 | CX15: =+Sheet3!CX12/Sheet3!$F$1 -> 0 | CY15: =+Sheet3!CY12/Sheet3!$F$1 -> 0 | CZ15: =+Sheet3!CZ12/Sheet3!$F$1 -> 1276 | DA15: =+Sheet3!DA12/Sheet3!$F$1 -> 103 | DB15: =+Sheet3!DB12/Sheet3!$F$1 -> 1540 | DC15: =+Sheet3!DC12/Sheet3!$F$1 -> 280 | DD15: =+Sheet3!DD12/Sheet3!$F$1 -> 4186 | DE15: =+Sheet3!DE12/Sheet3!$F$1 -> 54 | DF15: =+Sheet3!DF12/Sheet3!$F$1 -> 175 | DG15: =+Sheet3!DG12/Sheet3!$F$1 -> 72 | DH15: =+Sheet3!DH12/Sheet3!$F$1 -> 1557 | DI15: =+Sheet3!DI12/Sheet3!$F$1 -> 1753 | DJ15: =+Sheet3!DJ12/Sheet3!$F$1 -> 773 | DK15: =+Sheet3!DK12/Sheet3!$F$1 -> 498 | DL15: =+Sheet3!DL12/Sheet3!$F$1 -> 0 | DM15: =+Sheet3!DM12/Sheet3!$F$1 -> 42 | DN15: =+Sheet3!DN12/Sheet3!$F$1 -> 8263 | DO15: =+Sheet3!DO12/Sheet3!$F$1 -> 4378 | DP15: =+Sheet3!DP12/Sheet3!$F$1 -> 420 | DQ15: =+Sheet3!DQ12/Sheet3!$F$1 -> 28 | DR15: =+Sheet3!DR12/Sheet3!$F$1 -> 3 | DS15: 13092
B16: 11C | C16: Tâmega e Sousa | D16: =+Sheet3!D13/Sheet3!$F$1 -> 0 | E16: =+Sheet3!E13/Sheet3!$F$1 -> 0 | F16: =+Sheet3!F13/Sheet3!$F$1 -> 0 | G16: =+Sheet3!G13/Sheet3!$F$1 -> 0 | H16: =+Sheet3!H13/Sheet3!$F$1 -> 0 | I16: =+Sheet3!I13/Sheet3!$F$1 -> 447 | J16: =+Sheet3!J13/Sheet3!$F$1 -> 44 | K16: =+Sheet3!K13/Sheet3!$F$1 -> 0 | L16: =+Sheet3!L13/Sheet3!$F$1 -> 6 | M16: =+Sheet3!M13/Sheet3!$F$1 -> 0 | N16: =+Sheet3!N13/Sheet3!$F$1 -> 41 | O16: =+Sheet3!O13/Sheet3!$F$1 -> 4 | P16: =+Sheet3!P13/Sheet3!$F$1 -> 0 | Q16: =+Sheet3!Q13/Sheet3!$F$1 -> 0 | R16: =+Sheet3!R13/Sheet3!$F$1 -> 0 | S16: =+Sheet3!S13/Sheet3!$F$1 -> 0 | T16: =+Sheet3!T13/Sheet3!$F$1 -> 0 | U16: =+Sheet3!U13/Sheet3!$F$1 -> 0 | V16: =+Sheet3!V13/Sheet3!$F$1 -> 0 | W16: =+Sheet3!W13/Sheet3!$F$1 -> 0 | X16: =+Sheet3!X13/Sheet3!$F$1 -> 0 | Y16: =+Sheet3!Y13/Sheet3!$F$1 -> 0 | Z16: =+Sheet3!Z13/Sheet3!$F$1 -> 0 | AA16: =+Sheet3!AA13/Sheet3!$F$1 -> 0 | AB16: =+Sheet3!AB13/Sheet3!$F$1 -> 0 | AC16: =+Sheet3!AC13/Sheet3!$F$1 -> 192 | AD16: =+Sheet3!AD13/Sheet3!$F$1 -> 244 | AE16: =+Sheet3!AE13/Sheet3!$F$1 -> 26 | AF16: =+Sheet3!AF13/Sheet3!$F$1 -> 0 | AG16: =+Sheet3!AG13/Sheet3!$F$1 -> 0 | AH16: =+Sheet3!AH13/Sheet3!$F$1 -> 330 | AI16: =+Sheet3!AI13/Sheet3!$F$1 -> 502 | AJ16: =+Sheet3!AJ13/Sheet3!$F$1 -> 77 | AK16: =+Sheet3!AK13/Sheet3!$F$1 -> 5 | AL16: =+Sheet3!AL13/Sheet3!$F$1 -> 0 | AM16: =+Sheet3!AM13/Sheet3!$F$1 -> 93 | AN16: =+Sheet3!AN13/Sheet3!$F$1 -> 273 | AO16: =+Sheet3!AO13/Sheet3!$F$1 -> 237 | AP16: =+Sheet3!AP13/Sheet3!$F$1 -> 29 | AQ16: =+Sheet3!AQ13/Sheet3!$F$1 -> 0 | AR16: =+Sheet3!AR13/Sheet3!$F$1 -> 7 | AS16: =+Sheet3!AS13/Sheet3!$F$1 -> 0 | AT16: =+Sheet3!AT13/Sheet3!$F$1 -> 0 | AU16: =+Sheet3!AU13/Sheet3!$F$1 -> 0 | AV16: =+Sheet3!AV13/Sheet3!$F$1 -> 0 | AW16: =+Sheet3!AW13/Sheet3!$F$1 -> 1994 | AX16: =+Sheet3!AX13/Sheet3!$F$1 -> 784 | AY16: =+Sheet3!AY13/Sheet3!$F$1 -> 32 | AZ16: =+Sheet3!AZ13/Sheet3!$F$1 -> 0 | BA16: =+Sheet3!BA13/Sheet3!$F$1 -> 0 | BB16: =+Sheet3!BB13/Sheet3!$F$1 -> 0 | BC16: =+Sheet3!BC13/Sheet3!$F$1 -> 7 | BD16: =+Sheet3!BD13/Sheet3!$F$1 -> 6 | BE16: =+Sheet3!BE13/Sheet3!$F$1 -> 13 | BF16: =+Sheet3!BF13/Sheet3!$F$1 -> 0 | BG16: =+Sheet3!BG13/Sheet3!$F$1 -> 67 | BH16: =+Sheet3!BH13/Sheet3!$F$1 -> 60 | BI16: =+Sheet3!BI13/Sheet3!$F$1 -> 4 | BJ16: =+Sheet3!BJ13/Sheet3!$F$1 -> 0 | BK16: =+Sheet3!BK13/Sheet3!$F$1 -> 0 | BL16: =+Sheet3!BL13/Sheet3!$F$1 -> 59 | BM16: =+Sheet3!BM13/Sheet3!$F$1 -> 136 | BN16: =+Sheet3!BN13/Sheet3!$F$1 -> 23 | BO16: =+Sheet3!BO13/Sheet3!$F$1 -> 5 | BP16: =+Sheet3!BP13/Sheet3!$F$1 -> 0 | BQ16: =+Sheet3!BQ13/Sheet3!$F$1 -> 27 | BR16: =+Sheet3!BR13/Sheet3!$F$1 -> 44 | BS16: =+Sheet3!BS13/Sheet3!$F$1 -> 9 | BT16: =+Sheet3!BT13/Sheet3!$F$1 -> 0 | BU16: =+Sheet3!BU13/Sheet3!$F$1 -> 0 | BV16: =+Sheet3!BV13/Sheet3!$F$1 -> 226 | BW16: =+Sheet3!BW13/Sheet3!$F$1 -> 133 | BX16: =+Sheet3!BX13/Sheet3!$F$1 -> 19 | BY16: =+Sheet3!BY13/Sheet3!$F$1 -> 5 | BZ16: =+Sheet3!BZ13/Sheet3!$F$1 -> 0 | CA16: =+Sheet3!CA13/Sheet3!$F$1 -> 437 | CB16: =+Sheet3!CB13/Sheet3!$F$1 -> 224 | CC16: =+Sheet3!CC13/Sheet3!$F$1 -> 8 | CD16: =+Sheet3!CD13/Sheet3!$F$1 -> 3 | CE16: =+Sheet3!CE13/Sheet3!$F$1 -> 0 | CF16: =+Sheet3!CF13/Sheet3!$F$1 -> 262 | CG16: =+Sheet3!CG13/Sheet3!$F$1 -> 47 | CH16: =+Sheet3!CH13/Sheet3!$F$1 -> 0 | CI16: =+Sheet3!CI13/Sheet3!$F$1 -> 0 | CJ16: =+Sheet3!CJ13/Sheet3!$F$1 -> 0 | CK16: =+Sheet3!CK13/Sheet3!$F$1 -> 0 | CL16: =+Sheet3!CL13/Sheet3!$F$1 -> 0 | CM16: =+Sheet3!CM13/Sheet3!$F$1 -> 0 | CN16: =+Sheet3!CN13/Sheet3!$F$1 -> 0 | CO16: =+Sheet3!CO13/Sheet3!$F$1 -> 0 | CP16: =+Sheet3!CP13/Sheet3!$F$1 -> 0 | CQ16: =+Sheet3!CQ13/Sheet3!$F$1 -> 0 | CR16: =+Sheet3!CR13/Sheet3!$F$1 -> 0 | CS16: =+Sheet3!CS13/Sheet3!$F$1 -> 0 | CT16: =+Sheet3!CT13/Sheet3!$F$1 -> 0 | CU16: =+Sheet3!CU13/Sheet3!$F$1 -> 7 | CV16: =+Sheet3!CV13/Sheet3!$F$1 -> 502 | CW16: =+Sheet3!CW13/Sheet3!$F$1 -> 47 | CX16: =+Sheet3!CX13/Sheet3!$F$1 -> 0 | CY16: =+Sheet3!CY13/Sheet3!$F$1 -> 0 | CZ16: =+Sheet3!CZ13/Sheet3!$F$1 -> 466 | DA16: =+Sheet3!DA13/Sheet3!$F$1 -> 918 | DB16: =+Sheet3!DB13/Sheet3!$F$1 -> 633 | DC16: =+Sheet3!DC13/Sheet3!$F$1 -> 10 | DD16: =+Sheet3!DD13/Sheet3!$F$1 -> 2814 | DE16: =+Sheet3!DE13/Sheet3!$F$1 -> 30 | DF16: =+Sheet3!DF13/Sheet3!$F$1 -> 134 | DG16: =+Sheet3!DG13/Sheet3!$F$1 -> 225 | DH16: =+Sheet3!DH13/Sheet3!$F$1 -> 87 | DI16: =+Sheet3!DI13/Sheet3!$F$1 -> 386 | DJ16: =+Sheet3!DJ13/Sheet3!$F$1 -> 672 | DK16: =+Sheet3!DK13/Sheet3!$F$1 -> 313 | DL16: =+Sheet3!DL13/Sheet3!$F$1 -> 0 | DM16: =+Sheet3!DM13/Sheet3!$F$1 -> 0 | DN16: =+Sheet3!DN13/Sheet3!$F$1 -> 4192 | DO16: =+Sheet3!DO13/Sheet3!$F$1 -> 2520 | DP16: =+Sheet3!DP13/Sheet3!$F$1 -> 456 | DQ16: =+Sheet3!DQ13/Sheet3!$F$1 -> 74 | DR16: =+Sheet3!DR13/Sheet3!$F$1 -> 4 | DS16: 7246
B17: 11D | C17: Douro | D17: =+Sheet3!D14/Sheet3!$F$1 -> 0 | E17: =+Sheet3!E14/Sheet3!$F$1 -> 0 | F17: =+Sheet3!F14/Sheet3!$F$1 -> 0 | G17: =+Sheet3!G14/Sheet3!$F$1 -> 0 | H17: =+Sheet3!H14/Sheet3!$F$1 -> 0 | I17: =+Sheet3!I14/Sheet3!$F$1 -> 13 | J17: =+Sheet3!J14/Sheet3!$F$1 -> 0 | K17: =+Sheet3!K14/Sheet3!$F$1 -> 0 | L17: =+Sheet3!L14/Sheet3!$F$1 -> 0 | M17: =+Sheet3!M14/Sheet3!$F$1 -> 0 | N17: =+Sheet3!N14/Sheet3!$F$1 -> 142 | O17: =+Sheet3!O14/Sheet3!$F$1 -> 15 | P17: =+Sheet3!P14/Sheet3!$F$1 -> 3 | Q17: =+Sheet3!Q14/Sheet3!$F$1 -> 0 | R17: =+Sheet3!R14/Sheet3!$F$1 -> 0 | S17: =+Sheet3!S14/Sheet3!$F$1 -> 0 | T17: =+Sheet3!T14/Sheet3!$F$1 -> 0 | U17: =+Sheet3!U14/Sheet3!$F$1 -> 0 | V17: =+Sheet3!V14/Sheet3!$F$1 -> 0 | W17: =+Sheet3!W14/Sheet3!$F$1 -> 0 | X17: =+Sheet3!X14/Sheet3!$F$1 -> 0 | Y17: =+Sheet3!Y14/Sheet3!$F$1 -> 0 | Z17: =+Sheet3!Z14/Sheet3!$F$1 -> 0 | AA17: =+Sheet3!AA14/Sheet3!$F$1 -> 0 | AB17: =+Sheet3!AB14/Sheet3!$F$1 -> 0 | AC17: =+Sheet3!AC14/Sheet3!$F$1 -> 835 | AD17: =+Sheet3!AD14/Sheet3!$F$1 -> 924 | AE17: =+Sheet3!AE14/Sheet3!$F$1 -> 42 | AF17: =+Sheet3!AF14/Sheet3!$F$1 -> 0 | AG17: =+Sheet3!AG14/Sheet3!$F$1 -> 0 | AH17: =+Sheet3!AH14/Sheet3!$F$1 -> 3192 | AI17: =+Sheet3!AI14/Sheet3!$F$1 -> 2278 | AJ17: =+Sheet3!AJ14/Sheet3!$F$1 -> 286 | AK17: =+Sheet3!AK14/Sheet3!$F$1 -> 27 | AL17: =+Sheet3!AL14/Sheet3!$F$1 -> 0 | AM17: =+Sheet3!AM14/Sheet3!$F$1 -> 779 | AN17: =+Sheet3!AN14/Sheet3!$F$1 -> 665 | AO17: =+Sheet3!AO14/Sheet3!$F$1 -> 185 | AP17: =+Sheet3!AP14/Sheet3!$F$1 -> 11 | AQ17: =+Sheet3!AQ14/Sheet3!$F$1 -> 0 | AR17: =+Sheet3!AR14/Sheet3!$F$1 -> 569 | AS17: =+Sheet3!AS14/Sheet3!$F$1 -> 22 | AT17: =+Sheet3!AT14/Sheet3!$F$1 -> 0 | AU17: =+Sheet3!AU14/Sheet3!$F$1 -> 0 | AV17: =+Sheet3!AV14/Sheet3!$F$1 -> 0 | AW17: =+Sheet3!AW14/Sheet3!$F$1 -> 5875 | AX17: =+Sheet3!AX14/Sheet3!$F$1 -> 2529 | AY17: =+Sheet3!AY14/Sheet3!$F$1 -> 102 | AZ17: =+Sheet3!AZ14/Sheet3!$F$1 -> 7 | BA17: =+Sheet3!BA14/Sheet3!$F$1 -> 0 | BB17: =+Sheet3!BB14/Sheet3!$F$1 -> 7 | BC17: =+Sheet3!BC14/Sheet3!$F$1 -> 29 | BD17: =+Sheet3!BD14/Sheet3!$F$1 -> 22 | BE17: =+Sheet3!BE14/Sheet3!$F$1 -> 9 | BF17: =+Sheet3!BF14/Sheet3!$F$1 -> 0 | BG17: =+Sheet3!BG14/Sheet3!$F$1 -> 10 | BH17: =+Sheet3!BH14/Sheet3!$F$1 -> 24 | BI17: =+Sheet3!BI14/Sheet3!$F$1 -> 3 | BJ17: =+Sheet3!BJ14/Sheet3!$F$1 -> 0 | BK17: =+Sheet3!BK14/Sheet3!$F$1 -> 0 | BL17: =+Sheet3!BL14/Sheet3!$F$1 -> 7 | BM17: =+Sheet3!BM14/Sheet3!$F$1 -> 12 | BN17: =+Sheet3!BN14/Sheet3!$F$1 -> 0 | BO17: =+Sheet3!BO14/Sheet3!$F$1 -> 0 | BP17: =+Sheet3!BP14/Sheet3!$F$1 -> 0 | BQ17: =+Sheet3!BQ14/Sheet3!$F$1 -> 103 | BR17: =+Sheet3!BR14/Sheet3!$F$1 -> 195 | BS17: =+Sheet3!BS14/Sheet3!$F$1 -> 21 | BT17: =+Sheet3!BT14/Sheet3!$F$1 -> 3 | BU17: =+Sheet3!BU14/Sheet3!$F$1 -> 0 | BV17: =+Sheet3!BV14/Sheet3!$F$1 -> 366 | BW17: =+Sheet3!BW14/Sheet3!$F$1 -> 421 | BX17: =+Sheet3!BX14/Sheet3!$F$1 -> 32 | BY17: =+Sheet3!BY14/Sheet3!$F$1 -> 0 | BZ17: =+Sheet3!BZ14/Sheet3!$F$1 -> 0 | CA17: =+Sheet3!CA14/Sheet3!$F$1 -> 267 | CB17: =+Sheet3!CB14/Sheet3!$F$1 -> 214 | CC17: =+Sheet3!CC14/Sheet3!$F$1 -> 8 | CD17: =+Sheet3!CD14/Sheet3!$F$1 -> 0 | CE17: =+Sheet3!CE14/Sheet3!$F$1 -> 0 | CF17: =+Sheet3!CF14/Sheet3!$F$1 -> 115 | CG17: =+Sheet3!CG14/Sheet3!$F$1 -> 6 | CH17: =+Sheet3!CH14/Sheet3!$F$1 -> 0 | CI17: =+Sheet3!CI14/Sheet3!$F$1 -> 0 | CJ17: =+Sheet3!CJ14/Sheet3!$F$1 -> 0 | CK17: =+Sheet3!CK14/Sheet3!$F$1 -> 0 | CL17: =+Sheet3!CL14/Sheet3!$F$1 -> 0 | CM17: =+Sheet3!CM14/Sheet3!$F$1 -> 0 | CN17: =+Sheet3!CN14/Sheet3!$F$1 -> 0 | CO17: =+Sheet3!CO14/Sheet3!$F$1 -> 0 | CP17: =+Sheet3!CP14/Sheet3!$F$1 -> 28 | CQ17: =+Sheet3!CQ14/Sheet3!$F$1 -> 5 | CR17: =+Sheet3!CR14/Sheet3!$F$1 -> 0 | CS17: =+Sheet3!CS14/Sheet3!$F$1 -> 0 | CT17: =+Sheet3!CT14/Sheet3!$F$1 -> 0 | CU17: =+Sheet3!CU14/Sheet3!$F$1 -> 4 | CV17: =+Sheet3!CV14/Sheet3!$F$1 -> 19 | CW17: =+Sheet3!CW14/Sheet3!$F$1 -> 164 | CX17: =+Sheet3!CX14/Sheet3!$F$1 -> 0 | CY17: =+Sheet3!CY14/Sheet3!$F$1 -> 0 | CZ17: =+Sheet3!CZ14/Sheet3!$F$1 -> 1803 | DA17: =+Sheet3!DA14/Sheet3!$F$1 -> 5786 | DB17: =+Sheet3!DB14/Sheet3!$F$1 -> 1642 | DC17: =+Sheet3!DC14/Sheet3!$F$1 -> 594 | DD17: =+Sheet3!DD14/Sheet3!$F$1 -> 8514 | DE17: =+Sheet3!DE14/Sheet3!$F$1 -> 71 | DF17: =+Sheet3!DF14/Sheet3!$F$1 -> 43 | DG17: =+Sheet3!DG14/Sheet3!$F$1 -> 28 | DH17: =+Sheet3!DH14/Sheet3!$F$1 -> 323 | DI17: =+Sheet3!DI14/Sheet3!$F$1 -> 821 | DJ17: =+Sheet3!DJ14/Sheet3!$F$1 -> 489 | DK17: =+Sheet3!DK14/Sheet3!$F$1 -> 121 | DL17: =+Sheet3!DL14/Sheet3!$F$1 -> 0 | DM17: =+Sheet3!DM14/Sheet3!$F$1 -> 33 | DN17: =+Sheet3!DN14/Sheet3!$F$1 -> 12320 | DO17: =+Sheet3!DO14/Sheet3!$F$1 -> 7353 | DP17: =+Sheet3!DP14/Sheet3!$F$1 -> 713 | DQ17: =+Sheet3!DQ14/Sheet3!$F$1 -> 65 | DR17: =+Sheet3!DR14/Sheet3!$F$1 -> 4 | DS17: 20455
B18: 11E | C18: Terras de Trás-os-Montes | D18: =+Sheet3!D15/Sheet3!$F$1 -> 3 | E18: =+Sheet3!E15/Sheet3!$F$1 -> 14 | F18: =+Sheet3!F15/Sheet3!$F$1 -> 14 | G18: =+Sheet3!G15/Sheet3!$F$1 -> 5 | H18: =+Sheet3!H15/Sheet3!$F$1 -> 0 | I18: =+Sheet3!I15/Sheet3!$F$1 -> 0 | J18: =+Sheet3!J15/Sheet3!$F$1 -> 0 | K18: =+Sheet3!K15/Sheet3!$F$1 -> 0 | L18: =+Sheet3!L15/Sheet3!$F$1 -> 0 | M18: =+Sheet3!M15/Sheet3!$F$1 -> 0 | N18: =+Sheet3!N15/Sheet3!$F$1 -> 616 | O18: =+Sheet3!O15/Sheet3!$F$1 -> 101 | P18: =+Sheet3!P15/Sheet3!$F$1 -> 7 | Q18: =+Sheet3!Q15/Sheet3!$F$1 -> 0 | R18: =+Sheet3!R15/Sheet3!$F$1 -> 0 | S18: =+Sheet3!S15/Sheet3!$F$1 -> 0 | T18: =+Sheet3!T15/Sheet3!$F$1 -> 0 | U18: =+Sheet3!U15/Sheet3!$F$1 -> 0 | V18: =+Sheet3!V15/Sheet3!$F$1 -> 0 | W18: =+Sheet3!W15/Sheet3!$F$1 -> 0 | X18: =+Sheet3!X15/Sheet3!$F$1 -> 0 | Y18: =+Sheet3!Y15/Sheet3!$F$1 -> 3 | Z18: =+Sheet3!Z15/Sheet3!$F$1 -> 0 | AA18: =+Sheet3!AA15/Sheet3!$F$1 -> 0 | AB18: =+Sheet3!AB15/Sheet3!$F$1 -> 0 | AC18: =+Sheet3!AC15/Sheet3!$F$1 -> 1867 | AD18: =+Sheet3!AD15/Sheet3!$F$1 -> 2809 | AE18: =+Sheet3!AE15/Sheet3!$F$1 -> 238 | AF18: =+Sheet3!AF15/Sheet3!$F$1 -> 19 | AG18: =+Sheet3!AG15/Sheet3!$F$1 -> 0 | AH18: =+Sheet3!AH15/Sheet3!$F$1 -> 113 | AI18: =+Sheet3!AI15/Sheet3!$F$1 -> 71 | AJ18: =+Sheet3!AJ15/Sheet3!$F$1 -> 5 | AK18: =+Sheet3!AK15/Sheet3!$F$1 -> 0 | AL18: =+Sheet3!AL15/Sheet3!$F$1 -> 0 | AM18: =+Sheet3!AM15/Sheet3!$F$1 -> 1639 | AN18: =+Sheet3!AN15/Sheet3!$F$1 -> 773 | AO18: =+Sheet3!AO15/Sheet3!$F$1 -> 62 | AP18: =+Sheet3!AP15/Sheet3!$F$1 -> 6 | AQ18: =+Sheet3!AQ15/Sheet3!$F$1 -> 0 | AR18: =+Sheet3!AR15/Sheet3!$F$1 -> 1956 | AS18: =+Sheet3!AS15/Sheet3!$F$1 -> 185 | AT18: =+Sheet3!AT15/Sheet3!$F$1 -> 31 | AU18: =+Sheet3!AU15/Sheet3!$F$1 -> 0 | AV18: =+Sheet3!AV15/Sheet3!$F$1 -> 0 | AW18: =+Sheet3!AW15/Sheet3!$F$1 -> 7052 | AX18: =+Sheet3!AX15/Sheet3!$F$1 -> 3869 | AY18: =+Sheet3!AY15/Sheet3!$F$1 -> 138 | AZ18: =+Sheet3!AZ15/Sheet3!$F$1 -> 6 | BA18: =+Sheet3!BA15/Sheet3!$F$1 -> 0 | BB18: =+Sheet3!BB15/Sheet3!$F$1 -> 0 | BC18: =+Sheet3!BC15/Sheet3!$F$1 -> 0 | BD18: =+Sheet3!BD15/Sheet3!$F$1 -> 10 | BE18: =+Sheet3!BE15/Sheet3!$F$1 -> 6 | BF18: =+Sheet3!BF15/Sheet3!$F$1 -> 0 | BG18: =+Sheet3!BG15/Sheet3!$F$1 -> 12 | BH18: =+Sheet3!BH15/Sheet3!$F$1 -> 76 | BI18: =+Sheet3!BI15/Sheet3!$F$1 -> 38 | BJ18: =+Sheet3!BJ15/Sheet3!$F$1 -> 0 | BK18: =+Sheet3!BK15/Sheet3!$F$1 -> 0 | BL18: =+Sheet3!BL15/Sheet3!$F$1 -> 7 | BM18: =+Sheet3!BM15/Sheet3!$F$1 -> 37 | BN18: =+Sheet3!BN15/Sheet3!$F$1 -> 15 | BO18: =+Sheet3!BO15/Sheet3!$F$1 -> 0 | BP18: =+Sheet3!BP15/Sheet3!$F$1 -> 0 | BQ18: =+Sheet3!BQ15/Sheet3!$F$1 -> 10 | BR18: =+Sheet3!BR15/Sheet3!$F$1 -> 71 | BS18: =+Sheet3!BS15/Sheet3!$F$1 -> 20 | BT18: =+Sheet3!BT15/Sheet3!$F$1 -> 0 | BU18: =+Sheet3!BU15/Sheet3!$F$1 -> 0 | BV18: =+Sheet3!BV15/Sheet3!$F$1 -> 174 | BW18: =+Sheet3!BW15/Sheet3!$F$1 -> 514 | BX18: =+Sheet3!BX15/Sheet3!$F$1 -> 86 | BY18: =+Sheet3!BY15/Sheet3!$F$1 -> 0 | BZ18: =+Sheet3!BZ15/Sheet3!$F$1 -> 0 | CA18: =+Sheet3!CA15/Sheet3!$F$1 -> 197 | CB18: =+Sheet3!CB15/Sheet3!$F$1 -> 739 | CC18: =+Sheet3!CC15/Sheet3!$F$1 -> 131 | CD18: =+Sheet3!CD15/Sheet3!$F$1 -> 3 | CE18: =+Sheet3!CE15/Sheet3!$F$1 -> 0 | CF18: =+Sheet3!CF15/Sheet3!$F$1 -> 295 | CG18: =+Sheet3!CG15/Sheet3!$F$1 -> 6 | CH18: =+Sheet3!CH15/Sheet3!$F$1 -> 0 | CI18: =+Sheet3!CI15/Sheet3!$F$1 -> 4 | CJ18: =+Sheet3!CJ15/Sheet3!$F$1 -> 0 | CK18: =+Sheet3!CK15/Sheet3!$F$1 -> 0 | CL18: =+Sheet3!CL15/Sheet3!$F$1 -> 0 | CM18: =+Sheet3!CM15/Sheet3!$F$1 -> 0 | CN18: =+Sheet3!CN15/Sheet3!$F$1 -> 0 | CO18: =+Sheet3!CO15/Sheet3!$F$1 -> 0 | CP18: =+Sheet3!CP15/Sheet3!$F$1 -> 4 | CQ18: =+Sheet3!CQ15/Sheet3!$F$1 -> 0 | CR18: =+Sheet3!CR15/Sheet3!$F$1 -> 0 | CS18: =+Sheet3!CS15/Sheet3!$F$1 -> 0 | CT18: =+Sheet3!CT15/Sheet3!$F$1 -> 0 | CU18: =+Sheet3!CU15/Sheet3!$F$1 -> 43 | CV18: =+Sheet3!CV15/Sheet3!$F$1 -> 6 | CW18: =+Sheet3!CW15/Sheet3!$F$1 -> 726 | CX18: =+Sheet3!CX15/Sheet3!$F$1 -> 0 | CY18: =+Sheet3!CY15/Sheet3!$F$1 -> 12 | CZ18: =+Sheet3!CZ15/Sheet3!$F$1 -> 4936 | DA18: =+Sheet3!DA15/Sheet3!$F$1 -> 192 | DB18: =+Sheet3!DB15/Sheet3!$F$1 -> 2484 | DC18: =+Sheet3!DC15/Sheet3!$F$1 -> 2176 | DD18: =+Sheet3!DD15/Sheet3!$F$1 -> 11069 | DE18: =+Sheet3!DE15/Sheet3!$F$1 -> 22 | DF18: =+Sheet3!DF15/Sheet3!$F$1 -> 129 | DG18: =+Sheet3!DG15/Sheet3!$F$1 -> 61 | DH18: =+Sheet3!DH15/Sheet3!$F$1 -> 106 | DI18: =+Sheet3!DI15/Sheet3!$F$1 -> 777 | DJ18: =+Sheet3!DJ15/Sheet3!$F$1 -> 1074 | DK18: =+Sheet3!DK15/Sheet3!$F$1 -> 310 | DL18: =+Sheet3!DL15/Sheet3!$F$1 -> 0 | DM18: =+Sheet3!DM15/Sheet3!$F$1 -> 6 | DN18: =+Sheet3!DN15/Sheet3!$F$1 -> 13963 | DO18: =+Sheet3!DO15/Sheet3!$F$1 -> 9282 | DP18: =+Sheet3!DP15/Sheet3!$F$1 -> 819 | DQ18: =+Sheet3!DQ15/Sheet3!$F$1 -> 62 | DR18: =+Sheet3!DR15/Sheet3!$F$1 -> 3 | DS18: 24129
A19: Centro | B19: 16B | C19: Oeste | D19: =+Sheet3!D16/Sheet3!$F$1 -> 0 | E19: =+Sheet3!E16/Sheet3!$F$1 -> 0 | F19: =+Sheet3!F16/Sheet3!$F$1 -> 6 | G19: =+Sheet3!G16/Sheet3!$F$1 -> 0 | H19: =+Sheet3!H16/Sheet3!$F$1 -> 15 | I19: =+Sheet3!I16/Sheet3!$F$1 -> 0 | J19: =+Sheet3!J16/Sheet3!$F$1 -> 0 | K19: =+Sheet3!K16/Sheet3!$F$1 -> 0 | L19: =+Sheet3!L16/Sheet3!$F$1 -> 0 | M19: =+Sheet3!M16/Sheet3!$F$1 -> 0 | N19: =+Sheet3!N16/Sheet3!$F$1 -> 37 | O19: =+Sheet3!O16/Sheet3!$F$1 -> 25 | P19: =+Sheet3!P16/Sheet3!$F$1 -> 5 | Q19: =+Sheet3!Q16/Sheet3!$F$1 -> 0 | R19: =+Sheet3!R16/Sheet3!$F$1 -> 0 | S19: =+Sheet3!S16/Sheet3!$F$1 -> 0 | T19: =+Sheet3!T16/Sheet3!$F$1 -> 0 | U19: =+Sheet3!U16/Sheet3!$F$1 -> 0 | V19: =+Sheet3!V16/Sheet3!$F$1 -> 0 | W19: =+Sheet3!W16/Sheet3!$F$1 -> 0 | X19: =+Sheet3!X16/Sheet3!$F$1 -> 0 | Y19: =+Sheet3!Y16/Sheet3!$F$1 -> 0 | Z19: =+Sheet3!Z16/Sheet3!$F$1 -> 0 | AA19: =+Sheet3!AA16/Sheet3!$F$1 -> 0 | AB19: =+Sheet3!AB16/Sheet3!$F$1 -> 0 | AC19: =+Sheet3!AC16/Sheet3!$F$1 -> 12 | AD19: =+Sheet3!AD16/Sheet3!$F$1 -> 83 | AE19: =+Sheet3!AE16/Sheet3!$F$1 -> 80 | AF19: =+Sheet3!AF16/Sheet3!$F$1 -> 24 | AG19: =+Sheet3!AG16/Sheet3!$F$1 -> 0 | AH19: =+Sheet3!AH16/Sheet3!$F$1 -> 16 | AI19: =+Sheet3!AI16/Sheet3!$F$1 -> 94 | AJ19: =+Sheet3!AJ16/Sheet3!$F$1 -> 104 | AK19: =+Sheet3!AK16/Sheet3!$F$1 -> 37 | AL19: =+Sheet3!AL16/Sheet3!$F$1 -> 0 | AM19: =+Sheet3!AM16/Sheet3!$F$1 -> 16 | AN19: =+Sheet3!AN16/Sheet3!$F$1 -> 115 | AO19: =+Sheet3!AO16/Sheet3!$F$1 -> 286 | AP19: =+Sheet3!AP16/Sheet3!$F$1 -> 224 | AQ19: =+Sheet3!AQ16/Sheet3!$F$1 -> 19 | AR19: =+Sheet3!AR16/Sheet3!$F$1 -> 0 | AS19: =+Sheet3!AS16/Sheet3!$F$1 -> 0 | AT19: =+Sheet3!AT16/Sheet3!$F$1 -> 0 | AU19: =+Sheet3!AU16/Sheet3!$F$1 -> 0 | AV19: =+Sheet3!AV16/Sheet3!$F$1 -> 0 | AW19: =+Sheet3!AW16/Sheet3!$F$1 -> 75 | AX19: =+Sheet3!AX16/Sheet3!$F$1 -> 115 | AY19: =+Sheet3!AY16/Sheet3!$F$1 -> 53 | AZ19: =+Sheet3!AZ16/Sheet3!$F$1 -> 20 | BA19: =+Sheet3!BA16/Sheet3!$F$1 -> 0 | BB19: =+Sheet3!BB16/Sheet3!$F$1 -> 0 | BC19: =+Sheet3!BC16/Sheet3!$F$1 -> 0 | BD19: =+Sheet3!BD16/Sheet3!$F$1 -> 0 | BE19: =+Sheet3!BE16/Sheet3!$F$1 -> 0 | BF19: =+Sheet3!BF16/Sheet3!$F$1 -> 4 | BG19: =+Sheet3!BG16/Sheet3!$F$1 -> 3 | BH19: =+Sheet3!BH16/Sheet3!$F$1 -> 5 | BI19: =+Sheet3!BI16/Sheet3!$F$1 -> 4 | BJ19: =+Sheet3!BJ16/Sheet3!$F$1 -> 0 | BK19: =+Sheet3!BK16/Sheet3!$F$1 -> 0 | BL19: =+Sheet3!BL16/Sheet3!$F$1 -> 23 | BM19: =+Sheet3!BM16/Sheet3!$F$1 -> 57 | BN19: =+Sheet3!BN16/Sheet3!$F$1 -> 26 | BO19: =+Sheet3!BO16/Sheet3!$F$1 -> 15 | BP19: =+Sheet3!BP16/Sheet3!$F$1 -> 0 | BQ19: =+Sheet3!BQ16/Sheet3!$F$1 -> 0 | BR19: =+Sheet3!BR16/Sheet3!$F$1 -> 5 | BS19: =+Sheet3!BS16/Sheet3!$F$1 -> 0 | BT19: =+Sheet3!BT16/Sheet3!$F$1 -> 0 | BU19: =+Sheet3!BU16/Sheet3!$F$1 -> 0 | BV19: =+Sheet3!BV16/Sheet3!$F$1 -> 293 | BW19: =+Sheet3!BW16/Sheet3!$F$1 -> 132 | BX19: =+Sheet3!BX16/Sheet3!$F$1 -> 16 | BY19: =+Sheet3!BY16/Sheet3!$F$1 -> 0 | BZ19: =+Sheet3!BZ16/Sheet3!$F$1 -> 0 | CA19: =+Sheet3!CA16/Sheet3!$F$1 -> 34 | CB19: =+Sheet3!CB16/Sheet3!$F$1 -> 44 | CC19: =+Sheet3!CC16/Sheet3!$F$1 -> 11 | CD19: =+Sheet3!CD16/Sheet3!$F$1 -> 4 | CE19: =+Sheet3!CE16/Sheet3!$F$1 -> 0 | CF19: =+Sheet3!CF16/Sheet3!$F$1 -> 171 | CG19: =+Sheet3!CG16/Sheet3!$F$1 -> 43 | CH19: =+Sheet3!CH16/Sheet3!$F$1 -> 6 | CI19: =+Sheet3!CI16/Sheet3!$F$1 -> 0 | CJ19: =+Sheet3!CJ16/Sheet3!$F$1 -> 0 | CK19: =+Sheet3!CK16/Sheet3!$F$1 -> 0 | CL19: =+Sheet3!CL16/Sheet3!$F$1 -> 0 | CM19: =+Sheet3!CM16/Sheet3!$F$1 -> 0 | CN19: =+Sheet3!CN16/Sheet3!$F$1 -> 0 | CO19: =+Sheet3!CO16/Sheet3!$F$1 -> 0 | CP19: =+Sheet3!CP16/Sheet3!$F$1 -> 0 | CQ19: =+Sheet3!CQ16/Sheet3!$F$1 -> 7 | CR19: =+Sheet3!CR16/Sheet3!$F$1 -> 3 | CS19: =+Sheet3!CS16/Sheet3!$F$1 -> 0 | CT19: =+Sheet3!CT16/Sheet3!$F$1 -> 0 | CU19: =+Sheet3!CU16/Sheet3!$F$1 -> 31 | CV19: =+Sheet3!CV16/Sheet3!$F$1 -> 8 | CW19: =+Sheet3!CW16/Sheet3!$F$1 -> 76 | CX19: =+Sheet3!CX16/Sheet3!$F$1 -> 0 | CY19: =+Sheet3!CY16/Sheet3!$F$1 -> 0 | CZ19: =+Sheet3!CZ16/Sheet3!$F$1 -> 204 | DA19: =+Sheet3!DA16/Sheet3!$F$1 -> 255 | DB19: =+Sheet3!DB16/Sheet3!$F$1 -> 663 | DC19: =+Sheet3!DC16/Sheet3!$F$1 -> 0 | DD19: =+Sheet3!DD16/Sheet3!$F$1 -> 270 | DE19: =+Sheet3!DE16/Sheet3!$F$1 -> 9 | DF19: =+Sheet3!DF16/Sheet3!$F$1 -> 17 | DG19: =+Sheet3!DG16/Sheet3!$F$1 -> 126 | DH19: =+Sheet3!DH16/Sheet3!$F$1 -> 8 | DI19: =+Sheet3!DI16/Sheet3!$F$1 -> 446 | DJ19: =+Sheet3!DJ16/Sheet3!$F$1 -> 96 | DK19: =+Sheet3!DK16/Sheet3!$F$1 -> 220 | DL19: =+Sheet3!DL16/Sheet3!$F$1 -> 3 | DM19: =+Sheet3!DM16/Sheet3!$F$1 -> 13 | DN19: =+Sheet3!DN16/Sheet3!$F$1 -> 698 | DO19: =+Sheet3!DO16/Sheet3!$F$1 -> 741 | DP19: =+Sheet3!DP16/Sheet3!$F$1 -> 616 | DQ19: =+Sheet3!DQ16/Sheet3!$F$1 -> 348 | DR19: =+Sheet3!DR16/Sheet3!$F$1 -> 47 | DS19: 2450
B20: 16D | C20: Região de Aveiro | D20: =+Sheet3!D17/Sheet3!$F$1 -> 0 | E20: =+Sheet3!E17/Sheet3!$F$1 -> 7 | F20: =+Sheet3!F17/Sheet3!$F$1 -> 0 | G20: =+Sheet3!G17/Sheet3!$F$1 -> 0 | H20: =+Sheet3!H17/Sheet3!$F$1 -> 0 | I20: =+Sheet3!I17/Sheet3!$F$1 -> 530 | J20: =+Sheet3!J17/Sheet3!$F$1 -> 138 | K20: =+Sheet3!K17/Sheet3!$F$1 -> 9 | L20: =+Sheet3!L17/Sheet3!$F$1 -> 0 | M20: =+Sheet3!M17/Sheet3!$F$1 -> 0 | N20: =+Sheet3!N17/Sheet3!$F$1 -> 670 | O20: =+Sheet3!O17/Sheet3!$F$1 -> 101 | P20: =+Sheet3!P17/Sheet3!$F$1 -> 5 | Q20: =+Sheet3!Q17/Sheet3!$F$1 -> 0 | R20: =+Sheet3!R17/Sheet3!$F$1 -> 0 | S20: =+Sheet3!S17/Sheet3!$F$1 -> 0 | T20: =+Sheet3!T17/Sheet3!$F$1 -> 0 | U20: =+Sheet3!U17/Sheet3!$F$1 -> 4 | V20: =+Sheet3!V17/Sheet3!$F$1 -> 0 | W20: =+Sheet3!W17/Sheet3!$F$1 -> 0 | X20: =+Sheet3!X17/Sheet3!$F$1 -> 0 | Y20: =+Sheet3!Y17/Sheet3!$F$1 -> 0 | Z20: =+Sheet3!Z17/Sheet3!$F$1 -> 0 | AA20: =+Sheet3!AA17/Sheet3!$F$1 -> 0 | AB20: =+Sheet3!AB17/Sheet3!$F$1 -> 0 | AC20: =+Sheet3!AC17/Sheet3!$F$1 -> 143 | AD20: =+Sheet3!AD17/Sheet3!$F$1 -> 114 | AE20: =+Sheet3!AE17/Sheet3!$F$1 -> 21 | AF20: =+Sheet3!AF17/Sheet3!$F$1 -> 5 | AG20: =+Sheet3!AG17/Sheet3!$F$1 -> 0 | AH20: =+Sheet3!AH17/Sheet3!$F$1 -> 23 | AI20: =+Sheet3!AI17/Sheet3!$F$1 -> 37 | AJ20: =+Sheet3!AJ17/Sheet3!$F$1 -> 4 | AK20: =+Sheet3!AK17/Sheet3!$F$1 -> 0 | AL20: =+Sheet3!AL17/Sheet3!$F$1 -> 0 | AM20: =+Sheet3!AM17/Sheet3!$F$1 -> 34 | AN20: =+Sheet3!AN17/Sheet3!$F$1 -> 123 | AO20: =+Sheet3!AO17/Sheet3!$F$1 -> 67 | AP20: =+Sheet3!AP17/Sheet3!$F$1 -> 3 | AQ20: =+Sheet3!AQ17/Sheet3!$F$1 -> 0 | AR20: =+Sheet3!AR17/Sheet3!$F$1 -> 0 | AS20: =+Sheet3!AS17/Sheet3!$F$1 -> 0 | AT20: =+Sheet3!AT17/Sheet3!$F$1 -> 0 | AU20: =+Sheet3!AU17/Sheet3!$F$1 -> 0 | AV20: =+Sheet3!AV17/Sheet3!$F$1 -> 0 | AW20: =+Sheet3!AW17/Sheet3!$F$1 -> 596 | AX20: =+Sheet3!AX17/Sheet3!$F$1 -> 243 | AY20: =+Sheet3!AY17/Sheet3!$F$1 -> 17 | AZ20: =+Sheet3!AZ17/Sheet3!$F$1 -> 0 | BA20: =+Sheet3!BA17/Sheet3!$F$1 -> 0 | BB20: =+Sheet3!BB17/Sheet3!$F$1 -> 0 | BC20: =+Sheet3!BC17/Sheet3!$F$1 -> 16 | BD20: =+Sheet3!BD17/Sheet3!$F$1 -> 54 | BE20: =+Sheet3!BE17/Sheet3!$F$1 -> 100 | BF20: =+Sheet3!BF17/Sheet3!$F$1 -> 11 | BG20: =+Sheet3!BG17/Sheet3!$F$1 -> 6 | BH20: =+Sheet3!BH17/Sheet3!$F$1 -> 34 | BI20: =+Sheet3!BI17/Sheet3!$F$1 -> 7 | BJ20: =+Sheet3!BJ17/Sheet3!$F$1 -> 0 | BK20: =+Sheet3!BK17/Sheet3!$F$1 -> 0 | BL20: =+Sheet3!BL17/Sheet3!$F$1 -> 42 | BM20: =+Sheet3!BM17/Sheet3!$F$1 -> 140 | BN20: =+Sheet3!BN17/Sheet3!$F$1 -> 39 | BO20: =+Sheet3!BO17/Sheet3!$F$1 -> 4 | BP20: =+Sheet3!BP17/Sheet3!$F$1 -> 0 | BQ20: =+Sheet3!BQ17/Sheet3!$F$1 -> 0 | BR20: =+Sheet3!BR17/Sheet3!$F$1 -> 13 | BS20: =+Sheet3!BS17/Sheet3!$F$1 -> 0 | BT20: =+Sheet3!BT17/Sheet3!$F$1 -> 0 | BU20: =+Sheet3!BU17/Sheet3!$F$1 -> 0 | BV20: =+Sheet3!BV17/Sheet3!$F$1 -> 42 | BW20: =+Sheet3!BW17/Sheet3!$F$1 -> 26 | BX20: =+Sheet3!BX17/Sheet3!$F$1 -> 0 | BY20: =+Sheet3!BY17/Sheet3!$F$1 -> 0 | BZ20: =+Sheet3!BZ17/Sheet3!$F$1 -> 0 | CA20: =+Sheet3!CA17/Sheet3!$F$1 -> 145 | CB20: =+Sheet3!CB17/Sheet3!$F$1 -> 173 | CC20: =+Sheet3!CC17/Sheet3!$F$1 -> 11 | CD20: =+Sheet3!CD17/Sheet3!$F$1 -> 0 | CE20: =+Sheet3!CE17/Sheet3!$F$1 -> 0 | CF20: =+Sheet3!CF17/Sheet3!$F$1 -> 309 | CG20: =+Sheet3!CG17/Sheet3!$F$1 -> 142 | CH20: =+Sheet3!CH17/Sheet3!$F$1 -> 6 | CI20: =+Sheet3!CI17/Sheet3!$F$1 -> 0 | CJ20: =+Sheet3!CJ17/Sheet3!$F$1 -> 0 | CK20: =+Sheet3!CK17/Sheet3!$F$1 -> 0 | CL20: =+Sheet3!CL17/Sheet3!$F$1 -> 0 | CM20: =+Sheet3!CM17/Sheet3!$F$1 -> 0 | CN20: =+Sheet3!CN17/Sheet3!$F$1 -> 0 | CO20: =+Sheet3!CO17/Sheet3!$F$1 -> 0 | CP20: =+Sheet3!CP17/Sheet3!$F$1 -> 21 | CQ20: =+Sheet3!CQ17/Sheet3!$F$1 -> 8 | CR20: =+Sheet3!CR17/Sheet3!$F$1 -> 0 | CS20: =+Sheet3!CS17/Sheet3!$F$1 -> 0 | CT20: =+Sheet3!CT17/Sheet3!$F$1 -> 0 | CU20: =+Sheet3!CU17/Sheet3!$F$1 -> 13 | CV20: =+Sheet3!CV17/Sheet3!$F$1 -> 683 | CW20: =+Sheet3!CW17/Sheet3!$F$1 -> 780 | CX20: =+Sheet3!CX17/Sheet3!$F$1 -> 6 | CY20: =+Sheet3!CY17/Sheet3!$F$1 -> 0 | CZ20: =+Sheet3!CZ17/Sheet3!$F$1 -> 291 | DA20: =+Sheet3!DA17/Sheet3!$F$1 -> 71 | DB20: =+Sheet3!DB17/Sheet3!$F$1 -> 231 | DC20: =+Sheet3!DC17/Sheet3!$F$1 -> 0 | DD20: =+Sheet3!DD17/Sheet3!$F$1 -> 858 | DE20: =+Sheet3!DE17/Sheet3!$F$1 -> 189 | DF20: =+Sheet3!DF17/Sheet3!$F$1 -> 48 | DG20: =+Sheet3!DG17/Sheet3!$F$1 -> 228 | DH20: =+Sheet3!DH17/Sheet3!$F$1 -> 17 | DI20: =+Sheet3!DI17/Sheet3!$F$1 -> 69 | DJ20: =+Sheet3!DJ17/Sheet3!$F$1 -> 334 | DK20: =+Sheet3!DK17/Sheet3!$F$1 -> 458 | DL20: =+Sheet3!DL17/Sheet3!$F$1 -> 0 | DM20: =+Sheet3!DM17/Sheet3!$F$1 -> 33 | DN20: =+Sheet3!DN17/Sheet3!$F$1 -> 2582 | DO20: =+Sheet3!DO17/Sheet3!$F$1 -> 1333 | DP20: =+Sheet3!DP17/Sheet3!$F$1 -> 257 | DQ20: =+Sheet3!DQ17/Sheet3!$F$1 -> 125 | DR20: =+Sheet3!DR17/Sheet3!$F$1 -> 15 | DS20: 4312
B21: 16E | C21: Região de Coimbra | D21: =+Sheet3!D18/Sheet3!$F$1 -> 9 | E21: =+Sheet3!E18/Sheet3!$F$1 -> 11 | F21: =+Sheet3!F18/Sheet3!$F$1 -> 0 | G21: =+Sheet3!G18/Sheet3!$F$1 -> 0 | H21: =+Sheet3!H18/Sheet3!$F$1 -> 0 | I21: =+Sheet3!I18/Sheet3!$F$1 -> 557 | J21: =+Sheet3!J18/Sheet3!$F$1 -> 357 | K21: =+Sheet3!K18/Sheet3!$F$1 -> 93 | L21: =+Sheet3!L18/Sheet3!$F$1 -> 11 | M21: =+Sheet3!M18/Sheet3!$F$1 -> 0 | N21: =+Sheet3!N18/Sheet3!$F$1 -> 351 | O21: =+Sheet3!O18/Sheet3!$F$1 -> 33 | P21: =+Sheet3!P18/Sheet3!$F$1 -> 4 | Q21: =+Sheet3!Q18/Sheet3!$F$1 -> 0 | R21: =+Sheet3!R18/Sheet3!$F$1 -> 0 | S21: =+Sheet3!S18/Sheet3!$F$1 -> 84 | T21: =+Sheet3!T18/Sheet3!$F$1 -> 144 | U21: =+Sheet3!U18/Sheet3!$F$1 -> 55 | V21: =+Sheet3!V18/Sheet3!$F$1 -> 13 | W21: =+Sheet3!W18/Sheet3!$F$1 -> 0 | X21: =+Sheet3!X18/Sheet3!$F$1 -> 0 | Y21: =+Sheet3!Y18/Sheet3!$F$1 -> 3 | Z21: =+Sheet3!Z18/Sheet3!$F$1 -> 0 | AA21: =+Sheet3!AA18/Sheet3!$F$1 -> 0 | AB21: =+Sheet3!AB18/Sheet3!$F$1 -> 0 | AC21: =+Sheet3!AC18/Sheet3!$F$1 -> 336 | AD21: =+Sheet3!AD18/Sheet3!$F$1 -> 267 | AE21: =+Sheet3!AE18/Sheet3!$F$1 -> 33 | AF21: =+Sheet3!AF18/Sheet3!$F$1 -> 13 | AG21: =+Sheet3!AG18/Sheet3!$F$1 -> 0 | AH21: =+Sheet3!AH18/Sheet3!$F$1 -> 54 | AI21: =+Sheet3!AI18/Sheet3!$F$1 -> 58 | AJ21: =+Sheet3!AJ18/Sheet3!$F$1 -> 4 | AK21: =+Sheet3!AK18/Sheet3!$F$1 -> 0 | AL21: =+Sheet3!AL18/Sheet3!$F$1 -> 0 | AM21: =+Sheet3!AM18/Sheet3!$F$1 -> 55 | AN21: =+Sheet3!AN18/Sheet3!$F$1 -> 132 | AO21: =+Sheet3!AO18/Sheet3!$F$1 -> 60 | AP21: =+Sheet3!AP18/Sheet3!$F$1 -> 31 | AQ21: =+Sheet3!AQ18/Sheet3!$F$1 -> 0 | AR21: =+Sheet3!AR18/Sheet3!$F$1 -> 145 | AS21: =+Sheet3!AS18/Sheet3!$F$1 -> 0 | AT21: =+Sheet3!AT18/Sheet3!$F$1 -> 0 | AU21: =+Sheet3!AU18/Sheet3!$F$1 -> 0 | AV21: =+Sheet3!AV18/Sheet3!$F$1 -> 0 | AW21: =+Sheet3!AW18/Sheet3!$F$1 -> 1528 | AX21: =+Sheet3!AX18/Sheet3!$F$1 -> 455 | AY21: =+Sheet3!AY18/Sheet3!$F$1 -> 29 | AZ21: =+Sheet3!AZ18/Sheet3!$F$1 -> 7 | BA21: =+Sheet3!BA18/Sheet3!$F$1 -> 0 | BB21: =+Sheet3!BB18/Sheet3!$F$1 -> 6 | BC21: =+Sheet3!BC18/Sheet3!$F$1 -> 17 | BD21: =+Sheet3!BD18/Sheet3!$F$1 -> 47 | BE21: =+Sheet3!BE18/Sheet3!$F$1 -> 25 | BF21: =+Sheet3!BF18/Sheet3!$F$1 -> 3 | BG21: =+Sheet3!BG18/Sheet3!$F$1 -> 17 | BH21: =+Sheet3!BH18/Sheet3!$F$1 -> 14 | BI21: =+Sheet3!BI18/Sheet3!$F$1 -> 6 | BJ21: =+Sheet3!BJ18/Sheet3!$F$1 -> 0 | BK21: =+Sheet3!BK18/Sheet3!$F$1 -> 0 | BL21: =+Sheet3!BL18/Sheet3!$F$1 -> 61 | BM21: =+Sheet3!BM18/Sheet3!$F$1 -> 72 | BN21: =+Sheet3!BN18/Sheet3!$F$1 -> 15 | BO21: =+Sheet3!BO18/Sheet3!$F$1 -> 0 | BP21: =+Sheet3!BP18/Sheet3!$F$1 -> 0 | BQ21: =+Sheet3!BQ18/Sheet3!$F$1 -> 14 | BR21: =+Sheet3!BR18/Sheet3!$F$1 -> 7 | BS21: =+Sheet3!BS18/Sheet3!$F$1 -> 0 | BT21: =+Sheet3!BT18/Sheet3!$F$1 -> 0 | BU21: =+Sheet3!BU18/Sheet3!$F$1 -> 0 | BV21: =+Sheet3!BV18/Sheet3!$F$1 -> 288 | BW21: =+Sheet3!BW18/Sheet3!$F$1 -> 226 | BX21: =+Sheet3!BX18/Sheet3!$F$1 -> 22 | BY21: =+Sheet3!BY18/Sheet3!$F$1 -> 0 | BZ21: =+Sheet3!BZ18/Sheet3!$F$1 -> 0 | CA21: =+Sheet3!CA18/Sheet3!$F$1 -> 270 | CB21: =+Sheet3!CB18/Sheet3!$F$1 -> 227 | CC21: =+Sheet3!CC18/Sheet3!$F$1 -> 9 | CD21: =+Sheet3!CD18/Sheet3!$F$1 -> 0 | CE21: =+Sheet3!CE18/Sheet3!$F$1 -> 0 | CF21: =+Sheet3!CF18/Sheet3!$F$1 -> 352 | CG21: =+Sheet3!CG18/Sheet3!$F$1 -> 34 | CH21: =+Sheet3!CH18/Sheet3!$F$1 -> 0 | CI21: =+Sheet3!CI18/Sheet3!$F$1 -> 0 | CJ21: =+Sheet3!CJ18/Sheet3!$F$1 -> 0 | CK21: =+Sheet3!CK18/Sheet3!$F$1 -> 0 | CL21: =+Sheet3!CL18/Sheet3!$F$1 -> 0 | CM21: =+Sheet3!CM18/Sheet3!$F$1 -> 0 | CN21: =+Sheet3!CN18/Sheet3!$F$1 -> 0 | CO21: =+Sheet3!CO18/Sheet3!$F$1 -> 0 | CP21: =+Sheet3!CP18/Sheet3!$F$1 -> 18 | CQ21: =+Sheet3!CQ18/Sheet3!$F$1 -> 9 | CR21: =+Sheet3!CR18/Sheet3!$F$1 -> 0 | CS21: =+Sheet3!CS18/Sheet3!$F$1 -> 0 | CT21: =+Sheet3!CT18/Sheet3!$F$1 -> 0 | CU21: =+Sheet3!CU18/Sheet3!$F$1 -> 28 | CV21: =+Sheet3!CV18/Sheet3!$F$1 -> 1021 | CW21: =+Sheet3!CW18/Sheet3!$F$1 -> 388 | CX21: =+Sheet3!CX18/Sheet3!$F$1 -> 298 | CY21: =+Sheet3!CY18/Sheet3!$F$1 -> 5 | CZ21: =+Sheet3!CZ18/Sheet3!$F$1 -> 657 | DA21: =+Sheet3!DA18/Sheet3!$F$1 -> 117 | DB21: =+Sheet3!DB18/Sheet3!$F$1 -> 281 | DC21: =+Sheet3!DC18/Sheet3!$F$1 -> 149 | DD21: =+Sheet3!DD18/Sheet3!$F$1 -> 2025 | DE21: =+Sheet3!DE18/Sheet3!$F$1 -> 100 | DF21: =+Sheet3!DF18/Sheet3!$F$1 -> 38 | DG21: =+Sheet3!DG18/Sheet3!$F$1 -> 156 | DH21: =+Sheet3!DH18/Sheet3!$F$1 -> 24 | DI21: =+Sheet3!DI18/Sheet3!$F$1 -> 538 | DJ21: =+Sheet3!DJ18/Sheet3!$F$1 -> 508 | DK21: =+Sheet3!DK18/Sheet3!$F$1 -> 388 | DL21: =+Sheet3!DL18/Sheet3!$F$1 -> 0 | DM21: =+Sheet3!DM18/Sheet3!$F$1 -> 30 | DN21: =+Sheet3!DN18/Sheet3!$F$1 -> 4155 | DO21: =+Sheet3!DO18/Sheet3!$F$1 -> 2084 | DP21: =+Sheet3!DP18/Sheet3!$F$1 -> 391 | DQ21: =+Sheet3!DQ18/Sheet3!$F$1 -> 108 | DR21: =+Sheet3!DR18/Sheet3!$F$1 -> 13 | DS21: 6751
B22: 16F | C22: Região de Leiria | D22: =+Sheet3!D19/Sheet3!$F$1 -> 0 | E22: =+Sheet3!E19/Sheet3!$F$1 -> 3 | F22: =+Sheet3!F19/Sheet3!$F$1 -> 7 | G22: =+Sheet3!G19/Sheet3!$F$1 -> 0 | H22: =+Sheet3!H19/Sheet3!$F$1 -> 0 | I22: =+Sheet3!I19/Sheet3!$F$1 -> 115 | J22: =+Sheet3!J19/Sheet3!$F$1 -> 46 | K22: =+Sheet3!K19/Sheet3!$F$1 -> 5 | L22: =+Sheet3!L19/Sheet3!$F$1 -> 0 | M22: =+Sheet3!M19/Sheet3!$F$1 -> 0 | N22: =+Sheet3!N19/Sheet3!$F$1 -> 130 | O22: =+Sheet3!O19/Sheet3!$F$1 -> 22 | P22: =+Sheet3!P19/Sheet3!$F$1 -> 0 | Q22: =+Sheet3!Q19/Sheet3!$F$1 -> 0 | R22: =+Sheet3!R19/Sheet3!$F$1 -> 0 | S22: =+Sheet3!S19/Sheet3!$F$1 -> 5 | T22: =+Sheet3!T19/Sheet3!$F$1 -> 11 | U22: =+Sheet3!U19/Sheet3!$F$1 -> 0 | V22: =+Sheet3!V19/Sheet3!$F$1 -> 0 | W22: =+Sheet3!W19/Sheet3!$F$1 -> 0 | X22: =+Sheet3!X19/Sheet3!$F$1 -> 0 | Y22: =+Sheet3!Y19/Sheet3!$F$1 -> 0 | Z22: =+Sheet3!Z19/Sheet3!$F$1 -> 0 | AA22: =+Sheet3!AA19/Sheet3!$F$1 -> 0 | AB22: =+Sheet3!AB19/Sheet3!$F$1 -> 0 | AC22: =+Sheet3!AC19/Sheet3!$F$1 -> 185 | AD22: =+Sheet3!AD19/Sheet3!$F$1 -> 157 | AE22: =+Sheet3!AE19/Sheet3!$F$1 -> 16 | AF22: =+Sheet3!AF19/Sheet3!$F$1 -> 5 | AG22: =+Sheet3!AG19/Sheet3!$F$1 -> 0 | AH22: =+Sheet3!AH19/Sheet3!$F$1 -> 6 | AI22: =+Sheet3!AI19/Sheet3!$F$1 -> 0 | AJ22: =+Sheet3!AJ19/Sheet3!$F$1 -> 0 | AK22: =+Sheet3!AK19/Sheet3!$F$1 -> 0 | AL22: =+Sheet3!AL19/Sheet3!$F$1 -> 0 | AM22: =+Sheet3!AM19/Sheet3!$F$1 -> 32 | AN22: =+Sheet3!AN19/Sheet3!$F$1 -> 58 | AO22: =+Sheet3!AO19/Sheet3!$F$1 -> 29 | AP22: =+Sheet3!AP19/Sheet3!$F$1 -> 5 | AQ22: =+Sheet3!AQ19/Sheet3!$F$1 -> 0 | AR22: =+Sheet3!AR19/Sheet3!$F$1 -> 257 | AS22: =+Sheet3!AS19/Sheet3!$F$1 -> 7 | AT22: =+Sheet3!AT19/Sheet3!$F$1 -> 0 | AU22: =+Sheet3!AU19/Sheet3!$F$1 -> 0 | AV22: =+Sheet3!AV19/Sheet3!$F$1 -> 0 | AW22: =+Sheet3!AW19/Sheet3!$F$1 -> 799 | AX22: =+Sheet3!AX19/Sheet3!$F$1 -> 144 | AY22: =+Sheet3!AY19/Sheet3!$F$1 -> 6 | AZ22: =+Sheet3!AZ19/Sheet3!$F$1 -> 0 | BA22: =+Sheet3!BA19/Sheet3!$F$1 -> 0 | BB22: =+Sheet3!BB19/Sheet3!$F$1 -> 0 | BC22: =+Sheet3!BC19/Sheet3!$F$1 -> 0 | BD22: =+Sheet3!BD19/Sheet3!$F$1 -> 4 | BE22: =+Sheet3!BE19/Sheet3!$F$1 -> 9 | BF22: =+Sheet3!BF19/Sheet3!$F$1 -> 0 | BG22: =+Sheet3!BG19/Sheet3!$F$1 -> 0 | BH22: =+Sheet3!BH19/Sheet3!$F$1 -> 17 | BI22: =+Sheet3!BI19/Sheet3!$F$1 -> 9 | BJ22: =+Sheet3!BJ19/Sheet3!$F$1 -> 0 | BK22: =+Sheet3!BK19/Sheet3!$F$1 -> 0 | BL22: =+Sheet3!BL19/Sheet3!$F$1 -> 30 | BM22: =+Sheet3!BM19/Sheet3!$F$1 -> 68 | BN22: =+Sheet3!BN19/Sheet3!$F$1 -> 17 | BO22: =+Sheet3!BO19/Sheet3!$F$1 -> 0 | BP22: =+Sheet3!BP19/Sheet3!$F$1 -> 0 | BQ22: =+Sheet3!BQ19/Sheet3!$F$1 -> 5 | BR22: =+Sheet3!BR19/Sheet3!$F$1 -> 12 | BS22: =+Sheet3!BS19/Sheet3!$F$1 -> 5 | BT22: =+Sheet3!BT19/Sheet3!$F$1 -> 0 | BU22: =+Sheet3!BU19/Sheet3!$F$1 -> 0 | BV22: =+Sheet3!BV19/Sheet3!$F$1 -> 268 | BW22: =+Sheet3!BW19/Sheet3!$F$1 -> 131 | BX22: =+Sheet3!BX19/Sheet3!$F$1 -> 11 | BY22: =+Sheet3!BY19/Sheet3!$F$1 -> 0 | BZ22: =+Sheet3!BZ19/Sheet3!$F$1 -> 0 | CA22: =+Sheet3!CA19/Sheet3!$F$1 -> 260 | CB22: =+Sheet3!CB19/Sheet3!$F$1 -> 104 | CC22: =+Sheet3!CC19/Sheet3!$F$1 -> 3 | CD22: =+Sheet3!CD19/Sheet3!$F$1 -> 0 | CE22: =+Sheet3!CE19/Sheet3!$F$1 -> 0 | CF22: =+Sheet3!CF19/Sheet3!$F$1 -> 122 | CG22: =+Sheet3!CG19/Sheet3!$F$1 -> 0 | CH22: =+Sheet3!CH19/Sheet3!$F$1 -> 0 | CI22: =+Sheet3!CI19/Sheet3!$F$1 -> 0 | CJ22: =+Sheet3!CJ19/Sheet3!$F$1 -> 0 | CK22: =+Sheet3!CK19/Sheet3!$F$1 -> 0 | CL22: =+Sheet3!CL19/Sheet3!$F$1 -> 0 | CM22: =+Sheet3!CM19/Sheet3!$F$1 -> 0 | CN22: =+Sheet3!CN19/Sheet3!$F$1 -> 0 | CO22: =+Sheet3!CO19/Sheet3!$F$1 -> 0 | CP22: =+Sheet3!CP19/Sheet3!$F$1 -> 0 | CQ22: =+Sheet3!CQ19/Sheet3!$F$1 -> 0 | CR22: =+Sheet3!CR19/Sheet3!$F$1 -> 0 | CS22: =+Sheet3!CS19/Sheet3!$F$1 -> 0 | CT22: =+Sheet3!CT19/Sheet3!$F$1 -> 0 | CU22: =+Sheet3!CU19/Sheet3!$F$1 -> 18 | CV22: =+Sheet3!CV19/Sheet3!$F$1 -> 167 | CW22: =+Sheet3!CW19/Sheet3!$F$1 -> 154 | CX22: =+Sheet3!CX19/Sheet3!$F$1 -> 22 | CY22: =+Sheet3!CY19/Sheet3!$F$1 -> 0 | CZ22: =+Sheet3!CZ19/Sheet3!$F$1 -> 368 | DA22: =+Sheet3!DA19/Sheet3!$F$1 -> 9 | DB22: =+Sheet3!DB19/Sheet3!$F$1 -> 130 | DC22: =+Sheet3!DC19/Sheet3!$F$1 -> 266 | DD22: =+Sheet3!DD19/Sheet3!$F$1 -> 951 | DE22: =+Sheet3!DE19/Sheet3!$F$1 -> 16 | DF22: =+Sheet3!DF19/Sheet3!$F$1 -> 29 | DG22: =+Sheet3!DG19/Sheet3!$F$1 -> 122 | DH22: =+Sheet3!DH19/Sheet3!$F$1 -> 26 | DI22: =+Sheet3!DI19/Sheet3!$F$1 -> 413 | DJ22: =+Sheet3!DJ19/Sheet3!$F$1 -> 369 | DK22: =+Sheet3!DK19/Sheet3!$F$1 -> 124 | DL22: =+Sheet3!DL19/Sheet3!$F$1 -> 0 | DM22: =+Sheet3!DM19/Sheet3!$F$1 -> 0 | DN22: =+Sheet3!DN19/Sheet3!$F$1 -> 2223 | DO22: =+Sheet3!DO19/Sheet3!$F$1 -> 795 | DP22: =+Sheet3!DP19/Sheet3!$F$1 -> 126 | DQ22: =+Sheet3!DQ19/Sheet3!$F$1 -> 37 | DR22: =+Sheet3!DR19/Sheet3!$F$1 -> 7 | DS22: 3188
B23: 16G | C23: Viseu Dão Lafões | D23: =+Sheet3!D20/Sheet3!$F$1 -> 0 | E23: =+Sheet3!E20/Sheet3!$F$1 -> 0 | F23: =+Sheet3!F20/Sheet3!$F$1 -> 0 | G23: =+Sheet3!G20/Sheet3!$F$1 -> 0 | H23: =+Sheet3!H20/Sheet3!$F$1 -> 0 | I23: =+Sheet3!I20/Sheet3!$F$1 -> 219 | J23: =+Sheet3!J20/Sheet3!$F$1 -> 20 | K23: =+Sheet3!K20/Sheet3!$F$1 -> 0 | L23: =+Sheet3!L20/Sheet3!$F$1 -> 0 | M23: =+Sheet3!M20/Sheet3!$F$1 -> 0 | N23: =+Sheet3!N20/Sheet3!$F$1 -> 216 | O23: =+Sheet3!O20/Sheet3!$F$1 -> 34 | P23: =+Sheet3!P20/Sheet3!$F$1 -> 0 | Q23: =+Sheet3!Q20/Sheet3!$F$1 -> 0 | R23: =+Sheet3!R20/Sheet3!$F$1 -> 0 | S23: =+Sheet3!S20/Sheet3!$F$1 -> 0 | T23: =+Sheet3!T20/Sheet3!$F$1 -> 0 | U23: =+Sheet3!U20/Sheet3!$F$1 -> 0 | V23: =+Sheet3!V20/Sheet3!$F$1 -> 0 | W23: =+Sheet3!W20/Sheet3!$F$1 -> 0 | X23: =+Sheet3!X20/Sheet3!$F$1 -> 0 | Y23: =+Sheet3!Y20/Sheet3!$F$1 -> 0 | Z23: =+Sheet3!Z20/Sheet3!$F$1 -> 0 | AA23: =+Sheet3!AA20/Sheet3!$F$1 -> 0 | AB23: =+Sheet3!AB20/Sheet3!$F$1 -> 0 | AC23: =+Sheet3!AC20/Sheet3!$F$1 -> 376 | AD23: =+Sheet3!AD20/Sheet3!$F$1 -> 608 | AE23: =+Sheet3!AE20/Sheet3!$F$1 -> 23 | AF23: =+Sheet3!AF20/Sheet3!$F$1 -> 0 | AG23: =+Sheet3!AG20/Sheet3!$F$1 -> 0 | AH23: =+Sheet3!AH20/Sheet3!$F$1 -> 177 | AI23: =+Sheet3!AI20/Sheet3!$F$1 -> 201 | AJ23: =+Sheet3!AJ20/Sheet3!$F$1 -> 29 | AK23: =+Sheet3!AK20/Sheet3!$F$1 -> 0 | AL23: =+Sheet3!AL20/Sheet3!$F$1 -> 0 | AM23: =+Sheet3!AM20/Sheet3!$F$1 -> 104 | AN23: =+Sheet3!AN20/Sheet3!$F$1 -> 164 | AO23: =+Sheet3!AO20/Sheet3!$F$1 -> 244 | AP23: =+Sheet3!AP20/Sheet3!$F$1 -> 32 | AQ23: =+Sheet3!AQ20/Sheet3!$F$1 -> 0 | AR23: =+Sheet3!AR20/Sheet3!$F$1 -> 66 | AS23: =+Sheet3!AS20/Sheet3!$F$1 -> 4 | AT23: =+Sheet3!AT20/Sheet3!$F$1 -> 0 | AU23: =+Sheet3!AU20/Sheet3!$F$1 -> 0 | AV23: =+Sheet3!AV20/Sheet3!$F$1 -> 0 | AW23: =+Sheet3!AW20/Sheet3!$F$1 -> 2019 | AX23: =+Sheet3!AX20/Sheet3!$F$1 -> 957 | AY23: =+Sheet3!AY20/Sheet3!$F$1 -> 22 | AZ23: =+Sheet3!AZ20/Sheet3!$F$1 -> 0 | BA23: =+Sheet3!BA20/Sheet3!$F$1 -> 0 | BB23: =+Sheet3!BB20/Sheet3!$F$1 -> 6 | BC23: =+Sheet3!BC20/Sheet3!$F$1 -> 13 | BD23: =+Sheet3!BD20/Sheet3!$F$1 -> 14 | BE23: =+Sheet3!BE20/Sheet3!$F$1 -> 6 | BF23: =+Sheet3!BF20/Sheet3!$F$1 -> 0 | BG23: =+Sheet3!BG20/Sheet3!$F$1 -> 23 | BH23: =+Sheet3!BH20/Sheet3!$F$1 -> 44 | BI23: =+Sheet3!BI20/Sheet3!$F$1 -> 5 | BJ23: =+Sheet3!BJ20/Sheet3!$F$1 -> 0 | BK23: =+Sheet3!BK20/Sheet3!$F$1 -> 0 | BL23: =+Sheet3!BL20/Sheet3!$F$1 -> 35 | BM23: =+Sheet3!BM20/Sheet3!$F$1 -> 57 | BN23: =+Sheet3!BN20/Sheet3!$F$1 -> 7 | BO23: =+Sheet3!BO20/Sheet3!$F$1 -> 0 | BP23: =+Sheet3!BP20/Sheet3!$F$1 -> 0 | BQ23: =+Sheet3!BQ20/Sheet3!$F$1 -> 19 | BR23: =+Sheet3!BR20/Sheet3!$F$1 -> 84 | BS23: =+Sheet3!BS20/Sheet3!$F$1 -> 19 | BT23: =+Sheet3!BT20/Sheet3!$F$1 -> 0 | BU23: =+Sheet3!BU20/Sheet3!$F$1 -> 0 | BV23: =+Sheet3!BV20/Sheet3!$F$1 -> 494 | BW23: =+Sheet3!BW20/Sheet3!$F$1 -> 412 | BX23: =+Sheet3!BX20/Sheet3!$F$1 -> 48 | BY23: =+Sheet3!BY20/Sheet3!$F$1 -> 0 | BZ23: =+Sheet3!BZ20/Sheet3!$F$1 -> 0 | CA23: =+Sheet3!CA20/Sheet3!$F$1 -> 616 | CB23: =+Sheet3!CB20/Sheet3!$F$1 -> 452 | CC23: =+Sheet3!CC20/Sheet3!$F$1 -> 10 | CD23: =+Sheet3!CD20/Sheet3!$F$1 -> 0 | CE23: =+Sheet3!CE20/Sheet3!$F$1 -> 0 | CF23: =+Sheet3!CF20/Sheet3!$F$1 -> 145 | CG23: =+Sheet3!CG20/Sheet3!$F$1 -> 6 | CH23: =+Sheet3!CH20/Sheet3!$F$1 -> 0 | CI23: =+Sheet3!CI20/Sheet3!$F$1 -> 0 | CJ23: =+Sheet3!CJ20/Sheet3!$F$1 -> 0 | CK23: =+Sheet3!CK20/Sheet3!$F$1 -> 0 | CL23: =+Sheet3!CL20/Sheet3!$F$1 -> 0 | CM23: =+Sheet3!CM20/Sheet3!$F$1 -> 0 | CN23: =+Sheet3!CN20/Sheet3!$F$1 -> 0 | CO23: =+Sheet3!CO20/Sheet3!$F$1 -> 0 | CP23: =+Sheet3!CP20/Sheet3!$F$1 -> 11 | CQ23: =+Sheet3!CQ20/Sheet3!$F$1 -> 0 | CR23: =+Sheet3!CR20/Sheet3!$F$1 -> 0 | CS23: =+Sheet3!CS20/Sheet3!$F$1 -> 0 | CT23: =+Sheet3!CT20/Sheet3!$F$1 -> 0 | CU23: =+Sheet3!CU20/Sheet3!$F$1 -> 12 | CV23: =+Sheet3!CV20/Sheet3!$F$1 -> 240 | CW23: =+Sheet3!CW20/Sheet3!$F$1 -> 255 | CX23: =+Sheet3!CX20/Sheet3!$F$1 -> 0 | CY23: =+Sheet3!CY20/Sheet3!$F$1 -> 0 | CZ23: =+Sheet3!CZ20/Sheet3!$F$1 -> 1011 | DA23: =+Sheet3!DA20/Sheet3!$F$1 -> 411 | DB23: =+Sheet3!DB20/Sheet3!$F$1 -> 546 | DC23: =+Sheet3!DC20/Sheet3!$F$1 -> 70 | DD23: =+Sheet3!DD20/Sheet3!$F$1 -> 3004 | DE23: =+Sheet3!DE20/Sheet3!$F$1 -> 45 | DF23: =+Sheet3!DF20/Sheet3!$F$1 -> 78 | DG23: =+Sheet3!DG20/Sheet3!$F$1 -> 101 | DH23: =+Sheet3!DH20/Sheet3!$F$1 -> 132 | DI23: =+Sheet3!DI20/Sheet3!$F$1 -> 957 | DJ23: =+Sheet3!DJ20/Sheet3!$F$1 -> 1079 | DK23: =+Sheet3!DK20/Sheet3!$F$1 -> 153 | DL23: =+Sheet3!DL20/Sheet3!$F$1 -> 0 | DM23: =+Sheet3!DM20/Sheet3!$F$1 -> 13 | DN23: =+Sheet3!DN20/Sheet3!$F$1 -> 4539 | DO23: =+Sheet3!DO20/Sheet3!$F$1 -> 3072 | DP23: =+Sheet3!DP20/Sheet3!$F$1 -> 440 | DQ23: =+Sheet3!DQ20/Sheet3!$F$1 -> 53 | DR23: =+Sheet3!DR20/Sheet3!$F$1 -> 4 | DS23: 8108
B24: 16H | C24: Beira Baixa | D24: =+Sheet3!D21/Sheet3!$F$1 -> 0 | E24: =+Sheet3!E21/Sheet3!$F$1 -> 0 | F24: =+Sheet3!F21/Sheet3!$F$1 -> 0 | G24: =+Sheet3!G21/Sheet3!$F$1 -> 0 | H24: =+Sheet3!H21/Sheet3!$F$1 -> 0 | I24: =+Sheet3!I21/Sheet3!$F$1 -> 0 | J24: =+Sheet3!J21/Sheet3!$F$1 -> 6 | K24: =+Sheet3!K21/Sheet3!$F$1 -> 0 | L24: =+Sheet3!L21/Sheet3!$F$1 -> 6 | M24: =+Sheet3!M21/Sheet3!$F$1 -> 0 | N24: =+Sheet3!N21/Sheet3!$F$1 -> 110 | O24: =+Sheet3!O21/Sheet3!$F$1 -> 20 | P24: =+Sheet3!P21/Sheet3!$F$1 -> 3 | Q24: =+Sheet3!Q21/Sheet3!$F$1 -> 5 | R24: =+Sheet3!R21/Sheet3!$F$1 -> 0 | S24: =+Sheet3!S21/Sheet3!$F$1 -> 0 | T24: =+Sheet3!T21/Sheet3!$F$1 -> 0 | U24: =+Sheet3!U21/Sheet3!$F$1 -> 0 | V24: =+Sheet3!V21/Sheet3!$F$1 -> 0 | W24: =+Sheet3!W21/Sheet3!$F$1 -> 0 | X24: =+Sheet3!X21/Sheet3!$F$1 -> 0 | Y24: =+Sheet3!Y21/Sheet3!$F$1 -> 0 | Z24: =+Sheet3!Z21/Sheet3!$F$1 -> 0 | AA24: =+Sheet3!AA21/Sheet3!$F$1 -> 0 | AB24: =+Sheet3!AB21/Sheet3!$F$1 -> 0 | AC24: =+Sheet3!AC21/Sheet3!$F$1 -> 223 | AD24: =+Sheet3!AD21/Sheet3!$F$1 -> 76 | AE24: =+Sheet3!AE21/Sheet3!$F$1 -> 5 | AF24: =+Sheet3!AF21/Sheet3!$F$1 -> 9 | AG24: =+Sheet3!AG21/Sheet3!$F$1 -> 3 | AH24: =+Sheet3!AH21/Sheet3!$F$1 -> 3 | AI24: =+Sheet3!AI21/Sheet3!$F$1 -> 4 | AJ24: =+Sheet3!AJ21/Sheet3!$F$1 -> 0 | AK24: =+Sheet3!AK21/Sheet3!$F$1 -> 0 | AL24: =+Sheet3!AL21/Sheet3!$F$1 -> 0 | AM24: =+Sheet3!AM21/Sheet3!$F$1 -> 100 | AN24: =+Sheet3!AN21/Sheet3!$F$1 -> 122 | AO24: =+Sheet3!AO21/Sheet3!$F$1 -> 77 | AP24: =+Sheet3!AP21/Sheet3!$F$1 -> 48 | AQ24: =+Sheet3!AQ21/Sheet3!$F$1 -> 8 | AR24: =+Sheet3!AR21/Sheet3!$F$1 -> 662 | AS24: =+Sheet3!AS21/Sheet3!$F$1 -> 13 | AT24: =+Sheet3!AT21/Sheet3!$F$1 -> 8 | AU24: =+Sheet3!AU21/Sheet3!$F$1 -> 0 | AV24: =+Sheet3!AV21/Sheet3!$F$1 -> 0 | AW24: =+Sheet3!AW21/Sheet3!$F$1 -> 1164 | AX24: =+Sheet3!AX21/Sheet3!$F$1 -> 149 | AY24: =+Sheet3!AY21/Sheet3!$F$1 -> 18 | AZ24: =+Sheet3!AZ21/Sheet3!$F$1 -> 4 | BA24: =+Sheet3!BA21/Sheet3!$F$1 -> 0 | BB24: =+Sheet3!BB21/Sheet3!$F$1 -> 0 | BC24: =+Sheet3!BC21/Sheet3!$F$1 -> 0 | BD24: =+Sheet3!BD21/Sheet3!$F$1 -> 0 | BE24: =+Sheet3!BE21/Sheet3!$F$1 -> 0 | BF24: =+Sheet3!BF21/Sheet3!$F$1 -> 3 | BG24: =+Sheet3!BG21/Sheet3!$F$1 -> 0 | BH24: =+Sheet3!BH21/Sheet3!$F$1 -> 19 | BI24: =+Sheet3!BI21/Sheet3!$F$1 -> 24 | BJ24: =+Sheet3!BJ21/Sheet3!$F$1 -> 9 | BK24: =+Sheet3!BK21/Sheet3!$F$1 -> 0 | BL24: =+Sheet3!BL21/Sheet3!$F$1 -> 0 | BM24: =+Sheet3!BM21/Sheet3!$F$1 -> 18 | BN24: =+Sheet3!BN21/Sheet3!$F$1 -> 6 | BO24: =+Sheet3!BO21/Sheet3!$F$1 -> 0 | BP24: =+Sheet3!BP21/Sheet3!$F$1 -> 0 | BQ24: =+Sheet3!BQ21/Sheet3!$F$1 -> 0 | BR24: =+Sheet3!BR21/Sheet3!$F$1 -> 41 | BS24: =+Sheet3!BS21/Sheet3!$F$1 -> 80 | BT24: =+Sheet3!BT21/Sheet3!$F$1 -> 31 | BU24: =+Sheet3!BU21/Sheet3!$F$1 -> 0 | BV24: =+Sheet3!BV21/Sheet3!$F$1 -> 240 | BW24: =+Sheet3!BW21/Sheet3!$F$1 -> 379 | BX24: =+Sheet3!BX21/Sheet3!$F$1 -> 209 | BY24: =+Sheet3!BY21/Sheet3!$F$1 -> 52 | BZ24: =+Sheet3!BZ21/Sheet3!$F$1 -> 0 | CA24: =+Sheet3!CA21/Sheet3!$F$1 -> 120 | CB24: =+Sheet3!CB21/Sheet3!$F$1 -> 108 | CC24: =+Sheet3!CC21/Sheet3!$F$1 -> 13 | CD24: =+Sheet3!CD21/Sheet3!$F$1 -> 10 | CE24: =+Sheet3!CE21/Sheet3!$F$1 -> 0 | CF24: =+Sheet3!CF21/Sheet3!$F$1 -> 279 | CG24: =+Sheet3!CG21/Sheet3!$F$1 -> 100 | CH24: =+Sheet3!CH21/Sheet3!$F$1 -> 21 | CI24: =+Sheet3!CI21/Sheet3!$F$1 -> 0 | CJ24: =+Sheet3!CJ21/Sheet3!$F$1 -> 0 | CK24: =+Sheet3!CK21/Sheet3!$F$1 -> 0 | CL24: =+Sheet3!CL21/Sheet3!$F$1 -> 0 | CM24: =+Sheet3!CM21/Sheet3!$F$1 -> 0 | CN24: =+Sheet3!CN21/Sheet3!$F$1 -> 0 | CO24: =+Sheet3!CO21/Sheet3!$F$1 -> 0 | CP24: =+Sheet3!CP21/Sheet3!$F$1 -> 0 | CQ24: =+Sheet3!CQ21/Sheet3!$F$1 -> 0 | CR24: =+Sheet3!CR21/Sheet3!$F$1 -> 0 | CS24: =+Sheet3!CS21/Sheet3!$F$1 -> 0 | CT24: =+Sheet3!CT21/Sheet3!$F$1 -> 0 | CU24: =+Sheet3!CU21/Sheet3!$F$1 -> 12 | CV24: =+Sheet3!CV21/Sheet3!$F$1 -> 18 | CW24: =+Sheet3!CW21/Sheet3!$F$1 -> 142 | CX24: =+Sheet3!CX21/Sheet3!$F$1 -> 0 | CY24: =+Sheet3!CY21/Sheet3!$F$1 -> 0 | CZ24: =+Sheet3!CZ21/Sheet3!$F$1 -> 319 | DA24: =+Sheet3!DA21/Sheet3!$F$1 -> 9 | DB24: =+Sheet3!DB21/Sheet3!$F$1 -> 357 | DC24: =+Sheet3!DC21/Sheet3!$F$1 -> 687 | DD24: =+Sheet3!DD21/Sheet3!$F$1 -> 1337 | DE24: =+Sheet3!DE21/Sheet3!$F$1 -> 5 | DF24: =+Sheet3!DF21/Sheet3!$F$1 -> 55 | DG24: =+Sheet3!DG21/Sheet3!$F$1 -> 29 | DH24: =+Sheet3!DH21/Sheet3!$F$1 -> 155 | DI24: =+Sheet3!DI21/Sheet3!$F$1 -> 882 | DJ24: =+Sheet3!DJ21/Sheet3!$F$1 -> 252 | DK24: =+Sheet3!DK21/Sheet3!$F$1 -> 401 | DL24: =+Sheet3!DL21/Sheet3!$F$1 -> 0 | DM24: =+Sheet3!DM21/Sheet3!$F$1 -> 0 | DN24: =+Sheet3!DN21/Sheet3!$F$1 -> 2915 | DO24: =+Sheet3!DO21/Sheet3!$F$1 -> 1071 | DP24: =+Sheet3!DP21/Sheet3!$F$1 -> 473 | DQ24: =+Sheet3!DQ21/Sheet3!$F$1 -> 186 | DR24: =+Sheet3!DR21/Sheet3!$F$1 -> 18 | DS24: 4663
B25: 16I | C25: Médio Tejo | D25: =+Sheet3!D22/Sheet3!$F$1 -> 0 | E25: =+Sheet3!E22/Sheet3!$F$1 -> 0 | F25: =+Sheet3!F22/Sheet3!$F$1 -> 0 | G25: =+Sheet3!G22/Sheet3!$F$1 -> 0 | H25: =+Sheet3!H22/Sheet3!$F$1 -> 0 | I25: =+Sheet3!I22/Sheet3!$F$1 -> 12 | J25: =+Sheet3!J22/Sheet3!$F$1 -> 19 | K25: =+Sheet3!K22/Sheet3!$F$1 -> 15 | L25: =+Sheet3!L22/Sheet3!$F$1 -> 13 | M25: =+Sheet3!M22/Sheet3!$F$1 -> 0 | N25: =+Sheet3!N22/Sheet3!$F$1 -> 53 | O25: =+Sheet3!O22/Sheet3!$F$1 -> 27 | P25: =+Sheet3!P22/Sheet3!$F$1 -> 8 | Q25: =+Sheet3!Q22/Sheet3!$F$1 -> 0 | R25: =+Sheet3!R22/Sheet3!$F$1 -> 0 | S25: =+Sheet3!S22/Sheet3!$F$1 -> 0 | T25: =+Sheet3!T22/Sheet3!$F$1 -> 0 | U25: =+Sheet3!U22/Sheet3!$F$1 -> 0 | V25: =+Sheet3!V22/Sheet3!$F$1 -> 0 | W25: =+Sheet3!W22/Sheet3!$F$1 -> 0 | X25: =+Sheet3!X22/Sheet3!$F$1 -> 0 | Y25: =+Sheet3!Y22/Sheet3!$F$1 -> 0 | Z25: =+Sheet3!Z22/Sheet3!$F$1 -> 0 | AA25: =+Sheet3!AA22/Sheet3!$F$1 -> 0 | AB25: =+Sheet3!AB22/Sheet3!$F$1 -> 0 | AC25: =+Sheet3!AC22/Sheet3!$F$1 -> 129 | AD25: =+Sheet3!AD22/Sheet3!$F$1 -> 88 | AE25: =+Sheet3!AE22/Sheet3!$F$1 -> 9 | AF25: =+Sheet3!AF22/Sheet3!$F$1 -> 5 | AG25: =+Sheet3!AG22/Sheet3!$F$1 -> 0 | AH25: =+Sheet3!AH22/Sheet3!$F$1 -> 39 | AI25: =+Sheet3!AI22/Sheet3!$F$1 -> 14 | AJ25: =+Sheet3!AJ22/Sheet3!$F$1 -> 6 | AK25: =+Sheet3!AK22/Sheet3!$F$1 -> 0 | AL25: =+Sheet3!AL22/Sheet3!$F$1 -> 0 | AM25: =+Sheet3!AM22/Sheet3!$F$1 -> 70 | AN25: =+Sheet3!AN22/Sheet3!$F$1 -> 170 | AO25: =+Sheet3!AO22/Sheet3!$F$1 -> 73 | AP25: =+Sheet3!AP22/Sheet3!$F$1 -> 29 | AQ25: =+Sheet3!AQ22/Sheet3!$F$1 -> 0 | AR25: =+Sheet3!AR22/Sheet3!$F$1 -> 646 | AS25: =+Sheet3!AS22/Sheet3!$F$1 -> 17 | AT25: =+Sheet3!AT22/Sheet3!$F$1 -> 8 | AU25: =+Sheet3!AU22/Sheet3!$F$1 -> 3 | AV25: =+Sheet3!AV22/Sheet3!$F$1 -> 0 | AW25: =+Sheet3!AW22/Sheet3!$F$1 -> 1348 | AX25: =+Sheet3!AX22/Sheet3!$F$1 -> 276 | AY25: =+Sheet3!AY22/Sheet3!$F$1 -> 24 | AZ25: =+Sheet3!AZ22/Sheet3!$F$1 -> 9 | BA25: =+Sheet3!BA22/Sheet3!$F$1 -> 0 | BB25: =+Sheet3!BB22/Sheet3!$F$1 -> 0 | BC25: =+Sheet3!BC22/Sheet3!$F$1 -> 0 | BD25: =+Sheet3!BD22/Sheet3!$F$1 -> 0 | BE25: =+Sheet3!BE22/Sheet3!$F$1 -> 3 | BF25: =+Sheet3!BF22/Sheet3!$F$1 -> 0 | BG25: =+Sheet3!BG22/Sheet3!$F$1 -> 0 | BH25: =+Sheet3!BH22/Sheet3!$F$1 -> 8 | BI25: =+Sheet3!BI22/Sheet3!$F$1 -> 6 | BJ25: =+Sheet3!BJ22/Sheet3!$F$1 -> 0 | BK25: =+Sheet3!BK22/Sheet3!$F$1 -> 0 | BL25: =+Sheet3!BL22/Sheet3!$F$1 -> 8 | BM25: =+Sheet3!BM22/Sheet3!$F$1 -> 59 | BN25: =+Sheet3!BN22/Sheet3!$F$1 -> 9 | BO25: =+Sheet3!BO22/Sheet3!$F$1 -> 3 | BP25: =+Sheet3!BP22/Sheet3!$F$1 -> 0 | BQ25: =+Sheet3!BQ22/Sheet3!$F$1 -> 0 | BR25: =+Sheet3!BR22/Sheet3!$F$1 -> 5 | BS25: =+Sheet3!BS22/Sheet3!$F$1 -> 0 | BT25: =+Sheet3!BT22/Sheet3!$F$1 -> 0 | BU25: =+Sheet3!BU22/Sheet3!$F$1 -> 0 | BV25: =+Sheet3!BV22/Sheet3!$F$1 -> 245 | BW25: =+Sheet3!BW22/Sheet3!$F$1 -> 111 | BX25: =+Sheet3!BX22/Sheet3!$F$1 -> 27 | BY25: =+Sheet3!BY22/Sheet3!$F$1 -> 0 | BZ25: =+Sheet3!BZ22/Sheet3!$F$1 -> 0 | CA25: =+Sheet3!CA22/Sheet3!$F$1 -> 213 | CB25: =+Sheet3!CB22/Sheet3!$F$1 -> 110 | CC25: =+Sheet3!CC22/Sheet3!$F$1 -> 17 | CD25: =+Sheet3!CD22/Sheet3!$F$1 -> 5 | CE25: =+Sheet3!CE22/Sheet3!$F$1 -> 0 | CF25: =+Sheet3!CF22/Sheet3!$F$1 -> 113 | CG25: =+Sheet3!CG22/Sheet3!$F$1 -> 55 | CH25: =+Sheet3!CH22/Sheet3!$F$1 -> 0 | CI25: =+Sheet3!CI22/Sheet3!$F$1 -> 0 | CJ25: =+Sheet3!CJ22/Sheet3!$F$1 -> 0 | CK25: =+Sheet3!CK22/Sheet3!$F$1 -> 0 | CL25: =+Sheet3!CL22/Sheet3!$F$1 -> 0 | CM25: =+Sheet3!CM22/Sheet3!$F$1 -> 0 | CN25: =+Sheet3!CN22/Sheet3!$F$1 -> 0 | CO25: =+Sheet3!CO22/Sheet3!$F$1 -> 0 | CP25: =+Sheet3!CP22/Sheet3!$F$1 -> 0 | CQ25: =+Sheet3!CQ22/Sheet3!$F$1 -> 0 | CR25: =+Sheet3!CR22/Sheet3!$F$1 -> 0 | CS25: =+Sheet3!CS22/Sheet3!$F$1 -> 0 | CT25: =+Sheet3!CT22/Sheet3!$F$1 -> 0 | CU25: =+Sheet3!CU22/Sheet3!$F$1 -> 8 | CV25: =+Sheet3!CV22/Sheet3!$F$1 -> 64 | CW25: =+Sheet3!CW22/Sheet3!$F$1 -> 93 | CX25: =+Sheet3!CX22/Sheet3!$F$1 -> 0 | CY25: =+Sheet3!CY22/Sheet3!$F$1 -> 3 | CZ25: =+Sheet3!CZ22/Sheet3!$F$1 -> 235 | DA25: =+Sheet3!DA22/Sheet3!$F$1 -> 63 | DB25: =+Sheet3!DB22/Sheet3!$F$1 -> 346 | DC25: =+Sheet3!DC22/Sheet3!$F$1 -> 678 | DD25: =+Sheet3!DD22/Sheet3!$F$1 -> 1659 | DE25: =+Sheet3!DE22/Sheet3!$F$1 -> 8 | DF25: =+Sheet3!DF22/Sheet3!$F$1 -> 21 | DG25: =+Sheet3!DG22/Sheet3!$F$1 -> 83 | DH25: =+Sheet3!DH22/Sheet3!$F$1 -> 9 | DI25: =+Sheet3!DI22/Sheet3!$F$1 -> 386 | DJ25: =+Sheet3!DJ22/Sheet3!$F$1 -> 349 | DK25: =+Sheet3!DK22/Sheet3!$F$1 -> 172 | DL25: =+Sheet3!DL22/Sheet3!$F$1 -> 0 | DM25: =+Sheet3!DM22/Sheet3!$F$1 -> 0 | DN25: =+Sheet3!DN22/Sheet3!$F$1 -> 2883 | DO25: =+Sheet3!DO22/Sheet3!$F$1 -> 977 | DP25: =+Sheet3!DP22/Sheet3!$F$1 -> 227 | DQ25: =+Sheet3!DQ22/Sheet3!$F$1 -> 84 | DR25: =+Sheet3!DR22/Sheet3!$F$1 -> 6 | DS25: 4177
B26: 16J | C26: Beiras e Serra da Estrela | D26: =+Sheet3!D23/Sheet3!$F$1 -> 4 | E26: =+Sheet3!E23/Sheet3!$F$1 -> 3 | F26: =+Sheet3!F23/Sheet3!$F$1 -> 3 | G26: =+Sheet3!G23/Sheet3!$F$1 -> 6 | H26: =+Sheet3!H23/Sheet3!$F$1 -> 0 | I26: =+Sheet3!I23/Sheet3!$F$1 -> 49 | J26: =+Sheet3!J23/Sheet3!$F$1 -> 19 | K26: =+Sheet3!K23/Sheet3!$F$1 -> 4 | L26: =+Sheet3!L23/Sheet3!$F$1 -> 3 | M26: =+Sheet3!M23/Sheet3!$F$1 -> 0 | N26: =+Sheet3!N23/Sheet3!$F$1 -> 828 | O26: =+Sheet3!O23/Sheet3!$F$1 -> 109 | P26: =+Sheet3!P23/Sheet3!$F$1 -> 8 | Q26: =+Sheet3!Q23/Sheet3!$F$1 -> 0 | R26: =+Sheet3!R23/Sheet3!$F$1 -> 0 | S26: =+Sheet3!S23/Sheet3!$F$1 -> 0 | T26: =+Sheet3!T23/Sheet3!$F$1 -> 0 | U26: =+Sheet3!U23/Sheet3!$F$1 -> 0 | V26: =+Sheet3!V23/Sheet3!$F$1 -> 0 | W26: =+Sheet3!W23/Sheet3!$F$1 -> 0 | X26: =+Sheet3!X23/Sheet3!$F$1 -> 0 | Y26: =+Sheet3!Y23/Sheet3!$F$1 -> 0 | Z26: =+Sheet3!Z23/Sheet3!$F$1 -> 0 | AA26: =+Sheet3!AA23/Sheet3!$F$1 -> 0 | AB26: =+Sheet3!AB23/Sheet3!$F$1 -> 0 | AC26: =+Sheet3!AC23/Sheet3!$F$1 -> 1099 | AD26: =+Sheet3!AD23/Sheet3!$F$1 -> 587 | AE26: =+Sheet3!AE23/Sheet3!$F$1 -> 41 | AF26: =+Sheet3!AF23/Sheet3!$F$1 -> 6 | AG26: =+Sheet3!AG23/Sheet3!$F$1 -> 0 | AH26: =+Sheet3!AH23/Sheet3!$F$1 -> 316 | AI26: =+Sheet3!AI23/Sheet3!$F$1 -> 175 | AJ26: =+Sheet3!AJ23/Sheet3!$F$1 -> 24 | AK26: =+Sheet3!AK23/Sheet3!$F$1 -> 0 | AL26: =+Sheet3!AL23/Sheet3!$F$1 -> 0 | AM26: =+Sheet3!AM23/Sheet3!$F$1 -> 574 | AN26: =+Sheet3!AN23/Sheet3!$F$1 -> 496 | AO26: =+Sheet3!AO23/Sheet3!$F$1 -> 287 | AP26: =+Sheet3!AP23/Sheet3!$F$1 -> 71 | AQ26: =+Sheet3!AQ23/Sheet3!$F$1 -> 7 | AR26: =+Sheet3!AR23/Sheet3!$F$1 -> 576 | AS26: =+Sheet3!AS23/Sheet3!$F$1 -> 23 | AT26: =+Sheet3!AT23/Sheet3!$F$1 -> 4 | AU26: =+Sheet3!AU23/Sheet3!$F$1 -> 0 | AV26: =+Sheet3!AV23/Sheet3!$F$1 -> 0 | AW26: =+Sheet3!AW23/Sheet3!$F$1 -> 4186 | AX26: =+Sheet3!AX23/Sheet3!$F$1 -> 1467 | AY26: =+Sheet3!AY23/Sheet3!$F$1 -> 56 | AZ26: =+Sheet3!AZ23/Sheet3!$F$1 -> 4 | BA26: =+Sheet3!BA23/Sheet3!$F$1 -> 0 | BB26: =+Sheet3!BB23/Sheet3!$F$1 -> 0 | BC26: =+Sheet3!BC23/Sheet3!$F$1 -> 12 | BD26: =+Sheet3!BD23/Sheet3!$F$1 -> 21 | BE26: =+Sheet3!BE23/Sheet3!$F$1 -> 6 | BF26: =+Sheet3!BF23/Sheet3!$F$1 -> 0 | BG26: =+Sheet3!BG23/Sheet3!$F$1 -> 18 | BH26: =+Sheet3!BH23/Sheet3!$F$1 -> 230 | BI26: =+Sheet3!BI23/Sheet3!$F$1 -> 113 | BJ26: =+Sheet3!BJ23/Sheet3!$F$1 -> 5 | BK26: =+Sheet3!BK23/Sheet3!$F$1 -> 0 | BL26: =+Sheet3!BL23/Sheet3!$F$1 -> 11 | BM26: =+Sheet3!BM23/Sheet3!$F$1 -> 75 | BN26: =+Sheet3!BN23/Sheet3!$F$1 -> 18 | BO26: =+Sheet3!BO23/Sheet3!$F$1 -> 4 | BP26: =+Sheet3!BP23/Sheet3!$F$1 -> 0 | BQ26: =+Sheet3!BQ23/Sheet3!$F$1 -> 30 | BR26: =+Sheet3!BR23/Sheet3!$F$1 -> 272 | BS26: =+Sheet3!BS23/Sheet3!$F$1 -> 126 | BT26: =+Sheet3!BT23/Sheet3!$F$1 -> 3 | BU26: =+Sheet3!BU23/Sheet3!$F$1 -> 0 | BV26: =+Sheet3!BV23/Sheet3!$F$1 -> 499 | BW26: =+Sheet3!BW23/Sheet3!$F$1 -> 1086 | BX26: =+Sheet3!BX23/Sheet3!$F$1 -> 463 | BY26: =+Sheet3!BY23/Sheet3!$F$1 -> 35 | BZ26: =+Sheet3!BZ23/Sheet3!$F$1 -> 0 | CA26: =+Sheet3!CA23/Sheet3!$F$1 -> 316 | CB26: =+Sheet3!CB23/Sheet3!$F$1 -> 586 | CC26: =+Sheet3!CC23/Sheet3!$F$1 -> 95 | CD26: =+Sheet3!CD23/Sheet3!$F$1 -> 5 | CE26: =+Sheet3!CE23/Sheet3!$F$1 -> 0 | CF26: =+Sheet3!CF23/Sheet3!$F$1 -> 401 | CG26: =+Sheet3!CG23/Sheet3!$F$1 -> 49 | CH26: =+Sheet3!CH23/Sheet3!$F$1 -> 0 | CI26: =+Sheet3!CI23/Sheet3!$F$1 -> 0 | CJ26: =+Sheet3!CJ23/Sheet3!$F$1 -> 0 | CK26: =+Sheet3!CK23/Sheet3!$F$1 -> 0 | CL26: =+Sheet3!CL23/Sheet3!$F$1 -> 0 | CM26: =+Sheet3!CM23/Sheet3!$F$1 -> 0 | CN26: =+Sheet3!CN23/Sheet3!$F$1 -> 0 | CO26: =+Sheet3!CO23/Sheet3!$F$1 -> 0 | CP26: =+Sheet3!CP23/Sheet3!$F$1 -> 12 | CQ26: =+Sheet3!CQ23/Sheet3!$F$1 -> 0 | CR26: =+Sheet3!CR23/Sheet3!$F$1 -> 0 | CS26: =+Sheet3!CS23/Sheet3!$F$1 -> 0 | CT26: =+Sheet3!CT23/Sheet3!$F$1 -> 0 | CU26: =+Sheet3!CU23/Sheet3!$F$1 -> 21 | CV26: =+Sheet3!CV23/Sheet3!$F$1 -> 80 | CW26: =+Sheet3!CW23/Sheet3!$F$1 -> 946 | CX26: =+Sheet3!CX23/Sheet3!$F$1 -> 0 | CY26: =+Sheet3!CY23/Sheet3!$F$1 -> 4 | CZ26: =+Sheet3!CZ23/Sheet3!$F$1 -> 1735 | DA26: =+Sheet3!DA23/Sheet3!$F$1 -> 519 | DB26: =+Sheet3!DB23/Sheet3!$F$1 -> 1438 | DC26: =+Sheet3!DC23/Sheet3!$F$1 -> 605 | DD26: =+Sheet3!DD23/Sheet3!$F$1 -> 5718 | DE26: =+Sheet3!DE23/Sheet3!$F$1 -> 41 | DF26: =+Sheet3!DF23/Sheet3!$F$1 -> 367 | DG26: =+Sheet3!DG23/Sheet3!$F$1 -> 115 | DH26: =+Sheet3!DH23/Sheet3!$F$1 -> 441 | DI26: =+Sheet3!DI23/Sheet3!$F$1 -> 2085 | DJ26: =+Sheet3!DJ23/Sheet3!$F$1 -> 1002 | DK26: =+Sheet3!DK23/Sheet3!$F$1 -> 452 | DL26: =+Sheet3!DL23/Sheet3!$F$1 -> 0 | DM26: =+Sheet3!DM23/Sheet3!$F$1 -> 14 | DN26: =+Sheet3!DN23/Sheet3!$F$1 -> 8933 | DO26: =+Sheet3!DO23/Sheet3!$F$1 -> 5205 | DP26: =+Sheet3!DP23/Sheet3!$F$1 -> 1278 | DQ26: =+Sheet3!DQ23/Sheet3!$F$1 -> 157 | DR26: =+Sheet3!DR23/Sheet3!$F$1 -> 10 | DS26: 15583
A27: AML | B27: 170 | C27: Área Metropolitana de Lisboa | D27: =+Sheet3!D24/Sheet3!$F$1 -> 0 | E27: =+Sheet3!E24/Sheet3!$F$1 -> 0 | F27: =+Sheet3!F24/Sheet3!$F$1 -> 0 | G27: =+Sheet3!G24/Sheet3!$F$1 -> 0 | H27: =+Sheet3!H24/Sheet3!$F$1 -> 4 | I27: =+Sheet3!I24/Sheet3!$F$1 -> 3 | J27: =+Sheet3!J24/Sheet3!$F$1 -> 14 | K27: =+Sheet3!K24/Sheet3!$F$1 -> 15 | L27: =+Sheet3!L24/Sheet3!$F$1 -> 14 | M27: =+Sheet3!M24/Sheet3!$F$1 -> 7 | N27: =+Sheet3!N24/Sheet3!$F$1 -> 26 | O27: =+Sheet3!O24/Sheet3!$F$1 -> 12 | P27: =+Sheet3!P24/Sheet3!$F$1 -> 7 | Q27: =+Sheet3!Q24/Sheet3!$F$1 -> 0 | R27: =+Sheet3!R24/Sheet3!$F$1 -> 0 | S27: =+Sheet3!S24/Sheet3!$F$1 -> 0 | T27: =+Sheet3!T24/Sheet3!$F$1 -> 0 | U27: =+Sheet3!U24/Sheet3!$F$1 -> 32 | V27: =+Sheet3!V24/Sheet3!$F$1 -> 20 | W27: =+Sheet3!W24/Sheet3!$F$1 -> 0 | X27: =+Sheet3!X24/Sheet3!$F$1 -> 0 | Y27: =+Sheet3!Y24/Sheet3!$F$1 -> 0 | Z27: =+Sheet3!Z24/Sheet3!$F$1 -> 0 | AA27: =+Sheet3!AA24/Sheet3!$F$1 -> 0 | AB27: =+Sheet3!AB24/Sheet3!$F$1 -> 0 | AC27: =+Sheet3!AC24/Sheet3!$F$1 -> 4 | AD27: =+Sheet3!AD24/Sheet3!$F$1 -> 37 | AE27: =+Sheet3!AE24/Sheet3!$F$1 -> 23 | AF27: =+Sheet3!AF24/Sheet3!$F$1 -> 12 | AG27: =+Sheet3!AG24/Sheet3!$F$1 -> 4 | AH27: =+Sheet3!AH24/Sheet3!$F$1 -> 3 | AI27: =+Sheet3!AI24/Sheet3!$F$1 -> 62 | AJ27: =+Sheet3!AJ24/Sheet3!$F$1 -> 70 | AK27: =+Sheet3!AK24/Sheet3!$F$1 -> 21 | AL27: =+Sheet3!AL24/Sheet3!$F$1 -> 0 | AM27: =+Sheet3!AM24/Sheet3!$F$1 -> 7 | AN27: =+Sheet3!AN24/Sheet3!$F$1 -> 30 | AO27: =+Sheet3!AO24/Sheet3!$F$1 -> 39 | AP27: =+Sheet3!AP24/Sheet3!$F$1 -> 23 | AQ27: =+Sheet3!AQ24/Sheet3!$F$1 -> 6 | AR27: =+Sheet3!AR24/Sheet3!$F$1 -> 0 | AS27: =+Sheet3!AS24/Sheet3!$F$1 -> 0 | AT27: =+Sheet3!AT24/Sheet3!$F$1 -> 0 | AU27: =+Sheet3!AU24/Sheet3!$F$1 -> 0 | AV27: =+Sheet3!AV24/Sheet3!$F$1 -> 0 | AW27: =+Sheet3!AW24/Sheet3!$F$1 -> 33 | AX27: =+Sheet3!AX24/Sheet3!$F$1 -> 71 | AY27: =+Sheet3!AY24/Sheet3!$F$1 -> 25 | AZ27: =+Sheet3!AZ24/Sheet3!$F$1 -> 20 | BA27: =+Sheet3!BA24/Sheet3!$F$1 -> 5 | BB27: =+Sheet3!BB24/Sheet3!$F$1 -> 0 | BC27: =+Sheet3!BC24/Sheet3!$F$1 -> 3 | BD27: =+Sheet3!BD24/Sheet3!$F$1 -> 0 | BE27: =+Sheet3!BE24/Sheet3!$F$1 -> 7 | BF27: =+Sheet3!BF24/Sheet3!$F$1 -> 10 | BG27: =+Sheet3!BG24/Sheet3!$F$1 -> 0 | BH27: =+Sheet3!BH24/Sheet3!$F$1 -> 19 | BI27: =+Sheet3!BI24/Sheet3!$F$1 -> 10 | BJ27: =+Sheet3!BJ24/Sheet3!$F$1 -> 8 | BK27: =+Sheet3!BK24/Sheet3!$F$1 -> 0 | BL27: =+Sheet3!BL24/Sheet3!$F$1 -> 11 | BM27: =+Sheet3!BM24/Sheet3!$F$1 -> 53 | BN27: =+Sheet3!BN24/Sheet3!$F$1 -> 25 | BO27: =+Sheet3!BO24/Sheet3!$F$1 -> 15 | BP27: =+Sheet3!BP24/Sheet3!$F$1 -> 3 | BQ27: =+Sheet3!BQ24/Sheet3!$F$1 -> 0 | BR27: =+Sheet3!BR24/Sheet3!$F$1 -> 12 | BS27: =+Sheet3!BS24/Sheet3!$F$1 -> 6 | BT27: =+Sheet3!BT24/Sheet3!$F$1 -> 9 | BU27: =+Sheet3!BU24/Sheet3!$F$1 -> 0 | BV27: =+Sheet3!BV24/Sheet3!$F$1 -> 198 | BW27: =+Sheet3!BW24/Sheet3!$F$1 -> 157 | BX27: =+Sheet3!BX24/Sheet3!$F$1 -> 31 | BY27: =+Sheet3!BY24/Sheet3!$F$1 -> 4 | BZ27: =+Sheet3!BZ24/Sheet3!$F$1 -> 0 | CA27: =+Sheet3!CA24/Sheet3!$F$1 -> 20 | CB27: =+Sheet3!CB24/Sheet3!$F$1 -> 29 | CC27: =+Sheet3!CC24/Sheet3!$F$1 -> 8 | CD27: =+Sheet3!CD24/Sheet3!$F$1 -> 13 | CE27: =+Sheet3!CE24/Sheet3!$F$1 -> 3 | CF27: =+Sheet3!CF24/Sheet3!$F$1 -> 117 | CG27: =+Sheet3!CG24/Sheet3!$F$1 -> 72 | CH27: =+Sheet3!CH24/Sheet3!$F$1 -> 18 | CI27: =+Sheet3!CI24/Sheet3!$F$1 -> 3 | CJ27: =+Sheet3!CJ24/Sheet3!$F$1 -> 0 | CK27: =+Sheet3!CK24/Sheet3!$F$1 -> 0 | CL27: =+Sheet3!CL24/Sheet3!$F$1 -> 0 | CM27: =+Sheet3!CM24/Sheet3!$F$1 -> 9 | CN27: =+Sheet3!CN24/Sheet3!$F$1 -> 13 | CO27: =+Sheet3!CO24/Sheet3!$F$1 -> 16 | CP27: =+Sheet3!CP24/Sheet3!$F$1 -> 0 | CQ27: =+Sheet3!CQ24/Sheet3!$F$1 -> 3 | CR27: =+Sheet3!CR24/Sheet3!$F$1 -> 6 | CS27: =+Sheet3!CS24/Sheet3!$F$1 -> 3 | CT27: =+Sheet3!CT24/Sheet3!$F$1 -> 0 | CU27: =+Sheet3!CU24/Sheet3!$F$1 -> 11 | CV27: =+Sheet3!CV24/Sheet3!$F$1 -> 55 | CW27: =+Sheet3!CW24/Sheet3!$F$1 -> 50 | CX27: =+Sheet3!CX24/Sheet3!$F$1 -> 55 | CY27: =+Sheet3!CY24/Sheet3!$F$1 -> 0 | CZ27: =+Sheet3!CZ24/Sheet3!$F$1 -> 94 | DA27: =+Sheet3!DA24/Sheet3!$F$1 -> 159 | DB27: =+Sheet3!DB24/Sheet3!$F$1 -> 112 | DC27: =+Sheet3!DC24/Sheet3!$F$1 -> 0 | DD27: =+Sheet3!DD24/Sheet3!$F$1 -> 159 | DE27: =+Sheet3!DE24/Sheet3!$F$1 -> 24 | DF27: =+Sheet3!DF24/Sheet3!$F$1 -> 38 | DG27: =+Sheet3!DG24/Sheet3!$F$1 -> 114 | DH27: =+Sheet3!DH24/Sheet3!$F$1 -> 28 | DI27: =+Sheet3!DI24/Sheet3!$F$1 -> 391 | DJ27: =+Sheet3!DJ24/Sheet3!$F$1 -> 76 | DK27: =+Sheet3!DK24/Sheet3!$F$1 -> 211 | DL27: =+Sheet3!DL24/Sheet3!$F$1 -> 42 | DM27: =+Sheet3!DM24/Sheet3!$F$1 -> 13 | DN27: =+Sheet3!DN24/Sheet3!$F$1 -> 438 | DO27: =+Sheet3!DO24/Sheet3!$F$1 -> 586 | DP27: =+Sheet3!DP24/Sheet3!$F$1 -> 344 | DQ27: =+Sheet3!DQ24/Sheet3!$F$1 -> 203 | DR27: =+Sheet3!DR24/Sheet3!$F$1 -> 65 | DS27: 1636
A28: Alentejo | B28: 181 | C28: Alentejo Litoral | D28: =+Sheet3!D25/Sheet3!$F$1 -> 0 | E28: =+Sheet3!E25/Sheet3!$F$1 -> 4 | F28: =+Sheet3!F25/Sheet3!$F$1 -> 0 | G28: =+Sheet3!G25/Sheet3!$F$1 -> 6 | H28: =+Sheet3!H25/Sheet3!$F$1 -> 5 | I28: =+Sheet3!I25/Sheet3!$F$1 -> 0 | J28: =+Sheet3!J25/Sheet3!$F$1 -> 3 | K28: =+Sheet3!K25/Sheet3!$F$1 -> 0 | L28: =+Sheet3!L25/Sheet3!$F$1 -> 3 | M28: =+Sheet3!M25/Sheet3!$F$1 -> 0 | N28: =+Sheet3!N25/Sheet3!$F$1 -> 26 | O28: =+Sheet3!O25/Sheet3!$F$1 -> 46 | P28: =+Sheet3!P25/Sheet3!$F$1 -> 10 | Q28: =+Sheet3!Q25/Sheet3!$F$1 -> 4 | R28: =+Sheet3!R25/Sheet3!$F$1 -> 0 | S28: =+Sheet3!S25/Sheet3!$F$1 -> 0 | T28: =+Sheet3!T25/Sheet3!$F$1 -> 49 | U28: =+Sheet3!U25/Sheet3!$F$1 -> 38 | V28: =+Sheet3!V25/Sheet3!$F$1 -> 18 | W28: =+Sheet3!W25/Sheet3!$F$1 -> 0 | X28: =+Sheet3!X25/Sheet3!$F$1 -> 0 | Y28: =+Sheet3!Y25/Sheet3!$F$1 -> 0 | Z28: =+Sheet3!Z25/Sheet3!$F$1 -> 0 | AA28: =+Sheet3!AA25/Sheet3!$F$1 -> 0 | AB28: =+Sheet3!AB25/Sheet3!$F$1 -> 0 | AC28: =+Sheet3!AC25/Sheet3!$F$1 -> 30 | AD28: =+Sheet3!AD25/Sheet3!$F$1 -> 39 | AE28: =+Sheet3!AE25/Sheet3!$F$1 -> 15 | AF28: =+Sheet3!AF25/Sheet3!$F$1 -> 8 | AG28: =+Sheet3!AG25/Sheet3!$F$1 -> 10 | AH28: =+Sheet3!AH25/Sheet3!$F$1 -> 0 | AI28: =+Sheet3!AI25/Sheet3!$F$1 -> 7 | AJ28: =+Sheet3!AJ25/Sheet3!$F$1 -> 6 | AK28: =+Sheet3!AK25/Sheet3!$F$1 -> 0 | AL28: =+Sheet3!AL25/Sheet3!$F$1 -> 0 | AM28: =+Sheet3!AM25/Sheet3!$F$1 -> 25 | AN28: =+Sheet3!AN25/Sheet3!$F$1 -> 83 | AO28: =+Sheet3!AO25/Sheet3!$F$1 -> 73 | AP28: =+Sheet3!AP25/Sheet3!$F$1 -> 85 | AQ28: =+Sheet3!AQ25/Sheet3!$F$1 -> 31 | AR28: =+Sheet3!AR25/Sheet3!$F$1 -> 45 | AS28: =+Sheet3!AS25/Sheet3!$F$1 -> 4 | AT28: =+Sheet3!AT25/Sheet3!$F$1 -> 6 | AU28: =+Sheet3!AU25/Sheet3!$F$1 -> 5 | AV28: =+Sheet3!AV25/Sheet3!$F$1 -> 0 | AW28: =+Sheet3!AW25/Sheet3!$F$1 -> 125 | AX28: =+Sheet3!AX25/Sheet3!$F$1 -> 140 | AY28: =+Sheet3!AY25/Sheet3!$F$1 -> 61 | AZ28: =+Sheet3!AZ25/Sheet3!$F$1 -> 34 | BA28: =+Sheet3!BA25/Sheet3!$F$1 -> 8 | BB28: =+Sheet3!BB25/Sheet3!$F$1 -> 0 | BC28: =+Sheet3!BC25/Sheet3!$F$1 -> 0 | BD28: =+Sheet3!BD25/Sheet3!$F$1 -> 0 | BE28: =+Sheet3!BE25/Sheet3!$F$1 -> 3 | BF28: =+Sheet3!BF25/Sheet3!$F$1 -> 9 | BG28: =+Sheet3!BG25/Sheet3!$F$1 -> 3 | BH28: =+Sheet3!BH25/Sheet3!$F$1 -> 54 | BI28: =+Sheet3!BI25/Sheet3!$F$1 -> 53 | BJ28: =+Sheet3!BJ25/Sheet3!$F$1 -> 21 | BK28: =+Sheet3!BK25/Sheet3!$F$1 -> 0 | BL28: =+Sheet3!BL25/Sheet3!$F$1 -> 13 | BM28: =+Sheet3!BM25/Sheet3!$F$1 -> 39 | BN28: =+Sheet3!BN25/Sheet3!$F$1 -> 25 | BO28: =+Sheet3!BO25/Sheet3!$F$1 -> 4 | BP28: =+Sheet3!BP25/Sheet3!$F$1 -> 3 | BQ28: =+Sheet3!BQ25/Sheet3!$F$1 -> 0 | BR28: =+Sheet3!BR25/Sheet3!$F$1 -> 92 | BS28: =+Sheet3!BS25/Sheet3!$F$1 -> 155 | BT28: =+Sheet3!BT25/Sheet3!$F$1 -> 53 | BU28: =+Sheet3!BU25/Sheet3!$F$1 -> 0 | BV28: =+Sheet3!BV25/Sheet3!$F$1 -> 129 | BW28: =+Sheet3!BW25/Sheet3!$F$1 -> 318 | BX28: =+Sheet3!BX25/Sheet3!$F$1 -> 144 | BY28: =+Sheet3!BY25/Sheet3!$F$1 -> 30 | BZ28: =+Sheet3!BZ25/Sheet3!$F$1 -> 0 | CA28: =+Sheet3!CA25/Sheet3!$F$1 -> 34 | CB28: =+Sheet3!CB25/Sheet3!$F$1 -> 84 | CC28: =+Sheet3!CC25/Sheet3!$F$1 -> 49 | CD28: =+Sheet3!CD25/Sheet3!$F$1 -> 44 | CE28: =+Sheet3!CE25/Sheet3!$F$1 -> 6 | CF28: =+Sheet3!CF25/Sheet3!$F$1 -> 519 | CG28: =+Sheet3!CG25/Sheet3!$F$1 -> 308 | CH28: =+Sheet3!CH25/Sheet3!$F$1 -> 41 | CI28: =+Sheet3!CI25/Sheet3!$F$1 -> 4 | CJ28: =+Sheet3!CJ25/Sheet3!$F$1 -> 0 | CK28: =+Sheet3!CK25/Sheet3!$F$1 -> 0 | CL28: =+Sheet3!CL25/Sheet3!$F$1 -> 0 | CM28: =+Sheet3!CM25/Sheet3!$F$1 -> 5 | CN28: =+Sheet3!CN25/Sheet3!$F$1 -> 5 | CO28: =+Sheet3!CO25/Sheet3!$F$1 -> 0 | CP28: =+Sheet3!CP25/Sheet3!$F$1 -> 0 | CQ28: =+Sheet3!CQ25/Sheet3!$F$1 -> 0 | CR28: =+Sheet3!CR25/Sheet3!$F$1 -> 0 | CS28: =+Sheet3!CS25/Sheet3!$F$1 -> 0 | CT28: =+Sheet3!CT25/Sheet3!$F$1 -> 0 | CU28: =+Sheet3!CU25/Sheet3!$F$1 -> 18 | CV28: =+Sheet3!CV25/Sheet3!$F$1 -> 11 | CW28: =+Sheet3!CW25/Sheet3!$F$1 -> 88 | CX28: =+Sheet3!CX25/Sheet3!$F$1 -> 109 | CY28: =+Sheet3!CY25/Sheet3!$F$1 -> 5 | CZ28: =+Sheet3!CZ25/Sheet3!$F$1 -> 111 | DA28: =+Sheet3!DA25/Sheet3!$F$1 -> 18 | DB28: =+Sheet3!DB25/Sheet3!$F$1 -> 301 | DC28: =+Sheet3!DC25/Sheet3!$F$1 -> 63 | DD28: =+Sheet3!DD25/Sheet3!$F$1 -> 370 | DE28: =+Sheet3!DE25/Sheet3!$F$1 -> 13 | DF28: =+Sheet3!DF25/Sheet3!$F$1 -> 133 | DG28: =+Sheet3!DG25/Sheet3!$F$1 -> 88 | DH28: =+Sheet3!DH25/Sheet3!$F$1 -> 306 | DI28: =+Sheet3!DI25/Sheet3!$F$1 -> 622 | DJ28: =+Sheet3!DJ25/Sheet3!$F$1 -> 219 | DK28: =+Sheet3!DK25/Sheet3!$F$1 -> 872 | DL28: =+Sheet3!DL25/Sheet3!$F$1 -> 11 | DM28: =+Sheet3!DM25/Sheet3!$F$1 -> 0 | DN28: =+Sheet3!DN25/Sheet3!$F$1 -> 958 | DO28: =+Sheet3!DO25/Sheet3!$F$1 -> 1290 | DP28: =+Sheet3!DP25/Sheet3!$F$1 -> 691 | DQ28: =+Sheet3!DQ25/Sheet3!$F$1 -> 338 | DR28: =+Sheet3!DR25/Sheet3!$F$1 -> 81 | DS28: 3358
B29: 184 | C29: Baixo Alentejo | D29: =+Sheet3!D26/Sheet3!$F$1 -> 10 | E29: =+Sheet3!E26/Sheet3!$F$1 -> 6 | F29: =+Sheet3!F26/Sheet3!$F$1 -> 0 | G29: =+Sheet3!G26/Sheet3!$F$1 -> 3 | H29: =+Sheet3!H26/Sheet3!$F$1 -> 0 | I29: =+Sheet3!I26/Sheet3!$F$1 -> 0 | J29: =+Sheet3!J26/Sheet3!$F$1 -> 17 | K29: =+Sheet3!K26/Sheet3!$F$1 -> 18 | L29: =+Sheet3!L26/Sheet3!$F$1 -> 33 | M29: =+Sheet3!M26/Sheet3!$F$1 -> 5 | N29: =+Sheet3!N26/Sheet3!$F$1 -> 289 | O29: =+Sheet3!O26/Sheet3!$F$1 -> 194 | P29: =+Sheet3!P26/Sheet3!$F$1 -> 85 | Q29: =+Sheet3!Q26/Sheet3!$F$1 -> 26 | R29: =+Sheet3!R26/Sheet3!$F$1 -> 6 | S29: =+Sheet3!S26/Sheet3!$F$1 -> 0 | T29: =+Sheet3!T26/Sheet3!$F$1 -> 0 | U29: =+Sheet3!U26/Sheet3!$F$1 -> 0 | V29: =+Sheet3!V26/Sheet3!$F$1 -> 0 | W29: =+Sheet3!W26/Sheet3!$F$1 -> 0 | X29: =+Sheet3!X26/Sheet3!$F$1 -> 0 | Y29: =+Sheet3!Y26/Sheet3!$F$1 -> 11 | Z29: =+Sheet3!Z26/Sheet3!$F$1 -> 14 | AA29: =+Sheet3!AA26/Sheet3!$F$1 -> 33 | AB29: =+Sheet3!AB26/Sheet3!$F$1 -> 8 | AC29: =+Sheet3!AC26/Sheet3!$F$1 -> 27 | AD29: =+Sheet3!AD26/Sheet3!$F$1 -> 49 | AE29: =+Sheet3!AE26/Sheet3!$F$1 -> 22 | AF29: =+Sheet3!AF26/Sheet3!$F$1 -> 20 | AG29: =+Sheet3!AG26/Sheet3!$F$1 -> 8 | AH29: =+Sheet3!AH26/Sheet3!$F$1 -> 66 | AI29: =+Sheet3!AI26/Sheet3!$F$1 -> 115 | AJ29: =+Sheet3!AJ26/Sheet3!$F$1 -> 56 | AK29: =+Sheet3!AK26/Sheet3!$F$1 -> 12 | AL29: =+Sheet3!AL26/Sheet3!$F$1 -> 0 | AM29: =+Sheet3!AM26/Sheet3!$F$1 -> 18 | AN29: =+Sheet3!AN26/Sheet3!$F$1 -> 88 | AO29: =+Sheet3!AO26/Sheet3!$F$1 -> 162 | AP29: =+Sheet3!AP26/Sheet3!$F$1 -> 144 | AQ29: =+Sheet3!AQ26/Sheet3!$F$1 -> 53 | AR29: =+Sheet3!AR26/Sheet3!$F$1 -> 1139 | AS29: =+Sheet3!AS26/Sheet3!$F$1 -> 407 | AT29: =+Sheet3!AT26/Sheet3!$F$1 -> 264 | AU29: =+Sheet3!AU26/Sheet3!$F$1 -> 155 | AV29: =+Sheet3!AV26/Sheet3!$F$1 -> 20 | AW29: =+Sheet3!AW26/Sheet3!$F$1 -> 442 | AX29: =+Sheet3!AX26/Sheet3!$F$1 -> 343 | AY29: =+Sheet3!AY26/Sheet3!$F$1 -> 130 | AZ29: =+Sheet3!AZ26/Sheet3!$F$1 -> 101 | BA29: =+Sheet3!BA26/Sheet3!$F$1 -> 20 | BB29: =+Sheet3!BB26/Sheet3!$F$1 -> 0 | BC29: =+Sheet3!BC26/Sheet3!$F$1 -> 0 | BD29: =+Sheet3!BD26/Sheet3!$F$1 -> 0 | BE29: =+Sheet3!BE26/Sheet3!$F$1 -> 0 | BF29: =+Sheet3!BF26/Sheet3!$F$1 -> 0 | BG29: =+Sheet3!BG26/Sheet3!$F$1 -> 0 | BH29: =+Sheet3!BH26/Sheet3!$F$1 -> 33 | BI29: =+Sheet3!BI26/Sheet3!$F$1 -> 70 | BJ29: =+Sheet3!BJ26/Sheet3!$F$1 -> 39 | BK29: =+Sheet3!BK26/Sheet3!$F$1 -> 3 | BL29: =+Sheet3!BL26/Sheet3!$F$1 -> 14 | BM29: =+Sheet3!BM26/Sheet3!$F$1 -> 35 | BN29: =+Sheet3!BN26/Sheet3!$F$1 -> 41 | BO29: =+Sheet3!BO26/Sheet3!$F$1 -> 22 | BP29: =+Sheet3!BP26/Sheet3!$F$1 -> 8 | BQ29: =+Sheet3!BQ26/Sheet3!$F$1 -> 6 | BR29: =+Sheet3!BR26/Sheet3!$F$1 -> 55 | BS29: =+Sheet3!BS26/Sheet3!$F$1 -> 206 | BT29: =+Sheet3!BT26/Sheet3!$F$1 -> 128 | BU29: =+Sheet3!BU26/Sheet3!$F$1 -> 0 | BV29: =+Sheet3!BV26/Sheet3!$F$1 -> 347 | BW29: =+Sheet3!BW26/Sheet3!$F$1 -> 671 | BX29: =+Sheet3!BX26/Sheet3!$F$1 -> 395 | BY29: =+Sheet3!BY26/Sheet3!$F$1 -> 119 | BZ29: =+Sheet3!BZ26/Sheet3!$F$1 -> 0 | CA29: =+Sheet3!CA26/Sheet3!$F$1 -> 55 | CB29: =+Sheet3!CB26/Sheet3!$F$1 -> 174 | CC29: =+Sheet3!CC26/Sheet3!$F$1 -> 123 | CD29: =+Sheet3!CD26/Sheet3!$F$1 -> 132 | CE29: =+Sheet3!CE26/Sheet3!$F$1 -> 21 | CF29: =+Sheet3!CF26/Sheet3!$F$1 -> 660 | CG29: =+Sheet3!CG26/Sheet3!$F$1 -> 371 | CH29: =+Sheet3!CH26/Sheet3!$F$1 -> 103 | CI29: =+Sheet3!CI26/Sheet3!$F$1 -> 5 | CJ29: =+Sheet3!CJ26/Sheet3!$F$1 -> 0 | CK29: =+Sheet3!CK26/Sheet3!$F$1 -> 0 | CL29: =+Sheet3!CL26/Sheet3!$F$1 -> 0 | CM29: =+Sheet3!CM26/Sheet3!$F$1 -> 5 | CN29: =+Sheet3!CN26/Sheet3!$F$1 -> 4 | CO29: =+Sheet3!CO26/Sheet3!$F$1 -> 0 | CP29: =+Sheet3!CP26/Sheet3!$F$1 -> 0 | CQ29: =+Sheet3!CQ26/Sheet3!$F$1 -> 0 | CR29: =+Sheet3!CR26/Sheet3!$F$1 -> 0 | CS29: =+Sheet3!CS26/Sheet3!$F$1 -> 0 | CT29: =+Sheet3!CT26/Sheet3!$F$1 -> 0 | CU29: =+Sheet3!CU26/Sheet3!$F$1 -> 24 | CV29: =+Sheet3!CV26/Sheet3!$F$1 -> 79 | CW29: =+Sheet3!CW26/Sheet3!$F$1 -> 603 | CX29: =+Sheet3!CX26/Sheet3!$F$1 -> 0 | CY29: =+Sheet3!CY26/Sheet3!$F$1 -> 70 | CZ29: =+Sheet3!CZ26/Sheet3!$F$1 -> 129 | DA29: =+Sheet3!DA26/Sheet3!$F$1 -> 253 | DB29: =+Sheet3!DB26/Sheet3!$F$1 -> 472 | DC29: =+Sheet3!DC26/Sheet3!$F$1 -> 1987 | DD29: =+Sheet3!DD26/Sheet3!$F$1 -> 1042 | DE29: =+Sheet3!DE26/Sheet3!$F$1 -> 5 | DF29: =+Sheet3!DF26/Sheet3!$F$1 -> 147 | DG29: =+Sheet3!DG26/Sheet3!$F$1 -> 125 | DH29: =+Sheet3!DH26/Sheet3!$F$1 -> 400 | DI29: =+Sheet3!DI26/Sheet3!$F$1 -> 1537 | DJ29: =+Sheet3!DJ26/Sheet3!$F$1 -> 507 | DK29: =+Sheet3!DK26/Sheet3!$F$1 -> 1140 | DL29: =+Sheet3!DL26/Sheet3!$F$1 -> 10 | DM29: =+Sheet3!DM26/Sheet3!$F$1 -> 0 | DN29: =+Sheet3!DN26/Sheet3!$F$1 -> 3083 | DO29: =+Sheet3!DO26/Sheet3!$F$1 -> 2583 | DP29: =+Sheet3!DP26/Sheet3!$F$1 -> 1710 | DQ29: =+Sheet3!DQ26/Sheet3!$F$1 -> 990 | DR29: =+Sheet3!DR26/Sheet3!$F$1 -> 164 | DS29: 8530
B30: 185 | C30: Lezíria do Tejo | D30: =+Sheet3!D27/Sheet3!$F$1 -> 3 | E30: =+Sheet3!E27/Sheet3!$F$1 -> 0 | F30: =+Sheet3!F27/Sheet3!$F$1 -> 7 | G30: =+Sheet3!G27/Sheet3!$F$1 -> 11 | H30: =+Sheet3!H27/Sheet3!$F$1 -> 13 | I30: =+Sheet3!I27/Sheet3!$F$1 -> 22 | J30: =+Sheet3!J27/Sheet3!$F$1 -> 104 | K30: =+Sheet3!K27/Sheet3!$F$1 -> 85 | L30: =+Sheet3!L27/Sheet3!$F$1 -> 102 | M30: =+Sheet3!M27/Sheet3!$F$1 -> 18 | N30: =+Sheet3!N27/Sheet3!$F$1 -> 44 | O30: =+Sheet3!O27/Sheet3!$F$1 -> 47 | P30: =+Sheet3!P27/Sheet3!$F$1 -> 19 | Q30: =+Sheet3!Q27/Sheet3!$F$1 -> 13 | R30: =+Sheet3!R27/Sheet3!$F$1 -> 0 | S30: =+Sheet3!S27/Sheet3!$F$1 -> 0 | T30: =+Sheet3!T27/Sheet3!$F$1 -> 10 | U30: =+Sheet3!U27/Sheet3!$F$1 -> 49 | V30: =+Sheet3!V27/Sheet3!$F$1 -> 53 | W30: =+Sheet3!W27/Sheet3!$F$1 -> 0 | X30: =+Sheet3!X27/Sheet3!$F$1 -> 0 | Y30: =+Sheet3!Y27/Sheet3!$F$1 -> 6 | Z30: =+Sheet3!Z27/Sheet3!$F$1 -> 9 | AA30: =+Sheet3!AA27/Sheet3!$F$1 -> 6 | AB30: =+Sheet3!AB27/Sheet3!$F$1 -> 0 | AC30: =+Sheet3!AC27/Sheet3!$F$1 -> 17 | AD30: =+Sheet3!AD27/Sheet3!$F$1 -> 22 | AE30: =+Sheet3!AE27/Sheet3!$F$1 -> 25 | AF30: =+Sheet3!AF27/Sheet3!$F$1 -> 14 | AG30: =+Sheet3!AG27/Sheet3!$F$1 -> 0 | AH30: =+Sheet3!AH27/Sheet3!$F$1 -> 16 | AI30: =+Sheet3!AI27/Sheet3!$F$1 -> 60 | AJ30: =+Sheet3!AJ27/Sheet3!$F$1 -> 55 | AK30: =+Sheet3!AK27/Sheet3!$F$1 -> 15 | AL30: =+Sheet3!AL27/Sheet3!$F$1 -> 0 | AM30: =+Sheet3!AM27/Sheet3!$F$1 -> 35 | AN30: =+Sheet3!AN27/Sheet3!$F$1 -> 58 | AO30: =+Sheet3!AO27/Sheet3!$F$1 -> 70 | AP30: =+Sheet3!AP27/Sheet3!$F$1 -> 60 | AQ30: =+Sheet3!AQ27/Sheet3!$F$1 -> 13 | AR30: =+Sheet3!AR27/Sheet3!$F$1 -> 177 | AS30: =+Sheet3!AS27/Sheet3!$F$1 -> 14 | AT30: =+Sheet3!AT27/Sheet3!$F$1 -> 10 | AU30: =+Sheet3!AU27/Sheet3!$F$1 -> 0 | AV30: =+Sheet3!AV27/Sheet3!$F$1 -> 0 | AW30: =+Sheet3!AW27/Sheet3!$F$1 -> 270 | AX30: =+Sheet3!AX27/Sheet3!$F$1 -> 145 | AY30: =+Sheet3!AY27/Sheet3!$F$1 -> 74 | AZ30: =+Sheet3!AZ27/Sheet3!$F$1 -> 57 | BA30: =+Sheet3!BA27/Sheet3!$F$1 -> 23 | BB30: =+Sheet3!BB27/Sheet3!$F$1 -> 0 | BC30: =+Sheet3!BC27/Sheet3!$F$1 -> 0 | BD30: =+Sheet3!BD27/Sheet3!$F$1 -> 0 | BE30: =+Sheet3!BE27/Sheet3!$F$1 -> 5 | BF30: =+Sheet3!BF27/Sheet3!$F$1 -> 11 | BG30: =+Sheet3!BG27/Sheet3!$F$1 -> 0 | BH30: =+Sheet3!BH27/Sheet3!$F$1 -> 13 | BI30: =+Sheet3!BI27/Sheet3!$F$1 -> 9 | BJ30: =+Sheet3!BJ27/Sheet3!$F$1 -> 8 | BK30: =+Sheet3!BK27/Sheet3!$F$1 -> 0 | BL30: =+Sheet3!BL27/Sheet3!$F$1 -> 17 | BM30: =+Sheet3!BM27/Sheet3!$F$1 -> 42 | BN30: =+Sheet3!BN27/Sheet3!$F$1 -> 21 | BO30: =+Sheet3!BO27/Sheet3!$F$1 -> 8 | BP30: =+Sheet3!BP27/Sheet3!$F$1 -> 0 | BQ30: =+Sheet3!BQ27/Sheet3!$F$1 -> 0 | BR30: =+Sheet3!BR27/Sheet3!$F$1 -> 8 | BS30: =+Sheet3!BS27/Sheet3!$F$1 -> 21 | BT30: =+Sheet3!BT27/Sheet3!$F$1 -> 16 | BU30: =+Sheet3!BU27/Sheet3!$F$1 -> 0 | BV30: =+Sheet3!BV27/Sheet3!$F$1 -> 126 | BW30: =+Sheet3!BW27/Sheet3!$F$1 -> 125 | BX30: =+Sheet3!BX27/Sheet3!$F$1 -> 34 | BY30: =+Sheet3!BY27/Sheet3!$F$1 -> 6 | BZ30: =+Sheet3!BZ27/Sheet3!$F$1 -> 0 | CA30: =+Sheet3!CA27/Sheet3!$F$1 -> 34 | CB30: =+Sheet3!CB27/Sheet3!$F$1 -> 35 | CC30: =+Sheet3!CC27/Sheet3!$F$1 -> 23 | CD30: =+Sheet3!CD27/Sheet3!$F$1 -> 36 | CE30: =+Sheet3!CE27/Sheet3!$F$1 -> 9 | CF30: =+Sheet3!CF27/Sheet3!$F$1 -> 300 | CG30: =+Sheet3!CG27/Sheet3!$F$1 -> 166 | CH30: =+Sheet3!CH27/Sheet3!$F$1 -> 32 | CI30: =+Sheet3!CI27/Sheet3!$F$1 -> 6 | CJ30: =+Sheet3!CJ27/Sheet3!$F$1 -> 0 | CK30: =+Sheet3!CK27/Sheet3!$F$1 -> 0 | CL30: =+Sheet3!CL27/Sheet3!$F$1 -> 0 | CM30: =+Sheet3!CM27/Sheet3!$F$1 -> 37 | CN30: =+Sheet3!CN27/Sheet3!$F$1 -> 84 | CO30: =+Sheet3!CO27/Sheet3!$F$1 -> 46 | CP30: =+Sheet3!CP27/Sheet3!$F$1 -> 0 | CQ30: =+Sheet3!CQ27/Sheet3!$F$1 -> 4 | CR30: =+Sheet3!CR27/Sheet3!$F$1 -> 4 | CS30: =+Sheet3!CS27/Sheet3!$F$1 -> 5 | CT30: =+Sheet3!CT27/Sheet3!$F$1 -> 0 | CU30: =+Sheet3!CU27/Sheet3!$F$1 -> 41 | CV30: =+Sheet3!CV27/Sheet3!$F$1 -> 338 | CW30: =+Sheet3!CW27/Sheet3!$F$1 -> 127 | CX30: =+Sheet3!CX27/Sheet3!$F$1 -> 113 | CY30: =+Sheet3!CY27/Sheet3!$F$1 -> 23 | CZ30: =+Sheet3!CZ27/Sheet3!$F$1 -> 87 | DA30: =+Sheet3!DA27/Sheet3!$F$1 -> 150 | DB30: =+Sheet3!DB27/Sheet3!$F$1 -> 240 | DC30: =+Sheet3!DC27/Sheet3!$F$1 -> 208 | DD30: =+Sheet3!DD27/Sheet3!$F$1 -> 577 | DE30: =+Sheet3!DE27/Sheet3!$F$1 -> 20 | DF30: =+Sheet3!DF27/Sheet3!$F$1 -> 34 | DG30: =+Sheet3!DG27/Sheet3!$F$1 -> 96 | DH30: =+Sheet3!DH27/Sheet3!$F$1 -> 51 | DI30: =+Sheet3!DI27/Sheet3!$F$1 -> 291 | DJ30: =+Sheet3!DJ27/Sheet3!$F$1 -> 140 | DK30: =+Sheet3!DK27/Sheet3!$F$1 -> 505 | DL30: =+Sheet3!DL27/Sheet3!$F$1 -> 173 | DM30: =+Sheet3!DM27/Sheet3!$F$1 -> 14 | DN30: =+Sheet3!DN27/Sheet3!$F$1 -> 1076 | DO30: =+Sheet3!DO27/Sheet3!$F$1 -> 882 | DP30: =+Sheet3!DP27/Sheet3!$F$1 -> 603 | DQ30: =+Sheet3!DQ27/Sheet3!$F$1 -> 516 | DR30: =+Sheet3!DR27/Sheet3!$F$1 -> 151 | DS30: 3228
B31: 186 | C31: Alto Alentejo | D31: =+Sheet3!D28/Sheet3!$F$1 -> 0 | E31: =+Sheet3!E28/Sheet3!$F$1 -> 0 | F31: =+Sheet3!F28/Sheet3!$F$1 -> 0 | G31: =+Sheet3!G28/Sheet3!$F$1 -> 0 | H31: =+Sheet3!H28/Sheet3!$F$1 -> 0 | I31: =+Sheet3!I28/Sheet3!$F$1 -> 0 | J31: =+Sheet3!J28/Sheet3!$F$1 -> 8 | K31: =+Sheet3!K28/Sheet3!$F$1 -> 5 | L31: =+Sheet3!L28/Sheet3!$F$1 -> 6 | M31: =+Sheet3!M28/Sheet3!$F$1 -> 0 | N31: =+Sheet3!N28/Sheet3!$F$1 -> 51 | O31: =+Sheet3!O28/Sheet3!$F$1 -> 20 | P31: =+Sheet3!P28/Sheet3!$F$1 -> 13 | Q31: =+Sheet3!Q28/Sheet3!$F$1 -> 8 | R31: =+Sheet3!R28/Sheet3!$F$1 -> 0 | S31: =+Sheet3!S28/Sheet3!$F$1 -> 0 | T31: =+Sheet3!T28/Sheet3!$F$1 -> 0 | U31: =+Sheet3!U28/Sheet3!$F$1 -> 0 | V31: =+Sheet3!V28/Sheet3!$F$1 -> 0 | W31: =+Sheet3!W28/Sheet3!$F$1 -> 0 | X31: =+Sheet3!X28/Sheet3!$F$1 -> 0 | Y31: =+Sheet3!Y28/Sheet3!$F$1 -> 0 | Z31: =+Sheet3!Z28/Sheet3!$F$1 -> 8 | AA31: =+Sheet3!AA28/Sheet3!$F$1 -> 8 | AB31: =+Sheet3!AB28/Sheet3!$F$1 -> 0 | AC31: =+Sheet3!AC28/Sheet3!$F$1 -> 32 | AD31: =+Sheet3!AD28/Sheet3!$F$1 -> 41 | AE31: =+Sheet3!AE28/Sheet3!$F$1 -> 27 | AF31: =+Sheet3!AF28/Sheet3!$F$1 -> 50 | AG31: =+Sheet3!AG28/Sheet3!$F$1 -> 6 | AH31: =+Sheet3!AH28/Sheet3!$F$1 -> 25 | AI31: =+Sheet3!AI28/Sheet3!$F$1 -> 40 | AJ31: =+Sheet3!AJ28/Sheet3!$F$1 -> 22 | AK31: =+Sheet3!AK28/Sheet3!$F$1 -> 6 | AL31: =+Sheet3!AL28/Sheet3!$F$1 -> 0 | AM31: =+Sheet3!AM28/Sheet3!$F$1 -> 25 | AN31: =+Sheet3!AN28/Sheet3!$F$1 -> 54 | AO31: =+Sheet3!AO28/Sheet3!$F$1 -> 36 | AP31: =+Sheet3!AP28/Sheet3!$F$1 -> 22 | AQ31: =+Sheet3!AQ28/Sheet3!$F$1 -> 3 | AR31: =+Sheet3!AR28/Sheet3!$F$1 -> 1031 | AS31: =+Sheet3!AS28/Sheet3!$F$1 -> 143 | AT31: =+Sheet3!AT28/Sheet3!$F$1 -> 64 | AU31: =+Sheet3!AU28/Sheet3!$F$1 -> 33 | AV31: =+Sheet3!AV28/Sheet3!$F$1 -> 3 | AW31: =+Sheet3!AW28/Sheet3!$F$1 -> 592 | AX31: =+Sheet3!AX28/Sheet3!$F$1 -> 211 | AY31: =+Sheet3!AY28/Sheet3!$F$1 -> 65 | AZ31: =+Sheet3!AZ28/Sheet3!$F$1 -> 34 | BA31: =+Sheet3!BA28/Sheet3!$F$1 -> 3 | BB31: =+Sheet3!BB28/Sheet3!$F$1 -> 0 | BC31: =+Sheet3!BC28/Sheet3!$F$1 -> 0 | BD31: =+Sheet3!BD28/Sheet3!$F$1 -> 0 | BE31: =+Sheet3!BE28/Sheet3!$F$1 -> 0 | BF31: =+Sheet3!BF28/Sheet3!$F$1 -> 10 | BG31: =+Sheet3!BG28/Sheet3!$F$1 -> 0 | BH31: =+Sheet3!BH28/Sheet3!$F$1 -> 72 | BI31: =+Sheet3!BI28/Sheet3!$F$1 -> 92 | BJ31: =+Sheet3!BJ28/Sheet3!$F$1 -> 46 | BK31: =+Sheet3!BK28/Sheet3!$F$1 -> 0 | BL31: =+Sheet3!BL28/Sheet3!$F$1 -> 4 | BM31: =+Sheet3!BM28/Sheet3!$F$1 -> 22 | BN31: =+Sheet3!BN28/Sheet3!$F$1 -> 23 | BO31: =+Sheet3!BO28/Sheet3!$F$1 -> 8 | BP31: =+Sheet3!BP28/Sheet3!$F$1 -> 5 | BQ31: =+Sheet3!BQ28/Sheet3!$F$1 -> 3 | BR31: =+Sheet3!BR28/Sheet3!$F$1 -> 104 | BS31: =+Sheet3!BS28/Sheet3!$F$1 -> 246 | BT31: =+Sheet3!BT28/Sheet3!$F$1 -> 172 | BU31: =+Sheet3!BU28/Sheet3!$F$1 -> 7 | BV31: =+Sheet3!BV28/Sheet3!$F$1 -> 422 | BW31: =+Sheet3!BW28/Sheet3!$F$1 -> 629 | BX31: =+Sheet3!BX28/Sheet3!$F$1 -> 221 | BY31: =+Sheet3!BY28/Sheet3!$F$1 -> 49 | BZ31: =+Sheet3!BZ28/Sheet3!$F$1 -> 0 | CA31: =+Sheet3!CA28/Sheet3!$F$1 -> 158 | CB31: =+Sheet3!CB28/Sheet3!$F$1 -> 166 | CC31: =+Sheet3!CC28/Sheet3!$F$1 -> 75 | CD31: =+Sheet3!CD28/Sheet3!$F$1 -> 79 | CE31: =+Sheet3!CE28/Sheet3!$F$1 -> 15 | CF31: =+Sheet3!CF28/Sheet3!$F$1 -> 275 | CG31: =+Sheet3!CG28/Sheet3!$F$1 -> 158 | CH31: =+Sheet3!CH28/Sheet3!$F$1 -> 25 | CI31: =+Sheet3!CI28/Sheet3!$F$1 -> 5 | CJ31: =+Sheet3!CJ28/Sheet3!$F$1 -> 0 | CK31: =+Sheet3!CK28/Sheet3!$F$1 -> 0 | CL31: =+Sheet3!CL28/Sheet3!$F$1 -> 0 | CM31: =+Sheet3!CM28/Sheet3!$F$1 -> 0 | CN31: =+Sheet3!CN28/Sheet3!$F$1 -> 9 | CO31: =+Sheet3!CO28/Sheet3!$F$1 -> 4 | CP31: =+Sheet3!CP28/Sheet3!$F$1 -> 0 | CQ31: =+Sheet3!CQ28/Sheet3!$F$1 -> 0 | CR31: =+Sheet3!CR28/Sheet3!$F$1 -> 0 | CS31: =+Sheet3!CS28/Sheet3!$F$1 -> 0 | CT31: =+Sheet3!CT28/Sheet3!$F$1 -> 0 | CU31: =+Sheet3!CU28/Sheet3!$F$1 -> 6 | CV31: =+Sheet3!CV28/Sheet3!$F$1 -> 22 | CW31: =+Sheet3!CW28/Sheet3!$F$1 -> 93 | CX31: =+Sheet3!CX28/Sheet3!$F$1 -> 0 | CY31: =+Sheet3!CY28/Sheet3!$F$1 -> 19 | CZ31: =+Sheet3!CZ28/Sheet3!$F$1 -> 162 | DA31: =+Sheet3!DA28/Sheet3!$F$1 -> 93 | DB31: =+Sheet3!DB28/Sheet3!$F$1 -> 147 | DC31: =+Sheet3!DC28/Sheet3!$F$1 -> 1278 | DD31: =+Sheet3!DD28/Sheet3!$F$1 -> 907 | DE31: =+Sheet3!DE28/Sheet3!$F$1 -> 11 | DF31: =+Sheet3!DF28/Sheet3!$F$1 -> 214 | DG31: =+Sheet3!DG28/Sheet3!$F$1 -> 66 | DH31: =+Sheet3!DH28/Sheet3!$F$1 -> 537 | DI31: =+Sheet3!DI28/Sheet3!$F$1 -> 1325 | DJ31: =+Sheet3!DJ28/Sheet3!$F$1 -> 495 | DK31: =+Sheet3!DK28/Sheet3!$F$1 -> 466 | DL31: =+Sheet3!DL28/Sheet3!$F$1 -> 15 | DM31: =+Sheet3!DM28/Sheet3!$F$1 -> 0 | DN31: =+Sheet3!DN28/Sheet3!$F$1 -> 2627 | DO31: =+Sheet3!DO28/Sheet3!$F$1 -> 1685 | DP31: =+Sheet3!DP28/Sheet3!$F$1 -> 944 | DQ31: =+Sheet3!DQ28/Sheet3!$F$1 -> 539 | DR31: =+Sheet3!DR28/Sheet3!$F$1 -> 63 | DS31: 5858
B32: 187 | C32: Alentejo Central | D32: =+Sheet3!D29/Sheet3!$F$1 -> 0 | E32: =+Sheet3!E29/Sheet3!$F$1 -> 3 | F32: =+Sheet3!F29/Sheet3!$F$1 -> 5 | G32: =+Sheet3!G29/Sheet3!$F$1 -> 4 | H32: =+Sheet3!H29/Sheet3!$F$1 -> 6 | I32: =+Sheet3!I29/Sheet3!$F$1 -> 0 | J32: =+Sheet3!J29/Sheet3!$F$1 -> 3 | K32: =+Sheet3!K29/Sheet3!$F$1 -> 4 | L32: =+Sheet3!L29/Sheet3!$F$1 -> 13 | M32: =+Sheet3!M29/Sheet3!$F$1 -> 0 | N32: =+Sheet3!N29/Sheet3!$F$1 -> 159 | O32: =+Sheet3!O29/Sheet3!$F$1 -> 41 | P32: =+Sheet3!P29/Sheet3!$F$1 -> 15 | Q32: =+Sheet3!Q29/Sheet3!$F$1 -> 13 | R32: =+Sheet3!R29/Sheet3!$F$1 -> 5 | S32: =+Sheet3!S29/Sheet3!$F$1 -> 0 | T32: =+Sheet3!T29/Sheet3!$F$1 -> 0 | U32: =+Sheet3!U29/Sheet3!$F$1 -> 3 | V32: =+Sheet3!V29/Sheet3!$F$1 -> 4 | W32: =+Sheet3!W29/Sheet3!$F$1 -> 0 | X32: =+Sheet3!X29/Sheet3!$F$1 -> 0 | Y32: =+Sheet3!Y29/Sheet3!$F$1 -> 3 | Z32: =+Sheet3!Z29/Sheet3!$F$1 -> 9 | AA32: =+Sheet3!AA29/Sheet3!$F$1 -> 23 | AB32: =+Sheet3!AB29/Sheet3!$F$1 -> 0 | AC32: =+Sheet3!AC29/Sheet3!$F$1 -> 30 | AD32: =+Sheet3!AD29/Sheet3!$F$1 -> 37 | AE32: =+Sheet3!AE29/Sheet3!$F$1 -> 32 | AF32: =+Sheet3!AF29/Sheet3!$F$1 -> 62 | AG32: =+Sheet3!AG29/Sheet3!$F$1 -> 10 | AH32: =+Sheet3!AH29/Sheet3!$F$1 -> 65 | AI32: =+Sheet3!AI29/Sheet3!$F$1 -> 316 | AJ32: =+Sheet3!AJ29/Sheet3!$F$1 -> 196 | AK32: =+Sheet3!AK29/Sheet3!$F$1 -> 62 | AL32: =+Sheet3!AL29/Sheet3!$F$1 -> 5 | AM32: =+Sheet3!AM29/Sheet3!$F$1 -> 42 | AN32: =+Sheet3!AN29/Sheet3!$F$1 -> 55 | AO32: =+Sheet3!AO29/Sheet3!$F$1 -> 68 | AP32: =+Sheet3!AP29/Sheet3!$F$1 -> 47 | AQ32: =+Sheet3!AQ29/Sheet3!$F$1 -> 11 | AR32: =+Sheet3!AR29/Sheet3!$F$1 -> 809 | AS32: =+Sheet3!AS29/Sheet3!$F$1 -> 67 | AT32: =+Sheet3!AT29/Sheet3!$F$1 -> 31 | AU32: =+Sheet3!AU29/Sheet3!$F$1 -> 29 | AV32: =+Sheet3!AV29/Sheet3!$F$1 -> 0 | AW32: =+Sheet3!AW29/Sheet3!$F$1 -> 464 | AX32: =+Sheet3!AX29/Sheet3!$F$1 -> 221 | AY32: =+Sheet3!AY29/Sheet3!$F$1 -> 67 | AZ32: =+Sheet3!AZ29/Sheet3!$F$1 -> 33 | BA32: =+Sheet3!BA29/Sheet3!$F$1 -> 7 | BB32: =+Sheet3!BB29/Sheet3!$F$1 -> 0 | BC32: =+Sheet3!BC29/Sheet3!$F$1 -> 0 | BD32: =+Sheet3!BD29/Sheet3!$F$1 -> 0 | BE32: =+Sheet3!BE29/Sheet3!$F$1 -> 6 | BF32: =+Sheet3!BF29/Sheet3!$F$1 -> 12 | BG32: =+Sheet3!BG29/Sheet3!$F$1 -> 0 | BH32: =+Sheet3!BH29/Sheet3!$F$1 -> 32 | BI32: =+Sheet3!BI29/Sheet3!$F$1 -> 90 | BJ32: =+Sheet3!BJ29/Sheet3!$F$1 -> 65 | BK32: =+Sheet3!BK29/Sheet3!$F$1 -> 6 | BL32: =+Sheet3!BL29/Sheet3!$F$1 -> 18 | BM32: =+Sheet3!BM29/Sheet3!$F$1 -> 58 | BN32: =+Sheet3!BN29/Sheet3!$F$1 -> 41 | BO32: =+Sheet3!BO29/Sheet3!$F$1 -> 17 | BP32: =+Sheet3!BP29/Sheet3!$F$1 -> 8 | BQ32: =+Sheet3!BQ29/Sheet3!$F$1 -> 0 | BR32: =+Sheet3!BR29/Sheet3!$F$1 -> 70 | BS32: =+Sheet3!BS29/Sheet3!$F$1 -> 286 | BT32: =+Sheet3!BT29/Sheet3!$F$1 -> 218 | BU32: =+Sheet3!BU29/Sheet3!$F$1 -> 9 | BV32: =+Sheet3!BV29/Sheet3!$F$1 -> 471 | BW32: =+Sheet3!BW29/Sheet3!$F$1 -> 621 | BX32: =+Sheet3!BX29/Sheet3!$F$1 -> 216 | BY32: =+Sheet3!BY29/Sheet3!$F$1 -> 69 | BZ32: =+Sheet3!BZ29/Sheet3!$F$1 -> 4 | CA32: =+Sheet3!CA29/Sheet3!$F$1 -> 121 | CB32: =+Sheet3!CB29/Sheet3!$F$1 -> 143 | CC32: =+Sheet3!CC29/Sheet3!$F$1 -> 88 | CD32: =+Sheet3!CD29/Sheet3!$F$1 -> 136 | CE32: =+Sheet3!CE29/Sheet3!$F$1 -> 23 | CF32: =+Sheet3!CF29/Sheet3!$F$1 -> 417 | CG32: =+Sheet3!CG29/Sheet3!$F$1 -> 241 | CH32: =+Sheet3!CH29/Sheet3!$F$1 -> 66 | CI32: =+Sheet3!CI29/Sheet3!$F$1 -> 5 | CJ32: =+Sheet3!CJ29/Sheet3!$F$1 -> 0 | CK32: =+Sheet3!CK29/Sheet3!$F$1 -> 0 | CL32: =+Sheet3!CL29/Sheet3!$F$1 -> 0 | CM32: =+Sheet3!CM29/Sheet3!$F$1 -> 0 | CN32: =+Sheet3!CN29/Sheet3!$F$1 -> 5 | CO32: =+Sheet3!CO29/Sheet3!$F$1 -> 5 | CP32: =+Sheet3!CP29/Sheet3!$F$1 -> 0 | CQ32: =+Sheet3!CQ29/Sheet3!$F$1 -> 0 | CR32: =+Sheet3!CR29/Sheet3!$F$1 -> 0 | CS32: =+Sheet3!CS29/Sheet3!$F$1 -> 0 | CT32: =+Sheet3!CT29/Sheet3!$F$1 -> 0 | CU32: =+Sheet3!CU29/Sheet3!$F$1 -> 21 | CV32: =+Sheet3!CV29/Sheet3!$F$1 -> 22 | CW32: =+Sheet3!CW29/Sheet3!$F$1 -> 238 | CX32: =+Sheet3!CX29/Sheet3!$F$1 -> 7 | CY32: =+Sheet3!CY29/Sheet3!$F$1 -> 40 | CZ32: =+Sheet3!CZ29/Sheet3!$F$1 -> 176 | DA32: =+Sheet3!DA29/Sheet3!$F$1 -> 647 | DB32: =+Sheet3!DB29/Sheet3!$F$1 -> 226 | DC32: =+Sheet3!DC29/Sheet3!$F$1 -> 942 | DD32: =+Sheet3!DD29/Sheet3!$F$1 -> 798 | DE32: =+Sheet3!DE29/Sheet3!$F$1 -> 21 | DF32: =+Sheet3!DF29/Sheet3!$F$1 -> 197 | DG32: =+Sheet3!DG29/Sheet3!$F$1 -> 148 | DH32: =+Sheet3!DH29/Sheet3!$F$1 -> 592 | DI32: =+Sheet3!DI29/Sheet3!$F$1 -> 1383 | DJ32: =+Sheet3!DJ29/Sheet3!$F$1 -> 513 | DK32: =+Sheet3!DK29/Sheet3!$F$1 -> 730 | DL32: =+Sheet3!DL29/Sheet3!$F$1 -> 11 | DM32: =+Sheet3!DM29/Sheet3!$F$1 -> 0 | DN32: =+Sheet3!DN29/Sheet3!$F$1 -> 2604 | DO32: =+Sheet3!DO29/Sheet3!$F$1 -> 1931 | DP32: =+Sheet3!DP29/Sheet3!$F$1 -> 1235 | DQ32: =+Sheet3!DQ29/Sheet3!$F$1 -> 824 | DR32: =+Sheet3!DR29/Sheet3!$F$1 -> 118 | DS32: 6712
A33: Algarve | B33: 150 | C33: Algarve | D33: =+Sheet3!D30/Sheet3!$F$1 -> 0 | E33: =+Sheet3!E30/Sheet3!$F$1 -> 0 | F33: =+Sheet3!F30/Sheet3!$F$1 -> 0 | G33: =+Sheet3!G30/Sheet3!$F$1 -> 0 | H33: =+Sheet3!H30/Sheet3!$F$1 -> 0 | I33: =+Sheet3!I30/Sheet3!$F$1 -> 0 | J33: =+Sheet3!J30/Sheet3!$F$1 -> 0 | K33: =+Sheet3!K30/Sheet3!$F$1 -> 0 | L33: =+Sheet3!L30/Sheet3!$F$1 -> 0 | M33: =+Sheet3!M30/Sheet3!$F$1 -> 0 | N33: =+Sheet3!N30/Sheet3!$F$1 -> 63 | O33: =+Sheet3!O30/Sheet3!$F$1 -> 22 | P33: =+Sheet3!P30/Sheet3!$F$1 -> 12 | Q33: =+Sheet3!Q30/Sheet3!$F$1 -> 0 | R33: =+Sheet3!R30/Sheet3!$F$1 -> 0 | S33: =+Sheet3!S30/Sheet3!$F$1 -> 0 | T33: =+Sheet3!T30/Sheet3!$F$1 -> 0 | U33: =+Sheet3!U30/Sheet3!$F$1 -> 0 | V33: =+Sheet3!V30/Sheet3!$F$1 -> 0 | W33: =+Sheet3!W30/Sheet3!$F$1 -> 0 | X33: =+Sheet3!X30/Sheet3!$F$1 -> 0 | Y33: =+Sheet3!Y30/Sheet3!$F$1 -> 0 | Z33: =+Sheet3!Z30/Sheet3!$F$1 -> 0 | AA33: =+Sheet3!AA30/Sheet3!$F$1 -> 0 | AB33: =+Sheet3!AB30/Sheet3!$F$1 -> 0 | AC33: =+Sheet3!AC30/Sheet3!$F$1 -> 24 | AD33: =+Sheet3!AD30/Sheet3!$F$1 -> 155 | AE33: =+Sheet3!AE30/Sheet3!$F$1 -> 52 | AF33: =+Sheet3!AF30/Sheet3!$F$1 -> 10 | AG33: =+Sheet3!AG30/Sheet3!$F$1 -> 0 | AH33: =+Sheet3!AH30/Sheet3!$F$1 -> 0 | AI33: =+Sheet3!AI30/Sheet3!$F$1 -> 0 | AJ33: =+Sheet3!AJ30/Sheet3!$F$1 -> 5 | AK33: =+Sheet3!AK30/Sheet3!$F$1 -> 0 | AL33: =+Sheet3!AL30/Sheet3!$F$1 -> 0 | AM33: =+Sheet3!AM30/Sheet3!$F$1 -> 181 | AN33: =+Sheet3!AN30/Sheet3!$F$1 -> 556 | AO33: =+Sheet3!AO30/Sheet3!$F$1 -> 388 | AP33: =+Sheet3!AP30/Sheet3!$F$1 -> 279 | AQ33: =+Sheet3!AQ30/Sheet3!$F$1 -> 112 | AR33: =+Sheet3!AR30/Sheet3!$F$1 -> 16 | AS33: =+Sheet3!AS30/Sheet3!$F$1 -> 0 | AT33: =+Sheet3!AT30/Sheet3!$F$1 -> 0 | AU33: =+Sheet3!AU30/Sheet3!$F$1 -> 0 | AV33: =+Sheet3!AV30/Sheet3!$F$1 -> 0 | AW33: =+Sheet3!AW30/Sheet3!$F$1 -> 728 | AX33: =+Sheet3!AX30/Sheet3!$F$1 -> 1415 | AY33: =+Sheet3!AY30/Sheet3!$F$1 -> 148 | AZ33: =+Sheet3!AZ30/Sheet3!$F$1 -> 18 | BA33: =+Sheet3!BA30/Sheet3!$F$1 -> 0 | BB33: =+Sheet3!BB30/Sheet3!$F$1 -> 0 | BC33: =+Sheet3!BC30/Sheet3!$F$1 -> 0 | BD33: =+Sheet3!BD30/Sheet3!$F$1 -> 0 | BE33: =+Sheet3!BE30/Sheet3!$F$1 -> 0 | BF33: =+Sheet3!BF30/Sheet3!$F$1 -> 0 | BG33: =+Sheet3!BG30/Sheet3!$F$1 -> 5 | BH33: =+Sheet3!BH30/Sheet3!$F$1 -> 18 | BI33: =+Sheet3!BI30/Sheet3!$F$1 -> 11 | BJ33: =+Sheet3!BJ30/Sheet3!$F$1 -> 0 | BK33: =+Sheet3!BK30/Sheet3!$F$1 -> 0 | BL33: =+Sheet3!BL30/Sheet3!$F$1 -> 17 | BM33: =+Sheet3!BM30/Sheet3!$F$1 -> 25 | BN33: =+Sheet3!BN30/Sheet3!$F$1 -> 8 | BO33: =+Sheet3!BO30/Sheet3!$F$1 -> 0 | BP33: =+Sheet3!BP30/Sheet3!$F$1 -> 0 | BQ33: =+Sheet3!BQ30/Sheet3!$F$1 -> 7 | BR33: =+Sheet3!BR30/Sheet3!$F$1 -> 17 | BS33: =+Sheet3!BS30/Sheet3!$F$1 -> 8 | BT33: =+Sheet3!BT30/Sheet3!$F$1 -> 0 | BU33: =+Sheet3!BU30/Sheet3!$F$1 -> 0 | BV33: =+Sheet3!BV30/Sheet3!$F$1 -> 93 | BW33: =+Sheet3!BW30/Sheet3!$F$1 -> 141 | BX33: =+Sheet3!BX30/Sheet3!$F$1 -> 21 | BY33: =+Sheet3!BY30/Sheet3!$F$1 -> 0 | BZ33: =+Sheet3!BZ30/Sheet3!$F$1 -> 0 | CA33: =+Sheet3!CA30/Sheet3!$F$1 -> 34 | CB33: =+Sheet3!CB30/Sheet3!$F$1 -> 99 | CC33: =+Sheet3!CC30/Sheet3!$F$1 -> 26 | CD33: =+Sheet3!CD30/Sheet3!$F$1 -> 5 | CE33: =+Sheet3!CE30/Sheet3!$F$1 -> 0 | CF33: =+Sheet3!CF30/Sheet3!$F$1 -> 217 | CG33: =+Sheet3!CG30/Sheet3!$F$1 -> 24 | CH33: =+Sheet3!CH30/Sheet3!$F$1 -> 8 | CI33: =+Sheet3!CI30/Sheet3!$F$1 -> 0 | CJ33: =+Sheet3!CJ30/Sheet3!$F$1 -> 0 | CK33: =+Sheet3!CK30/Sheet3!$F$1 -> 0 | CL33: =+Sheet3!CL30/Sheet3!$F$1 -> 0 | CM33: =+Sheet3!CM30/Sheet3!$F$1 -> 0 | CN33: =+Sheet3!CN30/Sheet3!$F$1 -> 0 | CO33: =+Sheet3!CO30/Sheet3!$F$1 -> 0 | CP33: =+Sheet3!CP30/Sheet3!$F$1 -> 0 | CQ33: =+Sheet3!CQ30/Sheet3!$F$1 -> 0 | CR33: =+Sheet3!CR30/Sheet3!$F$1 -> 0 | CS33: =+Sheet3!CS30/Sheet3!$F$1 -> 0 | CT33: =+Sheet3!CT30/Sheet3!$F$1 -> 0 | CU33: =+Sheet3!CU30/Sheet3!$F$1 -> 10 | CV33: =+Sheet3!CV30/Sheet3!$F$1 -> 6 | CW33: =+Sheet3!CW30/Sheet3!$F$1 -> 102 | CX33: =+Sheet3!CX30/Sheet3!$F$1 -> 0 | CY33: =+Sheet3!CY30/Sheet3!$F$1 -> 3 | CZ33: =+Sheet3!CZ30/Sheet3!$F$1 -> 245 | DA33: =+Sheet3!DA30/Sheet3!$F$1 -> 9 | DB33: =+Sheet3!DB30/Sheet3!$F$1 -> 1517 | DC33: =+Sheet3!DC30/Sheet3!$F$1 -> 19 | DD33: =+Sheet3!DD30/Sheet3!$F$1 -> 2311 | DE33: =+Sheet3!DE30/Sheet3!$F$1 -> 0 | DF33: =+Sheet3!DF30/Sheet3!$F$1 -> 35 | DG33: =+Sheet3!DG30/Sheet3!$F$1 -> 55 | DH33: =+Sheet3!DH30/Sheet3!$F$1 -> 37 | DI33: =+Sheet3!DI30/Sheet3!$F$1 -> 259 | DJ33: =+Sheet3!DJ30/Sheet3!$F$1 -> 168 | DK33: =+Sheet3!DK30/Sheet3!$F$1 -> 251 | DL33: =+Sheet3!DL30/Sheet3!$F$1 -> 0 | DM33: =+Sheet3!DM30/Sheet3!$F$1 -> 0 | DN33: =+Sheet3!DN30/Sheet3!$F$1 -> 1395 | DO33: =+Sheet3!DO30/Sheet3!$F$1 -> 2494 | DP33: =+Sheet3!DP30/Sheet3!$F$1 -> 701 | DQ33: =+Sheet3!DQ30/Sheet3!$F$1 -> 324 | DR33: =+Sheet3!DR30/Sheet3!$F$1 -> 116 | DS33: 5030
A34: Continente | D34: =+Sheet3!D31/Sheet3!$F$1 -> 61 | E34: =+Sheet3!E31/Sheet3!$F$1 -> 95 | F34: =+Sheet3!F31/Sheet3!$F$1 -> 76 | G34: =+Sheet3!G31/Sheet3!$F$1 -> 66 | H34: =+Sheet3!H31/Sheet3!$F$1 -> 58 | I34: =+Sheet3!I31/Sheet3!$F$1 -> 4525 | J34: =+Sheet3!J31/Sheet3!$F$1 -> 1055 | K34: =+Sheet3!K31/Sheet3!$F$1 -> 295 | L34: =+Sheet3!L31/Sheet3!$F$1 -> 248 | M34: =+Sheet3!M31/Sheet3!$F$1 -> 36 | N34: =+Sheet3!N31/Sheet3!$F$1 -> 5081 | O34: =+Sheet3!O31/Sheet3!$F$1 -> 956 | P34: =+Sheet3!P31/Sheet3!$F$1 -> 225 | Q34: =+Sheet3!Q31/Sheet3!$F$1 -> 92 | R34: =+Sheet3!R31/Sheet3!$F$1 -> 15 | S34: =+Sheet3!S31/Sheet3!$F$1 -> 95 | T34: =+Sheet3!T31/Sheet3!$F$1 -> 220 | U34: =+Sheet3!U31/Sheet3!$F$1 -> 185 | V34: =+Sheet3!V31/Sheet3!$F$1 -> 113 | W34: =+Sheet3!W31/Sheet3!$F$1 -> 2 | X34: =+Sheet3!X31/Sheet3!$F$1 -> 6 | Y34: =+Sheet3!Y31/Sheet3!$F$1 -> 48 | Z34: =+Sheet3!Z31/Sheet3!$F$1 -> 58 | AA34: =+Sheet3!AA31/Sheet3!$F$1 -> 75 | AB34: =+Sheet3!AB31/Sheet3!$F$1 -> 12 | AC34: =+Sheet3!AC31/Sheet3!$F$1 -> 6661 | AD34: =+Sheet3!AD31/Sheet3!$F$1 -> 7346 | AE34: =+Sheet3!AE31/Sheet3!$F$1 -> 914 | AF34: =+Sheet3!AF31/Sheet3!$F$1 -> 309 | AG34: =+Sheet3!AG31/Sheet3!$F$1 -> 64 | AH34: =+Sheet3!AH31/Sheet3!$F$1 -> 5079 | AI34: =+Sheet3!AI31/Sheet3!$F$1 -> 4694 | AJ34: =+Sheet3!AJ31/Sheet3!$F$1 -> 1056 | AK34: =+Sheet3!AK31/Sheet3!$F$1 -> 206 | AL34: =+Sheet3!AL31/Sheet3!$F$1 -> 12 | AM34: =+Sheet3!AM31/Sheet3!$F$1 -> 5226 | AN34: =+Sheet3!AN31/Sheet3!$F$1 -> 4619 | AO34: =+Sheet3!AO31/Sheet3!$F$1 -> 2824 | AP34: =+Sheet3!AP31/Sheet3!$F$1 -> 1210 | AQ34: =+Sheet3!AQ31/Sheet3!$F$1 -> 279 | AR34: =+Sheet3!AR31/Sheet3!$F$1 -> 8386 | AS34: =+Sheet3!AS31/Sheet3!$F$1 -> 935 | AT34: =+Sheet3!AT31/Sheet3!$F$1 -> 442 | AU34: =+Sheet3!AU31/Sheet3!$F$1 -> 235 | AV34: =+Sheet3!AV31/Sheet3!$F$1 -> 29 | AW34: =+Sheet3!AW31/Sheet3!$F$1 -> 37499 | AX34: =+Sheet3!AX31/Sheet3!$F$1 -> 15560 | AY34: =+Sheet3!AY31/Sheet3!$F$1 -> 1162 | AZ34: =+Sheet3!AZ31/Sheet3!$F$1 -> 372 | BA34: =+Sheet3!BA31/Sheet3!$F$1 -> 70 | BB34: =+Sheet3!BB31/Sheet3!$F$1 -> 54 | BC34: =+Sheet3!BC31/Sheet3!$F$1 -> 233 | BD34: =+Sheet3!BD31/Sheet3!$F$1 -> 441 | BE34: =+Sheet3!BE31/Sheet3!$F$1 -> 978 | BF34: =+Sheet3!BF31/Sheet3!$F$1 -> 148 | BG34: =+Sheet3!BG31/Sheet3!$F$1 -> 433 | BH34: =+Sheet3!BH31/Sheet3!$F$1 -> 1222 | BI34: =+Sheet3!BI31/Sheet3!$F$1 -> 623 | BJ34: =+Sheet3!BJ31/Sheet3!$F$1 -> 212 | BK34: =+Sheet3!BK31/Sheet3!$F$1 -> 12 | BL34: =+Sheet3!BL31/Sheet3!$F$1 -> 880 | BM34: =+Sheet3!BM31/Sheet3!$F$1 -> 2040 | BN34: =+Sheet3!BN31/Sheet3!$F$1 -> 619 | BO34: =+Sheet3!BO31/Sheet3!$F$1 -> 127 | BP34: =+Sheet3!BP31/Sheet3!$F$1 -> 34 | BQ34: =+Sheet3!BQ31/Sheet3!$F$1 -> 808 | BR34: =+Sheet3!BR31/Sheet3!$F$1 -> 3243 | BS34: =+Sheet3!BS31/Sheet3!$F$1 -> 1597 | BT34: =+Sheet3!BT31/Sheet3!$F$1 -> 680 | BU34: =+Sheet3!BU31/Sheet3!$F$1 -> 33 | BV34: =+Sheet3!BV31/Sheet3!$F$1 -> 6785 | BW34: =+Sheet3!BW31/Sheet3!$F$1 -> 8464 | BX34: =+Sheet3!BX31/Sheet3!$F$1 -> 2287 | BY34: =+Sheet3!BY31/Sheet3!$F$1 -> 392 | BZ34: =+Sheet3!BZ31/Sheet3!$F$1 -> 10 | CA34: =+Sheet3!CA31/Sheet3!$F$1 -> 5302 | CB34: =+Sheet3!CB31/Sheet3!$F$1 -> 4983 | CC34: =+Sheet3!CC31/Sheet3!$F$1 -> 797 | CD34: =+Sheet3!CD31/Sheet3!$F$1 -> 482 | CE34: =+Sheet3!CE31/Sheet3!$F$1 -> 78 | CF34: =+Sheet3!CF31/Sheet3!$F$1 -> 7291 | CG34: =+Sheet3!CG31/Sheet3!$F$1 -> 2636 | CH34: =+Sheet3!CH31/Sheet3!$F$1 -> 358 | CI34: =+Sheet3!CI31/Sheet3!$F$1 -> 34 | CJ34: =+Sheet3!CJ31/Sheet3!$F$1 -> 0 | CK34: =+Sheet3!CK31/Sheet3!$F$1 -> 2 | CL34: =+Sheet3!CL31/Sheet3!$F$1 -> 5 | CM34: =+Sheet3!CM31/Sheet3!$F$1 -> 63 | CN34: =+Sheet3!CN31/Sheet3!$F$1 -> 124 | CO34: =+Sheet3!CO31/Sheet3!$F$1 -> 72 | CP34: =+Sheet3!CP31/Sheet3!$F$1 -> 154 | CQ34: =+Sheet3!CQ31/Sheet3!$F$1 -> 47 | CR34: =+Sheet3!CR31/Sheet3!$F$1 -> 16 | CS34: =+Sheet3!CS31/Sheet3!$F$1 -> 9 | CT34: =+Sheet3!CT31/Sheet3!$F$1 -> 0 | CU34: =+Sheet3!CU31/Sheet3!$F$1 -> 356 | CV34: =+Sheet3!CV31/Sheet3!$F$1 -> 6159 | CW34: =+Sheet3!CW31/Sheet3!$F$1 -> 6369 | CX34: =+Sheet3!CX31/Sheet3!$F$1 -> 615 | CY34: =+Sheet3!CY31/Sheet3!$F$1 -> 199 | CZ34: =+Sheet3!CZ31/Sheet3!$F$1 -> 15294 | DA34: =+Sheet3!DA31/Sheet3!$F$1 -> 11047 | DB34: =+Sheet3!DB31/Sheet3!$F$1 -> 14158 | DC34: =+Sheet3!DC31/Sheet3!$F$1 -> 10027 | DD34: =+Sheet3!DD31/Sheet3!$F$1 -> 54663 | DE34: =+Sheet3!DE31/Sheet3!$F$1 -> 1854 | DF34: =+Sheet3!DF31/Sheet3!$F$1 -> 2502 | DG34: =+Sheet3!DG31/Sheet3!$F$1 -> 3700 | DH34: =+Sheet3!DH31/Sheet3!$F$1 -> 6361 | DI34: =+Sheet3!DI31/Sheet3!$F$1 -> 17939 | DJ34: =+Sheet3!DJ31/Sheet3!$F$1 -> 11642 | DK34: =+Sheet3!DK31/Sheet3!$F$1 -> 10319 | DL34: =+Sheet3!DL31/Sheet3!$F$1 -> 266 | DM34: =+Sheet3!DM31/Sheet3!$F$1 -> 226 | DN34: =+Sheet3!DN31/Sheet3!$F$1 -> 94328 | DO34: =+Sheet3!DO31/Sheet3!$F$1 -> 58401 | DP34: =+Sheet3!DP31/Sheet3!$F$1 -> 14038 | DQ34: =+Sheet3!DQ31/Sheet3!$F$1 -> 5964 | DR34: =+Sheet3!DR31/Sheet3!$F$1 -> 964 | DS34: =SUM(DN34:DR34) -> 173695
B37: Legenda
B38: MP | C38: =+INDEX(Sheet6!O8:Q8,1,Sheet3!$B$1) -> < 4 000 € de VPP
B39: P | C39: =+INDEX(Sheet6!O9:Q9,1,Sheet3!$B$1) -> >= 4 000 e < 25 000 € de VPP
B40: M | C40: =+INDEX(Sheet6!O10:Q10,1,Sheet3!$B$1) -> >= 25 000 e < 100 000 € de VPP
B41: G | C41: =+INDEX(Sheet6!O11:Q11,1,Sheet3!$B$1) -> >= 100 000 e < 500 000 € de VPP
B42: MG | C42: =+INDEX(Sheet6!O12:Q12,1,Sheet3!$B$1) -> >= 500 000 € de VPP
A43: Fonte: GPP a partir de dados IFAP
D45: =+INDEX(Sheet6!$D$2:$D$117,Sheet3!$C$1)&" segundo Orientação Técnico Económica e "&INDEX(Sheet6!$M$3:$M$6,Sheet3!$B$1)&" e por NUTSIII em " &Sheet6!$B$1 -> (1) - Nº de Beneficiários segundo Orientação Técnico Económica e Classe de DE e por NUTSIII em 2021 | AH45: =+D45& " (cont.)" -> (1) - Nº de Beneficiários segundo Orientação Técnico Económica e Classe de DE e por NUTSIII em 2021 (cont.) | BQ45: =+AH45 -> (1) - Nº de Beneficiários segundo Orientação Técnico Económica e Classe de DE e por NUTSIII em 2021 (cont.) | CU45: =+INDEX(Sheet6!$D$2:$D$117,Sheet3!$C$1)&" segundo Orientação Técnico Económica por NUTSIII em " &Sheet6!B43 -> (1) - Nº de Beneficiários segundo Orientação Técnico Económica por NUTSIII em 42 | DN45: =+INDEX(Sheet6!$D$2:$D$117,Sheet3!$C$1)&CHAR(10)& "segundo "&INDEX(Sheet6!$M$3:$M$6,Sheet3!$B$1)& " por NUTSIII em " &Sheet6!$B$1 -> (1) - Nº de Beneficiários segundo Classe de DE por NUTSIII em 2021
C46: Unidade (%)
C47: OTE | D47: Não classificadas | I47: Arvenses e Outras Cult pred. Regadio | N47: Arvenses e Outras Cult pred. Sequeiro | S47: Arroz | X47: Horticultura e Industriais | AC47: Horticultura e Floricultura | AH47: Vinhos | AM47: Fruticultura | AR47: Olival | AW47: Policultura | BB47: Bovinos Leite | BG47: =+BG8 -> Bov. Carne semi-int. (>1 < 3CN por ha SF) | BL47: =+BL8 -> Bov. Carne Int (>= 3CN por ha SF) | BQ47: =+BQ8 -> Bov. Carne Extensivos (<1 CN por ha SF) | BV47: Outros Ruminantes | CA47: Mistas | CF47: Pousio e Pastagem | CK47: Tomate Indústria | CP47: Plantas tuberosas | CU47: Não classificadas | CV47: Arvenses e Outras Cult pred. Regadio | CW47: Arvenses e Outras Cult pred. Sequeiro | CX47: Arroz | CY47: Horticultura e Industriais | CZ47: Horticultura e Floricultura | DA47: Vinhos | DB47: Fruticultura | DC47: Olival | DD47: Policultura | DE47: Bovinos Leite | DF47: =+DF8 -> Bov. Carne semi-int. (>1 < 3CN por ha SF) | DG47: =+DG8 -> Bov. Carne Int (>= 3CN por ha SF) | DH47: =+DH8 -> Bov. Carne Extensivos (<1 CN por ha SF) | DI47: Outros Ruminantes | DJ47: Mistas | DK47: Pousio e Pastagem | DL47: Tomate Indústria | DM47: Plantas tuberosas | DN47: MP | DO47: P | DP47: M | DQ47: G | DR47: MG | DS47: Total
C48: =+C9 -> Classe de DE | D48: MP | E48: P | F48: M | G48: G | H48: MG | I48: MP | J48: P | K48: M | L48: G | M48: MG | N48: MP | O48: P | P48: M | Q48: G | R48: MG | S48: MP | T48: P | U48: M | V48: G | W48: MG | X48: MP | Y48: P | Z48: M | AA48: G | AB48: MG | AC48: MP | AD48: P | AE48: M | AF48: G | AG48: MG | AH48: MP | AI48: P | AJ48: M | AK48: G | AL48: MG | AM48: MP | AN48: P | AO48: M | AP48: G | AQ48: MG | AR48: MP | AS48: P | AT48: M | AU48: G | AV48: MG | AW48: MP | AX48: P | AY48: M | AZ48: G | BA48: MG | BB48: MP | BC48: P | BD48: M | BE48: G | BF48: MG | BG48: MP | BH48: P | BI48: M | BJ48: G | BK48: MG | BL48: MP | BM48: P | BN48: M | BO48: G | BP48: MG | BQ48: MP | BR48: P | BS48: M | BT48: G | BU48: MG | BV48: MP | BW48: P | BX48: M | BY48: G | BZ48: MG | CA48: MP | CB48: P | CC48: M | CD48: G | CE48: MG | CF48: MP | CG48: P | CH48: M | CI48: G | CJ48: MG | CK48: MP | CL48: P | CM48: M | CN48: G | CO48: MG | CP48: MP | CQ48: P | CR48: M | CS48: G | CT48: MG | CV48: Arvenses e Outras Cult pred. Regadio
A49: NUTS II | B49: Cód. | C49: NUTS III | AG49: =+"Unidade: % " -> Unidade: % | BK49: =+"Unidade: % " -> Unidade: % | CT49: =+"Unidade: % " -> Unidade: % | DS49: Unidade: %
A50: Norte | B50: 111 | C50: Alto Minho | D50: =+D11/$DS$34*100 -> 0 | E50: 0 | F50: 0 | G50: 0 | H50: 0 | I50: 0.1658078816 | J50: 0.007484383546 | K50: 0 | L50: 0 | M50: 0 | N50: 0.07369239184 | O50: 0.002878609056 | P50: 0 | Q50: 0 | R50: 0 | S50: 0 | T50: 0 | U50: 0 | V50: 0 | W50: 0 | X50: 0 | Y50: 0 | Z50: 0 | AA50: 0 | AB50: 0 | AC50: 0.04778491033 | AD50: 0.04202769222 | AE50: 0.0103629926 | AF50: 0.002302887245 | AG50: 0 | AH50: 0.2181985665 | AI50: 0.2032297994 | AJ50: =+AJ11/$DS$34*100 -> 0.01669593253 | AK50: 0 | AL50: 0 | AM50: 0.02418031607 | AN50: 0.03914908316 | AO50: 0.03339186505 | AP50: 0.001727165434 | AQ50: 0 | AR50: 0 | AS50: 0 | AT50: 0 | AU50: 0 | AV50: 0 | AW50: 1.114021705 | AX50: 0.1911396413 | AY50: 0.00460577449 | AZ50: 0 | BA50: 0 | BB50: 0 | BC50: 0.002878609056 | BD50: 0.009787270791 | BE50: 0.0207259852 | BF50: 0 | BG50: 0.07081378278 | BH50: 0.07369239184 | BI50: 0.01151443622 | BJ50: 0 | BK50: 0 | BL50: 0.04375485765 | BM50: 0.05354212844 | BN50: 0.008635827168 | BO50: 0 | BP50: =+BP11/$DS$34*100 -> 0 | BQ50: 0.1203258585 | BR50: 0.2665591986 | BS50: 0.08750971531 | BT50: 0.01381732347 | BU50: 0.005757218112 | BV50: 0.3983994934 | BW50: 0.3333429287 | BX50: 0.02302887245 | BY50: 0 | BZ50: 0 | CA50: 0.4294884712 | CB50: 0.1842309796 | CC50: 0.002878609056 | CD50: 0 | CE50: 0 | CF50: 0.1796252051 | CG50: 0.0155444889 | CH50: 0.001727165434 | CI50: 0 | CJ50: 0 | CK50: 0 | CL50: 0 | CM50: 0 | CN50: 0 | CO50: 0 | CP50: 0 | CQ50: 0 | CR50: 0 | CS50: 0 | CT50: 0 | CU50: 0 | CV50: =+CV11/$DS$34*100 -> 0.1755951524 | CW50: 0.0771467227 | CX50: 0 | CY50: 0 | CZ50: 0.1047813696 | DA50: 0.4404271856 | DB50: 0.100751317 | DC50: 0 | DD50: 1.312070008 | DE50: 0.03511903048 | DF50: 0.1565963327 | DG50: 0.1070842569 | DH50: 0.4951207576 | DI50: 0.7570741818 | DJ50: 0.6165980598 | DK50: 0.1980483031 | DL50: 0 | DM50: 0 | DN50: 2.890123492 | DO50: 1.42088143 | DP50: 0.2170471228 | DQ50: 0.04375485765 | DR50: 0.007484383546 | DS50: =SUM(DN50:DR50) -> 4.579291286
B51: 112 | C51: Cávado | D51: =+D12/$DS$34*100 -> 0 | E51: 0 | F51: 0 | G51: 0 | H51: 0 | I51: 0.5083623593 | J51: 0.06505656467 | K51: 0.002878609056 | L51: 0.003454330867 | M51: 0 | N51: 0.1629292726 | O51: 0.01842309796 | P51: 0 | Q51: 0 | R51: 0 | S51: 0 | T51: 0 | U51: 0 | V51: 0 | W51: 0 | X51: 0 | Y51: 0 | Z51: 0 | AA51: 0 | AB51: 0 | AC51: 0.1174472495 | AD51: 0.1122657532 | AE51: 0.02302887245 | AF51: 0 | AG51: 0 | AH51: 0.02302887245 | AI51: 0.03627047411 | AJ51: =+AJ12/$DS$34*100 -> 0.00921154898 | AK51: 0 | AL51: 0 | AM51: 0.01669593253 | AN51: 0.06448084286 | AO51: 0.0564207375 | AP51: 0.003454330867 | AQ51: 0 | AR51: 0 | AS51: 0 | AT51: 0 | AU51: 0 | AV51: 0 | AW51: 0.9372751087 | AX51: 0.2446817698 | AY51: 0.00921154898 | AZ51: 0 | BA51: 0 | BB51: 0 | BC51: 0.01439304528 | BD51: 0.05872362474 | BE51: 0.1491119491 | BF51: 0.008060105357 | BG51: 0.01899881977 | BH51: 0.0356947523 | BI51: 0.002302887245 | BJ51: 0 | BK51: 0 | BL51: 0.08635827168 | BM51: 0.2423788825 | BN51: 0.04893635395 | BO51: 0.002302887245 | BP51: =+BP12/$DS$34*100 -> 0 | BQ51: 0.02475603788 | BR51: 0.05584501569 | BS51: 0.01324160166 | BT51: 0.002302887245 | BU51: 0 | BV51: 0.08923688074 | BW51: 0.07541955727 | BX51: 0.0103629926 | BY51: 0.002302887245 | BZ51: 0 | CA51: 0.2055326866 | CB51: 0.1404761219 | CC51: 0.008060105357 | CD51: 0 | CE51: 0 | CF51: 0.3310400415 | CG51: 0.1393246783 | CH51: 0 | CI51: 0 | CJ51: 0 | CK51: 0 | CL51: 0 | CM51: 0 | CN51: 0 | CO51: 0 | CP51: 0 | CQ51: 0 | CR51: 0 | CS51: 0 | CT51: 0 | CU51: 0 | CV51: =+CV12/$DS$34*100 -> 0.5820547511 | CW51: 0.1819280923 | CX51: 0 | CY51: 0 | CZ51: 0.2550447624 | DA51: 0.0719652264 | DB51: 0.1416275656 | DC51: 0 | DD51: 1.193471315 | DE51: 0.2308644463 | DF51: 0.05757218112 | DG51: 0.381127839 | DH51: 0.09787270791 | DI51: 0.1773223179 | DJ51: 0.3540689139 | DK51: 0.472667607 | DL51: 0 | DM51: 0 | DN51: 2.525691586 | DO51: 1.251043496 | DP51: 0.2481361006 | DQ51: 0.1681107689 | DR51: 0.008060105357 | DS51: =SUM(DN51:DR51) -> 4.201042056
B52: 119 | C52: Ave | D52: =+D13/$DS$34*100 -> 0 | E52: 0 | F52: 0 | G52: 0 | H52: 0 | I52: 0.2492875443 | J52: 0.01727165434 | K52: 0.003454330867 | L52: 0 | M52: 0 | N52: 0.07657100089 | O52: 0.005757218112 | P52: 0 | Q52: 0 | R52: 0 | S52: 0 | T52: 0 | U52: 0 | V52: 0 | W52: 0 | X52: 0 | Y52: 0 | Z52: 0 | AA52: 0 | AB52: 0 | AC52: 0.03051325599 | AD52: 0.02821036875 | AE52: 0.008060105357 | AF52: 0.00460577449 | AG52: 0 | AH52: 0.05929934656 | AI52: 0.082328219 | AJ52: =+AJ13/$DS$34*100 -> 0.01727165434 | AK52: 0 | AL52: 0 | AM52: 0.008060105357 | AN52: 0.04433057946 | AO52: 0.05181496301 | AP52: 0.008060105357 | AQ52: 0 | AR52: 0 | AS52: 0 | AT52: 0 | AU52: 0 | AV52: 0 | AW52: 0.3557960793 | AX52: 0.1162958059 | AY52: 0.007484383546 | AZ52: 0 | BA52: 0 | BB52: 0 | BC52: 0.008635827168 | BD52: 0.01093871441 | BE52: 0.05066351939 | BF52: 0.003454330867 | BG52: 0.02821036875 | BH52: 0.05469357207 | BI52: 0.005757218112 | BJ52: 0 | BK52: 0 | BL52: =+BL13/$DS$34*100 -> 0.06620800829 | BM52: 0.09959987334 | BN52: 0.01669593253 | BO52: 0 | BP52: 0 | BQ52: 0.0356947523 | BR52: 0.195169694 | BS52: 0.02475603788 | BT52: 0 | BU52: =+BU13/$DS$34*100 -> 0 | BV52: 0.1399004001 | BW52: 0.2941938455 | BX52: 0.04202769222 | BY52: 0 | BZ52: 0 | CA52: 0.1427790092 | CB52: 0.1059328133 | CC52: 0.01381732347 | CD52: 0 | CE52: 0 | CF52: 0.2642563114 | CG52: 0.07541955727 | CH52: 0 | CI52: 0 | CJ52: 0 | CK52: 0 | CL52: 0 | CM52: 0 | CN52: 0 | CO52: 0 | CP52: 0 | CQ52: 0 | CR52: 0 | CS52: 0 | CT52: 0 | CU52: 0.001727165434 | CV52: 0.2751950258 | CW52: 0.08290394082 | CX52: 0 | CY52: 0 | CZ52: 0.07426811365 | DA52: =+DA13/$DS$34*100 -> 0.1600506635 | DB52: 0.1139929186 | DC52: 0.002302887245 | DD52: 0.4824548778 | DE52: 0.07657100089 | DF52: 0.08923688074 | DG52: =+DG13/$DS$34*100 -> 0.1842309796 | DH52: 0.256196206 | DI52: 0.4795762687 | DJ52: 0.2625291459 | DK52: 0.3408273122 | DL52: 0 | DM52: 0 | DN52: 1.462909122 | DO52: 1.132444803 | DP52: 0.2130170702 | DQ52: 0.07138950459 | DR52: 0.003454330867 | DS52: 2.883214831
B53: 11A | C53: Área Metropolitana do Porto | D53: =+D14/$DS$34*100 -> 0 | E53: 0 | F53: 0 | G53: 0 | H53: 0 | I53: 0.4450329601 | J53: 0.03857336135 | K53: 0.002878609056 | L53: 0 | M53: 0 | N53: 0.06217795561 | O53: 0.001727165434 | P53: 0 | Q53: 0 | R53: 0 | S53: 0 | T53: 0 | U53: 0 | V53: 0 | W53: 0 | X53: 0 | Y53: 0 | Z53: 0 | AA53: 0 | AB53: 0 | AC53: 0.03108897781 | AD53: 0.07138950459 | AE53: 0.02763464694 | AF53: 0.002302887245 | AG53: 0 | AH53: 0.02015026339 | AI53: 0.02993753418 | AJ53: =+AJ14/$DS$34*100 -> 0.00460577449 | AK53: 0 | AL53: 0 | AM53: 0.0207259852 | AN53: 0.0564207375 | AO53: 0.0512392412 | AP53: 0.00460577449 | AQ53: 0 | AR53: 0 | AS53: 0 | AT53: 0 | AU53: 0 | AV53: 0 | AW53: 0.3770977863 | AX53: 0.131264573 | AY53: 0.009787270791 | AZ53: 0 | BA53: 0 | BB53: 0.006332939923 | BC53: 0.02187742883 | BD53: 0.05699645931 | BE53: 0.2210771755 | BF53: 0.02245315064 | BG53: 0.01093871441 | BH53: 0.01151443622 | BI53: 0.001727165434 | BJ53: 0 | BK53: 0 | BL53: =+BL14/$DS$34*100 -> 0.06275367742 | BM53: 0.1606263853 | BN53: 0.05757218112 | BO53: 0.002878609056 | BP53: 0 | BQ53: 0.007484383546 | BR53: 0.01784737615 | BS53: 0 | BT53: 0 | BU53: =+BU14/$DS$34*100 -> 0 | BV53: 0.03627047411 | BW53: 0.04663346671 | BX53: 0.006332939923 | BY53: 0 | BZ53: 0 | CA53: 0.1485362273 | CB53: 0.06505656467 | CC53: 0.007484383546 | CD53: 0 | CE53: 0 | CF53: 0.2222286191 | CG53: 0.2199257319 | CH53: 0.005181496301 | CI53: 0 | CJ53: 0 | CK53: 0 | CL53: 0 | CM53: 0 | CN53: 0 | CO53: 0 | CP53: 0.002302887245 | CQ53: 0 | CR53: 0 | CS53: 0 | CT53: 0 | CU53: 0 | CV53: 0.4905149832 | CW53: 0.06448084286 | CX53: 0 | CY53: 0 | CZ53: 0.1352946256 | DA53: =+DA14/$DS$34*100 -> 0.05584501569 | DB53: 0.134143182 | DC53: 0 | DD53: 0.5204525173 | DE53: 0.3310400415 | DF53: 0.02475603788 | DG53: =+DG14/$DS$34*100 -> 0.2844065747 | DH53: 0.02878609056 | DI53: 0.09326693342 | DJ53: 0.2216528973 | DK53: 0.4473358473 | DL53: 0 | DM53: 0.004030052679 | DN53: 1.458303348 | DO53: 0.881430093 | DP53: 0.2395002735 | DQ53: 0.2366216644 | DR53: 0.02245315064 | DS53: 2.838308529
B54: 11B | C54: Alto Tâmega | D54: =+D15/$DS$34*100 -> 0 | E54: 0.005181496301 | F54: 0.003454330867 | G54: 0 | H54: 0 | I54: 0.09326693342 | J54: 0.004030052679 | K54: 0 | L54: 0 | M54: 0 | N54: 0.3310400415 | O54: 0.004030052679 | P54: 0 | Q54: 0.002302887245 | R54: 0 | S54: 0 | T54: 0 | U54: 0 | V54: 0 | W54: 0 | X54: 0 | Y54: 0 | Z54: 0 | AA54: 0 | AB54: 0 | AC54: 0.4012781024 | AD54: 0.3206770488 | AE54: 0.0103629926 | AF54: 0 | AG54: 0 | AH54: 0.03684619592 | AI54: 0.01957454158 | AJ54: =+AJ15/$DS$34*100 -> 0.002878609056 | AK54: 0 | AL54: 0 | AM54: 0.7300152566 | AN54: 0.134143182 | AO54: 0.01957454158 | AP54: 0.001727165434 | AQ54: 0 | AR54: 0.1537177236 | AS54: 0.004030052679 | AT54: 0.001727165434 | AU54: 0 | AV54: 0 | AW54: 1.931546677 | AX54: 0.4749704943 | AY54: 0.003454330867 | AZ54: 0 | BA54: 0 | BB54: 0.001727165434 | BC54: 0.01496876709 | BD54: 0.008635827168 | BE54: 0.003454330867 | BF54: 0 | BG54: 0.01496876709 | BH54: 0.06908661735 | BI54: 0.01439304528 | BJ54: 0 | BK54: 0 | BL54: =+BL15/$DS$34*100 -> 0.01496876709 | BM54: 0.0207259852 | BN54: 0.004030052679 | BO54: 0 | BP54: 0 | BQ54: 0.1255073548 | BR54: 0.6799274591 | BS54: 0.08347966263 | BT54: 0.00460577449 | BU54: =+BU15/$DS$34*100 -> 0 | BV54: 0.4081867642 | BW54: 0.5290883445 | BX54: 0.06966233916 | BY54: 0 | BZ54: 0 | CA54: 0.204381243 | CB54: 0.2279858372 | CC54: 0.01151443622 | CD54: 0 | CE54: 0 | CF54: 0.2821036875 | CG54: 0.003454330867 | CH54: 0 | CI54: 0 | CJ54: 0 | CK54: 0 | CL54: 0 | CM54: 0 | CN54: 0 | CO54: 0 | CP54: 0.02245315064 | CQ54: 0 | CR54: 0 | CS54: 0 | CT54: 0 | CU54: 0.01093871441 | CV54: 0.09902415153 | CW54: 0.3402515904 | CX54: 0 | CY54: 0 | CZ54: 0.7346210311 | DA54: =+DA15/$DS$34*100 -> 0.05929934656 | DB54: 0.8866115893 | DC54: 0.1612021071 | DD54: 2.409971502 | DE54: 0.03108897781 | DF54: 0.100751317 | DG54: =+DG15/$DS$34*100 -> 0.04145197041 | DH54: 0.8963988601 | DI54: 1.009240335 | DJ54: 0.4450329601 | DK54: 0.286709462 | DL54: 0 | DM54: 0.02418031607 | DN54: 4.757189326 | DO54: 2.52051009 | DP54: 0.2418031607 | DQ54: 0.01612021071 | DR54: 0.001727165434 | DS54: 7.537349953
B55: 11C | C55: Tâmega e Sousa | D55: =+D16/$DS$34*100 -> 0 | E55: 0 | F55: 0 | G55: 0 | H55: 0 | I55: 0.2573476496 | J55: 0.02533175969 | K55: 0 | L55: 0.003454330867 | M55: 0 | N55: 0.02360459426 | O55: 0.002302887245 | P55: 0 | Q55: 0 | R55: 0 | S55: 0 | T55: 0 | U55: 0 | V55: 0 | W55: 0 | X55: 0 | Y55: 0 | Z55: 0 | AA55: 0 | AB55: 0 | AC55: 0.1105385878 | AD55: 0.1404761219 | AE55: 0.01496876709 | AF55: 0 | AG55: 0 | AH55: 0.1899881977 | AI55: 0.2890123492 | AJ55: =+AJ16/$DS$34*100 -> 0.04433057946 | AK55: 0.002878609056 | AL55: 0 | AM55: 0.05354212844 | AN55: 0.1571720545 | AO55: 0.1364460693 | AP55: 0.01669593253 | AQ55: 0 | AR55: 0.004030052679 | AS55: 0 | AT55: 0 | AU55: 0 | AV55: 0 | AW55: 1.147989292 | AX55: 0.4513659 | AY55: 0.01842309796 | AZ55: 0 | BA55: 0 | BB55: 0 | BC55: 0.004030052679 | BD55: 0.003454330867 | BE55: 0.007484383546 | BF55: 0 | BG55: 0.03857336135 | BH55: 0.03454330867 | BI55: 0.002302887245 | BJ55: 0 | BK55: 0 | BL55: =+BL16/$DS$34*100 -> 0.03396758686 | BM55: 0.07829816633 | BN55: 0.01324160166 | BO55: 0.002878609056 | BP55: 0 | BQ55: 0.0155444889 | BR55: 0.02533175969 | BS55: 0.005181496301 | BT55: 0 | BU55: =+BU16/$DS$34*100 -> 0 | BV55: 0.1301131293 | BW55: 0.07657100089 | BX55: 0.01093871441 | BY55: 0.002878609056 | BZ55: 0 | CA55: 0.2515904315 | CB55: 0.1289616857 | CC55: 0.00460577449 | CD55: 0.001727165434 | CE55: 0 | CF55: 0.1508391145 | CG55: 0.02705892513 | CH55: 0 | CI55: 0 | CJ55: 0 | CK55: 0 | CL55: 0 | CM55: 0 | CN55: 0 | CO55: 0 | CP55: 0 | CQ55: 0 | CR55: 0 | CS55: 0 | CT55: 0 | CU55: 0.004030052679 | CV55: 0.2890123492 | CW55: 0.02705892513 | CX55: 0 | CY55: 0 | CZ55: 0.268286364 | DA55: =+DA16/$DS$34*100 -> 0.5285126227 | DB55: 0.3644319065 | DC55: 0.005757218112 | DD55: 1.620081177 | DE55: 0.01727165434 | DF55: 0.0771467227 | DG55: =+DG16/$DS$34*100 -> 0.1295374075 | DH55: 0.05008779758 | DI55: 0.2222286191 | DJ55: 0.3868850571 | DK55: 0.1802009269 | DL55: 0 | DM55: 0 | DN55: 2.413425833 | DO55: 1.450818964 | DP55: 0.2625291459 | DQ55: 0.04260341403 | DR55: 0.002302887245 | DS55: 4.171680244
B56: 11D | C56: Douro | D56: =+D17/$DS$34*100 -> 0 | E56: 0 | F56: 0 | G56: 0 | H56: 0 | I56: 0.007484383546 | J56: 0 | K56: 0 | L56: 0 | M56: 0 | N56: 0.08175249719 | O56: 0.008635827168 | P56: 0.001727165434 | Q56: 0 | R56: 0 | S56: 0 | T56: 0 | U56: 0 | V56: 0 | W56: 0 | X56: 0 | Y56: 0 | Z56: 0 | AA56: 0 | AB56: 0 | AC56: 0.4807277124 | AD56: 0.5319669536 | AE56: 0.02418031607 | AF56: 0 | AG56: 0 | AH56: 1.837704021 | AI56: 1.311494286 | AJ56: =+AJ17/$DS$34*100 -> 0.164656438 | AK56: 0.0155444889 | AL56: 0 | AM56: 0.4484872909 | AN56: 0.3828550045 | AO56: 0.1065085351 | AP56: 0.006332939923 | AQ56: 0 | AR56: 0.3275857106 | AS56: 0.01266587985 | AT56: 0 | AU56: 0 | AV56: 0 | AW56: 3.382365641 | AX56: 1.456000461 | AY56: 0.05872362474 | AZ56: 0.004030052679 | BA56: 0 | BB56: 0.004030052679 | BC56: 0.01669593253 | BD56: 0.01266587985 | BE56: 0.005181496301 | BF56: 0 | BG56: 0.005757218112 | BH56: 0.01381732347 | BI56: 0.001727165434 | BJ56: 0 | BK56: 0 | BL56: =+BL17/$DS$34*100 -> 0.004030052679 | BM56: 0.006908661735 | BN56: 0 | BO56: 0 | BP56: 0 | BQ56: 0.05929934656 | BR56: 0.1122657532 | BS56: 0.01209015804 | BT56: 0.001727165434 | BU56: =+BU17/$DS$34*100 -> 0 | BV56: 0.2107141829 | BW56: 0.2423788825 | BX56: 0.01842309796 | BY56: 0 | BZ56: 0 | CA56: 0.1537177236 | CB56: 0.1232044676 | CC56: 0.00460577449 | CD56: 0 | CE56: 0 | CF56: 0.06620800829 | CG56: 0.003454330867 | CH56: 0 | CI56: 0 | CJ56: 0 | CK56: 0 | CL56: 0 | CM56: 0 | CN56: 0 | CO56: 0 | CP56: 0.01612021071 | CQ56: 0.002878609056 | CR56: 0 | CS56: 0 | CT56: 0 | CU56: 0.002302887245 | CV56: 0.01093871441 | CW56: 0.09441837704 | CX56: 0 | CY56: 0 | CZ56: 1.038026426 | DA56: =+DA17/$DS$34*100 -> 3.3311264 | DB56: 0.945335214 | DC56: 0.3419787559 | DD56: 4.901695501 | DE56: 0.0408762486 | DF56: 0.02475603788 | DG56: =+DG17/$DS$34*100 -> 0.01612021071 | DH56: 0.185958145 | DI56: 0.472667607 | DJ56: 0.2815279657 | DK56: 0.06966233916 | DL56: 0 | DM56: 0.01899881977 | DN56: 7.092892714 | DO56: 4.233282478 | DP56: 0.4104896514 | DQ56: 0.03742191773 | DR56: 0.002302887245 | DS56: 11.77638965
B57: 11E | C57: Terras de Trás-os-Montes | D57: =+D18/$DS$34*100 -> 0.001727165434 | E57: 0.008060105357 | F57: 0.008060105357 | G57: 0.002878609056 | H57: 0 | I57: 0 | J57: 0 | K57: 0 | L57: 0 | M57: 0 | N57: 0.3546446357 | O57: 0.05814790293 | P57: 0.004030052679 | Q57: 0 | R57: 0 | S57: 0 | T57: 0 | U57: 0 | V57: 0 | W57: 0 | X57: 0 | Y57: 0.001727165434 | Z57: 0 | AA57: 0 | AB57: 0 | AC57: 1.074872622 | AD57: 1.617202568 | AE57: 0.1370217911 | AF57: 0.01093871441 | AG57: 0 | AH57: 0.06505656467 | AI57: 0.0408762486 | AJ57: =+AJ18/$DS$34*100 -> 0.002878609056 | AK57: 0 | AL57: 0 | AM57: 0.9436080486 | AN57: 0.4450329601 | AO57: 0.0356947523 | AP57: 0.003454330867 | AQ57: 0 | AR57: 1.126111863 | AS57: 0.1065085351 | AT57: 0.01784737615 | AU57: 0 | AV57: 0 | AW57: 4.059990213 | AX57: 2.227467688 | AY57: 0.07944960995 | AZ57: 0.003454330867 | BA57: 0 | BB57: 0 | BC57: 0 | BD57: 0.005757218112 | BE57: 0.003454330867 | BF57: 0 | BG57: 0.006908661735 | BH57: 0.04375485765 | BI57: 0.02187742883 | BJ57: 0 | BK57: 0 | BL57: =+BL18/$DS$34*100 -> 0.004030052679 | BM57: 0.02130170702 | BN57: 0.008635827168 | BO57: 0 | BP57: 0 | BQ57: 0.005757218112 | BR57: 0.0408762486 | BS57: 0.01151443622 | BT57: 0 | BU57: =+BU18/$DS$34*100 -> 0 | BV57: 0.1001755952 | BW57: 0.295921011 | BX57: 0.04951207576 | BY57: 0 | BZ57: 0 | CA57: 0.1134171968 | CB57: 0.4254584185 | CC57: 0.07541955727 | CD57: 0.001727165434 | CE57: 0 | CF57: 0.1698379343 | CG57: 0.003454330867 | CH57: 0 | CI57: 0.002302887245 | CJ57: 0 | CK57: 0 | CL57: 0 | CM57: 0 | CN57: 0 | CO57: 0 | CP57: 0.002302887245 | CQ57: 0 | CR57: 0 | CS57: 0 | CT57: 0 | CU57: 0.02475603788 | CV57: 0.003454330867 | CW57: 0.4179740349 | CX57: 0 | CY57: 0.006908661735 | CZ57: 2.84176286 | DA57: =+DA18/$DS$34*100 -> 0.1105385878 | DB57: 1.430092979 | DC57: 1.252770661 | DD57: 6.372664728 | DE57: 0.01266587985 | DF57: 0.07426811365 | DG57: =+DG18/$DS$34*100 -> 0.03511903048 | DH57: 0.06102651199 | DI57: 0.4473358473 | DJ57: 0.6183252253 | DK57: 0.1784737615 | DL57: 0 | DM57: 0.003454330867 | DN57: 8.03880365 | DO57: 5.343849852 | DP57: 0.4715161634 | DQ57: 0.0356947523 | DR57: 0.001727165434 | DS57: 13.89159158
A58: Centro | B58: 16B | C58: Oeste | D58: =+D19/$DS$34*100 -> 0 | E58: 0 | F58: 0.003454330867 | G58: 0 | H58: 0.008635827168 | I58: 0 | J58: 0 | K58: 0 | L58: 0 | M58: 0 | N58: 0.02130170702 | O58: 0.01439304528 | P58: 0.002878609056 | Q58: 0 | R58: 0 | S58: 0 | T58: 0 | U58: 0 | V58: 0 | W58: 0 | X58: 0 | Y58: 0 | Z58: 0 | AA58: 0 | AB58: 0 | AC58: 0.006908661735 | AD58: 0.04778491033 | AE58: 0.0460577449 | AF58: 0.01381732347 | AG58: 0 | AH58: 0.00921154898 | AI58: 0.05411785025 | AJ58: =+AJ19/$DS$34*100 -> 0.05987506837 | AK58: 0.02130170702 | AL58: 0 | AM58: 0.00921154898 | AN58: 0.06620800829 | AO58: 0.164656438 | AP58: 0.1289616857 | AQ58: 0.01093871441 | AR58: 0 | AS58: 0 | AT58: 0 | AU58: 0 | AV58: 0 | AW58: 0.04317913584 | AX58: 0.06620800829 | AY58: 0.03051325599 | AZ58: 0.01151443622 | BA58: 0 | BB58: 0 | BC58: 0 | BD58: 0 | BE58: 0 | BF58: 0.002302887245 | BG58: 0.001727165434 | BH58: 0.002878609056 | BI58: 0.002302887245 | BJ58: 0 | BK58: 0 | BL58: =+BL19/$DS$34*100 -> 0.01324160166 | BM58: 0.03281614324 | BN58: 0.01496876709 | BO58: 0.008635827168 | BP58: 0 | BQ58: 0 | BR58: 0.002878609056 | BS58: 0 | BT58: 0 | BU58: =+BU19/$DS$34*100 -> 0 | BV58: 0.1686864907 | BW58: 0.07599527908 | BX58: 0.00921154898 | BY58: 0 | BZ58: 0 | CA58: 0.01957454158 | CB58: 0.02533175969 | CC58: 0.006332939923 | CD58: 0.002302887245 | CE58: 0 | CF58: 0.09844842972 | CG58: 0.02475603788 | CH58: 0.003454330867 | CI58: 0 | CJ58: 0 | CK58: 0 | CL58: 0 | CM58: 0 | CN58: 0 | CO58: 0 | CP58: 0 | CQ58: 0.004030052679 | CR58: 0.001727165434 | CS58: 0 | CT58: 0 | CU58: 0.01784737615 | CV58: 0.00460577449 | CW58: 0.04375485765 | CX58: 0 | CY58: 0 | CZ58: 0.1174472495 | DA58: =+DA19/$DS$34*100 -> 0.1468090619 | DB58: 0.3817035608 | DC58: 0 | DD58: 0.155444889 | DE58: 0.005181496301 | DF58: 0.009787270791 | DG58: =+DG19/$DS$34*100 -> 0.07254094821 | DH58: 0.00460577449 | DI58: 0.2567719278 | DJ58: 0.05526929388 | DK58: 0.1266587985 | DL58: 0.001727165434 | DM58: 0.007484383546 | DN58: 0.4018538242 | DO58: 0.4266098621 | DP58: 0.3546446357 | DQ58: 0.2003511903 | DR58: 0.02705892513 | DS58: 1.410518437
B59: 16D | C59: Região de Aveiro | D59: =+D20/$DS$34*100 -> 0 | E59: 0.004030052679 | F59: 0 | G59: 0 | H59: 0 | I59: 0.3051325599 | J59: 0.07944960995 | K59: 0.005181496301 | L59: 0 | M59: 0 | N59: 0.3857336135 | O59: 0.05814790293 | P59: 0.002878609056 | Q59: 0 | R59: 0 | S59: 0 | T59: 0 | U59: 0.002302887245 | V59: 0 | W59: 0 | X59: 0 | Y59: 0 | Z59: 0 | AA59: 0 | AB59: 0 | AC59: 0.082328219 | AD59: 0.06563228648 | AE59: 0.01209015804 | AF59: 0.002878609056 | AG59: 0 | AH59: 0.01324160166 | AI59: 0.02130170702 | AJ59: =+AJ20/$DS$34*100 -> 0.002302887245 | AK59: 0 | AL59: 0 | AM59: 0.01957454158 | AN59: 0.07081378278 | AO59: 0.03857336135 | AP59: 0.001727165434 | AQ59: 0 | AR59: 0 | AS59: 0 | AT59: 0 | AU59: 0 | AV59: 0 | AW59: 0.3431301995 | AX59: 0.1399004001 | AY59: 0.009787270791 | AZ59: 0 | BA59: 0 | BB59: 0 | BC59: 0.00921154898 | BD59: 0.03108897781 | BE59: 0.05757218112 | BF59: 0.006332939923 | BG59: 0.003454330867 | BH59: 0.01957454158 | BI59: 0.004030052679 | BJ59: 0 | BK59: 0 | BL59: =+BL20/$DS$34*100 -> 0.02418031607 | BM59: 0.08060105357 | BN59: 0.02245315064 | BO59: 0.002302887245 | BP59: 0 | BQ59: 0 | BR59: 0.007484383546 | BS59: 0 | BT59: 0 | BU59: =+BU20/$DS$34*100 -> 0 | BV59: 0.02418031607 | BW59: 0.01496876709 | BX59: 0 | BY59: 0 | BZ59: 0 | CA59: 0.08347966263 | CB59: 0.09959987334 | CC59: 0.006332939923 | CD59: 0 | CE59: 0 | CF59: 0.1778980397 | CG59: 0.08175249719 | CH59: 0.003454330867 | CI59: 0 | CJ59: 0 | CK59: 0 | CL59: 0 | CM59: 0 | CN59: 0 | CO59: 0 | CP59: 0.01209015804 | CQ59: 0.00460577449 | CR59: 0 | CS59: 0 | CT59: 0 | CU59: 0.007484383546 | CV59: 0.3932179971 | CW59: 0.4490630128 | CX59: 0.003454330867 | CY59: 0 | CZ59: 0.1675350471 | DA59: =+DA20/$DS$34*100 -> 0.0408762486 | DB59: 0.1329917384 | DC59: 0 | DD59: 0.493969314 | DE59: 0.1088114223 | DF59: 0.02763464694 | DG59: =+DG20/$DS$34*100 -> 0.131264573 | DH59: 0.009787270791 | DI59: 0.03972480497 | DJ59: 0.1922910849 | DK59: 0.2636805895 | DL59: 0 | DM59: 0.01899881977 | DN59: 1.486513717 | DO59: 0.7674371744 | DP59: 0.1479605055 | DQ59: 0.0719652264 | DR59: 0.008635827168 | DS59: 2.48251245
B60: 16E | C60: Região de Coimbra | D60: =+D21/$DS$34*100 -> 0.005181496301 | E60: 0.006332939923 | F60: 0 | G60: 0 | H60: 0 | I60: 0.3206770488 | J60: 0.2055326866 | K60: 0.05354212844 | L60: 0.006332939923 | M60: 0 | N60: 0.2020783557 | O60: 0.01899881977 | P60: 0.002302887245 | Q60: 0 | R60: 0 | S60: 0.04836063214 | T60: 0.08290394082 | U60: 0.03166469962 | V60: 0.007484383546 | W60: 0 | X60: 0 | Y60: 0.001727165434 | Z60: 0 | AA60: 0 | AB60: 0 | AC60: 0.1934425286 | AD60: 0.1537177236 | AE60: 0.01899881977 | AF60: 0.007484383546 | AG60: 0 | AH60: 0.03108897781 | AI60: 0.03339186505 | AJ60: =+AJ21/$DS$34*100 -> 0.002302887245 | AK60: 0 | AL60: 0 | AM60: 0.03166469962 | AN60: 0.07599527908 | AO60: 0.03454330867 | AP60: 0.01784737615 | AQ60: 0 | AR60: 0.08347966263 | AS60: 0 | AT60: 0 | AU60: 0 | AV60: 0 | AW60: 0.8797029275 | AX60: 0.2619534241 | AY60: 0.01669593253 | AZ60: 0.004030052679 | BA60: 0 | BB60: 0.003454330867 | BC60: 0.009787270791 | BD60: 0.02705892513 | BE60: 0.01439304528 | BF60: 0.001727165434 | BG60: 0.009787270791 | BH60: 0.008060105357 | BI60: 0.003454330867 | BJ60: 0 | BK60: 0 | BL60: =+BL21/$DS$34*100 -> 0.03511903048 | BM60: 0.04145197041 | BN60: 0.008635827168 | BO60: 0 | BP60: 0 | BQ60: 0.008060105357 | BR60: 0.004030052679 | BS60: 0 | BT60: 0 | BU60: =+BU21/$DS$34*100 -> 0 | BV60: 0.1658078816 | BW60: 0.1301131293 | BX60: 0.01266587985 | BY60: 0 | BZ60: 0 | CA60: 0.155444889 | CB60: 0.1306888511 | CC60: 0.005181496301 | CD60: 0 | CE60: 0 | CF60: 0.2026540775 | CG60: 0.01957454158 | CH60: 0 | CI60: 0 | CJ60: 0 | CK60: 0 | CL60: 0 | CM60: 0 | CN60: 0 | CO60: 0 | CP60: 0.0103629926 | CQ60: 0.005181496301 | CR60: 0 | CS60: 0 | CT60: 0 | CU60: 0.01612021071 | CV60: 0.5878119693 | CW60: 0.2233800628 | CX60: 0.1715650997 | CY60: 0.002878609056 | CZ60: 0.37824923 | DA60: =+DA21/$DS$34*100 -> 0.06735945191 | DB60: 0.161777829 | DC60: 0.08578254987 | DD60: 1.165836668 | DE60: 0.05757218112 | DF60: 0.02187742883 | DG60: =+DG21/$DS$34*100 -> 0.08981260255 | DH60: 0.01381732347 | DI60: 0.3097383344 | DJ60: 0.2924666801 | DK60: 0.2233800628 | DL60: 0 | DM60: 0.01727165434 | DN60: 2.392124126 | DO60: 1.199804255 | DP60: 0.2251072282 | DQ60: 0.06217795561 | DR60: 0.007484383546 | DS60: 3.886697948
B61: 16F | C61: Região de Leiria | D61: =+D22/$DS$34*100 -> 0 | E61: 0.001727165434 | F61: 0.004030052679 | G61: 0 | H61: 0 | I61: 0.06620800829 | J61: 0.02648320332 | K61: 0.002878609056 | L61: 0 | M61: 0 | N61: 0.07484383546 | O61: 0.01266587985 | P61: 0 | Q61: 0 | R61: 0 | S61: 0.002878609056 | T61: 0.006332939923 | U61: 0 | V61: 0 | W61: 0 | X61: 0 | Y61: 0 | Z61: 0 | AA61: 0 | AB61: 0 | AC61: 0.1065085351 | AD61: 0.09038832436 | AE61: 0.00921154898 | AF61: 0.002878609056 | AG61: 0 | AH61: 0.003454330867 | AI61: 0 | AJ61: =+AJ22/$DS$34*100 -> 0 | AK61: 0 | AL61: 0 | AM61: 0.01842309796 | AN61: 0.03339186505 | AO61: 0.01669593253 | AP61: 0.002878609056 | AQ61: 0 | AR61: 0.1479605055 | AS61: 0.004030052679 | AT61: 0 | AU61: 0 | AV61: 0 | AW61: 0.4600017272 | AX61: 0.08290394082 | AY61: 0.003454330867 | AZ61: 0 | BA61: 0 | BB61: 0 | BC61: 0 | BD61: 0.002302887245 | BE61: 0.005181496301 | BF61: 0 | BG61: 0 | BH61: 0.009787270791 | BI61: 0.005181496301 | BJ61: 0 | BK61: 0 | BL61: =+BL22/$DS$34*100 -> 0.01727165434 | BM61: 0.03914908316 | BN61: 0.009787270791 | BO61: 0 | BP61: 0 | BQ61: 0.002878609056 | BR61: 0.006908661735 | BS61: 0.002878609056 | BT61: 0 | BU61: =+BU22/$DS$34*100 -> 0 | BV61: 0.1542934454 | BW61: 0.07541955727 | BX61: 0.006332939923 | BY61: 0 | BZ61: 0 | CA61: 0.1496876709 | CB61: 0.05987506837 | CC61: 0.001727165434 | CD61: 0 | CE61: 0 | CF61: 0.07023806097 | CG61: 0 | CH61: 0 | CI61: 0 | CJ61: 0 | CK61: 0 | CL61: 0 | CM61: 0 | CN61: 0 | CO61: 0 | CP61: 0 | CQ61: 0 | CR61: 0 | CS61: 0 | CT61: 0 | CU61: 0.0103629926 | CV61: 0.09614554247 | CW61: 0.08866115893 | CX61: 0.01266587985 | CY61: 0 | CZ61: 0.2118656265 | DA61: =+DA22/$DS$34*100 -> 0.005181496301 | DB61: 0.07484383546 | DC61: 0.1531420018 | DD61: 0.5475114425 | DE61: 0.00921154898 | DF61: 0.01669593253 | DG61: =+DG22/$DS$34*100 -> 0.07023806097 | DH61: 0.01496876709 | DI61: 0.237773108 | DJ61: 0.2124413483 | DK61: 0.07138950459 | DL61: 0 | DM61: 0 | DN61: 1.279829586 | DO61: 0.4576988399 | DP61: 0.07254094821 | DQ61: 0.02130170702 | DR61: 0.004030052679 | DS61: 1.835401134
B62: 16G | C62: Viseu Dão Lafões | D62: =+D23/$DS$34*100 -> 0 | E62: 0 | F62: 0 | G62: 0 | H62: 0 | I62: 0.1260830767 | J62: 0.01151443622 | K62: 0 | L62: 0 | M62: 0 | N62: 0.1243559112 | O62: 0.01957454158 | P62: 0 | Q62: 0 | R62: 0 | S62: 0 | T62: 0 | U62: 0 | V62: 0 | W62: 0 | X62: 0 | Y62: 0 | Z62: 0 | AA62: 0 | AB62: 0 | AC62: 0.216471401 | AD62: 0.3500388612 | AE62: 0.01324160166 | AF62: 0 | AG62: 0 | AH62: 0.1019027606 | AI62: 0.1157200841 | AJ62: =+AJ23/$DS$34*100 -> 0.01669593253 | AK62: 0 | AL62: 0 | AM62: 0.05987506837 | AN62: 0.09441837704 | AO62: 0.1404761219 | AP62: 0.01842309796 | AQ62: 0 | AR62: 0.03799763954 | AS62: 0.002302887245 | AT62: 0 | AU62: 0 | AV62: 0 | AW62: 1.162382337 | AX62: 0.5509657733 | AY62: 0.01266587985 | AZ62: 0 | BA62: 0 | BB62: 0.003454330867 | BC62: 0.007484383546 | BD62: 0.008060105357 | BE62: 0.003454330867 | BF62: 0 | BG62: 0.01324160166 | BH62: 0.02533175969 | BI62: 0.002878609056 | BJ62: 0 | BK62: 0 | BL62: =+BL23/$DS$34*100 -> 0.02015026339 | BM62: 0.03281614324 | BN62: 0.004030052679 | BO62: 0 | BP62: 0 | BQ62: 0.01093871441 | BR62: 0.04836063214 | BS62: 0.01093871441 | BT62: 0 | BU62: =+BU23/$DS$34*100 -> 0 | BV62: 0.2844065747 | BW62: 0.2371973862 | BX62: 0.02763464694 | BY62: 0 | BZ62: 0 | CA62: 0.3546446357 | CB62: 0.2602262587 | CC62: 0.005757218112 | CD62: 0 | CE62: 0 | CF62: 0.08347966263 | CG62: 0.003454330867 | CH62: 0 | CI62: 0 | CJ62: 0 | CK62: 0 | CL62: 0 | CM62: 0 | CN62: 0 | CO62: 0 | CP62: 0.006332939923 | CQ62: 0 | CR62: 0 | CS62: 0 | CT62: 0 | CU62: 0.006908661735 | CV62: 0.1381732347 | CW62: 0.1468090619 | CX62: 0 | CY62: 0 | CZ62: 0.5820547511 | DA62: =+DA23/$DS$34*100 -> 0.2366216644 | DB62: 0.3143441089 | DC62: 0.04030052679 | DD62: 1.729468321 | DE62: 0.0259074815 | DF62: 0.04490630128 | DG62: =+DG23/$DS$34*100 -> 0.05814790293 | DH62: 0.07599527908 | DI62: 0.5509657733 | DJ62: 0.6212038343 | DK62: 0.08808543712 | DL62: 0 | DM62: 0.007484383546 | DN62: 2.613201301 | DO62: 1.768617404 | DP62: 0.2533175969 | DQ62: 0.03051325599 | DR62: 0.002302887245 | DS62: 4.667952445
B63: 16H | C63: Beira Baixa | D63: =+D24/$DS$34*100 -> 0 | E63: 0 | F63: 0 | G63: 0 | H63: 0 | I63: 0 | J63: 0.003454330867 | K63: 0 | L63: 0.003454330867 | M63: 0 | N63: 0.06332939923 | O63: 0.01151443622 | P63: 0.001727165434 | Q63: 0.002878609056 | R63: 0 | S63: 0 | T63: 0 | U63: 0 | V63: 0 | W63: 0 | X63: 0 | Y63: 0 | Z63: 0 | AA63: 0 | AB63: 0 | AC63: 0.1283859639 | AD63: 0.04375485765 | AE63: 0.002878609056 | AF63: 0.005181496301 | AG63: 0.001727165434 | AH63: 0.001727165434 | AI63: 0.002302887245 | AJ63: =+AJ24/$DS$34*100 -> 0 | AK63: 0 | AL63: 0 | AM63: 0.05757218112 | AN63: 0.07023806097 | AO63: 0.04433057946 | AP63: 0.02763464694 | AQ63: 0.00460577449 | AR63: 0.381127839 | AS63: 0.007484383546 | AT63: 0.00460577449 | AU63: 0 | AV63: 0 | AW63: 0.6701401883 | AX63: 0.08578254987 | AY63: 0.0103629926 | AZ63: 0.002302887245 | BA63: 0 | BB63: 0 | BC63: 0 | BD63: 0 | BE63: 0 | BF63: 0.001727165434 | BG63: 0 | BH63: 0.01093871441 | BI63: 0.01381732347 | BJ63: 0.005181496301 | BK63: 0 | BL63: =+BL24/$DS$34*100 -> 0 | BM63: 0.0103629926 | BN63: 0.003454330867 | BO63: 0 | BP63: 0 | BQ63: 0 | BR63: 0.02360459426 | BS63: 0.0460577449 | BT63: 0.01784737615 | BU63: =+BU24/$DS$34*100 -> 0 | BV63: 0.1381732347 | BW63: 0.2181985665 | BX63: 0.1203258585 | BY63: 0.02993753418 | BZ63: 0 | CA63: 0.06908661735 | CB63: 0.06217795561 | CC63: 0.007484383546 | CD63: 0.005757218112 | CE63: 0 | CF63: 0.1606263853 | CG63: 0.05757218112 | CH63: 0.01209015804 | CI63: 0 | CJ63: 0 | CK63: 0 | CL63: 0 | CM63: 0 | CN63: 0 | CO63: 0 | CP63: 0 | CQ63: 0 | CR63: 0 | CS63: 0 | CT63: 0 | CU63: 0.006908661735 | CV63: 0.0103629926 | CW63: 0.08175249719 | CX63: 0 | CY63: 0 | CZ63: 0.1836552578 | DA63: =+DA24/$DS$34*100 -> 0.005181496301 | DB63: 0.2055326866 | DC63: 0.3955208843 | DD63: 0.7697400616 | DE63: 0.002878609056 | DF63: 0.03166469962 | DG63: =+DG24/$DS$34*100 -> 0.01669593253 | DH63: 0.08923688074 | DI63: 0.5077866375 | DJ63: 0.1450818964 | DK63: 0.2308644463 | DL63: 0 | DM63: 0 | DN63: 1.67822908 | DO63: 0.6165980598 | DP63: 0.2723164167 | DQ63: 0.1070842569 | DR63: 0.0103629926 | DS63: 2.684590806
B64: 16I | C64: Médio Tejo | D64: =+D25/$DS$34*100 -> 0 | E64: 0 | F64: 0 | G64: 0 | H64: 0 | I64: 0.006908661735 | J64: 0.01093871441 | K64: 0.008635827168 | L64: 0.007484383546 | M64: 0 | N64: 0.03051325599 | O64: 0.0155444889 | P64: 0.00460577449 | Q64: 0 | R64: 0 | S64: 0 | T64: 0 | U64: 0 | V64: 0 | W64: 0 | X64: 0 | Y64: 0 | Z64: 0 | AA64: 0 | AB64: 0 | AC64: 0.07426811365 | AD64: 0.05066351939 | AE64: 0.005181496301 | AF64: 0.002878609056 | AG64: 0 | AH64: 0.02245315064 | AI64: 0.008060105357 | AJ64: =+AJ25/$DS$34*100 -> 0.003454330867 | AK64: 0 | AL64: 0 | AM64: 0.04030052679 | AN64: 0.09787270791 | AO64: 0.04202769222 | AP64: 0.01669593253 | AQ64: 0 | AR64: 0.37191629 | AS64: 0.009787270791 | AT64: 0.00460577449 | AU64: 0.001727165434 | AV64: 0 | AW64: 0.7760730015 | AX64: 0.1588992199 | AY64: 0.01381732347 | AZ64: 0.005181496301 | BA64: 0 | BB64: 0 | BC64: 0 | BD64: 0 | BE64: 0.001727165434 | BF64: 0 | BG64: 0 | BH64: 0.00460577449 | BI64: 0.003454330867 | BJ64: 0 | BK64: 0 | BL64: =+BL25/$DS$34*100 -> 0.00460577449 | BM64: 0.03396758686 | BN64: 0.005181496301 | BO64: 0.001727165434 | BP64: 0 | BQ64: 0 | BR64: 0.002878609056 | BS64: 0 | BT64: 0 | BU64: =+BU25/$DS$34*100 -> 0 | BV64: 0.1410518437 | BW64: 0.06390512105 | BX64: 0.0155444889 | BY64: 0 | BZ64: 0 | CA64: 0.1226287458 | CB64: 0.06332939923 | CC64: 0.009787270791 | CD64: 0.002878609056 | CE64: 0 | CF64: 0.06505656467 | CG64: 0.03166469962 | CH64: 0 | CI64: 0 | CJ64: 0 | CK64: 0 | CL64: 0 | CM64: 0 | CN64: 0 | CO64: 0 | CP64: 0 | CQ64: 0 | CR64: 0 | CS64: 0 | CT64: 0 | CU64: 0.00460577449 | CV64: 0.03684619592 | CW64: 0.05354212844 | CX64: 0 | CY64: 0.001727165434 | CZ64: 0.1352946256 | DA64: =+DA25/$DS$34*100 -> 0.03627047411 | DB64: 0.1991997467 | DC64: 0.390339388 | DD64: 0.9551224848 | DE64: 0.00460577449 | DF64: 0.01209015804 | DG64: =+DG25/$DS$34*100 -> 0.04778491033 | DH64: 0.005181496301 | DI64: 0.2222286191 | DJ64: 0.2009269121 | DK64: 0.09902415153 | DL64: 0 | DM64: 0 | DN64: 1.659805982 | DO64: 0.5624802096 | DP64: 0.1306888511 | DQ64: 0.04836063214 | DR64: 0.003454330867 | DS64: 2.404790005
B65: 16J | C65: Beiras e Serra da Estrela | D65: =+D26/$DS$34*100 -> 0.002302887245 | E65: 0.001727165434 | F65: 0.001727165434 | G65: 0.003454330867 | H65: 0 | I65: 0.02821036875 | J65: 0.01093871441 | K65: 0.002302887245 | L65: 0.001727165434 | M65: 0 | N65: 0.4766976597 | O65: 0.06275367742 | P65: 0.00460577449 | Q65: 0 | R65: 0 | S65: 0 | T65: 0 | U65: 0 | V65: 0 | W65: 0 | X65: 0 | Y65: 0 | Z65: 0 | AA65: 0 | AB65: 0 | AC65: 0.6327182705 | AD65: 0.3379487032 | AE65: 0.02360459426 | AF65: 0.003454330867 | AG65: 0 | AH65: 0.1819280923 | AI65: 0.100751317 | AJ65: =+AJ26/$DS$34*100 -> 0.01381732347 | AK65: 0 | AL65: 0 | AM65: 0.3304643196 | AN65: 0.2855580184 | AO65: 0.1652321598 | AP65: 0.0408762486 | AQ65: 0.004030052679 | AR65: 0.3316157633 | AS65: 0.01324160166 | AT65: 0.002302887245 | AU65: 0 | AV65: 0 | AW65: 2.409971502 | AX65: 0.8445838971 | AY65: 0.03224042143 | AZ65: 0.002302887245 | BA65: 0 | BB65: 0 | BC65: 0.006908661735 | BD65: 0.01209015804 | BE65: 0.003454330867 | BF65: 0 | BG65: 0.0103629926 | BH65: 0.1324160166 | BI65: 0.06505656467 | BJ65: 0.002878609056 | BK65: 0 | BL65: =+BL26/$DS$34*100 -> 0.006332939923 | BM65: 0.04317913584 | BN65: 0.0103629926 | BO65: 0.002302887245 | BP65: 0 | BQ65: 0.01727165434 | BR65: 0.1565963327 | BS65: 0.07254094821 | BT65: 0.001727165434 | BU65: =+BU26/$DS$34*100 -> 0 | BV65: 0.2872851838 | BW65: 0.625233887 | BX65: 0.2665591986 | BY65: 0.02015026339 | BZ65: 0 | CA65: 0.1819280923 | CB65: 0.3373729814 | CC65: 0.05469357207 | CD65: 0.002878609056 | CE65: 0 | CF65: 0.2308644463 | CG65: 0.02821036875 | CH65: 0 | CI65: 0 | CJ65: 0 | CK65: 0 | CL65: 0 | CM65: 0 | CN65: 0 | CO65: 0 | CP65: 0.006908661735 | CQ65: 0 | CR65: 0 | CS65: 0 | CT65: 0 | CU65: 0.01209015804 | CV65: 0.0460577449 | CW65: 0.5446328334 | CX65: 0 | CY65: 0.002302887245 | CZ65: 0.9988773425 | DA65: =+DA26/$DS$34*100 -> 0.29879962 | DB65: 0.8278879645 | DC65: 0.3483116958 | DD65: 3.291977317 | DE65: 0.02360459426 | DF65: 0.2112899047 | DG65: =+DG26/$DS$34*100 -> 0.06620800829 | DH65: 0.2538933187 | DI65: 1.200379976 | DJ65: 0.5768732548 | DK65: 0.2602262587 | DL65: 0 | DM65: 0.008060105357 | DN65: 5.14292294 | DO65: 2.996632027 | DP65: 0.7357724747 | DQ65: 0.09038832436 | DR65: 0.005757218112 | DS65: 8.971472984
A66: AML | B66: 170 | C66: Área Metropolitana de Lisboa | D66: =+D27/$DS$34*100 -> 0 | E66: 0 | F66: 0 | G66: 0 | H66: 0.002302887245 | I66: 0.001727165434 | J66: 0.008060105357 | K66: 0.008635827168 | L66: 0.008060105357 | M66: 0.004030052679 | N66: 0.01496876709 | O66: 0.006908661735 | P66: 0.004030052679 | Q66: 0 | R66: 0 | S66: 0 | T66: 0 | U66: 0.01842309796 | V66: 0.01151443622 | W66: 0 | X66: 0 | Y66: 0 | Z66: 0 | AA66: 0 | AB66: 0 | AC66: 0.002302887245 | AD66: 0.02130170702 | AE66: 0.01324160166 | AF66: 0.006908661735 | AG66: 0.002302887245 | AH66: 0.001727165434 | AI66: 0.0356947523 | AJ66: =+AJ27/$DS$34*100 -> 0.04030052679 | AK66: 0.01209015804 | AL66: 0 | AM66: 0.004030052679 | AN66: 0.01727165434 | AO66: 0.02245315064 | AP66: 0.01324160166 | AQ66: 0.003454330867 | AR66: 0 | AS66: 0 | AT66: 0 | AU66: 0 | AV66: 0 | AW66: 0.01899881977 | AX66: 0.0408762486 | AY66: 0.01439304528 | AZ66: 0.01151443622 | BA66: 0.002878609056 | BB66: 0 | BC66: 0.001727165434 | BD66: 0 | BE66: 0.004030052679 | BF66: 0.005757218112 | BG66: 0 | BH66: 0.01093871441 | BI66: 0.005757218112 | BJ66: 0.00460577449 | BK66: 0 | BL66: =+BL27/$DS$34*100 -> 0.006332939923 | BM66: 0.03051325599 | BN66: 0.01439304528 | BO66: 0.008635827168 | BP66: 0.001727165434 | BQ66: 0 | BR66: 0.006908661735 | BS66: 0.003454330867 | BT66: 0.005181496301 | BU66: =+BU27/$DS$34*100 -> 0 | BV66: 0.1139929186 | BW66: 0.09038832436 | BX66: 0.01784737615 | BY66: 0.002302887245 | BZ66: 0 | CA66: 0.01151443622 | CB66: 0.01669593253 | CC66: 0.00460577449 | CD66: 0.007484383546 | CE66: 0.001727165434 | CF66: 0.06735945191 | CG66: 0.04145197041 | CH66: 0.0103629926 | CI66: 0.001727165434 | CJ66: 0 | CK66: 0 | CL66: 0 | CM66: 0.005181496301 | CN66: 0.007484383546 | CO66: 0.00921154898 | CP66: 0 | CQ66: 0.001727165434 | CR66: 0.003454330867 | CS66: 0.001727165434 | CT66: 0 | CU66: 0.006332939923 | CV66: 0.03166469962 | CW66: 0.02878609056 | CX66: 0.03166469962 | CY66: 0 | CZ66: 0.05411785025 | DA66: =+DA27/$DS$34*100 -> 0.09153976798 | DB66: 0.06448084286 | DC66: 0 | DD66: 0.09153976798 | DE66: 0.01381732347 | DF66: 0.02187742883 | DG66: =+DG27/$DS$34*100 -> 0.06563228648 | DH66: 0.01612021071 | DI66: 0.2251072282 | DJ66: 0.04375485765 | DK66: 0.1214773022 | DL66: 0.02418031607 | DM66: 0.007484383546 | DN66: 0.2521661533 | DO66: 0.3373729814 | DP66: 0.1980483031 | DQ66: 0.1168715277 | DR66: 0.03742191773 | DS66: 0.9418808832
A67: Alentejo | B67: 181 | C67: Alentejo Litoral | D67: =+D28/$DS$34*100 -> 0 | E67: 0.002302887245 | F67: 0 | G67: 0.003454330867 | H67: 0.002878609056 | I67: 0 | J67: 0.001727165434 | K67: 0 | L67: 0.001727165434 | M67: 0 | N67: 0.01496876709 | O67: 0.02648320332 | P67: 0.005757218112 | Q67: 0.002302887245 | R67: 0 | S67: 0 | T67: 0.02821036875 | U67: 0.02187742883 | V67: 0.0103629926 | W67: 0 | X67: 0 | Y67: 0 | Z67: 0 | AA67: 0 | AB67: 0 | AC67: 0.01727165434 | AD67: 0.02245315064 | AE67: 0.008635827168 | AF67: 0.00460577449 | AG67: 0.005757218112 | AH67: 0 | AI67: 0.004030052679 | AJ67: =+AJ28/$DS$34*100 -> 0.003454330867 | AK67: 0 | AL67: 0 | AM67: 0.01439304528 | AN67: 0.04778491033 | AO67: 0.04202769222 | AP67: 0.04893635395 | AQ67: 0.01784737615 | AR67: 0.0259074815 | AS67: 0.002302887245 | AT67: 0.003454330867 | AU67: 0.002878609056 | AV67: 0 | AW67: 0.0719652264 | AX67: 0.08060105357 | AY67: 0.03511903048 | AZ67: 0.01957454158 | BA67: 0.00460577449 | BB67: 0 | BC67: 0 | BD67: 0 | BE67: 0.001727165434 | BF67: 0.005181496301 | BG67: 0.001727165434 | BH67: 0.03108897781 | BI67: 0.03051325599 | BJ67: 0.01209015804 | BK67: 0 | BL67: =+BL28/$DS$34*100 -> 0.007484383546 | BM67: 0.02245315064 | BN67: 0.01439304528 | BO67: 0.002302887245 | BP67: 0.001727165434 | BQ67: 0 | BR67: 0.05296640663 | BS67: 0.08923688074 | BT67: 0.03051325599 | BU67: =+BU28/$DS$34*100 -> 0 | BV67: 0.07426811365 | BW67: 0.183079536 | BX67: 0.08290394082 | BY67: 0.01727165434 | BZ67: 0 | CA67: 0.01957454158 | CB67: 0.04836063214 | CC67: 0.02821036875 | CD67: 0.02533175969 | CE67: 0.003454330867 | CF67: 0.29879962 | CG67: 0.1773223179 | CH67: 0.02360459426 | CI67: 0.002302887245 | CJ67: 0 | CK67: 0 | CL67: 0 | CM67: 0.002878609056 | CN67: 0.002878609056 | CO67: 0 | CP67: 0 | CQ67: 0 | CR67: 0 | CS67: 0 | CT67: 0 | CU67: 0.0103629926 | CV67: 0.006332939923 | CW67: 0.05066351939 | CX67: 0.06275367742 | CY67: 0.002878609056 | CZ67: 0.06390512105 | DA67: =+DA28/$DS$34*100 -> 0.0103629926 | DB67: 0.1732922652 | DC67: 0.03627047411 | DD67: 0.2130170702 | DE67: 0.007484383546 | DF67: 0.07657100089 | DG67: =+DG28/$DS$34*100 -> 0.05066351939 | DH67: 0.1761708742 | DI67: 0.3580989666 | DJ67: 0.1260830767 | DK67: 0.5020294194 | DL67: 0.006332939923 | DM67: 0 | DN67: 0.5515414951 | DO67: 0.7426811365 | DP67: 0.3978237716 | DQ67: 0.1945939722 | DR67: 0.04663346671 | DS67: 1.933273842
B68: 184 | C68: Baixo Alentejo | D68: =+D29/$DS$34*100 -> 0.005757218112 | E68: 0.003454330867 | F68: 0 | G68: 0.001727165434 | H68: 0 | I68: 0 | J68: 0.009787270791 | K68: 0.0103629926 | L68: 0.01899881977 | M68: 0.002878609056 | N68: 0.1663836034 | O68: 0.1116900314 | P68: 0.04893635395 | Q68: 0.01496876709 | R68: 0.003454330867 | S68: 0 | T68: 0 | U68: 0 | V68: 0 | W68: 0 | X68: 0 | Y68: 0.006332939923 | Z68: 0.008060105357 | AA68: 0.01899881977 | AB68: 0.00460577449 | AC68: 0.0155444889 | AD68: 0.02821036875 | AE68: 0.01266587985 | AF68: 0.01151443622 | AG68: 0.00460577449 | AH68: 0.03799763954 | AI68: 0.06620800829 | AJ68: =+AJ29/$DS$34*100 -> 0.03224042143 | AK68: 0.006908661735 | AL68: 0 | AM68: 0.0103629926 | AN68: 0.05066351939 | AO68: 0.09326693342 | AP68: 0.08290394082 | AQ68: 0.03051325599 | AR68: 0.655747143 | AS68: 0.2343187772 | AT68: 0.1519905582 | AU68: 0.08923688074 | AV68: 0.01151443622 | AW68: 0.2544690406 | AX68: 0.1974725812 | AY68: 0.07484383546 | AZ68: 0.05814790293 | BA68: 0.01151443622 | BB68: 0 | BC68: 0 | BD68: 0 | BE68: 0 | BF68: 0 | BG68: 0 | BH68: 0.01899881977 | BI68: 0.04030052679 | BJ68: 0.02245315064 | BK68: 0.001727165434 | BL68: =+BL29/$DS$34*100 -> 0.008060105357 | BM68: 0.02015026339 | BN68: 0.02360459426 | BO68: 0.01266587985 | BP68: 0.00460577449 | BQ68: 0.003454330867 | BR68: 0.03166469962 | BS68: 0.1185986931 | BT68: 0.07369239184 | BU68: =+BU29/$DS$34*100 -> 0 | BV68: 0.1997754685 | BW68: 0.3863093353 | BX68: 0.2274101154 | BY68: 0.06851089554 | BZ68: 0 | CA68: 0.03166469962 | CB68: 0.1001755952 | CC68: 0.07081378278 | CD68: 0.07599527908 | CE68: 0.01209015804 | CF68: 0.3799763954 | CG68: 0.213592792 | CH68: 0.05929934656 | CI68: 0.002878609056 | CJ68: 0 | CK68: 0 | CL68: 0 | CM68: 0.002878609056 | CN68: 0.002302887245 | CO68: 0 | CP68: 0 | CQ68: 0 | CR68: 0 | CS68: 0 | CT68: 0 | CU68: 0.01381732347 | CV68: 0.04548202309 | CW68: 0.3471602522 | CX68: 0 | CY68: 0.04030052679 | CZ68: 0.07426811365 | DA68: =+DA29/$DS$34*100 -> 0.1456576182 | DB68: 0.2717406949 | DC68: 1.143959239 | DD68: 0.5999021273 | DE68: 0.002878609056 | DF68: 0.08463110625 | DG68: =+DG29/$DS$34*100 -> 0.0719652264 | DH68: 0.2302887245 | DI68: 0.8848844238 | DJ68: 0.2918909583 | DK68: 0.6563228648 | DL68: 0.005757218112 | DM68: 0 | DN68: 1.774950344 | DO68: 1.487089438 | DP68: 0.9844842972 | DQ68: 0.5699645931 | DR68: 0.09441837704 | DS68: 4.91090705
B69: 185 | C69: Lezíria do Tejo | D69: =+D30/$DS$34*100 -> 0.001727165434 | E69: 0 | F69: 0.004030052679 | G69: 0.006332939923 | H69: 0.007484383546 | I69: 0.01266587985 | J69: 0.05987506837 | K69: 0.04893635395 | L69: 0.05872362474 | M69: 0.0103629926 | N69: 0.02533175969 | O69: 0.02705892513 | P69: 0.01093871441 | Q69: 0.007484383546 | R69: 0 | S69: 0 | T69: 0.005757218112 | U69: 0.02821036875 | V69: 0.03051325599 | W69: 0 | X69: 0 | Y69: 0.003454330867 | Z69: 0.005181496301 | AA69: 0.003454330867 | AB69: 0 | AC69: 0.009787270791 | AD69: 0.01266587985 | AE69: 0.01439304528 | AF69: 0.008060105357 | AG69: 0 | AH69: 0.00921154898 | AI69: 0.03454330867 | AJ69: =+AJ30/$DS$34*100 -> 0.03166469962 | AK69: 0.008635827168 | AL69: 0 | AM69: 0.02015026339 | AN69: 0.03339186505 | AO69: 0.04030052679 | AP69: 0.03454330867 | AQ69: 0.007484383546 | AR69: 0.1019027606 | AS69: 0.008060105357 | AT69: 0.005757218112 | AU69: 0 | AV69: 0 | AW69: 0.155444889 | AX69: 0.08347966263 | AY69: 0.04260341403 | AZ69: 0.03281614324 | BA69: 0.01324160166 | BB69: 0 | BC69: 0 | BD69: 0 | BE69: 0.002878609056 | BF69: 0.006332939923 | BG69: 0 | BH69: 0.007484383546 | BI69: 0.005181496301 | BJ69: 0.00460577449 | BK69: 0 | BL69: =+BL30/$DS$34*100 -> 0.009787270791 | BM69: 0.02418031607 | BN69: 0.01209015804 | BO69: 0.00460577449 | BP69: 0 | BQ69: 0 | BR69: 0.00460577449 | BS69: 0.01209015804 | BT69: 0.00921154898 | BU69: =+BU30/$DS$34*100 -> 0 | BV69: 0.07254094821 | BW69: 0.0719652264 | BX69: 0.01957454158 | BY69: 0.003454330867 | BZ69: 0 | CA69: 0.01957454158 | CB69: 0.02015026339 | CC69: 0.01324160166 | CD69: 0.0207259852 | CE69: 0.005181496301 | CF69: 0.1727165434 | CG69: 0.09556982066 | CH69: 0.01842309796 | CI69: 0.003454330867 | CJ69: 0 | CK69: 0 | CL69: 0 | CM69: 0.02130170702 | CN69: 0.04836063214 | CO69: 0.02648320332 | CP69: 0 | CQ69: 0.002302887245 | CR69: 0.002302887245 | CS69: 0.002878609056 | CT69: 0 | CU69: 0.02360459426 | CV69: 0.1945939722 | CW69: 0.07311667003 | CX69: 0.06505656467 | CY69: 0.01324160166 | CZ69: 0.05008779758 | DA69: =+DA30/$DS$34*100 -> 0.08635827168 | DB69: 0.1381732347 | DC69: 0.1197501367 | DD69: 0.3321914851 | DE69: 0.01151443622 | DF69: 0.01957454158 | DG69: =+DG30/$DS$34*100 -> 0.05526929388 | DH69: 0.02936181237 | DI69: 0.1675350471 | DJ69: 0.08060105357 | DK69: 0.2907395147 | DL69: 0.09959987334 | DM69: 0.008060105357 | DN69: 0.6194766689 | DO69: 0.5077866375 | DP69: 0.3471602522 | DQ69: 0.2970724546 | DR69: 0.08693399349 | DS69: 1.858430007
B70: 186 | C70: Alto Alentejo | D70: =+D31/$DS$34*100 -> 0 | E70: 0 | F70: 0 | G70: 0 | H70: 0 | I70: 0 | J70: 0.00460577449 | K70: 0.002878609056 | L70: 0.003454330867 | M70: 0 | N70: 0.02936181237 | O70: 0.01151443622 | P70: 0.007484383546 | Q70: 0.00460577449 | R70: 0 | S70: 0 | T70: 0 | U70: 0 | V70: 0 | W70: 0 | X70: 0 | Y70: 0 | Z70: 0.00460577449 | AA70: 0.00460577449 | AB70: 0 | AC70: 0.01842309796 | AD70: 0.02360459426 | AE70: 0.0155444889 | AF70: 0.02878609056 | AG70: 0.003454330867 | AH70: 0.01439304528 | AI70: 0.02302887245 | AJ70: =+AJ31/$DS$34*100 -> 0.01266587985 | AK70: 0.003454330867 | AL70: 0 | AM70: 0.01439304528 | AN70: 0.03108897781 | AO70: 0.0207259852 | AP70: 0.01266587985 | AQ70: 0.001727165434 | AR70: 0.5935691874 | AS70: 0.082328219 | AT70: 0.03684619592 | AU70: 0.01899881977 | AV70: 0.001727165434 | AW70: 0.3408273122 | AX70: 0.1214773022 | AY70: 0.03742191773 | AZ70: 0.01957454158 | BA70: 0.001727165434 | BB70: 0 | BC70: 0 | BD70: 0 | BE70: 0 | BF70: 0.005757218112 | BG70: 0 | BH70: 0.04145197041 | BI70: 0.05296640663 | BJ70: 0.02648320332 | BK70: 0 | BL70: =+BL31/$DS$34*100 -> 0.002302887245 | BM70: 0.01266587985 | BN70: 0.01324160166 | BO70: 0.00460577449 | BP70: 0.002878609056 | BQ70: 0.001727165434 | BR70: 0.05987506837 | BS70: 0.1416275656 | BT70: 0.09902415153 | BU70: =+BU31/$DS$34*100 -> 0.004030052679 | BV70: 0.2429546043 | BW70: 0.3621290193 | BX70: 0.1272345203 | BY70: 0.02821036875 | BZ70: 0 | CA70: 0.09096404617 | CB70: 0.09556982066 | CC70: 0.04317913584 | CD70: 0.04548202309 | CE70: 0.008635827168 | CF70: 0.1583234981 | CG70: 0.09096404617 | CH70: 0.01439304528 | CI70: 0.002878609056 | CJ70: 0 | CK70: 0 | CL70: 0 | CM70: 0 | CN70: 0.005181496301 | CO70: 0.002302887245 | CP70: 0 | CQ70: 0 | CR70: 0 | CS70: 0 | CT70: 0 | CU70: 0.003454330867 | CV70: 0.01266587985 | CW70: 0.05354212844 | CX70: 0 | CY70: 0.01093871441 | CZ70: 0.09326693342 | DA70: =+DA31/$DS$34*100 -> 0.05354212844 | DB70: 0.08463110625 | DC70: 0.7357724747 | DD70: 0.5221796828 | DE70: 0.006332939923 | DF70: 0.1232044676 | DG70: =+DG31/$DS$34*100 -> 0.03799763954 | DH70: 0.3091626126 | DI70: 0.7628313999 | DJ70: 0.2849822966 | DK70: 0.268286364 | DL70: 0.008635827168 | DM70: 0 | DN70: 1.512421198 | DO70: 0.9700912519 | DP70: 0.5434813898 | DQ70: 0.3103140562 | DR70: 0.03627047411 | DS70: 3.37257837
B71: 187 | C71: Alentejo Central | D71: =+D32/$DS$34*100 -> 0 | E71: 0.001727165434 | F71: 0.002878609056 | G71: 0.002302887245 | H71: 0.003454330867 | I71: 0 | J71: 0.001727165434 | K71: 0.002302887245 | L71: 0.007484383546 | M71: 0 | N71: 0.09153976798 | O71: 0.02360459426 | P71: 0.008635827168 | Q71: 0.007484383546 | R71: 0.002878609056 | S71: 0 | T71: 0 | U71: 0.001727165434 | V71: 0.002302887245 | W71: 0 | X71: 0 | Y71: 0.001727165434 | Z71: 0.005181496301 | AA71: 0.01324160166 | AB71: 0 | AC71: 0.01727165434 | AD71: 0.02130170702 | AE71: 0.01842309796 | AF71: 0.0356947523 | AG71: 0.005757218112 | AH71: 0.03742191773 | AI71: 0.1819280923 | AJ71: =+AJ32/$DS$34*100 -> 0.112841475 | AK71: 0.0356947523 | AL71: 0.002878609056 | AM71: 0.02418031607 | AN71: 0.03166469962 | AO71: 0.03914908316 | AP71: 0.02705892513 | AQ71: 0.006332939923 | AR71: 0.4657589453 | AS71: 0.03857336135 | AT71: 0.01784737615 | AU71: 0.01669593253 | AV71: 0 | AW71: 0.2671349204 | AX71: 0.1272345203 | AY71: 0.03857336135 | AZ71: 0.01899881977 | BA71: 0.004030052679 | BB71: 0 | BC71: 0 | BD71: 0 | BE71: 0.003454330867 | BF71: 0.006908661735 | BG71: 0 | BH71: 0.01842309796 | BI71: 0.05181496301 | BJ71: 0.03742191773 | BK71: 0.003454330867 | BL71: =+BL32/$DS$34*100 -> 0.0103629926 | BM71: 0.03339186505 | BN71: 0.02360459426 | BO71: 0.009787270791 | BP71: 0.00460577449 | BQ71: 0 | BR71: 0.04030052679 | BS71: 0.164656438 | BT71: 0.1255073548 | BU71: =+BU32/$DS$34*100 -> 0.005181496301 | BV71: 0.2711649731 | BW71: 0.3575232448 | BX71: 0.1243559112 | BY71: 0.03972480497 | BZ71: 0.002302887245 | CA71: 0.06966233916 | CB71: 0.082328219 | CC71: 0.05066351939 | CD71: 0.07829816633 | CE71: 0.01324160166 | CF71: 0.2400759953 | CG71: 0.1387489565 | CH71: 0.03799763954 | CI71: 0.002878609056 | CJ71: 0 | CK71: 0 | CL71: 0 | CM71: 0 | CN71: 0.002878609056 | CO71: 0.002878609056 | CP71: 0 | CQ71: 0 | CR71: 0 | CS71: 0 | CT71: 0 | CU71: 0.01209015804 | CV71: 0.01266587985 | CW71: 0.1370217911 | CX71: 0.004030052679 | CY71: 0.02302887245 | CZ71: 0.1013270388 | DA71: =+DA32/$DS$34*100 -> 0.3724920119 | DB71: 0.1301131293 | DC71: 0.5423299462 | DD71: 0.4594260054 | DE71: 0.01209015804 | DF71: 0.1134171968 | DG71: =+DG32/$DS$34*100 -> 0.08520682806 | DH71: 0.3408273122 | DI71: 0.7962232649 | DJ71: 0.2953452892 | DK71: 0.4202769222 | DL71: 0.006332939923 | DM71: 0 | DN71: 1.499179596 | DO71: 1.111718817 | DP71: 0.7110164369 | DQ71: 0.4743947724 | DR71: 0.06793517372 | DS71: 3.864244797
A72: Algarve | B72: 150 | C72: Algarve | D72: =+D33/$DS$34*100 -> 0 | E72: 0 | F72: 0 | G72: 0 | H72: 0 | I72: 0 | J72: 0 | K72: 0 | L72: 0 | M72: 0 | N72: 0.03627047411 | O72: 0.01266587985 | P72: 0.006908661735 | Q72: 0 | R72: 0 | S72: 0 | T72: 0 | U72: 0 | V72: 0 | W72: 0 | X72: 0 | Y72: 0 | Z72: 0 | AA72: 0 | AB72: 0 | AC72: 0.01381732347 | AD72: 0.08923688074 | AE72: 0.02993753418 | AF72: 0.005757218112 | AG72: 0 | AH72: 0 | AI72: 0 | AJ72: =+AJ33/$DS$34*100 -> 0.002878609056 | AK72: 0 | AL72: 0 | AM72: 0.1042056478 | AN72: 0.320101327 | AO72: 0.2233800628 | AP72: 0.1606263853 | AQ72: 0.06448084286 | AR72: 0.00921154898 | AS72: 0 | AT72: 0 | AU72: 0 | AV72: 0 | AW72: 0.4191254786 | AX72: 0.8146463629 | AY72: 0.08520682806 | AZ72: 0.0103629926 | BA72: 0 | BB72: 0 | BC72: 0 | BD72: 0 | BE72: 0 | BF72: 0 | BG72: 0.002878609056 | BH72: 0.0103629926 | BI72: 0.006332939923 | BJ72: 0 | BK72: 0 | BL72: =+BL33/$DS$34*100 -> 0.009787270791 | BM72: 0.01439304528 | BN72: 0.00460577449 | BO72: 0 | BP72: 0 | BQ72: 0.004030052679 | BR72: 0.009787270791 | BS72: 0.00460577449 | BT72: 0 | BU72: =+BU33/$DS$34*100 -> 0 | BV72: 0.05354212844 | BW72: 0.08117677538 | BX72: 0.01209015804 | BY72: 0 | BZ72: 0 | CA72: 0.01957454158 | CB72: 0.05699645931 | CC72: 0.01496876709 | CD72: 0.002878609056 | CE72: 0 | CF72: 0.124931633 | CG72: 0.01381732347 | CH72: 0.00460577449 | CI72: 0 | CJ72: 0 | CK72: 0 | CL72: 0 | CM72: 0 | CN72: 0 | CO72: 0 | CP72: 0 | CQ72: 0 | CR72: 0 | CS72: 0 | CT72: 0 | CU72: 0.005757218112 | CV72: 0.003454330867 | CW72: 0.05872362474 | CX72: 0 | CY72: 0.001727165434 | CZ72: 0.1410518437 | DA72: =+DA33/$DS$34*100 -> 0.005181496301 | DB72: 0.8733699876 | DC72: 0.01093871441 | DD72: 1.330493106 | DE72: 0 | DF72: 0.02015026339 | DG72: =+DG33/$DS$34*100 -> 0.03166469962 | DH72: 0.02130170702 | DI72: 0.1491119491 | DJ72: 0.09672126429 | DK72: 0.1445061746 | DL72: 0 | DM72: 0 | DN72: 0.8031319267 | DO72: 1.435850197 | DP72: 0.4035809897 | DQ72: 0.1865338668 | DR72: 0.0667837301 | DS72: 2.89588071
A73: Continente | D73: =+D34/$DS$34*100 -> 0.03511903048 | E73: 0.05469357207 | F73: 0.04375485765 | G73: 0.03799763954 | H73: 0.03339186505 | I73: 2.605141196 | J73: 0.6073865108 | K73: 0.1698379343 | L73: 0.1427790092 | M73: 0.0207259852 | N73: 2.925242523 | O73: 0.5503900515 | P73: 0.1295374075 | Q73: 0.05296640663 | R73: 0.008635827168 | S73: 0.05469357207 | T73: 0.1266587985 | U73: 0.1065085351 | V73: 0.06505656467 | W73: 0.001151443622 | X73: 0.003454330867 | Y73: 0.02763464694 | Z73: 0.03339186505 | AA73: 0.04317913584 | AB73: 0.006908661735 | AC73: 3.834882985 | AD73: 4.229252425 | AE73: 0.5262097355 | AF73: 0.1778980397 | AG73: 0.03684619592 | AH73: 2.924091079 | AI73: 2.702438182 | AJ73: =+AJ34/$DS$34*100 -> 0.6079622326 | AK73: 0.1185986931 | AL73: 0.006908661735 | AM73: 3.008722185 | AN73: 2.659259046 | AO73: 1.625838395 | AP73: 0.6966233916 | AQ73: 0.1606263853 | AR73: 4.828003109 | AS73: 0.5382998935 | AT73: 0.2544690406 | AU73: 0.1352946256 | AV73: 0.01669593253 | AW73: 21.5889922 | AX73: 8.958231383 | AY73: 0.6689887446 | AZ73: 0.2141685138 | BA73: 0.04030052679 | BB73: 0.03108897781 | BC73: 0.134143182 | BD73: 0.2538933187 | BE73: 0.5630559314 | BF73: 0.08520682806 | BG73: 0.2492875443 | BH73: 0.7035320533 | BI73: 0.3586746884 | BJ73: 0.122053024 | BK73: 0.006908661735 | BL73: =+BL34/$DS$34*100 -> 0.5066351939 | BM73: 1.174472495 | BN73: 0.3563718011 | BO73: 0.07311667003 | BP73: 0.01957454158 | BQ73: 0.4651832235 | BR73: 1.867065834 | BS73: 0.9194277325 | BT73: 0.3914908316 | BU73: =+BU34/$DS$34*100 -> 0.01899881977 | BV73: 3.906272489 | BW73: 4.87290941 | BX73: 1.316675782 | BY73: 0.22568295 | BZ73: 0.005757218112 | CA73: 3.052477043 | CB73: 2.868821785 | CC73: 0.4588502835 | CD73: 0.277497913 | CE73: 0.04490630128 | CF73: 4.197587726 | CG73: 1.517602694 | CH73: 0.2061084084 | CI73: 0.01957454158 | CJ73: 0 | CK73: 0.001151443622 | CL73: 0.002878609056 | CM73: 0.03627047411 | CN73: 0.07138950459 | CO73: 0.04145197041 | CP73: 0.08866115893 | CQ73: 0.02705892513 | CR73: 0.00921154898 | CS73: 0.005181496301 | CT73: 0 | CU73: 0.2049569648 | CV73: 3.545870635 | CW73: 3.666772216 | CX73: 0.3540689139 | CY73: 0.1145686404 | CZ73: 8.805089381 | DA73: =+DA34/$DS$34*100 -> 6.359998849 | DB73: 8.151069403 | DC73: 5.772762601 | DD73: 31.47068137 | DE73: 1.067388238 | DF73: 1.440455972 | DG73: =+DG34/$DS$34*100 -> 2.130170702 | DH73: 3.662166441 | DI73: 10.32787357 | DJ73: 6.702553326 | DK73: 5.94087337 | DL73: 0.1531420018 | DM73: 0.1301131293 | DN73: 54.30668701 | DO73: 33.6227295 | DP73: 8.081982786 | DQ73: 3.433604882 | DR73: 0.554995826 | DS73: =SUM(DS50:DS72) -> 100
B76: Legenda
B77: MP | C77: =+C38 -> < 4 000 € de VPP
B78: P | C78: =+C39 -> >= 4 000 e < 25 000 € de VPP
B79: M | C79: >= 25 000 e < 100 000 € de VPP
B80: G | C80: >= 100 000 e < 500 000 € de VPP
B81: MG | C81: >= 500 000 € de VPP
A82: Fonte: GPP a partir de dados IFAP

Sheet CHART-Geral (hidden)
A1: =+"Valores Globais " & TRIM(INDEX(Sheet6!$D$2:$D$117,Sheet3!$C$1)) -> Valores Globais (1) - Nº de Beneficiários
B3: Tipo de Beneficiário: | C3: =INDEX(Sheet6!$P$1:$P$6,Sheet3!$A$2) -> Todos os Produtores do PU | O3: Valor total: | P3: =+Base!$DS$34 -> 173695 | Q3: =+"(" & (INDEX(Sheet6!$G$2:$G$117,Sheet3!$C$1)) & ")" -> (Nº )
AK4: =+Base!A11 -> Norte | AL4: =+SUM(Base!DS11:DS18) -> 90111
C5: =+"Por " & INDEX(Sheet6!$M$3:$M$6,Sheet3!$B$1) -> Por Classe de DE | M5: Por NUTII | AK5: =+Base!A19 -> Centro | AL5: =+SUM(Base!DS19:DS26) -> 49232
AK6: =+Base!A27 -> AML | AL6: =+SUM(Base!DS27) -> 1636
AK7: =+Base!A28 -> Alentejo | AL7: =+SUM(Base!DS28:DS32) -> 27686
AK8: =+Base!A33 -> Algarve | AL8: =+SUM(Base!DS33) -> 5030
AL9: =SUM(AL4:AL8) -> 173695 | AM9: =+AL9-Base!DS34 -> 0
AK13: Grandes Culturas (Arvenses e Industriais) | AL13: =+SUM(Base!CV34:CY34)+Base!DL34+Base!DM34 -> 13834
AK14: Horticultura Intensiva | AL14: =+Base!CZ34 -> 15294
AK15: Culturas Permanentes | AL15: =+SUM(Base!DA34:DC34) -> 35232
AK16: Leite | AL16: =+Base!DE34 -> 1854
AK17: Outros herbívoros | AL17: =+SUM(Base!DF34:DI34) -> 30502
AK18: Mistas | AL18: =+Base!DD34+Base!DJ34+Base!DK34+Base!CU34 -> 76980
AL19: =SUM(AL13:AL18) -> 173696
A25: Legenda
A26: MP | B26: =+Base!C38 -> < 4 000 € de VPP
A27: P | B27: =+Base!C39 -> >= 4 000 e < 25 000 € de VPP
A28: M | B28: =+Base!C40 -> >= 25 000 e < 100 000 € de VPP
A29: G | B29: =+Base!C41 -> >= 100 000 e < 500 000 € de VPP
A30: MG | B30: =+Base!C42 -> >= 500 000 € de VPP
H31: Por Grande Orientação Produtiva
A59: Fonte: GPP a partir de dados IFAP

Sheet CHART-NUTIII-DE (hidden)
A1: =+INDEX(Sheet6!$D$2:$D$117,Sheet3!$C$1)& " por NUTIII e por " & INDEX(Sheet6!$M$3:$M$6,Sheet3!$B$1) -> (1) - Nº de Beneficiários por NUTIII e por Classe de DE
A3: =+Base!C7 -> Unidade: Nº | D3: Tipo de Beneficiário: | E3: =INDEX(Sheet6!$P$1:$P$6,Sheet3!$A$2) -> Todos os Produtores do PU | P3: Valor total: | Q3: =+Base!$DS$34 -> 173695 | S3: =+"(" & (INDEX(Sheet6!$G$2:$G$117,Sheet3!$C$1)) & ")" -> (Nº )
A40: Legenda
A41: MP | B41: =+Base!C38 -> < 4 000 € de VPP
A42: P | B42: =+Base!C39 -> >= 4 000 e < 25 000 € de VPP
A43: M | B43: =+Base!C40 -> >= 25 000 e < 100 000 € de VPP
A44: G | B44: =+Base!C41 -> >= 100 000 e < 500 000 € de VPP
A45: MG | B45: =+Base!C42 -> >= 500 000 € de VPP
A47: =+"Estrutura: "&INDEX(Sheet6!$D$2:$D$117,Sheet3!$C$1)& ", por NUTIII e por " & INDEX(Sheet6!$M$3:$M$6,Sheet3!$B$1) -> Estrutura: (1) - Nº de Beneficiários, por NUTIII e por Classe de DE
A89: Fonte: GPP a partir de dados IFAP

Sheet CHART-NUTIII-GOP (hidden)
A1: =+INDEX(Sheet6!$D$2:$D$117,Sheet3!$C$1)& " por NUTIII e por Grande Orientação Produtiva" -> (1) - Nº de Beneficiários por NUTIII e por Grande Orientação Produtiva
A3: =+Base!C7 -> Unidade: Nº | D3: Tipo de Beneficiário: | E3: =INDEX(Sheet6!$P$1:$P$6,Sheet3!$A$2) -> Todos os Produtores do PU | P3: Valor total: | Q3: =+Base!$DS$34 -> 173695 | S3: =+"(" & (INDEX(Sheet6!$G$2:$G$117,Sheet3!$C$1)) & ")" -> (Nº )
AK5: Grandes Culturas (Arvenses e Industriais) | AL5: Horticultura Intensiva | AM5: Culturas Permanentes | AN5: Leite | AO5: Outros herbívoros | AP5: Mistas
AJ6: =Base!C11 -> Alto Minho | AK6: =SUM(Base!CV11:CY11)+Base!DL11+Base!DM11 -> 439 | AL6: =Base!CZ11 -> 182 | AM6: =SUM(Base!DA11:DC11) -> 940 | AN6: =Base!DE11 -> 61 | AO6: =SUM(Base!DF11:DI11) -> 2633 | AP6: =Base!DD11+Base!DJ11+Base!DK11+Base!CU11 -> 3694
AJ7: =Base!C12 -> Cávado | AK7: =SUM(Base!CV12:CY12)+Base!DL12+Base!DM12 -> 1327 | AL7: =Base!CZ12 -> 443 | AM7: =SUM(Base!DA12:DC12) -> 371 | AN7: =Base!DE12 -> 401 | AO7: =SUM(Base!DF12:DI12) -> 1240 | AP7: =Base!DD12+Base!DJ12+Base!DK12+Base!CU12 -> 3509
AJ8: =Base!C13 -> Ave | AK8: =SUM(Base!CV13:CY13)+Base!DL13+Base!DM13 -> 622 | AL8: =Base!CZ13 -> 129 | AM8: =SUM(Base!DA13:DC13) -> 480 | AN8: =Base!DE13 -> 133 | AO8: =SUM(Base!DF13:DI13) -> 1753 | AP8: =Base!DD13+Base!DJ13+Base!DK13+Base!CU13 -> 1889
AJ9: =Base!C14 -> Área Metropolitana do Porto | AK9: =SUM(Base!CV14:CY14)+Base!DL14+Base!DM14 -> 971 | AL9: =Base!CZ14 -> 235 | AM9: =SUM(Base!DA14:DC14) -> 330 | AN9: =Base!DE14 -> 575 | AO9: =SUM(Base!DF14:DI14) -> 749 | AP9: =Base!DD14+Base!DJ14+Base!DK14+Base!CU14 -> 2066
AJ10: =Base!C15 -> Alto Tâmega | AK10: =SUM(Base!CV15:CY15)+Base!DL15+Base!DM15 -> 805 | AL10: =Base!CZ15 -> 1276 | AM10: =SUM(Base!DA15:DC15) -> 1923 | AN10: =Base!DE15 -> 54 | AO10: =SUM(Base!DF15:DI15) -> 3557 | AP10: =Base!DD15+Base!DJ15+Base!DK15+Base!CU15 -> 5476
AJ11: =Base!C16 -> Tâmega e Sousa | AK11: =SUM(Base!CV16:CY16)+Base!DL16+Base!DM16 -> 549 | AL11: =Base!CZ16 -> 466 | AM11: =SUM(Base!DA16:DC16) -> 1561 | AN11: =Base!DE16 -> 30 | AO11: =SUM(Base!DF16:DI16) -> 832 | AP11: =Base!DD16+Base!DJ16+Base!DK16+Base!CU16 -> 3806
AJ12: =Base!C17 -> Douro | AK12: =SUM(Base!CV17:CY17)+Base!DL17+Base!DM17 -> 216 | AL12: =Base!CZ17 -> 1803 | AM12: =SUM(Base!DA17:DC17) -> 8022 | AN12: =Base!DE17 -> 71 | AO12: =SUM(Base!DF17:DI17) -> 1215 | AP12: =Base!DD17+Base!DJ17+Base!DK17+Base!CU17 -> 9128
AJ13: =Base!C18 -> Terras de Trás-os-Montes | AK13: =SUM(Base!CV18:CY18)+Base!DL18+Base!DM18 -> 750 | AL13: =Base!CZ18 -> 4936 | AM13: =SUM(Base!DA18:DC18) -> 4852 | AN13: =Base!DE18 -> 22 | AO13: =SUM(Base!DF18:DI18) -> 1073 | AP13: =Base!DD18+Base!DJ18+Base!DK18+Base!CU18 -> 12496
AJ14: =Base!C19 -> Oeste | AK14: =SUM(Base!CV19:CY19)+Base!DL19+Base!DM19 -> 100 | AL14: =Base!CZ19 -> 204 | AM14: =SUM(Base!DA19:DC19) -> 918 | AN14: =Base!DE19 -> 9 | AO14: =SUM(Base!DF19:DI19) -> 597 | AP14: =Base!DD19+Base!DJ19+Base!DK19+Base!CU19 -> 617
AJ15: =Base!C20 -> Região de Aveiro | AK15: =SUM(Base!CV20:CY20)+Base!DL20+Base!DM20 -> 1502 | AL15: =Base!CZ20 -> 291 | AM15: =SUM(Base!DA20:DC20) -> 302 | AN15: =Base!DE20 -> 189 | AO15: =SUM(Base!DF20:DI20) -> 362 | AP15: =Base!DD20+Base!DJ20+Base!DK20+Base!CU20 -> 1663
AJ16: =Base!C21 -> Região de Coimbra | AK16: =SUM(Base!CV21:CY21)+Base!DL21+Base!DM21 -> 1742 | AL16: =Base!CZ21 -> 657 | AM16: =SUM(Base!DA21:DC21) -> 547 | AN16: =Base!DE21 -> 100 | AO16: =SUM(Base!DF21:DI21) -> 756 | AP16: =Base!DD21+Base!DJ21+Base!DK21+Base!CU21 -> 2949
AJ17: =Base!C22 -> Região de Leiria | AK17: =SUM(Base!CV22:CY22)+Base!DL22+Base!DM22 -> 343 | AL17: =Base!CZ22 -> 368 | AM17: =SUM(Base!DA22:DC22) -> 405 | AN17: =Base!DE22 -> 16 | AO17: =SUM(Base!DF22:DI22) -> 590 | AP17: =Base!DD22+Base!DJ22+Base!DK22+Base!CU22 -> 1462
AJ18: =Base!C23 -> Viseu Dão Lafões | AK18: =SUM(Base!CV23:CY23)+Base!DL23+Base!DM23 -> 508 | AL18: =Base!CZ23 -> 1011 | AM18: =SUM(Base!DA23:DC23) -> 1027 | AN18: =Base!DE23 -> 45 | AO18: =SUM(Base!DF23:DI23) -> 1268 | AP18: =Base!DD23+Base!DJ23+Base!DK23+Base!CU23 -> 4248
AJ19: =Base!C24 -> Beira Baixa | AK19: =SUM(Base!CV24:CY24)+Base!DL24+Base!DM24 -> 160 | AL19: =Base!CZ24 -> 319 | AM19: =SUM(Base!DA24:DC24) -> 1053 | AN19: =Base!DE24 -> 5 | AO19: =SUM(Base!DF24:DI24) -> 1121 | AP19: =Base!DD24+Base!DJ24+Base!DK24+Base!CU24 -> 2002
AJ20: =Base!C25 -> Médio Tejo | AK20: =SUM(Base!CV25:CY25)+Base!DL25+Base!DM25 -> 160 | AL20: =Base!CZ25 -> 235 | AM20: =SUM(Base!DA25:DC25) -> 1087 | AN20: =Base!DE25 -> 8 | AO20: =SUM(Base!DF25:DI25) -> 499 | AP20: =Base!DD25+Base!DJ25+Base!DK25+Base!CU25 -> 2188
AJ21: =Base!C26 -> Beiras e Serra da Estrela | AK21: =SUM(Base!CV26:CY26)+Base!DL26+Base!DM26 -> 1044 | AL21: =Base!CZ26 -> 1735 | AM21: =SUM(Base!DA26:DC26) -> 2562 | AN21: =Base!DE26 -> 41 | AO21: =SUM(Base!DF26:DI26) -> 3008 | AP21: =Base!DD26+Base!DJ26+Base!DK26+Base!CU26 -> 7193
AJ22: =Base!C27 -> Área Metropolitana de Lisboa | AK22: =SUM(Base!CV27:CY27)+Base!DL27+Base!DM27 -> 215 | AL22: =Base!CZ27 -> 94 | AM22: =SUM(Base!DA27:DC27) -> 271 | AN22: =Base!DE27 -> 24 | AO22: =SUM(Base!DF27:DI27) -> 571 | AP22: =Base!DD27+Base!DJ27+Base!DK27+Base!CU27 -> 457
AJ23: =Base!C28 -> Alentejo Litoral | AK23: =SUM(Base!CV28:CY28)+Base!DL28+Base!DM28 -> 224 | AL23: =Base!CZ28 -> 111 | AM23: =SUM(Base!DA28:DC28) -> 382 | AN23: =Base!DE28 -> 13 | AO23: =SUM(Base!DF28:DI28) -> 1149 | AP23: =Base!DD28+Base!DJ28+Base!DK28+Base!CU28 -> 1479
AJ24: =Base!C29 -> Baixo Alentejo | AK24: =SUM(Base!CV29:CY29)+Base!DL29+Base!DM29 -> 762 | AL24: =Base!CZ29 -> 129 | AM24: =SUM(Base!DA29:DC29) -> 2712 | AN24: =Base!DE29 -> 5 | AO24: =SUM(Base!DF29:DI29) -> 2209 | AP24: =Base!DD29+Base!DJ29+Base!DK29+Base!CU29 -> 2713
AJ25: =Base!C30 -> Lezíria do Tejo | AK25: =SUM(Base!CV30:CY30)+Base!DL30+Base!DM30 -> 788 | AL25: =Base!CZ30 -> 87 | AM25: =SUM(Base!DA30:DC30) -> 598 | AN25: =Base!DE30 -> 20 | AO25: =SUM(Base!DF30:DI30) -> 472 | AP25: =Base!DD30+Base!DJ30+Base!DK30+Base!CU30 -> 1263
AJ26: =Base!C31 -> Alto Alentejo | AK26: =SUM(Base!CV31:CY31)+Base!DL31+Base!DM31 -> 149 | AL26: =Base!CZ31 -> 162 | AM26: =SUM(Base!DA31:DC31) -> 1518 | AN26: =Base!DE31 -> 11 | AO26: =SUM(Base!DF31:DI31) -> 2142 | AP26: =Base!DD31+Base!DJ31+Base!DK31+Base!CU31 -> 1874
AJ27: =Base!C32 -> Alentejo Central | AK27: =SUM(Base!CV32:CY32)+Base!DL32+Base!DM32 -> 318 | AL27: =Base!CZ32 -> 176 | AM27: =SUM(Base!DA32:DC32) -> 1815 | AN27: =Base!DE32 -> 21 | AO27: =SUM(Base!DF32:DI32) -> 2320 | AP27: =Base!DD32+Base!DJ32+Base!DK32+Base!CU32 -> 2062
AJ28: =Base!C33 -> Algarve | AK28: =SUM(Base!CV33:CY33)+Base!DL33+Base!DM33 -> 111 | AL28: =Base!CZ33 -> 245 | AM28: =SUM(Base!DA33:DC33) -> 1545 | AN28: =Base!DE33 -> 0 | AO28: =SUM(Base!DF33:DI33) -> 386 | AP28: =Base!DD33+Base!DJ33+Base!DK33+Base!CU33 -> 2740
AJ29: Continente | AK29: =SUM(AK6:AK28) -> 13805 | AL29: =SUM(AL6:AL28) -> 15294 | AM29: 35221 | AN29: 1854 | AO29: 30502 | AP29: 76974
A47: =+"Estrutura: "&INDEX(Sheet6!$D$2:$D$117,Sheet3!$C$1)& ", por NUTIII e por Grande Orientação Produtiva" -> Estrutura: (1) - Nº de Beneficiários, por NUTIII e por Grande Orientação Produtiva
A89: Fonte: GPP a partir de dados IFAP

Sheet CHART-OTE-DE (hidden)
A1: =+INDEX(Sheet6!$D$2:$D$117,Sheet3!$C$1)& " por OTE e por " & INDEX(Sheet6!$M$3:$M$6,Sheet3!$B$1) -> (1) - Nº de Beneficiários por OTE e por Classe de DE
A3: =+Base!C7 -> Unidade: Nº | D3: Tipo de Beneficiário: | E3: =INDEX(Sheet6!$P$1:$P$6,Sheet3!$A$2) -> Todos os Produtores do PU | P3: Valor total: | Q3: =+Base!$DS$34 -> 173695 | S3: =+"(" & (INDEX(Sheet6!$G$2:$G$117,Sheet3!$C$1)) & ")" -> (Nº )
A43: Legenda
A44: MP | B44: =+Base!C38 -> < 4 000 € de VPP
A45: P | B45: =+Base!C39 -> >= 4 000 e < 25 000 € de VPP
A46: M | B46: =+Base!C40 -> >= 25 000 e < 100 000 € de VPP
A47: G | B47: =+Base!C41 -> >= 100 000 e < 500 000 € de VPP
A48: MG | B48: =+Base!C42 -> >= 500 000 € de VPP
A50: Fonte: GPP a partir de dados IFAP
A52: =+INDEX(Sheet6!$D$2:$D$117,Sheet3!$C$1)& " por " & INDEX(Sheet6!$M$3:$M$6,Sheet3!$B$1) -> (1) - Nº de Beneficiários por Classe de DE | H52: =+INDEX(Sheet6!$D$2:$D$117,Sheet3!$C$1)& " por OTE" -> (1) - Nº de Beneficiários por OTE

Sheet Sheet6 (hidden)
A1: Ano | B1: 2021 | F1: desmultiplicador | G1: Unidade | K1: =+INDEX(K2:K105,Sheet3!C1) -> Beneficiarios_PU_2019.pdf | P1: Todos os Produtores do PU | Q1: <5
B2: 1 | C2: ContarDeGPP_ID | D2: (1) - Nº de Beneficiários | E2: 1 | F2: 1 | G2: Nº | H2: Nº de Beneficiários | I2: 1 | K2: Beneficiarios_PU_2019.pdf | P2: Beneficiários do RPA | Q2: 1 | U2: ContarDeGPP_ID
B3: 2 | C3: SomaDeVpp | D3: (2) - Valor de Produção Padrão | E3: 2 | F3: 1000 | G3: 1000 € | H3: Valor de Produção Padrão | I3: =+I2+1 -> 2 | M3: Classe de DE | N3: 1 | P3: Beneficiários do RPB | Q3: 2 | U3: SomaDeVpp
B4: 3 | C4: SomaDeSAU | D4: (3) - Superfície Elegível (inclui Superfície Agrícola e Agro-Florestal Elegível) | E4: 3 | F4: 1 | G4: ha | H4: Superfície Elegível (inclui Superfície Agrícola e Agro-Florestal Elegível) | I4: =+I3+1 -> 3 | K4: SPE_PU_2019.pdf | M4: Classes de Superfície Agrícola | N4: 2 | P4: Apenas Pagamentos ligados e 2º Pilar | Q4: 3 | U4: SomaDeSAU
B5: 4 | C5: SumD_RPB | D5: (3a) - Nº de Direitos de RPB | E5: 3a | F5: 1 | G5: Nº | H5: Nº de Direitos de RPB | I5: =+E5 -> 3a | M5: Classe de AD | N5: 3 | P5: Apenas outras ajudas 2º Pilar | Q5: 4
B6: 5 | C6: SumMG_Direitos | D6: (3b) - Montante Global dos Direitos de RPB | E6: 3b | F6: 1000 | G6: 1000 € | H6: Montante Global dos Direitos de RPB | I6: =+E6 -> 3b | U6: SomaDeSAU_IRRIG
B7: 6 | C7: SUmofSAU_est | D7: (3c) - Superfície Agrícola (inc. Pastagens arbustivas) | E7: 3c | F7: 1 | G7: ha | H7: Superfície Agrícola (inc. Pastagens arbustivas) | I7: =+E7 -> 3c | U7: SomaDeCult_Temp
B8: 7 | C8: SomaDeSAU_IRRIG | D8: (4) - Superfície Agrícola de Regadio | E8: 4 | F8: 1 | G8: ha | H8: Superfície Agrícola de Regadio | I8: =+E8 -> 4 | M8: MP | N8: Muito Pequenas | O8: < 4 000 € de VPP | P8: < 5 ha | Q8: < 1250 € | U8: SomaDeSF
B9: 8 | C9: SomaDeCult_Temp | D9: (5) - Culturas Temporárias | E9: 5 | F9: 1 | G9: ha | H9: Culturas Temporárias | I9: 5 | M9: P | N9: Pequenas | O9: >= 4 000 e < 25 000 € de VPP | P9: >= 5 e < 25 ha | Q9: >= 1 250 e < 5 000 € | U9: SomaDePousio
B10: 9 | C10: SumOf_ARV_Ind_SEQ | D10: (5a) - Culturas Arvenses e Indústriais de sequeiro | E10: 5a | F10: 1 | G10: ha | H10: Culturas Arvenses e Indústriais de sequeiro | I10: =+E10 -> 5a | M10: MP | N10: Médias | O10: >= 25 000 e < 100 000 € de VPP | P10: >= 25 e < 200 ha | Q10: >= 5 000 e < 50 000 € | U10: SomaDeCP
B11: 10 | C11: SumOf_ARV_Ind_Reg | D11: (5b) - Culturas Arvenses e Indústriais de regadio | E11: 5b | F11: 1 | G11: ha | H11: Culturas Arvenses e Indústriais de regadio | I11: =+E11 -> 5b | M11: G | N11: Grandes | O11: >= 100 000 e < 500 000 € de VPP | P11: >= 200 e < 1 000 ha | Q11: >= 50 000 e < 300 000 € | U11: SomaDePP
B12: 11 | C12: SomaDeSF | D12: (6) - Superfície Forrageira Temporária | E12: 6 | F12: 1 | G12: ha | H12: Superfície Forrageira Temporária | I12: 6 | M12: MG | N12: Muito Grandes | O12: >= 500 000 € de VPP | P12: >= 1 000 ha | Q12: >= 300 000 € | U12: SomaDeCNH
B13: 12 | C13: SomaDePousio | D13: (7) - Superfície de Pousio | E13: 7 | F13: 1 | G13: ha | H13: Superfície de Pousio | I13: 7 | U13: SomaDeCNT
B14: 13 | C14: SomaDeCP | D14: (8) - Culturas Permanentes | E14: 8 | F14: 1 | G14: ha | H14: Culturas Permanentes | I14: 8 | U14: SomaDeS_RPB
B15: 14 | C15: SomaDePP | D15: (9) - Superfície de Pastagens Permanentes | E15: 9 | F15: 1 | G15: ha | H15: Superfície de Pastagens Permanentes | I15: 9 | M15: MP | N15: P | O15: MP | P15: G | Q15: MG | U15: SomaDeS_MAA
B16: 15 | C16: Sumpp_02cn | D16: (9a) - Superfície de Pastagens com encabeçamento inferior a 0,2CN/ha de PP | E16: 9a | F16: 1 | G16: ha | H16: Superfície de Pastagens com encabeçamento inferior a 0,2CN/ha de PP | I16: 9a | M16: MP | N16: P | O16: MP | P16: G | Q16: MG | U16: SomaDeS_MZD
B17: 16 | C17: SomaDeCNH | D17: (10) - Nº de Cabeças Normais (Cn) de Herbívoros | E17: 10 | F17: 1 | G17: CN | H17: Nº de Cabeças Normais (Cn) de Herbívoros | I17: 10 | M17: Muito Pequenas | N17: Pequenas | O17: Médias | P17: Grandes | Q17: Muito Grandes | U17: SomaDeAD_Totais2015
B18: 17 | C18: SomaDeCNT | D18: (11) - Nº de Cabeças Normais (Cn) Totais | E18: 11 | F18: 1 | G18: CN | H18: Nº de Cabeças Normais (Cn) Totais | I18: 11 | M18: < 4000€ de VPP | N18: >= 4000 e <25 000€ de VPP | O18: >=25000 e <100 000€ de VPP | P18: >= 100 000 e < 500 000 € de VPP | Q18: >= 500 000 € de VPP | U18: Ajudas_desligadas
B19: 18 | C19: SomaDeS_RPB | D19: (12) - Superfície Agrícola Declarada para Activar Direitos de RPB | E19: 12 | F19: 1 | G19: ha | H19: Superfície Agrícola Declarada para Activar Direitos de RPB | I19: 12 | M19: < 5 ha | N19: >= 5 e < 25 ha | O19: >= 25 e < 200 ha | P19: = 200 e < 1 000 ha | Q19: >= 1 000 ha | U19: SomaDeRPA
B20: 19 | C20: SomaDeS_MAA | D20: (13) - Superfície Agrícola Declarada para Medidas Agroambientais | E20: 13 | F20: 1 | G20: ha | H20: Superfície Agrícola Declarada para Medidas Agroambientais | I20: 13 | M20: =+M$16& CHAR(10) & M18 -> MP < 4000€ de VPP | N20: P >= 4000 e <25 000€ de VPP | O20: MP >=25000 e <100 000€ de VPP | P20: G >= 100 000 e < 500 000 € de VPP | Q20: MG >= 500 000 € de VPP | U20: RPB_Total
B21: 20 | C21: SomaDeS_MZD | D21: (14) - Superfície Agrícola Declarada para MZDs | E21: 14 | F21: 1 | G21: ha | H21: Superfície Agrícola Declarada para MZDs | I21: 14 | M21: MP < 5 ha | N21: P >= 5 e < 25 ha | O21: MP >= 25 e < 200 ha | P21: G = 200 e < 1 000 ha | Q21: MG >= 1 000 ha | U21: SomaDeRPBAJU
B22: 21 | C22: SomaDeAD_Totais2015 | D22: (15) - Montante Total das AD 1º Pilar (16+22) | E22: 15 | F22: 1000 | G22: 1000 € | H22: Montante Total das AD 1º Pilar (16+22) | I22: 15 | K22: AD_PU_2019.pdf | U22: SomaDeRPBJOV
B23: 22 | C23: Ajudas_desligadas | D23: (16) - Total de pagamentos desligados (17+18+21+21a) | E23: 16 | F23: 1000 | G23: 1000 € | H23: Total de pagamentos desligados (17+18+21+21a) | I23: 16 | U23: SomaDeGREEN
B24: 23 | C24: SomaDeRPA | D24: (17) - Montante Regime Pequena Agricultura | E24: 17 | F24: 1000 | G24: 1000 € | H24: Montante Regime Pequena Agricultura | I24: 17
B25: 24 | C25: RPB_Total | D25: (18) - Regime Pagamento Base (RPB) [(19)+(20)] | E25: 18 | F25: 1000 | G25: 1000 € | H25: Regime Pagamento Base (RPB) [(19)+(20)] | I25: 18 | U25: Pag_ligados
B26: 25 | C26: SomaDeRPBAJU | D26: (19) - RPB normal | E26: 19 | F26: 1000 | G26: 1000 € | H26: RPB normal | I26: 19 | M26: MP | N26: Muito Pequenas | O26: < 4 000 € de VPP | P26: < 4 ha | Q26: < 1250 € | U26: SomaDeVACAS_ALEIT
B27: 26 | C27: SomaDeRPBJOV | D27: (20) - RPB Jovens agricultores | E27: 20 | F27: 1000 | G27: 1000 € | H27: RPB Jovens agricultores | I27: 20 | M27: P | N27: Pequenas | O27: >= 4 000 e < 25 000 € de VPP | P27: >= 4 e < 25 ha | Q27: >= 1 250 e < 5 000 € | U27: SomaDePAG_OV_CAP
B28: 27 | C28: SomaDeGREEN | D28: (21) - Pagamento por Práticas Agrícolas Benéficas para o Ambiente (Greening) | E28: 21 | F28: 1000 | G28: 1000 € | H28: Pagamento por Práticas Agrícolas Benéficas para o Ambiente (Greening) | I28: 21 | M28: MP | N28: Médias | O28: >= 25 000 e < 100 000 € de VPP | P28: >= 25 e < 200 ha | Q28: >= 5 000 e < 50 000 € | U28: SomaDeVACAS_leite
B29: 28 | D29: (21a) - Pagamento Redistributivo | E29: 21a | F29: 1000 | G29: 1000 € | H29: Pagamento Redistributivo | I29: 21a | M29: G | N29: Grandes | O29: >= 100 000 e < 500 000 € de VPP | P29: = 200 e < 1 000 ha | Q29: >= 50 000 e < 300 000 € | U29: SomaDePAG_COMPL_Leite
B30: 29 | C30: Pag_ligados | D30: (22) - Total de pagamentos ligados (23+…..+27) | E30: 22 | F30: 1000 | G30: 1000 € | H30: Total de pagamentos ligados (23+…..+28) | I30: 22 | M30: MG | N30: Muito Grandes | O30: >= 500 000 € de VPP | P30: >= 1 000 ha | Q30: >= 300 000 € | U30: SomaDePAG_TOMATE
B31: 30 | C31: SomaDeVACAS_ALEIT | D31: (23) - Prémio às vacas em aleitamento | E31: 23 | F31: 1000 | G31: 1000 € | H31: Prémio às vacas em aleitamento | I31: 23 | U31: SomaDePAG_ARROZ
B32: 31 | C32: SomaDePAG_OV_CAP | D32: (24) - Prémio aos ovinos e caprinos | E32: 24 | F32: 1000 | G32: 1000 € | H32: Prémio aos ovinos e caprinos | I32: 24
B33: 32 | C33: SomaDeVACAS_leite | D33: (25) - Prémio à vaca leiteira | E33: 25 | F33: 1000 | G33: 1000 € | H33: Prémio à vaca leiteira | I33: 25
B34: 34 | C34: SomaDePAG_TOMATE | D34: (26) - Pagamento Específico por superfície ao tomate | E34: 26 | F34: 1000 | G34: 1000 € | H34: Pagamento Específico por superfície ao tomate | I34: 26
B35: 35 | C35: SomaDePAG_ARROZ | D35: (27) - Pagamento Específico por superfície ao arroz | E35: 27 | F35: 1000 | G35: 1000 € | H35: Pagamento Específico por superfície ao arroz | I35: 27
B36: 33 | C36: SomaDePAG_COMPL_Leite | D36: (28) - Medida Extraordinária Pacto | E36: 28 | F36: 1000 | G36: 1000 € | H36: Medida Extraordinária | I36: =+E36 -> 28
B37: 36 | C37: 2_pilar | D37: (29) - Total de Pagamentos Superfície Desenvolvimento Rural ((30)+(34)) | E37: 29 | F37: 1000 | G37: 1000 € | H37: Total de Pagamentos Superfície Desenvolvimento Rural ((30)+(34)) | I37: 29 | K37: MAA_MZD_PU_2019.pdf
B38: 37 | C38: MZD | D38: (30) - Medida Zonas Desfavorecidas (MZD) | E38: 30 | F38: 1000 | G38: 1000 € | H38: Medida Zonas Desfavorecidas (MZD) | I38: 30 | K38: MZD_Medida Zonas desfavorecidas.pdf | P38: Não classificadas | Q38: Arvenses e Outras Cult pred. Regadio | R38: Arvenses e Outras Cult pred. Sequeiro | S38: Arroz | T38: Horticultura e Industriais | U38: Horticultura e Floricultura | V38: Vinhos | W38: Fruticultura | X38: Olival | Y38: Policultura | Z38: Bovinos Leite | AA38: Bov. Carne semi-int. (>1 < 3CN por ha SF) | AB38: Bov. Carne Int (>= 3CN por ha SF) | AC38: Bov. Carne Extensivos (<1 CN por ha SF) | AD38: Outros Ruminantes | AE38: Mistas | AF38: Pousio e Pastagem | AG38: Tomate Indústria | AH38: Plantas tuberosas
B39: 38 | C39: AZDZCE | D39: (31) - Zona Condicionantes Específicas | E39: 31 | F39: 1000 | G39: 1000 € | H39: Zona Condicionantes Específicas | I39: 31 | K39: MZD_ZCE Zona Condicionantes Específicas.pdf
B40: 39 | C40: AZDZCN | D40: (32) - Zona Outras Condicionantes Naturais | E40: 32 | F40: 1000 | G40: 1000 € | H40: Zona Outras Condicionantes Naturais | I40: 32 | K40: MZD_ZCN Zona Outras Condicionantes Naturais.pdf
B41: 40 | C41: AZDZMT | D41: (33) - Zona De Montanha | E41: 33 | F41: 1000 | G41: 1000 € | H41: Zona De Montanha (mapa) | I41: 33 | K41: MZD_ZM Zona de Montanha.pdf
B42: 41 | C42: MAA | D42: (34) - Medidas Agroambientais | E42: 34 | F42: 1000 | G42: 1000 € | H42: Medidas Agroambientais | I42: 34 | K42: MAA_Medidas Agroambientais.pdf
B43: 42 | C43: MAAABC | D43: (35) - Maa-Agric.Biológica - Conv | E43: 35 | F43: 1000 | G43: 1000 € | H43: Maa-Agric.Biológica - Conv | I43: 35 | K43: MAAABC_Agricultura Biológica - Transitada da Produção Integrada.pdf
B44: 43 | C44: MAAABM | D44: (36) - Maa-Agric.Biológica - Manut | E44: 36 | F44: 1000 | G44: 1000 € | H44: Maa-Agric.Biológica - Manut | I44: 36 | K44: MAAABM_Agricultura Biológica – Manutenção.pdf
B45: 44 | C45: MAAAPI | D45: (37) - Apoio Agroambiental À Apicultura | E45: 37 | F45: 1000 | G45: 1000 € | H45: Apoio Agroambiental À Apicultura | I45: 37 | K45: MAAPI_apoio à Apicultura.pdf
B46: 45 | C46: MAACPD | D46: (38) - Maa - Douro Vinhateiro | E46: 38 | F46: 1000 | G46: 1000 € | H46: Maa - Douro Vinhateiro | I46: 38 | K46: MAACPD_apoio Douro Vinhateiro.pdf
B47: 46 | C47: MAACPT | D47: (39) - Culturas Permanentes Tradicionais | E47: 39 | F47: 1000 | G47: 1000 € | H47: Culturas Permanentes Tradicionais | I47: 39 | K47: MAACPT_ Culturas Permanentes Tradicionais.pdf
B48: 47 | C48: MAACSE | D48: (40) - Maa-Conservação Solo-Enr.Entr | E48: 40 | F48: 1000 | G48: 1000 € | H48: Maa-Conservação Solo-Enr.Entr | I48: 40 | K48: MAACSE_Conservação do Solo - Enrelvamento da Entrelinha de Culturas Permanentes.pdf
B49: 48 | C49: MAACSS | D49: (41) - Maa-Conservação Solo-Sem Dir | E49: 41 | F49: 1000 | G49: 1000 € | H49: Maa-Conservação Solo-Sem Dir | I49: 41 | K49: MAACSS_Conservação do Solo - Sementeira Direta ou Mobilização na Linha.pdf
B50: 49 | C50: MAAMAF | D50: (42) - Mosaico Agroflorestal | E50: 42 | F50: 1000 | G50: 1000 € | H50: Mosaico Agroflorestal | I50: 42 | K50: MAAMAF_ Mosaico AgroFlorestal.pdf
B51: 50 | C51: MAAMNS | D51: (43) - Maa - Soutos Notáveis | E51: 43 | F51: 1000 | G51: 1000 € | H51: Maa - Soutos Notáveis | I51: 43 | K51: MAAMNS_Conservação dos Soutos Notáveis da Terra Fria.pdf
B52: 51 | C52: MAAPDI | D52: (44) - Maa - Produçao Integrada | E52: 44 | F52: 1000 | G52: 1000 € | H52: Maa - Produçao Integrada | I52: 44 | K52: MAAPDI_Produção Integrada.pdf
B53: 52 | C53: MAAPGP | D53: (45) - Maa - Az Peneda/Gerês | E53: 45 | F53: 1000 | G53: 1000 € | H53: Maa - Az Peneda/Gerês | I53: 45 | K53: MAAPGP_Gestão de Pastoreio em áreas de Baldio -Peneda_Gerês.pdf
B54: 53 | C54: MAAPGS | D54: (46) - Maa - Manut. Socalcos | E54: 46 | F54: 1000 | G54: 1000 € | H54: Maa - Manut. Socalcos | I54: 46 | K54: MAAPGS_Manutenção de Socalcos - Peneda_Gerês.pdf
B55: 54 | C55: MAAPLR | D55: (47) - Maa - Lameiros De Regadio | E55: 47 | F55: 1000 | G55: 1000 € | H55: Maa - Lameiros De Regadio | I55: 47 | K55: MAAPLR_Pastoreio Extensivo - Apoio à Manutenção de Lameiros de Alto Valor Natural - Regadio.pdf
B56: 55 | C56: MAAPLS | D56: (48) - Maa - Lameiros De Sequeiro | E56: 48 | F56: 1000 | G56: 1000 € | H56: Maa - Lameiros De Sequeiro | I56: 48 | K56: MAAPLS_Pastoreio Extensivo - Apoio à Manutenção de Lameiros de Alto Valor Natural – Sequeiro.pdf
B57: 56 | C57: MAAPMT | D57: (49) - Maa - Pastoreio Extensivo Ii | E57: 49 | F57: 1000 | G57: 1000 € | H57: Maa - Pastoreio Extensivo Ii | I57: 49 | K57: MAAPMT_Pastoreio Extensivo -Apoio à Manutenção de Sistemas Agro-silvo-pastoris sob Montado.pdf
B58: 57 | C58: MAAPPL | D58: (50) - Maa - Pastoreio Extensivo Iii | E58: 50 | F58: 1000 | G58: 1000 € | H58: Maa - Pastoreio Extensivo Iii | I58: 50 | K58: MAAPPL_Pastoreio Extensivo - Apoio à Proteção do Lobo Ibérico.pdf
B59: 58 | C59: MAARAE | D59: (51) - Maa - Rot. De Seq Iii | E59: 51 | F59: 1000 | G59: 1000 € | H59: Maa - Rot. De Seq Iii | I59: 51 | K59: MAARAE_Manutenção de Rotação de Sequeiro Cereal-Pousio - Outras Áreas Estepárias.pdf
B60: 59 | C60: MAARCV | D60: (52) - Maa - Rot. De Seq Ii | E60: 52 | F60: 1000 | G60: 1000 € | H60: Maa - Rot. De Seq Ii | I60: 52 | K60: MAARCV_Manutenção de Rotação de Sequeiro Cereal-Pousio AZ Castro Verde.pdf
B61: 60 | C61: MAARGN | D61: (53) - Raças | E61: 53 | F61: 1000 | G61: 1000 € | H61: Raças | I61: 53 | K61: MAARGN_ Recursos Genéticos – Manutenção de Raças Autóctones em risco.pdf
B62: 61 | C62: MAAROA | D62: (54) - Maa - Rot. De Seq I | E62: 54 | F62: 1000 | G62: 1000 € | H62: Maa - Rot. De Seq I | I62: 54 | K62: MAAROA_Manutenção de Rotação de Sequeiro Cereal-Pousio - AZ Montesinho_Nogueira e Douro Internacional, Sabor, Maçãs e Vale do Côa.pdf
B63: 62 | C63: MAAUEA | D63: (55) - Uso Eficiente Da Água Na Agricultura | E63: 55 | F63: 1000 | G63: 1000 € | H63: Uso Eficiente Da Água Na Agricultura | I63: 55 | K63: MAAUEA_Uso Eficiente da Água na Agricultura.pdf
B64: 63 | C64: PAg_Natura | D64: (56) - Pagamentos Natura | E64: 56 | F64: 1000 | G64: 1000 € | H64: Pagamentos Natura | I64: 56 | K64: PAgamentos_natura2018.pdf
B65: 64 | D65: (57) - Total de Pagamentos aos Produtores (15+29) | E65: 57 | F65: 1000 | G65: 1000 € | H65: Total de Pagamentos aos Produtores (15+29) | I65: 57
B66: 65 | C66: Cereais_seq | D66: (58) - Superfície de Cereais De Outono-Inverno | E66: 58 | F66: 1 | G66: ha | H66: Superfície de Cereais De Outono-Inverno | I66: 58
B67: 66 | C67: Milho_grao | D67: (59) - Superfície de Milho Grão; | E67: 59 | F67: 1 | G67: ha | H67: Superfície de Milho Grão; | I67: 59
B68: 67 | C68: Arroz | D68: (60) - Superfície de Arroz; | E68: 60 | F68: 1 | G68: ha | H68: Superfície de Arroz; | I68: 60
B69: 68 | C69: Oleag_proteag | D69: (61) - Superfície de Oleaginosas E Proteaginosas; | E69: 61 | F69: 1 | G69: ha | H69: Superfície de Oleaginosas E Proteaginosas; | I69: 61
B70: 69 | C70: Horticolas | D70: (62) - Superfície de Hortícolas, Batata, Plantas E Flores; | E70: 62 | F70: 1 | G70: ha | H70: Superfície de Hortícolas, Batata, Plantas E Flores; | I70: 62
B71: 70 | C71: Forrag_prados_temp | D71: (63) - Superfície de Forragens E Prados Temporários; | E71: 63 | F71: 1 | G71: ha | H71: Superfície de Forragens E Prados Temporários; | I71: 63
B72: 71 | C72: Pousios | D72: (64) - Superfície de Pousios; | E72: 64 | F72: 1 | G72: ha | H72: Superfície de Pousios; | I72: 64
B73: 72 | C73: Pomares | D73: (65) - Superfície de Pomares; | E73: 65 | F73: 1 | G73: ha | H73: Superfície de Pomares; | I73: 65
B74: 73 | C74: Vinha | D74: (66) - Superfície de Vinha; | E74: 66 | F74: 1 | G74: ha | H74: Superfície de Vinha; | I74: 66
B75: 74 | C75: Olival | D75: (67) - Superfície de Olival; | E75: 67 | F75: 1 | G75: ha | H75: Superfície de Olival; | I75: =+E75 -> 67
B76: 75 | C76: Past_prados_perm | D76: (68) - Superfície de Prados E Pastagens Permanentes; | E76: 68 | F76: 1 | G76: ha | H76: Superfície de Prados E Pastagens Permanentes; | I76: 68
B77: 76 | C77: Vacas_leite1 | D77: (69) - Cabeças de Vacas Leiteiras | E77: 69 | F77: 1 | G77: Cab. | H77: Cabeças de Vacas Leiteiras | I77: 69
B78: 77 | C78: Vacas_aleit1 | D78: (70) - Cabeças de Vacas Aleitantes | E78: 70 | F78: 1 | G78: Cab. | H78: Cabeças de Vacas Aleitantes | I78: 70
B79: 78 | C79: Outros_bov | D79: (71) - Cabeças de Outros Bovinos | E79: 71 | F79: 1 | G79: Cab. | H79: Cabeças de Outros Bovinos | I79: 71
B80: 79 | C80: Ovelhas | D80: (72) - Cabeças de Ovelhas | E80: 72 | F80: 1 | G80: Cab. | H80: Cabeças de Ovelhas | I80: 72
B81: 80 | C81: Outros_ovinos | D81: (73) - Cabeças de Outros Ovinos | E81: 73 | F81: 1 | G81: Cab. | H81: Cabeças de Outros Ovinos | I81: 73
B82: 81 | C82: Cabras | D82: (74) - Cabeças de Cabras | E82: 74 | F82: 1 | G82: Cab. | H82: Cabeças de Cabras | I82: 74 | K82: www.gpp.pt
B83: 82 | C83: Outros_cap | D83: (75) - Cabeças de Outros Caprinos | E83: 75 | F83: 1 | G83: Cab. | H83: Cabeças de Outros Caprinos | I83: 75
B84: 83 | C84: PI_N | D84: (76) - Número de Produtores Maa - Produçao Integrada | E84: 76 | F84: 1 | G84: Nº | H84: Número de Produtores Maa - Produçao Integrada | I84: 76
B85: 84 | C85: PI_SAU | D85: (77) - SA Declarada para Maa - Produçao Integrada | E85: 77 | F85: 1 | G85: ha | H85: SA Declarada para Maa - Produçao Integrada | I85: 77 | K85: MAAPDI_PI_SAU.pdf
B86: 85 | C86: PABC_N | D86: (78) - Número de Produtores Maa-Agric.Biológica - Conv | E86: 78 | F86: 1 | G86: Nº | H86: Número de Produtores Maa-Agric.Biológica - Conv | I86: 78
B87: 86 | C87: PABC_SAU | D87: (79) - SA Declarada para Maa-Agric.Biológica - Conv | E87: 79 | F87: 1 | G87: ha | H87: SA Declarada para Maa-Agric.Biológica - Conv | I87: 79 | K87: MAAABC_PABC_SAU.pdf
B88: 87 | C88: PABM_N | D88: (80) - Número de Produtores Maa-Agric.Biológica - Manut | E88: 80 | F88: 1 | G88: Nº | H88: Número de Produtores Maa-Agric.Biológica - Manut | I88: 80
B89: 88 | C89: PABM_SAU | D89: (81) - SA Declarada para Maa-Agric.Biológica - Manut | E89: 81 | F89: 1 | G89: ha | H89: SA Declarada para Maa-Agric.Biológica - Manut | I89: 81 | K89: MAAABM_PABM_SAU.pdf
B90: 89 | C90: PUEA_N | D90: (82) - Número de Produtores Uso Eficiente Da Água Na Agricultura | E90: 82 | F90: 1 | G90: Nº | H90: Número de Produtores Uso Eficiente Da Água Na Agricultura | I90: 82
B91: 90 | C91: PUEA_SAU | D91: (83) - SA Declarada para Uso Eficiente Da Água Na Agricultura | E91: 83 | F91: 1 | G91: ha | H91: SA Declarada para Uso Eficiente Da Água Na Agricultura | I91: 83 | K91: MAAUEA_PUEA_SAU_Uso Eficiente da Água na Agricultura.pdf
B92: 91 | C92: PCPT_N | D92: (84) - Número de Produtores Culturas Permanentes Tradicionais | E92: 84 | F92: 1 | G92: Nº | H92: Número de Produtores Culturas Permanentes Tradicionais | I92: 84
B93: 92 | C93: PCPT_SAU | D93: (85) - SA Declarada para Culturas Permanentes Tradicionais | E93: 85 | F93: 1 | G93: ha | H93: SA Declarada para Culturas Permanentes Tradicionais | I93: 85 | K93: MAACPT_PCPT_SAU_Culturas Permanentes Tradicionais.pdf
B94: 93 | C94: PCSS_N | D94: (86) - Número de Produtores Maa-Conservação Solo-Sem Dir | E94: 86 | F94: 1 | G94: Nº | H94: Número de Produtores Maa-Conservação Solo-Sem Dir | I94: 86
B95: 94 | C95: PCSS_SAU | D95: (87) - SA Declarada para Maa-Conservação Solo-Sem Dir | E95: 87 | F95: 1 | G95: ha | H95: SA Declarada para Maa-Conservação Solo-Sem Dir | I95: 87 | K95: MAACSS_PCSS_SAU_Conservação do Solo - Sementeira Direta ou mobilização na linha.pdf
B96: 95 | C96: PCSE_N | D96: (88) - Número de Produtores Maa-Conservação Solo-Enr.Entr | E96: 88 | F96: 1 | G96: Nº | H96: Número de Produtores Maa-Conservação Solo-Enr.Entr | I96: 88
B97: 96 | C97: PCSE_SAU | D97: (89) - SA Declarada para Maa-Conservação Solo-Enr.Entr | E97: 89 | F97: 1 | G97: ha | H97: SA Declarada para Maa-Conservação Solo-Enr.Entr | I97: 89 | K97: MAACSE_PCSE_SAU_Conservação do Solo - Enrelvamento da Entrelinha de culuras permanentes.pdf
B98: 97 | C98: PPLS_N | D98: (90) - Número de Produtores Maa - Lameiros De Sequeiro | E98: 90 | F98: 1 | G98: Nº | H98: Número de Produtores Maa - Lameiros De Sequeiro | I98: 90
B99: 98 | C99: PPLS_SAU | D99: (91) - SA Declarada para Maa - Lameiros De Sequeiro | E99: 91 | F99: 1 | G99: ha | H99: SA Declarada para Maa - Lameiros De Sequeiro | I99: 91 | K99: MAAPLS_PPLS_SAU_Pastoreio Extensivo - Apoio à Manutenção de Lameiros de Alto Valor Natural – Sequeiro.pdf
B100: 99 | C100: PPLR_N | D100: (92) - Número de Produtores Maa - Lameiros De Regadio | E100: 92 | F100: 1 | G100: Nº | H100: Número de Produtores Maa - Lameiros De Regadio | I100: 92
B101: 100 | C101: PPLR_SAU | D101: (93) - SA Declarada para Maa - Lameiros De Regadio | E101: 93 | F101: 1 | G101: ha | H101: SA Declarada para Maa - Lameiros De Regadio | I101: 93 | K101: MAAPLR_PPLR_SAU_Pastoreio Extensivo - Apoio à Manutenção de Lameiros de Alto Valor Natural – Regadio.pdf
B102: 101 | C102: PPMT_N | D102: (94) - Número de Produtores Maa -Pastoreio Extensivo -Apoio à Manutenção de Sistemas Agro-silvo-pastoris sob Montado Ii | E102: 94 | F102: 1 | G102: Nº | H102: Número de Produtores Maa -Pastoreio Extensivo -Apoio à Manutenção de Sistemas Agro-silvo-pastoris sob Montado Ii | I102: 94
B103: 102 | C103: PPMT_SAU | D103: (95) - SA Declarada para Maa - Pastoreio Extensivo -Apoio à Manutenção de Sistemas Agro-silvo-pastoris sob Montado Ii | E103: 95 | F103: 1 | G103: ha | H103: SA Declarada para Maa - Pastoreio Extensivo -Apoio à Manutenção de Sistemas Agro-silvo-pastoris sob Montado Ii | I103: 95 | K103: MAAPPMT_PPMT_SAU_Pastoreio Extensivo -Apoio à Manutenção de Sistemas Agro-silvo-pastoris sob Montado.pdf
B104: 103 | C104: PPPL_N | D104: (96) - Número de Produtores Maa - Pastoreio Extensivo Apoio à Proteção do Lobo Ibérico | E104: 96 | F104: 1 | G104: Nº | H104: Número de Produtores Maa - Pastoreio Extensivo Apoio à Proteção do Lobo Ibérico | I104: 96
B105: 104 | C105: PPPL_SAU | D105: (97) - SA Declarada para Maa - Pastoreio Extensivo Apoio à Proteção do Lobo Ibérico | E105: 97 | F105: 1 | G105: ha | H105: SA Declarada para Maa - Pastoreio Extensivo Apoio à Proteção do Lobo Ibérico | I105: 97 | K105: MAAPPL_SAU_Pastoreio Extensivo - Apoio à Proteção do Lobo Ibérico.pdf
B106: 105
B107: 106

Sheet Sheet3 (hidden)
B1: 1 | C1: 1 | E1: 22 | F1: =+INDEX(Sheet6!F2:F117,C1) -> 1
A2: 1 | B2: =+A2-1 -> 0
A3: =+INDEX(Sheet6!Q1:Q5,Sheet3!A2) -> <5 | C3: =SUM(I8:M8) -> 301 | D3: 0 | E3: 0 | F3: 0 | G3: 0 | H3: 0 | I3: 1_1 | J3: 1_1 | K3: 1_1 | L3: 1_1 | M3: 1_1 | N3: 1_2 | O3: 1_2 | P3: 1_2 | Q3: 1_2 | R3: 1_2 | S3: 2 | T3: 2 | U3: 2 | V3: 2 | W3: 2 | X3: 3 | Y3: 3 | Z3: 3 | AA3: 3 | AB3: 3 | AC3: 4 | AD3: 4 | AE3: 4 | AF3: 4 | AG3: 4 | AH3: 5 | AI3: 5 | AJ3: 5 | AK3: 5 | AL3: 5 | AM3: 6 | AN3: 6 | AO3: 6 | AP3: 6 | AQ3: 6 | AR3: 7 | AS3: 7 | AT3: 7 | AU3: 7 | AV3: 7 | AW3: 8 | AX3: 8 | AY3: 8 | AZ3: 8 | BA3: 8 | BB3: 9 | BC3: 9 | BD3: 9 | BE3: 9 | BF3: 9 | BG3: 10_1 | BH3: 10_1 | BI3: 10_1 | BJ3: 10_1 | BK3: 10_1 | BL3: 10_15 | BM3: 10_15 | BN3: 10_15 | BO3: 10_15 | BP3: 10_15 | BQ3: 10_2 | BR3: 10_2 | BS3: 10_2 | BT3: 10_2 | BU3: 10_2 | BV3: 11 | BW3: 11 | BX3: 11 | BY3: 11 | BZ3: 11 | CA3: 12 | CB3: 12 | CC3: 12 | CD3: 12 | CE3: 12 | CF3: 13 | CG3: 13 | CH3: 13 | CI3: 13 | CJ3: 13 | CK3: 14 | CL3: 14 | CM3: 14 | CN3: 14 | CO3: 14 | CP3: 15 | CQ3: 15 | CR3: 15 | CS3: 15 | CT3: 15 | CU3: 0 | CV3: 1_1 | CW3: 1_2 | CX3: 2 | CY3: 3 | CZ3: 4 | DA3: 5 | DB3: 6 | DC3: 7 | DD3: 8 | DE3: 9 | DF3: 10_1 | DG3: 10_15 | DH3: 10_2 | DI3: 11 | DJ3: 12 | DK3: 13 | DL3: 14 | DM3: 15 | DN3: 1 | DO3: 2 | DP3: 3 | DQ3: 4 | DR3: 5
D4: 1 | E4: 2 | F4: 3 | G4: 4 | H4: 5 | I4: 1 | J4: 2 | K4: 3 | L4: 4 | M4: 5 | N4: 1 | O4: 2 | P4: 3 | Q4: 4 | R4: 5 | S4: 1 | T4: 2 | U4: 3 | V4: 4 | W4: 5 | X4: 1 | Y4: 2 | Z4: 3 | AA4: 4 | AB4: 5 | AC4: 1 | AD4: 2 | AE4: 3 | AF4: 4 | AG4: 5 | AH4: 1 | AI4: 2 | AJ4: 3 | AK4: 4 | AL4: 5 | AM4: 1 | AN4: 2 | AO4: 3 | AP4: 4 | AQ4: 5 | AR4: 1 | AS4: 2 | AT4: 3 | AU4: 4 | AV4: 5 | AW4: 1 | AX4: 2 | AY4: 3 | AZ4: 4 | BA4: 5 | BB4: 1 | BC4: 2 | BD4: 3 | BE4: 4 | BF4: 5 | BG4: 1 | BH4: 2 | BI4: 3 | BJ4: 4 | BK4: 5 | BL4: 1 | BM4: 2 | BN4: 3 | BO4: 4 | BP4: 5 | BQ4: 1 | BR4: 2 | BS4: 3 | BT4: 4 | BU4: 5 | BV4: 1 | BW4: 2 | BX4: 3 | BY4: 4 | BZ4: 5 | CA4: 1 | CB4: 2 | CC4: 3 | CD4: 4 | CE4: 5 | CF4: 1 | CG4: 2 | CH4: 3 | CI4: 4 | CJ4: 5 | CK4: 1 | CL4: 2 | CM4: 3 | CN4: 4 | CO4: 5 | CP4: 1 | CQ4: 2 | CR4: 3 | CS4: 4 | CT4: 5 | DN4: 1 | DO4: 2 | DP4: 3 | DQ4: 4 | DR4: 5
I5: Arvenses e Outras Cult pred. Regadio | J5: Arvenses e Outras Cult pred. Regadio | K5: Arvenses e Outras Cult pred. Regadio | L5: Arvenses e Outras Cult pred. Regadio | M5: Arvenses e Outras Cult pred. Regadio | N5: Arvenses e Outras Cult pred. Sequeiro | O5: Arvenses e Outras Cult pred. Sequeiro | P5: Arvenses e Outras Cult pred. Sequeiro | Q5: Arvenses e Outras Cult pred. Sequeiro | R5: Arvenses e Outras Cult pred. Sequeiro | S5: Arroz | T5: Arroz | U5: Arroz | V5: Arroz | W5: Arroz | X5: Horticultura e Industriais | Y5: Horticultura e Industriais | Z5: Horticultura e Industriais | AA5: Horticultura e Industriais | AB5: Horticultura e Industriais | AC5: Horticultura e Floricultura | AD5: Horticultura e Floricultura | AE5: Horticultura e Floricultura | AF5: Horticultura e Floricultura | AG5: Horticultura e Floricultura | AH5: Vinhos | AI5: Vinhos
I6: Muito Pequenas | J6: Pequenas | K6: Médias | L6: Grandes | M6: Muito Grandes | N6: Muito Pequenas | O6: Pequenas | P6: Médias | Q6: Grandes | R6: Muito Grandes | S6: Muito Pequenas | T6: Pequenas | U6: Médias | V6: Grandes | W6: Muito Grandes | X6: Muito Pequenas | Y6: Pequenas | Z6: Médias | AA6: Grandes | AB6: Muito Grandes | AC6: Muito Pequenas | AD6: Pequenas | AE6: Médias | AF6: Grandes | AG6: Muito Grandes | AH6: Muito Pequenas | AI6: Pequenas
C7: NUT'S III
A8: 1 | B8: 111 | C8: Alto Minho | D8: =+SUMIFS(Sheet4!$DM$2:$DM$8408,Sheet4!$C$2:$C$8408,Sheet3!$B8,Sheet4!$D$2:$D$8408,Sheet3!D$3,Sheet4!$E$2:$E$8408,Sheet3!D$4,Sheet4!$A$2:$A$8408,Sheet3!$B$1,Sheet4!$B$2:$B$8408,Sheet3!$A$3) -> 0 | E8: =+SUMIFS(Sheet4!$DM$2:$DM$8408,Sheet4!$C$2:$C$8408,Sheet3!$B8,Sheet4!$D$2:$D$8408,Sheet3!E$3,Sheet4!$E$2:$E$8408,Sheet3!E$4,Sheet4!$A$2:$A$8408,Sheet3!$B$1,Sheet4!$B$2:$B$8408,Sheet3!$A$3) -> 0 | F8: =+SUMIFS(Sheet4!$DM$2:$DM$8408,Sheet4!$C$2:$C$8408,Sheet3!$B8,Sheet4!$D$2:$D$8408,Sheet3!F$3,Sheet4!$E$2:$E$8408,Sheet3!F$4,Sheet4!$A$2:$A$8408,Sheet3!$B$1,Sheet4!$B$2:$B$8408,Sheet3!$A$3) -> 0 | G8: =+SUMIFS(Sheet4!$DM$2:$DM$8408,Sheet4!$C$2:$C$8408,Sheet3!$B8,Sheet4!$D$2:$D$8408,Sheet3!G$3,Sheet4!$E$2:$E$8408,Sheet3!G$4,Sheet4!$A$2:$A$8408,Sheet3!$B$1,Sheet4!$B$2:$B$8408,Sheet3!$A$3) -> 0 | H8: =+SUMIFS(Sheet4!$DM$2:$DM$8408,Sheet4!$C$2:$C$8408,Sheet3!$B8,Sheet4!$D$2:$D$8408,Sheet3!H$3,Sheet4!$E$2:$E$8408,Sheet3!H$4,Sheet4!$A$2:$A$8408,Sheet3!$B$1,Sheet4!$B$2:$B$8408,Sheet3!$A$3) -> 0 | I8: =+SUMIFS(Sheet4!$DM$2:$DM$8408,Sheet4!$C$2:$C$8408,Sheet3!$B8,Sheet4!$D$2:$D$8408,Sheet3!I$3,Sheet4!$E$2:$E$8408,Sheet3!I$4,Sheet4!$A$2:$A$8408,Sheet3!$B$1,Sheet4!$B$2:$B$8408,Sheet3!$A$3) -> 288 | J8: =+SUMIFS(Sheet4!$DM$2:$DM$8408,Sheet4!$C$2:$C$8408,Sheet3!$B8,Sheet4!$D$2:$D$8408,Sheet3!J$3,Sheet4!$E$2:$E$8408,Sheet3!J$4,Sheet4!$A$2:$A$8408,Sheet3!$B$1,Sheet4!$B$2:$B$8408,Sheet3!$A$3) -> 13 | K8: =+SUMIFS(Sheet4!$DM$2:$DM$8408,Sheet4!$C$2:$C$8408,Sheet3!$B8,Sheet4!$D$2:$D$8408,Sheet3!K$3,Sheet4!$E$2:$E$8408,Sheet3!K$4,Sheet4!$A$2:$A$8408,Sheet3!$B$1,Sheet4!$B$2:$B$8408,Sheet3!$A$3) -> 0 | L8: =+SUMIFS(Sheet4!$DM$2:$DM$8408,Sheet4!$C$2:$C$8408,Sheet3!$B8,Sheet4!$D$2:$D$8408,Sheet3!L$3,Sheet4!$E$2:$E$8408,Sheet3!L$4,Sheet4!$A$2:$A$8408,Sheet3!$B$1,Sheet4!$B$2:$B$8408,Sheet3!$A$3) -> 0 | M8: =+SUMIFS(Sheet4!$DM$2:$DM$8408,Sheet4!$C$2:$C$8408,Sheet3!$B8,Sheet4!$D$2:$D$8408,Sheet3!M$3,Sheet4!$E$2:$E$8408,Sheet3!M$4,Sheet4!$A$2:$A$8408,Sheet3!$B$1,Sheet4!$B$2:$B$8408,Sheet3!$A$3) -> 0 | N8: =+SUMIFS(Sheet4!$DM$2:$DM$8408,Sheet4!$C$2:$C$8408,Sheet3!$B8,Sheet4!$D$2:$D$8408,Sheet3!N$3,Sheet4!$E$2:$E$8408,Sheet3!N$4,Sheet4!$A$2:$A$8408,Sheet3!$B$1,Sheet4!$B$2:$B$8408,Sheet3!$A$3) -> 128 | O8: =+SUMIFS(Sheet4!$DM$2:$DM$8408,Sheet4!$C$2:$C$8408,Sheet3!$B8,Sheet4!$D$2:$D$8408,Sheet3!O$3,Sheet4!$E$2:$E$8408,Sheet3!O$4,Sheet4!$A$2:$A$8408,Sheet3!$B$1,Sheet4!$B$2:$B$8408,Sheet3!$A$3) -> 5 | P8: =+SUMIFS(Sheet4!$DM$2:$DM$8408,Sheet4!$C$2:$C$8408,Sheet3!$B8,Sheet4!$D$2:$D$8408,Sheet3!P$3,Sheet4!$E$2:$E$8408,Sheet3!P$4,Sheet4!$A$2:$A$8408,Sheet3!$B$1,Sheet4!$B$2:$B$8408,Sheet3!$A$3) -> 0 | Q8: =+SUMIFS(Sheet4!$DM$2:$DM$8408,Sheet4!$C$2:$C$8408,Sheet3!$B8,Sheet4!$D$2:$D$8408,Sheet3!Q$3,Sheet4!$E$2:$E$8408,Sheet3!Q$4,Sheet4!$A$2:$A$8408,Sheet3!$B$1,Sheet4!$B$2:$B$8408,Sheet3!$A$3) -> 0 | R8: =+SUMIFS(Sheet4!$DM$2:$DM$8408,Sheet4!$C$2:$C$8408,Sheet3!$B8,Sheet4!$D$2:$D$8408,Sheet3!R$3,Sheet4!$E$2:$E$8408,Sheet3!R$4,Sheet4!$A$2:$A$8408,Sheet3!$B$1,Sheet4!$B$2:$B$8408,Sheet3!$A$3) -> 0 | S8: =+SUMIFS(Sheet4!$DM$2:$DM$8408,Sheet4!$C$2:$C$8408,Sheet3!$B8,Sheet4!$D$2:$D$8408,Sheet3!S$3,Sheet4!$E$2:$E$8408,Sheet3!S$4,Sheet4!$A$2:$A$8408,Sheet3!$B$1,Sheet4!$B$2:$B$8408,Sheet3!$A$3) -> 0 | T8: =+SUMIFS(Sheet4!$DM$2:$DM$8408,Sheet4!$C$2:$C$8408,Sheet3!$B8,Sheet4!$D$2:$D$8408,Sheet3!T$3,Sheet4!$E$2:$E$8408,Sheet3!T$4,Sheet4!$A$2:$A$8408,Sheet3!$B$1,Sheet4!$B$2:$B$8408,Sheet3!$A$3) -> 0 | U8: =+SUMIFS(Sheet4!$DM$2:$DM$8408,Sheet4!$C$2:$C$8408,Sheet3!$B8,Sheet4!$D$2:$D$8408,Sheet3!U$3,Sheet4!$E$2:$E$8408,Sheet3!U$4,Sheet4!$A$2:$A$8408,Sheet3!$B$1,Sheet4!$B$2:$B$8408,Sheet3!$A$3) -> 0 | V8: =+SUMIFS(Sheet4!$DM$2:$DM$8408,Sheet4!$C$2:$C$8408,Sheet3!$B8,Sheet4!$D$2:$D$8408,Sheet3!V$3,Sheet4!$E$2:$E$8408,Sheet3!V$4,Sheet4!$A$2:$A$8408,Sheet3!$B$1,Sheet4!$B$2:$B$8408,Sheet3!$A$3) -> 0 | W8: =+SUMIFS(Sheet4!$DM$2:$DM$8408,Sheet4!$C$2:$C$8408,Sheet3!$B8,Sheet4!$D$2:$D$8408,Sheet3!W$3,Sheet4!$E$2:$E$8408,Sheet3!W$4,Sheet4!$A$2:$A$8408,Sheet3!$B$1,Sheet4!$B$2:$B$8408,Sheet3!$A$3) -> 0 | X8: =+SUMIFS(Sheet4!$DM$2:$DM$8408,Sheet4!$C$2:$C$8408,Sheet3!$B8,Sheet4!$D$2:$D$8408,Sheet3!X$3,Sheet4!$E$2:$E$8408,Sheet3!X$4,Sheet4!$A$2:$A$8408,Sheet3!$B$1,Sheet4!$B$2:$B$8408,Sheet3!$A$3) -> 0 | Y8: =+SUMIFS(Sheet4!$DM$2:$DM$8408,Sheet4!$C$2:$C$8408,Sheet3!$B8,Sheet4!$D$2:$D$8408,Sheet3!Y$3,Sheet4!$E$2:$E$8408,Sheet3!Y$4,Sheet4!$A$2:$A$8408,Sheet3!$B$1,Sheet4!$B$2:$B$8408,Sheet3!$A$3) -> 0 | Z8: =+SUMIFS(Sheet4!$DM$2:$DM$8408,Sheet4!$C$2:$C$8408,Sheet3!$B8,Sheet4!$D$2:$D$8408,Sheet3!Z$3,Sheet4!$E$2:$E$8408,Sheet3!Z$4,Sheet4!$A$2:$A$8408,Sheet3!$B$1,Sheet4!$B$2:$B$8408,Sheet3!$A$3) -> 0 | AA8: =+SUMIFS(Sheet4!$DM$2:$DM$8408,Sheet4!$C$2:$C$8408,Sheet3!$B8,Sheet4!$D$2:$D$8408,Sheet3!AA$3,Sheet4!$E$2:$E$8408,Sheet3!AA$4,Sheet4!$A$2:$A$8408,Sheet3!$B$1,Sheet4!$B$2:$B$8408,Sheet3!$A$3) -> 0 | AB8: =+SUMIFS(Sheet4!$DM$2:$DM$8408,Sheet4!$C$2:$C$8408,Sheet3!$B8,Sheet4!$D$2:$D$8408,Sheet3!AB$3,Sheet4!$E$2:$E$8408,Sheet3!AB$4,Sheet4!$A$2:$A$8408,Sheet3!$B$1,Sheet4!$B$2:$B$8408,Sheet3!$A$3) -> 0 | AC8: =+SUMIFS(Sheet4!$DM$2:$DM$8408,Sheet4!$C$2:$C$8408,Sheet3!$B8,Sheet4!$D$2:$D$8408,Sheet3!AC$3,Sheet4!$E$2:$E$8408,Sheet3!AC$4,Sheet4!$A$2:$A$8408,Sheet3!$B$1,Sheet4!$B$2:$B$8408,Sheet3!$A$3) -> 83 | AD8: =+SUMIFS(Sheet4!$DM$2:$DM$8408,Sheet4!$C$2:$C$8408,Sheet3!$B8,Sheet4!$D$2:$D$8408,Sheet3!AD$3,Sheet4!$E$2:$E$8408,Sheet3!AD$4,Sheet4!$A$2:$A$8408,Sheet3!$B$1,Sheet4!$B$2:$B$8408,Sheet3!$A$3) -> 73 | AE8: =+SUMIFS(Sheet4!$DM$2:$DM$8408,Sheet4!$C$2:$C$8408,Sheet3!$B8,Sheet4!$D$2:$D$8408,Sheet3!AE$3,Sheet4!$E$2:$E$8408,Sheet3!AE$4,Sheet4!$A$2:$A$8408,Sheet3!$B$1,Sheet4!$B$2:$B$8408,Sheet3!$A$3) -> 18 | AF8: =+SUMIFS(Sheet4!$DM$2:$DM$8408,Sheet4!$C$2:$C$8408,Sheet3!$B8,Sheet4!$D$2:$D$8408,Sheet3!AF$3,Sheet4!$E$2:$E$8408,Sheet3!AF$4,Sheet4!$A$2:$A$8408,Sheet3!$B$1,Sheet4!$B$2:$B$8408,Sheet3!$A$3) -> 4 | AG8: =+SUMIFS(Sheet4!$DM$2:$DM$8408,Sheet4!$C$2:$C$8408,Sheet3!$B8,Sheet4!$D$2:$D$8408,Sheet3!AG$3,Sheet4!$E$2:$E$8408,Sheet3!AG$4,Sheet4!$A$2:$A$8408,Sheet3!$B$1,Sheet4!$B$2:$B$8408,Sheet3!$A$3) -> 0 | AH8: =+SUMIFS(Sheet4!$DM$2:$DM$8408,Sheet4!$C$2:$C$8408,Sheet3!$B8,Sheet4!$D$2:$D$8408,Sheet3!AH$3,Sheet4!$E$2:$E$8408,Sheet3!AH$4,Sheet4!$A$2:$A$8408,Sheet3!$B$1,Sheet4!$B$2:$B$8408,Sheet3!$A$3) -> 379 | AI8: =+SUMIFS(Sheet4!$DM$2:$DM$8408,Sheet4!$C$2:$C$8408,Sheet3!$B8,Sheet4!$D$2:$D$8408,Sheet3!AI$3,Sheet4!$E$2:$E$8408,Sheet3!AI$4,Sheet4!$A$2:$A$8408,Sheet3!$B$1,Sheet4!$B$2:$B$8408,Sheet3!$A$3) -> 353 | AJ8: =+SUMIFS(Sheet4!$DM$2:$DM$8408,Sheet4!$C$2:$C$8408,Sheet3!$B8,Sheet4!$D$2:$D$8408,Sheet3!AJ$3,Sheet4!$E$2:$E$8408,Sheet3!AJ$4,Sheet4!$A$2:$A$8408,Sheet3!$B$1,Sheet4!$B$2:$B$8408,Sheet3!$A$3) -> 29 | AK8: =+SUMIFS(Sheet4!$DM$2:$DM$8408,Sheet4!$C$2:$C$8408,Sheet3!$B8,Sheet4!$D$2:$D$8408,Sheet3!AK$3,Sheet4!$E$2:$E$8408,Sheet3!AK$4,Sheet4!$A$2:$A$8408,Sheet3!$B$1,Sheet4!$B$2:$B$8408,Sheet3!$A$3) -> 0 | AL8: =+SUMIFS(Sheet4!$DM$2:$DM$8408,Sheet4!$C$2:$C$8408,Sheet3!$B8,Sheet4!$D$2:$D$8408,Sheet3!AL$3,Sheet4!$E$2:$E$8408,Sheet3!AL$4,Sheet4!$A$2:$A$8408,Sheet3!$B$1,Sheet4!$B$2:$B$8408,Sheet3!$A$3) -> 0 | AM8: =+SUMIFS(Sheet4!$DM$2:$DM$8408,Sheet4!$C$2:$C$8408,Sheet3!$B8,Sheet4!$D$2:$D$8408,Sheet3!AM$3,Sheet4!$E$2:$E$8408,Sheet3!AM$4,Sheet4!$A$2:$A$8408,Sheet3!$B$1,Sheet4!$B$2:$B$8408,Sheet3!$A$3) -> 42 | AN8: =+SUMIFS(Sheet4!$DM$2:$DM$8408,Sheet4!$C$2:$C$8408,Sheet3!$B8,Sheet4!$D$2:$D$8408,Sheet3!AN$3,Sheet4!$E$2:$E$8408,Sheet3!AN$4,Sheet4!$A$2:$A$8408,Sheet3!$B$1,Sheet4!$B$2:$B$8408,Sheet3!$A$3) -> 68 | AO8: =+SUMIFS(Sheet4!$DM$2:$DM$8408,Sheet4!$C$2:$C$8408,Sheet3!$B8,Sheet4!$D$2:$D$8408,Sheet3!AO$3,Sheet4!$E$2:$E$8408,Sheet3!AO$4,Sheet4!$A$2:$A$8408,Sheet3!$B$1,Sheet4!$B$2:$B$8408,Sheet3!$A$3) -> 58 | AP8: =+SUMIFS(Sheet4!$DM$2:$DM$8408,Sheet4!$C$2:$C$8408,Sheet3!$B8,Sheet4!$D$2:$D$8408,Sheet3!AP$3,Sheet4!$E$2:$E$8408,Sheet3!AP$4,Sheet4!$A$2:$A$8408,Sheet3!$B$1,Sheet4!$B$2:$B$8408,Sheet3!$A$3) -> 3 | AQ8: =+SUMIFS(Sheet4!$DM$2:$DM$8408,Sheet4!$C$2:$C$8408,Sheet3!$B8,Sheet4!$D$2:$D$8408,Sheet3!AQ$3,Sheet4!$E$2:$E$8408,Sheet3!AQ$4,Sheet4!$A$2:$A$8408,Sheet3!$B$1,Sheet4!$B$2:$B$8408,Sheet3!$A$3) -> 0 | AR8: =+SUMIFS(Sheet4!$DM$2:$DM$8408,Sheet4!$C$2:$C$8408,Sheet3!$B8,Sheet4!$D$2:$D$8408,Sheet3!AR$3,Sheet4!$E$2:$E$8408,Sheet3!AR$4,Sheet4!$A$2:$A$8408,Sheet3!$B$1,Sheet4!$B$2:$B$8408,Sheet3!$A$3) -> 0 | AS8: =+SUMIFS(Sheet4!$DM$2:$DM$8408,Sheet4!$C$2:$C$8408,Sheet3!$B8,Sheet4!$D$2:$D$8408,Sheet3!AS$3,Sheet4!$E$2:$E$8408,Sheet3!AS$4,Sheet4!$A$2:$A$8408,Sheet3!$B$1,Sheet4!$B$2:$B$8408,Sheet3!$A$3) -> 0 | AT8: =+SUMIFS(Sheet4!$DM$2:$DM$8408,Sheet4!$C$2:$C$8408,Sheet3!$B8,Sheet4!$D$2:$D$8408,Sheet3!AT$3,Sheet4!$E$2:$E$8408,Sheet3!AT$4,Sheet4!$A$2:$A$8408,Sheet3!$B$1,Sheet4!$B$2:$B$8408,Sheet3!$A$3) -> 0 | AU8: =+SUMIFS(Sheet4!$DM$2:$DM$8408,Sheet4!$C$2:$C$8408,Sheet3!$B8,Sheet4!$D$2:$D$8408,Sheet3!AU$3,Sheet4!$E$2:$E$8408,Sheet3!AU$4,Sheet4!$A$2:$A$8408,Sheet3!$B$1,Sheet4!$B$2:$B$8408,Sheet3!$A$3) -> 0 | AV8: =+SUMIFS(Sheet4!$DM$2:$DM$8408,Sheet4!$C$2:$C$8408,Sheet3!$B8,Sheet4!$D$2:$D$8408,Sheet3!AV$3,Sheet4!$E$2:$E$8408,Sheet3!AV$4,Sheet4!$A$2:$A$8408,Sheet3!$B$1,Sheet4!$B$2:$B$8408,Sheet3!$A$3) -> 0 | AW8: =+SUMIFS(Sheet4!$DM$2:$DM$8408,Sheet4!$C$2:$C$8408,Sheet3!$B8,Sheet4!$D$2:$D$8408,Sheet3!AW$3,Sheet4!$E$2:$E$8408,Sheet3!AW$4,Sheet4!$A$2:$A$8408,Sheet3!$B$1,Sheet4!$B$2:$B$8408,Sheet3!$A$3) -> 1935 | AX8: =+SUMIFS(Sheet4!$DM$2:$DM$8408,Sheet4!$C$2:$C$8408,Sheet3!$B8,Sheet4!$D$2:$D$8408,Sheet3!AX$3,Sheet4!$E$2:$E$8408,Sheet3!AX$4,Sheet4!$A$2:$A$8408,Sheet3!$B$1,Sheet4!$B$2:$B$8408,Sheet3!$A$3) -> 332 | AY8: =+SUMIFS(Sheet4!$DM$2:$DM$8408,Sheet4!$C$2:$C$8408,Sheet3!$B8,Sheet4!$D$2:$D$8408,Sheet3!AY$3,Sheet4!$E$2:$E$8408,Sheet3!AY$4,Sheet4!$A$2:$A$8408,Sheet3!$B$1,Sheet4!$B$2:$B$8408,Sheet3!$A$3) -> 8 | AZ8: =+SUMIFS(Sheet4!$DM$2:$DM$8408,Sheet4!$C$2:$C$8408,Sheet3!$B8,Sheet4!$D$2:$D$8408,Sheet3!AZ$3,Sheet4!$E$2:$E$8408,Sheet3!AZ$4,Sheet4!$A$2:$A$8408,Sheet3!$B$1,Sheet4!$B$2:$B$8408,Sheet3!$A$3) -> 0 | BA8: =+SUMIFS(Sheet4!$DM$2:$DM$8408,Sheet4!$C$2:$C$8408,Sheet3!$B8,Sheet4!$D$2:$D$8408,Sheet3!BA$3,Sheet4!$E$2:$E$8408,Sheet3!BA$4,Sheet4!$A$2:$A$8408,Sheet3!$B$1,Sheet4!$B$2:$B$8408,Sheet3!$A$3) -> 0 | BB8: =+SUMIFS(Sheet4!$DM$2:$DM$8408,Sheet4!$C$2:$C$8408,Sheet3!$B8,Sheet4!$D$2:$D$8408,Sheet3!BB$3,Sheet4!$E$2:$E$8408,Sheet3!BB$4,Sheet4!$A$2:$A$8408,Sheet3!$B$1,Sheet4!$B$2:$B$8408,Sheet3!$A$3) -> 0 | BC8: =+SUMIFS(Sheet4!$DM$2:$DM$8408,Sheet4!$C$2:$C$8408,Sheet3!$B8,Sheet4!$D$2:$D$8408,Sheet3!BC$3,Sheet4!$E$2:$E$8408,Sheet3!BC$4,Sheet4!$A$2:$A$8408,Sheet3!$B$1,Sheet4!$B$2:$B$8408,Sheet3!$A$3) -> 5 | BD8: =+SUMIFS(Sheet4!$DM$2:$DM$8408,Sheet4!$C$2:$C$8408,Sheet3!$B8,Sheet4!$D$2:$D$8408,Sheet3!BD$3,Sheet4!$E$2:$E$8408,Sheet3!BD$4,Sheet4!$A$2:$A$8408,Sheet3!$B$1,Sheet4!$B$2:$B$8408,Sheet3!$A$3) -> 17 | BE8: =+SUMIFS(Sheet4!$DM$2:$DM$8408,Sheet4!$C$2:$C$8408,Sheet3!$B8,Sheet4!$D$2:$D$8408,Sheet3!BE$3,Sheet4!$E$2:$E$8408,Sheet3!BE$4,Sheet4!$A$2:$A$8408,Sheet3!$B$1,Sheet4!$B$2:$B$8408,Sheet3!$A$3) -> 36 | BF8: =+SUMIFS(Sheet4!$DM$2:$DM$8408,Sheet4!$C$2:$C$8408,Sheet3!$B8,Sheet4!$D$2:$D$8408,Sheet3!BF$3,Sheet4!$E$2:$E$8408,Sheet3!BF$4,Sheet4!$A$2:$A$8408,Sheet3!$B$1,Sheet4!$B$2:$B$8408,Sheet3!$A$3) -> 0 | BG8: =+SUMIFS(Sheet4!$DM$2:$DM$8408,Sheet4!$C$2:$C$8408,Sheet3!$B8,Sheet4!$D$2:$D$8408,Sheet3!BG$3,Sheet4!$E$2:$E$8408,Sheet3!BG$4,Sheet4!$A$2:$A$8408,Sheet3!$B$1,Sheet4!$B$2:$B$8408,Sheet3!$A$3) -> 123 | BH8: =+SUMIFS(Sheet4!$DM$2:$DM$8408,Sheet4!$C$2:$C$8408,Sheet3!$B8,Sheet4!$D$2:$D$8408,Sheet3!BH$3,Sheet4!$E$2:$E$8408,Sheet3!BH$4,Sheet4!$A$2:$A$8408,Sheet3!$B$1,Sheet4!$B$2:$B$8408,Sheet3!$A$3) -> 128 | BI8: =+SUMIFS(Sheet4!$DM$2:$DM$8408,Sheet4!$C$2:$C$8408,Sheet3!$B8,Sheet4!$D$2:$D$8408,Sheet3!BI$3,Sheet4!$E$2:$E$8408,Sheet3!BI$4,Sheet4!$A$2:$A$8408,Sheet3!$B$1,Sheet4!$B$2:$B$8408,Sheet3!$A$3) -> 20 | BJ8: =+SUMIFS(Sheet4!$DM$2:$DM$8408,Sheet4!$C$2:$C$8408,Sheet3!$B8,Sheet4!$D$2:$D$8408,Sheet3!BJ$3,Sheet4!$E$2:$E$8408,Sheet3!BJ$4,Sheet4!$A$2:$A$8408,Sheet3!$B$1,Sheet4!$B$2:$B$8408,Sheet3!$A$3) -> 0 | BK8: =+SUMIFS(Sheet4!$DM$2:$DM$8408,Sheet4!$C$2:$C$8408,Sheet3!$B8,Sheet4!$D$2:$D$8408,Sheet3!BK$3,Sheet4!$E$2:$E$8408,Sheet3!BK$4,Sheet4!$A$2:$A$8408,Sheet3!$B$1,Sheet4!$B$2:$B$8408,Sheet3!$A$3) -> 0 | BL8: =+SUMIFS(Sheet4!$DM$2:$DM$8408,Sheet4!$C$2:$C$8408,Sheet3!$B8,Sheet4!$D$2:$D$8408,Sheet3!BL$3,Sheet4!$E$2:$E$8408,Sheet3!BL$4,Sheet4!$A$2:$A$8408,Sheet3!$B$1,Sheet4!$B$2:$B$8408,Sheet3!$A$3) -> 76 | BM8: =+SUMIFS(Sheet4!$DM$2:$DM$8408,Sheet4!$C$2:$C$8408,Sheet3!$B8,Sheet4!$D$2:$D$8408,Sheet3!BM$3,Sheet4!$E$2:$E$8408,Sheet3!BM$4,Sheet4!$A$2:$A$8408,Sheet3!$B$1,Sheet4!$B$2:$B$8408,Sheet3!$A$3) -> 93 | BN8: =+SUMIFS(Sheet4!$DM$2:$DM$8408,Sheet4!$C$2:$C$8408,Sheet3!$B8,Sheet4!$D$2:$D$8408,Sheet3!BN$3,Sheet4!$E$2:$E$8408,Sheet3!BN$4,Sheet4!$A$2:$A$8408,Sheet3!$B$1,Sheet4!$B$2:$B$8408,Sheet3!$A$3) -> 15 | BO8: =+SUMIFS(Sheet4!$DM$2:$DM$8408,Sheet4!$C$2:$C$8408,Sheet3!$B8,Sheet4!$D$2:$D$8408,Sheet3!BO$3,Sheet4!$E$2:$E$8408,Sheet3!BO$4,Sheet4!$A$2:$A$8408,Sheet3!$B$1,Sheet4!$B$2:$B$8408,Sheet3!$A$3) -> 0 | BP8: =+SUMIFS(Sheet4!$DM$2:$DM$8408,Sheet4!$C$2:$C$8408,Sheet3!$B8,Sheet4!$D$2:$D$8408,Sheet3!BP$3,Sheet4!$E$2:$E$8408,Sheet3!BP$4,Sheet4!$A$2:$A$8408,Sheet3!$B$1,Sheet4!$B$2:$B$8408,Sheet3!$A$3) -> 0 | BQ8: =+SUMIFS(Sheet4!$DM$2:$DM$8408,Sheet4!$C$2:$C$8408,Sheet3!$B8,Sheet4!$D$2:$D$8408,Sheet3!BQ$3,Sheet4!$E$2:$E$8408,Sheet3!BQ$4,Sheet4!$A$2:$A$8408,Sheet3!$B$1,Sheet4!$B$2:$B$8408,Sheet3!$A$3) -> 209 | BR8: =+SUMIFS(Sheet4!$DM$2:$DM$8408,Sheet4!$C$2:$C$8408,Sheet3!$B8,Sheet4!$D$2:$D$8408,Sheet3!BR$3,Sheet4!$E$2:$E$8408,Sheet3!BR$4,Sheet4!$A$2:$A$8408,Sheet3!$B$1,Sheet4!$B$2:$B$8408,Sheet3!$A$3) -> 463 | BS8: =+SUMIFS(Sheet4!$DM$2:$DM$8408,Sheet4!$C$2:$C$8408,Sheet3!$B8,Sheet4!$D$2:$D$8408,Sheet3!BS$3,Sheet4!$E$2:$E$8408,Sheet3!BS$4,Sheet4!$A$2:$A$8408,Sheet3!$B$1,Sheet4!$B$2:$B$8408,Sheet3!$A$3) -> 152 | BT8: =+SUMIFS(Sheet4!$DM$2:$DM$8408,Sheet4!$C$2:$C$8408,Sheet3!$B8,Sheet4!$D$2:$D$8408,Sheet3!BT$3,Sheet4!$E$2:$E$8408,Sheet3!BT$4,Sheet4!$A$2:$A$8408,Sheet3!$B$1,Sheet4!$B$2:$B$8408,Sheet3!$A$3) -> 24 | BU8: =+SUMIFS(Sheet4!$DM$2:$DM$8408,Sheet4!$C$2:$C$8408,Sheet3!$B8,Sheet4!$D$2:$D$8408,Sheet3!BU$3,Sheet4!$E$2:$E$8408,Sheet3!BU$4,Sheet4!$A$2:$A$8408,Sheet3!$B$1,Sheet4!$B$2:$B$8408,Sheet3!$A$3) -> 10 | BV8: =+SUMIFS(Sheet4!$DM$2:$DM$8408,Sheet4!$C$2:$C$8408,Sheet3!$B8,Sheet4!$D$2:$D$8408,Sheet3!BV$3,Sheet4!$E$2:$E$8408,Sheet3!BV$4,Sheet4!$A$2:$A$8408,Sheet3!$B$1,Sheet4!$B$2:$B$8408,Sheet3!$A$3) -> 692 | BW8: =+SUMIFS(Sheet4!$DM$2:$DM$8408,Sheet4!$C$2:$C$8408,Sheet3!$B8,Sheet4!$D$2:$D$8408,Sheet3!BW$3,Sheet4!$E$2:$E$8408,Sheet3!BW$4,Sheet4!$A$2:$A$8408,Sheet3!$B$1,Sheet4!$B$2:$B$8408,Sheet3!$A$3) -> 579 | BX8: =+SUMIFS(Sheet4!$DM$2:$DM$8408,Sheet4!$C$2:$C$8408,Sheet3!$B8,Sheet4!$D$2:$D$8408,Sheet3!BX$3,Sheet4!$E$2:$E$8408,Sheet3!BX$4,Sheet4!$A$2:$A$8408,Sheet3!$B$1,Sheet4!$B$2:$B$8408,Sheet3!$A$3) -> 40 | BY8: =+SUMIFS(Sheet4!$DM$2:$DM$8408,Sheet4!$C$2:$C$8408,Sheet3!$B8,Sheet4!$D$2:$D$8408,Sheet3!BY$3,Sheet4!$E$2:$E$8408,Sheet3!BY$4,Sheet4!$A$2:$A$8408,Sheet3!$B$1,Sheet4!$B$2:$B$8408,Sheet3!$A$3) -> 0 | BZ8: =+SUMIFS(Sheet4!$DM$2:$DM$8408,Sheet4!$C$2:$C$8408,Sheet3!$B8,Sheet4!$D$2:$D$8408,Sheet3!BZ$3,Sheet4!$E$2:$E$8408,Sheet3!BZ$4,Sheet4!$A$2:$A$8408,Sheet3!$B$1,Sheet4!$B$2:$B$8408,Sheet3!$A$3) -> 0 | CA8: =+SUMIFS(Sheet4!$DM$2:$DM$8408,Sheet4!$C$2:$C$8408,Sheet3!$B8,Sheet4!$D$2:$D$8408,Sheet3!CA$3,Sheet4!$E$2:$E$8408,Sheet3!CA$4,Sheet4!$A$2:$A$8408,Sheet3!$B$1,Sheet4!$B$2:$B$8408,Sheet3!$A$3) -> 746 | CB8: =+SUMIFS(Sheet4!$DM$2:$DM$8408,Sheet4!$C$2:$C$8408,Sheet3!$B8,Sheet4!$D$2:$D$8408,Sheet3!CB$3,Sheet4!$E$2:$E$8408,Sheet3!CB$4,Sheet4!$A$2:$A$8408,Sheet3!$B$1,Sheet4!$B$2:$B$8408,Sheet3!$A$3) -> 320 | CC8: =+SUMIFS(Sheet4!$DM$2:$DM$8408,Sheet4!$C$2:$C$8408,Sheet3!$B8,Sheet4!$D$2:$D$8408,Sheet3!CC$3,Sheet4!$E$2:$E$8408,Sheet3!CC$4,Sheet4!$A$2:$A$8408,Sheet3!$B$1,Sheet4!$B$2:$B$8408,Sheet3!$A$3) -> 5 | CD8: =+SUMIFS(Sheet4!$DM$2:$DM$8408,Sheet4!$C$2:$C$8408,Sheet3!$B8,Sheet4!$D$2:$D$8408,Sheet3!CD$3,Sheet4!$E$2:$E$8408,Sheet3!CD$4,Sheet4!$A$2:$A$8408,Sheet3!$B$1,Sheet4!$B$2:$B$8408,Sheet3!$A$3) -> 0 | CE8: =+SUMIFS(Sheet4!$DM$2:$DM$8408,Sheet4!$C$2:$C$8408,Sheet3!$B8,Sheet4!$D$2:$D$8408,Sheet3!CE$3,Sheet4!$E$2:$E$8408,Sheet3!CE$4,Sheet4!$A$2:$A$8408,Sheet3!$B$1,Sheet4!$B$2:$B$8408,Sheet3!$A$3) -> 0 | CF8: =+SUMIFS(Sheet4!$DM$2:$DM$8408,Sheet4!$C$2:$C$8408,Sheet3!$B8,Sheet4!$D$2:$D$8408,Sheet3!CF$3,Sheet4!$E$2:$E$8408,Sheet3!CF$4,Sheet4!$A$2:$A$8408,Sheet3!$B$1,Sheet4!$B$2:$B$8408,Sheet3!$A$3) -> 312 | CG8: =+SUMIFS(Sheet4!$DM$2:$DM$8408,Sheet4!$C$2:$C$8408,Sheet3!$B8,Sheet4!$D$2:$D$8408,Sheet3!CG$3,Sheet4!$E$2:$E$8408,Sheet3!CG$4,Sheet4!$A$2:$A$8408,Sheet3!$B$1,Sheet4!$B$2:$B$8408,Sheet3!$A$3) -> 27 | CH8: =+SUMIFS(Sheet4!$DM$2:$DM$8408,Sheet4!$C$2:$C$8408,Sheet3!$B8,Sheet4!$D$2:$D$8408,Sheet3!CH$3,Sheet4!$E$2:$E$8408,Sheet3!CH$4,Sheet4!$A$2:$A$8408,Sheet3!$B$1,Sheet4!$B$2:$B$8408,Sheet3!$A$3) -> 3 | CI8: =+SUMIFS(Sheet4!$DM$2:$DM$8408,Sheet4!$C$2:$C$8408,Sheet3!$B8,Sheet4!$D$2:$D$8408,Sheet3!CI$3,Sheet4!$E$2:$E$8408,Sheet3!CI$4,Sheet4!$A$2:$A$8408,Sheet3!$B$1,Sheet4!$B$2:$B$8408,Sheet3!$A$3) -> 0 | CJ8: =+SUMIFS(Sheet4!$DM$2:$DM$8408,Sheet4!$C$2:$C$8408,Sheet3!$B8,Sheet4!$D$2:$D$8408,Sheet3!CJ$3,Sheet4!$E$2:$E$8408,Sheet3!CJ$4,Sheet4!$A$2:$A$8408,Sheet3!$B$1,Sheet4!$B$2:$B$8408,Sheet3!$A$3) -> 0 | CK8: =+SUMIFS(Sheet4!$DM$2:$DM$8408,Sheet4!$C$2:$C$8408,Sheet3!$B8,Sheet4!$D$2:$D$8408,Sheet3!CK$3,Sheet4!$E$2:$E$8408,Sheet3!CK$4,Sheet4!$A$2:$A$8408,Sheet3!$B$1,Sheet4!$B$2:$B$8408,Sheet3!$A$3) -> 0 | CL8: =+SUMIFS(Sheet4!$DM$2:$DM$8408,Sheet4!$C$2:$C$8408,Sheet3!$B8,Sheet4!$D$2:$D$8408,Sheet3!CL$3,Sheet4!$E$2:$E$8408,Sheet3!CL$4,Sheet4!$A$2:$A$8408,Sheet3!$B$1,Sheet4!$B$2:$B$8408,Sheet3!$A$3) -> 0 | CM8: =+SUMIFS(Sheet4!$DM$2:$DM$8408,Sheet4!$C$2:$C$8408,Sheet3!$B8,Sheet4!$D$2:$D$8408,Sheet3!CM$3,Sheet4!$E$2:$E$8408,Sheet3!CM$4,Sheet4!$A$2:$A$8408,Sheet3!$B$1,Sheet4!$B$2:$B$8408,Sheet3!$A$3) -> 0 | CN8: =+SUMIFS(Sheet4!$DM$2:$DM$8408,Sheet4!$C$2:$C$8408,Sheet3!$B8,Sheet4!$D$2:$D$8408,Sheet3!CN$3,Sheet4!$E$2:$E$8408,Sheet3!CN$4,Sheet4!$A$2:$A$8408,Sheet3!$B$1,Sheet4!$B$2:$B$8408,Sheet3!$A$3) -> 0 | CO8: =+SUMIFS(Sheet4!$DM$2:$DM$8408,Sheet4!$C$2:$C$8408,Sheet3!$B8,Sheet4!$D$2:$D$8408,Sheet3!CO$3,Sheet4!$E$2:$E$8408,Sheet3!CO$4,Sheet4!$A$2:$A$8408,Sheet3!$B$1,Sheet4!$B$2:$B$8408,Sheet3!$A$3) -> 0 | CP8: =+SUMIFS(Sheet4!$DM$2:$DM$8408,Sheet4!$C$2:$C$8408,Sheet3!$B8,Sheet4!$D$2:$D$8408,Sheet3!CP$3,Sheet4!$E$2:$E$8408,Sheet3!CP$4,Sheet4!$A$2:$A$8408,Sheet3!$B$1,Sheet4!$B$2:$B$8408,Sheet3!$A$3) -> 0 | CQ8: =+SUMIFS(Sheet4!$DM$2:$DM$8408,Sheet4!$C$2:$C$8408,Sheet3!$B8,Sheet4!$D$2:$D$8408,Sheet3!CQ$3,Sheet4!$E$2:$E$8408,Sheet3!CQ$4,Sheet4!$A$2:$A$8408,Sheet3!$B$1,Sheet4!$B$2:$B$8408,Sheet3!$A$3) -> 0 | CR8: =+SUMIFS(Sheet4!$DM$2:$DM$8408,Sheet4!$C$2:$C$8408,Sheet3!$B8,Sheet4!$D$2:$D$8408,Sheet3!CR$3,Sheet4!$E$2:$E$8408,Sheet3!CR$4,Sheet4!$A$2:$A$8408,Sheet3!$B$1,Sheet4!$B$2:$B$8408,Sheet3!$A$3) -> 0 | CS8: =+SUMIFS(Sheet4!$DM$2:$DM$8408,Sheet4!$C$2:$C$8408,Sheet3!$B8,Sheet4!$D$2:$D$8408,Sheet3!CS$3,Sheet4!$E$2:$E$8408,Sheet3!CS$4,Sheet4!$A$2:$A$8408,Sheet3!$B$1,Sheet4!$B$2:$B$8408,Sheet3!$A$3) -> 0 | CT8: =+SUMIFS(Sheet4!$DM$2:$DM$8408,Sheet4!$C$2:$C$8408,Sheet3!$B8,Sheet4!$D$2:$D$8408,Sheet3!CT$3,Sheet4!$E$2:$E$8408,Sheet3!CT$4,Sheet4!$A$2:$A$8408,Sheet3!$B$1,Sheet4!$B$2:$B$8408,Sheet3!$A$3) -> 0 | CU8: =+IF(SUMIFS(Sheet4!$DN$2:$DN$8408,Sheet4!$C$2:$C$8408,Sheet3!$B8,Sheet4!$D$2:$D$8408,Sheet3!CU$3,Sheet4!$A$2:$A$8408,Sheet3!$B$1,Sheet4!$B$2:$B$8408,Sheet3!$A$3)<3,0,SUMIFS(Sheet4!$DN$2:$DN$8408,Sheet4!$C$2:$C$8408,Sheet3!$B8,Sheet4!$D$2:$D$8408,Sheet3!CU$3,Sheet4!$A$2:$A$8408,Sheet3!$B$1,Sheet4!$B$2:$B$8408,Sheet3!$A$3)) -> 0 | CV8: =+IF(SUMIFS(Sheet4!$DN$2:$DN$8408,Sheet4!$C$2:$C$8408,Sheet3!$B8,Sheet4!$D$2:$D$8408,Sheet3!CV$3,Sheet4!$A$2:$A$8408,Sheet3!$B$1,Sheet4!$B$2:$B$8408,Sheet3!$A$3)<3,0,SUMIFS(Sheet4!$DN$2:$DN$8408,Sheet4!$C$2:$C$8408,Sheet3!$B8,Sheet4!$D$2:$D$8408,Sheet3!CV$3,Sheet4!$A$2:$A$8408,Sheet3!$B$1,Sheet4!$B$2:$B$8408,Sheet3!$A$3)) -> 305 | CW8: =+IF(SUMIFS(Sheet4!$DN$2:$DN$8408,Sheet4!$C$2:$C$8408,Sheet3!$B8,Sheet4!$D$2:$D$8408,Sheet3!CW$3,Sheet4!$A$2:$A$8408,Sheet3!$B$1,Sheet4!$B$2:$B$8408,Sheet3!$A$3)<3,0,SUMIFS(Sheet4!$DN$2:$DN$8408,Sheet4!$C$2:$C$8408,Sheet3!$B8,Sheet4!$D$2:$D$8408,Sheet3!CW$3,Sheet4!$A$2:$A$8408,Sheet3!$B$1,Sheet4!$B$2:$B$8408,Sheet3!$A$3)) -> 134 | CX8: =+IF(SUMIFS(Sheet4!$DN$2:$DN$8408,Sheet4!$C$2:$C$8408,Sheet3!$B8,Sheet4!$D$2:$D$8408,Sheet3!CX$3,Sheet4!$A$2:$A$8408,Sheet3!$B$1,Sheet4!$B$2:$B$8408,Sheet3!$A$3)<3,0,SUMIFS(Sheet4!$DN$2:$DN$8408,Sheet4!$C$2:$C$8408,Sheet3!$B8,Sheet4!$D$2:$D$8408,Sheet3!CX$3,Sheet4!$A$2:$A$8408,Sheet3!$B$1,Sheet4!$B$2:$B$8408,Sheet3!$A$3)) -> 0 | CY8: =+IF(SUMIFS(Sheet4!$DN$2:$DN$8408,Sheet4!$C$2:$C$8408,Sheet3!$B8,Sheet4!$D$2:$D$8408,Sheet3!CY$3,Sheet4!$A$2:$A$8408,Sheet3!$B$1,Sheet4!$B$2:$B$8408,Sheet3!$A$3)<3,0,SUMIFS(Sheet4!$DN$2:$DN$8408,Sheet4!$C$2:$C$8408,Sheet3!$B8,Sheet4!$D$2:$D$8408,Sheet3!CY$3,Sheet4!$A$2:$A$8408,Sheet3!$B$1,Sheet4!$B$2:$B$8408,Sheet3!$A$3)) -> 0 | CZ8: =+IF(SUMIFS(Sheet4!$DN$2:$DN$8408,Sheet4!$C$2:$C$8408,Sheet3!$B8,Sheet4!$D$2:$D$8408,Sheet3!CZ$3,Sheet4!$A$2:$A$8408,Sheet3!$B$1,Sheet4!$B$2:$B$8408,Sheet3!$A$3)<3,0,SUMIFS(Sheet4!$DN$2:$DN$8408,Sheet4!$C$2:$C$8408,Sheet3!$B8,Sheet4!$D$2:$D$8408,Sheet3!CZ$3,Sheet4!$A$2:$A$8408,Sheet3!$B$1,Sheet4!$B$2:$B$8408,Sheet3!$A$3)) -> 182 | DA8: =+IF(SUMIFS(Sheet4!$DN$2:$DN$8408,Sheet4!$C$2:$C$8408,Sheet3!$B8,Sheet4!$D$2:$D$8408,Sheet3!DA$3,Sheet4!$A$2:$A$8408,Sheet3!$B$1,Sheet4!$B$2:$B$8408,Sheet3!$A$3)<3,0,SUMIFS(Sheet4!$DN$2:$DN$8408,Sheet4!$C$2:$C$8408,Sheet3!$B8,Sheet4!$D$2:$D$8408,Sheet3!DA$3,Sheet4!$A$2:$A$8408,Sheet3!$B$1,Sheet4!$B$2:$B$8408,Sheet3!$A$3)) -> 765 | DB8: =+IF(SUMIFS(Sheet4!$DN$2:$DN$8408,Sheet4!$C$2:$C$8408,Sheet3!$B8,Sheet4!$D$2:$D$8408,Sheet3!DB$3,Sheet4!$A$2:$A$8408,Sheet3!$B$1,Sheet4!$B$2:$B$8408,Sheet3!$A$3)<3,0,SUMIFS(Sheet4!$DN$2:$DN$8408,Sheet4!$C$2:$C$8408,Sheet3!$B8,Sheet4!$D$2:$D$8408,Sheet3!DB$3,Sheet4!$A$2:$A$8408,Sheet3!$B$1,Sheet4!$B$2:$B$8408,Sheet3!$A$3)) -> 175 | DC8: =+IF(SUMIFS(Sheet4!$DN$2:$DN$8408,Sheet4!$C$2:$C$8408,Sheet3!$B8,Sheet4!$D$2:$D$8408,Sheet3!DC$3,Sheet4!$A$2:$A$8408,Sheet3!$B$1,Sheet4!$B$2:$B$8408,Sheet3!$A$3)<3,0,SUMIFS(Sheet4!$DN$2:$DN$8408,Sheet4!$C$2:$C$8408,Sheet3!$B8,Sheet4!$D$2:$D$8408,Sheet3!DC$3,Sheet4!$A$2:$A$8408,Sheet3!$B$1,Sheet4!$B$2:$B$8408,Sheet3!$A$3)) -> 0 | DD8: =+IF(SUMIFS(Sheet4!$DN$2:$DN$8408,Sheet4!$C$2:$C$8408,Sheet3!$B8,Sheet4!$D$2:$D$8408,Sheet3!DD$3,Sheet4!$A$2:$A$8408,Sheet3!$B$1,Sheet4!$B$2:$B$8408,Sheet3!$A$3)<3,0,SUMIFS(Sheet4!$DN$2:$DN$8408,Sheet4!$C$2:$C$8408,Sheet3!$B8,Sheet4!$D$2:$D$8408,Sheet3!DD$3,Sheet4!$A$2:$A$8408,Sheet3!$B$1,Sheet4!$B$2:$B$8408,Sheet3!$A$3)) -> 2279 | DE8: =+IF(SUMIFS(Sheet4!$DN$2:$DN$8408,Sheet4!$C$2:$C$8408,Sheet3!$B8,Sheet4!$D$2:$D$8408,Sheet3!DE$3,Sheet4!$A$2:$A$8408,Sheet3!$B$1,Sheet4!$B$2:$B$8408,Sheet3!$A$3)<3,0,SUMIFS(Sheet4!$DN$2:$DN$8408,Sheet4!$C$2:$C$8408,Sheet3!$B8,Sheet4!$D$2:$D$8408,Sheet3!DE$3,Sheet4!$A$2:$A$8408,Sheet3!$B$1,Sheet4!$B$2:$B$8408,Sheet3!$A$3)) -> 61 | DF8: =+IF(SUMIFS(Sheet4!$DN$2:$DN$8408,Sheet4!$C$2:$C$8408,Sheet3!$B8,Sheet4!$D$2:$D$8408,Sheet3!DF$3,Sheet4!$A$2:$A$8408,Sheet3!$B$1,Sheet4!$B$2:$B$8408,Sheet3!$A$3)<3,0,SUMIFS(Sheet4!$DN$2:$DN$8408,Sheet4!$C$2:$C$8408,Sheet3!$B8,Sheet4!$D$2:$D$8408,Sheet3!DF$3,Sheet4!$A$2:$A$8408,Sheet3!$B$1,Sheet4!$B$2:$B$8408,Sheet3!$A$3)) -> 272 | DG8: =+IF(SUMIFS(Sheet4!$DN$2:$DN$8408,Sheet4!$C$2:$C$8408,Sheet3!$B8,Sheet4!$D$2:$D$8408,Sheet3!DG$3,Sheet4!$A$2:$A$8408,Sheet3!$B$1,Sheet4!$B$2:$B$8408,Sheet3!$A$3)<3,0,SUMIFS(Sheet4!$DN$2:$DN$8408,Sheet4!$C$2:$C$8408,Sheet3!$B8,Sheet4!$D$2:$D$8408,Sheet3!DG$3,Sheet4!$A$2:$A$8408,Sheet3!$B$1,Sheet4!$B$2:$B$8408,Sheet3!$A$3)) -> 186 | DH8: =+IF(SUMIFS(Sheet4!$DN$2:$DN$8408,Sheet4!$C$2:$C$8408,Sheet3!$B8,Sheet4!$D$2:$D$8408,Sheet3!DH$3,Sheet4!$A$2:$A$8408,Sheet3!$B$1,Sheet4!$B$2:$B$8408,Sheet3!$A$3)<3,0,SUMIFS(Sheet4!$DN$2:$DN$8408,Sheet4!$C$2:$C$8408,Sheet3!$B8,Sheet4!$D$2:$D$8408,Sheet3!DH$3,Sheet4!$A$2:$A$8408,Sheet3!$B$1,Sheet4!$B$2:$B$8408,Sheet3!$A$3)) -> 860 | DI8: =+IF(SUMIFS(Sheet4!$DN$2:$DN$8408,Sheet4!$C$2:$C$8408,Sheet3!$B8,Sheet4!$D$2:$D$8408,Sheet3!DI$3,Sheet4!$A$2:$A$8408,Sheet3!$B$1,Sheet4!$B$2:$B$8408,Sheet3!$A$3)<3,0,SUMIFS(Sheet4!$DN$2:$DN$8408,Sheet4!$C$2:$C$8408,Sheet3!$B8,Sheet4!$D$2:$D$8408,Sheet3!DI$3,Sheet4!$A$2:$A$8408,Sheet3!$B$1,Sheet4!$B$2:$B$8408,Sheet3!$A$3)) -> 1315 | DJ8: =+IF(SUMIFS(Sheet4!$DN$2:$DN$8408,Sheet4!$C$2:$C$8408,Sheet3!$B8,Sheet4!$D$2:$D$8408,Sheet3!DJ$3,Sheet4!$A$2:$A$8408,Sheet3!$B$1,Sheet4!$B$2:$B$8408,Sheet3!$A$3)<3,0,SUMIFS(Sheet4!$DN$2:$DN$8408,Sheet4!$C$2:$C$8408,Sheet3!$B8,Sheet4!$D$2:$D$8408,Sheet3!DJ$3,Sheet4!$A$2:$A$8408,Sheet3!$B$1,Sheet4!$B$2:$B$8408,Sheet3!$A$3)) -> 1071 | DK8: =+IF(SUMIFS(Sheet4!$DN$2:$DN$8408,Sheet4!$C$2:$C$8408,Sheet3!$B8,Sheet4!$D$2:$D$8408,Sheet3!DK$3,Sheet4!$A$2:$A$8408,Sheet3!$B$1,Sheet4!$B$2:$B$8408,Sheet3!$A$3)<3,0,SUMIFS(Sheet4!$DN$2:$DN$8408,Sheet4!$C$2:$C$8408,Sheet3!$B8,Sheet4!$D$2:$D$8408,Sheet3!DK$3,Sheet4!$A$2:$A$8408,Sheet3!$B$1,Sheet4!$B$2:$B$8408,Sheet3!$A$3)) -> 344 | DL8: =+IF(SUMIFS(Sheet4!$DN$2:$DN$8408,Sheet4!$C$2:$C$8408,Sheet3!$B8,Sheet4!$D$2:$D$8408,Sheet3!DL$3,Sheet4!$A$2:$A$8408,Sheet3!$B$1,Sheet4!$B$2:$B$8408,Sheet3!$A$3)<3,0,SUMIFS(Sheet4!$DN$2:$DN$8408,Sheet4!$C$2:$C$8408,Sheet3!$B8,Sheet4!$D$2:$D$8408,Sheet3!DL$3,Sheet4!$A$2:$A$8408,Sheet3!$B$1,Sheet4!$B$2:$B$8408,Sheet3!$A$3)) -> 0 | DM8: =+IF(SUMIFS(Sheet4!$DN$2:$DN$8408,Sheet4!$C$2:$C$8408,Sheet3!$B8,Sheet4!$D$2:$D$8408,Sheet3!DM$3,Sheet4!$A$2:$A$8408,Sheet3!$B$1,Sheet4!$B$2:$B$8408,Sheet3!$A$3)<3,0,SUMIFS(Sheet4!$DN$2:$DN$8408,Sheet4!$C$2:$C$8408,Sheet3!$B8,Sheet4!$D$2:$D$8408,Sheet3!DM$3,Sheet4!$A$2:$A$8408,Sheet3!$B$1,Sheet4!$B$2:$B$8408,Sheet3!$A$3)) -> 0 | DN8: =+IF(SUMIFS(Sheet4!$DN$2:$DN$8408,Sheet4!$C$2:$C$8408,Sheet3!$B8,Sheet4!$E$2:$E$8408,Sheet3!DN$4,Sheet4!$A$2:$A$8408,Sheet3!$B$1,Sheet4!$B$2:$B$8408,Sheet3!$A$3)<3,0,SUMIFS(Sheet4!$DN$2:$DN$8408,Sheet4!$C$2:$C$8408,Sheet3!$B8,Sheet4!$E$2:$E$8408,Sheet3!DN$4,Sheet4!$A$2:$A$8408,Sheet3!$B$1,Sheet4!$B$2:$B$8408,Sheet3!$A$3)) -> 5020 | DO8: =+IF(SUMIFS(Sheet4!$DN$2:$DN$8408,Sheet4!$C$2:$C$8408,Sheet3!$B8,Sheet4!$E$2:$E$8408,Sheet3!DO$4,Sheet4!$A$2:$A$8408,Sheet3!$B$1,Sheet4!$B$2:$B$8408,Sheet3!$A$3)<3,0,SUMIFS(Sheet4!$DN$2:$DN$8408,Sheet4!$C$2:$C$8408,Sheet3!$B8,Sheet4!$E$2:$E$8408,Sheet3!DO$4,Sheet4!$A$2:$A$8408,Sheet3!$B$1,Sheet4!$B$2:$B$8408,Sheet3!$A$3)) -> 2468 | DP8: =+IF(SUMIFS(Sheet4!$DN$2:$DN$8408,Sheet4!$C$2:$C$8408,Sheet3!$B8,Sheet4!$E$2:$E$8408,Sheet3!DP$4,Sheet4!$A$2:$A$8408,Sheet3!$B$1,Sheet4!$B$2:$B$8408,Sheet3!$A$3)<3,0,SUMIFS(Sheet4!$DN$2:$DN$8408,Sheet4!$C$2:$C$8408,Sheet3!$B8,Sheet4!$E$2:$E$8408,Sheet3!DP$4,Sheet4!$A$2:$A$8408,Sheet3!$B$1,Sheet4!$B$2:$B$8408,Sheet3!$A$3)) -> 377 | DQ8: =+IF(SUMIFS(Sheet4!$DN$2:$DN$8408,Sheet4!$C$2:$C$8408,Sheet3!$B8,Sheet4!$E$2:$E$8408,Sheet3!DQ$4,Sheet4!$A$2:$A$8408,Sheet3!$B$1,Sheet4!$B$2:$B$8408,Sheet3!$A$3)<3,0,SUMIFS(Sheet4!$DN$2:$DN$8408,Sheet4!$C$2:$C$8408,Sheet3!$B8,Sheet4!$E$2:$E$8408,Sheet3!DQ$4,Sheet4!$A$2:$A$8408,Sheet3!$B$1,Sheet4!$B$2:$B$8408,Sheet3!$A$3)) -> 76 | DR8: =+IF(SUMIFS(Sheet4!$DN$2:$DN$8408,Sheet4!$C$2:$C$8408,Sheet3!$B8,Sheet4!$E$2:$E$8408,Sheet3!DR$4,Sheet4!$A$2:$A$8408,Sheet3!$B$1,Sheet4!$B$2:$B$8408,Sheet3!$A$3)<3,0,SUMIFS(Sheet4!$DN$2:$DN$8408,Sheet4!$C$2:$C$8408,Sheet3!$B8,Sheet4!$E$2:$E$8408,Sheet3!DR$4,Sheet4!$A$2:$A$8408,Sheet3!$B$1,Sheet4!$B$2:$B$8408,Sheet3!$A$3)) -> 13
A9: 1 | B9: 112 | C9: Cávado | D9: =+SUMIFS(Sheet4!$DM$2:$DM$8408,Sheet4!$C$2:$C$8408,Sheet3!$B9,Sheet4!$D$2:$D$8408,Sheet3!D$3,Sheet4!$E$2:$E$8408,Sheet3!D$4,Sheet4!$A$2:$A$8408,Sheet3!$B$1,Sheet4!$B$2:$B$8408,Sheet3!$A$3) -> 0 | E9: =+SUMIFS(Sheet4!$DM$2:$DM$8408,Sheet4!$C$2:$C$8408,Sheet3!$B9,Sheet4!$D$2:$D$8408,Sheet3!E$3,Sheet4!$E$2:$E$8408,Sheet3!E$4,Sheet4!$A$2:$A$8408,Sheet3!$B$1,Sheet4!$B$2:$B$8408,Sheet3!$A$3) -> 0 | F9: =+SUMIFS(Sheet4!$DM$2:$DM$8408,Sheet4!$C$2:$C$8408,Sheet3!$B9,Sheet4!$D$2:$D$8408,Sheet3!F$3,Sheet4!$E$2:$E$8408,Sheet3!F$4,Sheet4!$A$2:$A$8408,Sheet3!$B$1,Sheet4!$B$2:$B$8408,Sheet3!$A$3) -> 0 | G9: =+SUMIFS(Sheet4!$DM$2:$DM$8408,Sheet4!$C$2:$C$8408,Sheet3!$B9,Sheet4!$D$2:$D$8408,Sheet3!G$3,Sheet4!$E$2:$E$8408,Sheet3!G$4,Sheet4!$A$2:$A$8408,Sheet3!$B$1,Sheet4!$B$2:$B$8408,Sheet3!$A$3) -> 0 | H9: =+SUMIFS(Sheet4!$DM$2:$DM$8408,Sheet4!$C$2:$C$8408,Sheet3!$B9,Sheet4!$D$2:$D$8408,Sheet3!H$3,Sheet4!$E$2:$E$8408,Sheet3!H$4,Sheet4!$A$2:$A$8408,Sheet3!$B$1,Sheet4!$B$2:$B$8408,Sheet3!$A$3) -> 0 | I9: =+SUMIFS(Sheet4!$DM$2:$DM$8408,Sheet4!$C$2:$C$8408,Sheet3!$B9,Sheet4!$D$2:$D$8408,Sheet3!I$3,Sheet4!$E$2:$E$8408,Sheet3!I$4,Sheet4!$A$2:$A$8408,Sheet3!$B$1,Sheet4!$B$2:$B$8408,Sheet3!$A$3) -> 883 | J9: =+SUMIFS(Sheet4!$DM$2:$DM$8408,Sheet4!$C$2:$C$8408,Sheet3!$B9,Sheet4!$D$2:$D$8408,Sheet3!J$3,Sheet4!$E$2:$E$8408,Sheet3!J$4,Sheet4!$A$2:$A$8408,Sheet3!$B$1,Sheet4!$B$2:$B$8408,Sheet3!$A$3) -> 113 | K9: =+SUMIFS(Sheet4!$DM$2:$DM$8408,Sheet4!$C$2:$C$8408,Sheet3!$B9,Sheet4!$D$2:$D$8408,Sheet3!K$3,Sheet4!$E$2:$E$8408,Sheet3!K$4,Sheet4!$A$2:$A$8408,Sheet3!$B$1,Sheet4!$B$2:$B$8408,Sheet3!$A$3) -> 5 | L9: =+SUMIFS(Sheet4!$DM$2:$DM$8408,Sheet4!$C$2:$C$8408,Sheet3!$B9,Sheet4!$D$2:$D$8408,Sheet3!L$3,Sheet4!$E$2:$E$8408,Sheet3!L$4,Sheet4!$A$2:$A$8408,Sheet3!$B$1,Sheet4!$B$2:$B$8408,Sheet3!$A$3) -> 6 | M9: =+SUMIFS(Sheet4!$DM$2:$DM$8408,Sheet4!$C$2:$C$8408,Sheet3!$B9,Sheet4!$D$2:$D$8408,Sheet3!M$3,Sheet4!$E$2:$E$8408,Sheet3!M$4,Sheet4!$A$2:$A$8408,Sheet3!$B$1,Sheet4!$B$2:$B$8408,Sheet3!$A$3) -> 0 | N9: =+SUMIFS(Sheet4!$DM$2:$DM$8408,Sheet4!$C$2:$C$8408,Sheet3!$B9,Sheet4!$D$2:$D$8408,Sheet3!N$3,Sheet4!$E$2:$E$8408,Sheet3!N$4,Sheet4!$A$2:$A$8408,Sheet3!$B$1,Sheet4!$B$2:$B$8408,Sheet3!$A$3) -> 283 | O9: =+SUMIFS(Sheet4!$DM$2:$DM$8408,Sheet4!$C$2:$C$8408,Sheet3!$B9,Sheet4!$D$2:$D$8408,Sheet3!O$3,Sheet4!$E$2:$E$8408,Sheet3!O$4,Sheet4!$A$2:$A$8408,Sheet3!$B$1,Sheet4!$B$2:$B$8408,Sheet3!$A$3) -> 32 | P9: =+SUMIFS(Sheet4!$DM$2:$DM$8408,Sheet4!$C$2:$C$8408,Sheet3!$B9,Sheet4!$D$2:$D$8408,Sheet3!P$3,Sheet4!$E$2:$E$8408,Sheet3!P$4,Sheet4!$A$2:$A$8408,Sheet3!$B$1,Sheet4!$B$2:$B$8408,Sheet3!$A$3) -> 0 | Q9: =+SUMIFS(Sheet4!$DM$2:$DM$8408,Sheet4!$C$2:$C$8408,Sheet3!$B9,Sheet4!$D$2:$D$8408,Sheet3!Q$3,Sheet4!$E$2:$E$8408,Sheet3!Q$4,Sheet4!$A$2:$A$8408,Sheet3!$B$1,Sheet4!$B$2:$B$8408,Sheet3!$A$3) -> 0 | R9: =+SUMIFS(Sheet4!$DM$2:$DM$8408,Sheet4!$C$2:$C$8408,Sheet3!$B9,Sheet4!$D$2:$D$8408,Sheet3!R$3,Sheet4!$E$2:$E$8408,Sheet3!R$4,Sheet4!$A$2:$A$8408,Sheet3!$B$1,Sheet4!$B$2:$B$8408,Sheet3!$A$3) -> 0 | S9: =+SUMIFS(Sheet4!$DM$2:$DM$8408,Sheet4!$C$2:$C$8408,Sheet3!$B9,Sheet4!$D$2:$D$8408,Sheet3!S$3,Sheet4!$E$2:$E$8408,Sheet3!S$4,Sheet4!$A$2:$A$8408,Sheet3!$B$1,Sheet4!$B$2:$B$8408,Sheet3!$A$3) -> 0 | T9: =+SUMIFS(Sheet4!$DM$2:$DM$8408,Sheet4!$C$2:$C$8408,Sheet3!$B9,Sheet4!$D$2:$D$8408,Sheet3!T$3,Sheet4!$E$2:$E$8408,Sheet3!T$4,Sheet4!$A$2:$A$8408,Sheet3!$B$1,Sheet4!$B$2:$B$8408,Sheet3!$A$3) -> 0 | U9: =+SUMIFS(Sheet4!$DM$2:$DM$8408,Sheet4!$C$2:$C$8408,Sheet3!$B9,Sheet4!$D$2:$D$8408,Sheet3!U$3,Sheet4!$E$2:$E$8408,Sheet3!U$4,Sheet4!$A$2:$A$8408,Sheet3!$B$1,Sheet4!$B$2:$B$8408,Sheet3!$A$3) -> 0 | V9: =+SUMIFS(Sheet4!$DM$2:$DM$8408,Sheet4!$C$2:$C$8408,Sheet3!$B9,Sheet4!$D$2:$D$8408,Sheet3!V$3,Sheet4!$E$2:$E$8408,Sheet3!V$4,Sheet4!$A$2:$A$8408,Sheet3!$B$1,Sheet4!$B$2:$B$8408,Sheet3!$A$3) -> 0 | W9: =+SUMIFS(Sheet4!$DM$2:$DM$8408,Sheet4!$C$2:$C$8408,Sheet3!$B9,Sheet4!$D$2:$D$8408,Sheet3!W$3,Sheet4!$E$2:$E$8408,Sheet3!W$4,Sheet4!$A$2:$A$8408,Sheet3!$B$1,Sheet4!$B$2:$B$8408,Sheet3!$A$3) -> 0 | X9: =+SUMIFS(Sheet4!$DM$2:$DM$8408,Sheet4!$C$2:$C$8408,Sheet3!$B9,Sheet4!$D$2:$D$8408,Sheet3!X$3,Sheet4!$E$2:$E$8408,Sheet3!X$4,Sheet4!$A$2:$A$8408,Sheet3!$B$1,Sheet4!$B$2:$B$8408,Sheet3!$A$3) -> 0 | Y9: =+SUMIFS(Sheet4!$DM$2:$DM$8408,Sheet4!$C$2:$C$8408,Sheet3!$B9,Sheet4!$D$2:$D$8408,Sheet3!Y$3,Sheet4!$E$2:$E$8408,Sheet3!Y$4,Sheet4!$A$2:$A$8408,Sheet3!$B$1,Sheet4!$B$2:$B$8408,Sheet3!$A$3) -> 0 | Z9: =+SUMIFS(Sheet4!$DM$2:$DM$8408,Sheet4!$C$2:$C$8408,Sheet3!$B9,Sheet4!$D$2:$D$8408,Sheet3!Z$3,Sheet4!$E$2:$E$8408,Sheet3!Z$4,Sheet4!$A$2:$A$8408,Sheet3!$B$1,Sheet4!$B$2:$B$8408,Sheet3!$A$3) -> 0 | AA9: =+SUMIFS(Sheet4!$DM$2:$DM$8408,Sheet4!$C$2:$C$8408,Sheet3!$B9,Sheet4!$D$2:$D$8408,Sheet3!AA$3,Sheet4!$E$2:$E$8408,Sheet3!AA$4,Sheet4!$A$2:$A$8408,Sheet3!$B$1,Sheet4!$B$2:$B$8408,Sheet3!$A$3) -> 0 | AB9: =+SUMIFS(Sheet4!$DM$2:$DM$8408,Sheet4!$C$2:$C$8408,Sheet3!$B9,Sheet4!$D$2:$D$8408,Sheet3!AB$3,Sheet4!$E$2:$E$8408,Sheet3!AB$4,Sheet4!$A$2:$A$8408,Sheet3!$B$1,Sheet4!$B$2:$B$8408,Sheet3!$A$3) -> 0 | AC9: =+SUMIFS(Sheet4!$DM$2:$DM$8408,Sheet4!$C$2:$C$8408,Sheet3!$B9,Sheet4!$D$2:$D$8408,Sheet3!AC$3,Sheet4!$E$2:$E$8408,Sheet3!AC$4,Sheet4!$A$2:$A$8408,Sheet3!$B$1,Sheet4!$B$2:$B$8408,Sheet3!$A$3) -> 204 | AD9: =+SUMIFS(Sheet4!$DM$2:$DM$8408,Sheet4!$C$2:$C$8408,Sheet3!$B9,Sheet4!$D$2:$D$8408,Sheet3!AD$3,Sheet4!$E$2:$E$8408,Sheet3!AD$4,Sheet4!$A$2:$A$8408,Sheet3!$B$1,Sheet4!$B$2:$B$8408,Sheet3!$A$3) -> 195 | AE9: =+SUMIFS(Sheet4!$DM$2:$DM$8408,Sheet4!$C$2:$C$8408,Sheet3!$B9,Sheet4!$D$2:$D$8408,Sheet3!AE$3,Sheet4!$E$2:$E$8408,Sheet3!AE$4,Sheet4!$A$2:$A$8408,Sheet3!$B$1,Sheet4!$B$2:$B$8408,Sheet3!$A$3) -> 40 | AF9: =+SUMIFS(Sheet4!$DM$2:$DM$8408,Sheet4!$C$2:$C$8408,Sheet3!$B9,Sheet4!$D$2:$D$8408,Sheet3!AF$3,Sheet4!$E$2:$E$8408,Sheet3!AF$4,Sheet4!$A$2:$A$8408,Sheet3!$B$1,Sheet4!$B$2:$B$8408,Sheet3!$A$3) -> 0 | AG9: =+SUMIFS(Sheet4!$DM$2:$DM$8408,Sheet4!$C$2:$C$8408,Sheet3!$B9,Sheet4!$D$2:$D$8408,Sheet3!AG$3,Sheet4!$E$2:$E$8408,Sheet3!AG$4,Sheet4!$A$2:$A$8408,Sheet3!$B$1,Sheet4!$B$2:$B$8408,Sheet3!$A$3) -> 0 | AH9: =+SUMIFS(Sheet4!$DM$2:$DM$8408,Sheet4!$C$2:$C$8408,Sheet3!$B9,Sheet4!$D$2:$D$8408,Sheet3!AH$3,Sheet4!$E$2:$E$8408,Sheet3!AH$4,Sheet4!$A$2:$A$8408,Sheet3!$B$1,Sheet4!$B$2:$B$8408,Sheet3!$A$3) -> 40 | AI9: =+SUMIFS(Sheet4!$DM$2:$DM$8408,Sheet4!$C$2:$C$8408,Sheet3!$B9,Sheet4!$D$2:$D$8408,Sheet3!AI$3,Sheet4!$E$2:$E$8408,Sheet3!AI$4,Sheet4!$A$2:$A$8408,Sheet3!$B$1,Sheet4!$B$2:$B$8408,Sheet3!$A$3) -> 63 | AJ9: =+SUMIFS(Sheet4!$DM$2:$DM$8408,Sheet4!$C$2:$C$8408,Sheet3!$B9,Sheet4!$D$2:$D$8408,Sheet3!AJ$3,Sheet4!$E$2:$E$8408,Sheet3!AJ$4,Sheet4!$A$2:$A$8408,Sheet3!$B$1,Sheet4!$B$2:$B$8408,Sheet3!$A$3) -> 16 | AK9: =+SUMIFS(Sheet4!$DM$2:$DM$8408,Sheet4!$C$2:$C$8408,Sheet3!$B9,Sheet4!$D$2:$D$8408,Sheet3!AK$3,Sheet4!$E$2:$E$8408,Sheet3!AK$4,Sheet4!$A$2:$A$8408,Sheet3!$B$1,Sheet4!$B$2:$B$8408,Sheet3!$A$3) -> 0 | AL9: =+SUMIFS(Sheet4!$DM$2:$DM$8408,Sheet4!$C$2:$C$8408,Sheet3!$B9,Sheet4!$D$2:$D$8408,Sheet3!AL$3,Sheet4!$E$2:$E$8408,Sheet3!AL$4,Sheet4!$A$2:$A$8408,Sheet3!$B$1,Sheet4!$B$2:$B$8408,Sheet3!$A$3) -> 0 | AM9: =+SUMIFS(Sheet4!$DM$2:$DM$8408,Sheet4!$C$2:$C$8408,Sheet3!$B9,Sheet4!$D$2:$D$8408,Sheet3!AM$3,Sheet4!$E$2:$E$8408,Sheet3!AM$4,Sheet4!$A$2:$A$8408,Sheet3!$B$1,Sheet4!$B$2:$B$8408,Sheet3!$A$3) -> 29 | AN9: =+SUMIFS(Sheet4!$DM$2:$DM$8408,Sheet4!$C$2:$C$8408,Sheet3!$B9,Sheet4!$D$2:$D$8408,Sheet3!AN$3,Sheet4!$E$2:$E$8408,Sheet3!AN$4,Sheet4!$A$2:$A$8408,Sheet3!$B$1,Sheet4!$B$2:$B$8408,Sheet3!$A$3) -> 112 | AO9: =+SUMIFS(Sheet4!$DM$2:$DM$8408,Sheet4!$C$2:$C$8408,Sheet3!$B9,Sheet4!$D$2:$D$8408,Sheet3!AO$3,Sheet4!$E$2:$E$8408,Sheet3!AO$4,Sheet4!$A$2:$A$8408,Sheet3!$B$1,Sheet4!$B$2:$B$8408,Sheet3!$A$3) -> 98 | AP9: =+SUMIFS(Sheet4!$DM$2:$DM$8408,Sheet4!$C$2:$C$8408,Sheet3!$B9,Sheet4!$D$2:$D$8408,Sheet3!AP$3,Sheet4!$E$2:$E$8408,Sheet3!AP$4,Sheet4!$A$2:$A$8408,Sheet3!$B$1,Sheet4!$B$2:$B$8408,Sheet3!$A$3) -> 6 | AQ9: =+SUMIFS(Sheet4!$DM$2:$DM$8408,Sheet4!$C$2:$C$8408,Sheet3!$B9,Sheet4!$D$2:$D$8408,Sheet3!AQ$3,Sheet4!$E$2:$E$8408,Sheet3!AQ$4,Sheet4!$A$2:$A$8408,Sheet3!$B$1,Sheet4!$B$2:$B$8408,Sheet3!$A$3) -> 0 | AR9: =+SUMIFS(Sheet4!$DM$2:$DM$8408,Sheet4!$C$2:$C$8408,Sheet3!$B9,Sheet4!$D$2:$D$8408,Sheet3!AR$3,Sheet4!$E$2:$E$8408,Sheet3!AR$4,Sheet4!$A$2:$A$8408,Sheet3!$B$1,Sheet4!$B$2:$B$8408,Sheet3!$A$3) -> 0 | AS9: =+SUMIFS(Sheet4!$DM$2:$DM$8408,Sheet4!$C$2:$C$8408,Sheet3!$B9,Sheet4!$D$2:$D$8408,Sheet3!AS$3,Sheet4!$E$2:$E$8408,Sheet3!AS$4,Sheet4!$A$2:$A$8408,Sheet3!$B$1,Sheet4!$B$2:$B$8408,Sheet3!$A$3) -> 0 | AT9: =+SUMIFS(Sheet4!$DM$2:$DM$8408,Sheet4!$C$2:$C$8408,Sheet3!$B9,Sheet4!$D$2:$D$8408,Sheet3!AT$3,Sheet4!$E$2:$E$8408,Sheet3!AT$4,Sheet4!$A$2:$A$8408,Sheet3!$B$1,Sheet4!$B$2:$B$8408,Sheet3!$A$3) -> 0 | AU9: =+SUMIFS(Sheet4!$DM$2:$DM$8408,Sheet4!$C$2:$C$8408,Sheet3!$B9,Sheet4!$D$2:$D$8408,Sheet3!AU$3,Sheet4!$E$2:$E$8408,Sheet3!AU$4,Sheet4!$A$2:$A$8408,Sheet3!$B$1,Sheet4!$B$2:$B$8408,Sheet3!$A$3) -> 0 | AV9: =+SUMIFS(Sheet4!$DM$2:$DM$8408,Sheet4!$C$2:$C$8408,Sheet3!$B9,Sheet4!$D$2:$D$8408,Sheet3!AV$3,Sheet4!$E$2:$E$8408,Sheet3!AV$4,Sheet4!$A$2:$A$8408,Sheet3!$B$1,Sheet4!$B$2:$B$8408,Sheet3!$A$3) -> 0 | AW9: =+SUMIFS(Sheet4!$DM$2:$DM$8408,Sheet4!$C$2:$C$8408,Sheet3!$B9,Sheet4!$D$2:$D$8408,Sheet3!AW$3,Sheet4!$E$2:$E$8408,Sheet3!AW$4,Sheet4!$A$2:$A$8408,Sheet3!$B$1,Sheet4!$B$2:$B$8408,Sheet3!$A$3) -> 1628 | AX9: =+SUMIFS(Sheet4!$DM$2:$DM$8408,Sheet4!$C$2:$C$8408,Sheet3!$B9,Sheet4!$D$2:$D$8408,Sheet3!AX$3,Sheet4!$E$2:$E$8408,Sheet3!AX$4,Sheet4!$A$2:$A$8408,Sheet3!$B$1,Sheet4!$B$2:$B$8408,Sheet3!$A$3) -> 425 | AY9: =+SUMIFS(Sheet4!$DM$2:$DM$8408,Sheet4!$C$2:$C$8408,Sheet3!$B9,Sheet4!$D$2:$D$8408,Sheet3!AY$3,Sheet4!$E$2:$E$8408,Sheet3!AY$4,Sheet4!$A$2:$A$8408,Sheet3!$B$1,Sheet4!$B$2:$B$8408,Sheet3!$A$3) -> 16 | AZ9: =+SUMIFS(Sheet4!$DM$2:$DM$8408,Sheet4!$C$2:$C$8408,Sheet3!$B9,Sheet4!$D$2:$D$8408,Sheet3!AZ$3,Sheet4!$E$2:$E$8408,Sheet3!AZ$4,Sheet4!$A$2:$A$8408,Sheet3!$B$1,Sheet4!$B$2:$B$8408,Sheet3!$A$3) -> 0 | BA9: =+SUMIFS(Sheet4!$DM$2:$DM$8408,Sheet4!$C$2:$C$8408,Sheet3!$B9,Sheet4!$D$2:$D$8408,Sheet3!BA$3,Sheet4!$E$2:$E$8408,Sheet3!BA$4,Sheet4!$A$2:$A$8408,Sheet3!$B$1,Sheet4!$B$2:$B$8408,Sheet3!$A$3) -> 0 | BB9: =+SUMIFS(Sheet4!$DM$2:$DM$8408,Sheet4!$C$2:$C$8408,Sheet3!$B9,Sheet4!$D$2:$D$8408,Sheet3!BB$3,Sheet4!$E$2:$E$8408,Sheet3!BB$4,Sheet4!$A$2:$A$8408,Sheet3!$B$1,Sheet4!$B$2:$B$8408,Sheet3!$A$3) -> 0 | BC9: =+SUMIFS(Sheet4!$DM$2:$DM$8408,Sheet4!$C$2:$C$8408,Sheet3!$B9,Sheet4!$D$2:$D$8408,Sheet3!BC$3,Sheet4!$E$2:$E$8408,Sheet3!BC$4,Sheet4!$A$2:$A$8408,Sheet3!$B$1,Sheet4!$B$2:$B$8408,Sheet3!$A$3) -> 25 | BD9: =+SUMIFS(Sheet4!$DM$2:$DM$8408,Sheet4!$C$2:$C$8408,Sheet3!$B9,Sheet4!$D$2:$D$8408,Sheet3!BD$3,Sheet4!$E$2:$E$8408,Sheet3!BD$4,Sheet4!$A$2:$A$8408,Sheet3!$B$1,Sheet4!$B$2:$B$8408,Sheet3!$A$3) -> 102 | BE9: =+SUMIFS(Sheet4!$DM$2:$DM$8408,Sheet4!$C$2:$C$8408,Sheet3!$B9,Sheet4!$D$2:$D$8408,Sheet3!BE$3,Sheet4!$E$2:$E$8408,Sheet3!BE$4,Sheet4!$A$2:$A$8408,Sheet3!$B$1,Sheet4!$B$2:$B$8408,Sheet3!$A$3) -> 259 | BF9: =+SUMIFS(Sheet4!$DM$2:$DM$8408,Sheet4!$C$2:$C$8408,Sheet3!$B9,Sheet4!$D$2:$D$8408,Sheet3!BF$3,Sheet4!$E$2:$E$8408,Sheet3!BF$4,Sheet4!$A$2:$A$8408,Sheet3!$B$1,Sheet4!$B$2:$B$8408,Sheet3!$A$3) -> 14 | BG9: =+SUMIFS(Sheet4!$DM$2:$DM$8408,Sheet4!$C$2:$C$8408,Sheet3!$B9,Sheet4!$D$2:$D$8408,Sheet3!BG$3,Sheet4!$E$2:$E$8408,Sheet3!BG$4,Sheet4!$A$2:$A$8408,Sheet3!$B$1,Sheet4!$B$2:$B$8408,Sheet3!$A$3) -> 33 | BH9: =+SUMIFS(Sheet4!$DM$2:$DM$8408,Sheet4!$C$2:$C$8408,Sheet3!$B9,Sheet4!$D$2:$D$8408,Sheet3!BH$3,Sheet4!$E$2:$E$8408,Sheet3!BH$4,Sheet4!$A$2:$A$8408,Sheet3!$B$1,Sheet4!$B$2:$B$8408,Sheet3!$A$3) -> 62 | BI9: =+SUMIFS(Sheet4!$DM$2:$DM$8408,Sheet4!$C$2:$C$8408,Sheet3!$B9,Sheet4!$D$2:$D$8408,Sheet3!BI$3,Sheet4!$E$2:$E$8408,Sheet3!BI$4,Sheet4!$A$2:$A$8408,Sheet3!$B$1,Sheet4!$B$2:$B$8408,Sheet3!$A$3) -> 4 | BJ9: =+SUMIFS(Sheet4!$DM$2:$DM$8408,Sheet4!$C$2:$C$8408,Sheet3!$B9,Sheet4!$D$2:$D$8408,Sheet3!BJ$3,Sheet4!$E$2:$E$8408,Sheet3!BJ$4,Sheet4!$A$2:$A$8408,Sheet3!$B$1,Sheet4!$B$2:$B$8408,Sheet3!$A$3) -> 0 | BK9: =+SUMIFS(Sheet4!$DM$2:$DM$8408,Sheet4!$C$2:$C$8408,Sheet3!$B9,Sheet4!$D$2:$D$8408,Sheet3!BK$3,Sheet4!$E$2:$E$8408,Sheet3!BK$4,Sheet4!$A$2:$A$8408,Sheet3!$B$1,Sheet4!$B$2:$B$8408,Sheet3!$A$3) -> 0 | BL9: =+SUMIFS(Sheet4!$DM$2:$DM$8408,Sheet4!$C$2:$C$8408,Sheet3!$B9,Sheet4!$D$2:$D$8408,Sheet3!BL$3,Sheet4!$E$2:$E$8408,Sheet3!BL$4,Sheet4!$A$2:$A$8408,Sheet3!$B$1,Sheet4!$B$2:$B$8408,Sheet3!$A$3) -> 150 | BM9: =+SUMIFS(Sheet4!$DM$2:$DM$8408,Sheet4!$C$2:$C$8408,Sheet3!$B9,Sheet4!$D$2:$D$8408,Sheet3!BM$3,Sheet4!$E$2:$E$8408,Sheet3!BM$4,Sheet4!$A$2:$A$8408,Sheet3!$B$1,Sheet4!$B$2:$B$8408,Sheet3!$A$3) -> 421 | BN9: =+SUMIFS(Sheet4!$DM$2:$DM$8408,Sheet4!$C$2:$C$8408,Sheet3!$B9,Sheet4!$D$2:$D$8408,Sheet3!BN$3,Sheet4!$E$2:$E$8408,Sheet3!BN$4,Sheet4!$A$2:$A$8408,Sheet3!$B$1,Sheet4!$B$2:$B$8408,Sheet3!$A$3) -> 85 | BO9: =+SUMIFS(Sheet4!$DM$2:$DM$8408,Sheet4!$C$2:$C$8408,Sheet3!$B9,Sheet4!$D$2:$D$8408,Sheet3!BO$3,Sheet4!$E$2:$E$8408,Sheet3!BO$4,Sheet4!$A$2:$A$8408,Sheet3!$B$1,Sheet4!$B$2:$B$8408,Sheet3!$A$3) -> 4 | BP9: =+SUMIFS(Sheet4!$DM$2:$DM$8408,Sheet4!$C$2:$C$8408,Sheet3!$B9,Sheet4!$D$2:$D$8408,Sheet3!BP$3,Sheet4!$E$2:$E$8408,Sheet3!BP$4,Sheet4!$A$2:$A$8408,Sheet3!$B$1,Sheet4!$B$2:$B$8408,Sheet3!$A$3) -> 0 | BQ9: =+SUMIFS(Sheet4!$DM$2:$DM$8408,Sheet4!$C$2:$C$8408,Sheet3!$B9,Sheet4!$D$2:$D$8408,Sheet3!BQ$3,Sheet4!$E$2:$E$8408,Sheet3!BQ$4,Sheet4!$A$2:$A$8408,Sheet3!$B$1,Sheet4!$B$2:$B$8408,Sheet3!$A$3) -> 43 | BR9: =+SUMIFS(Sheet4!$DM$2:$DM$8408,Sheet4!$C$2:$C$8408,Sheet3!$B9,Sheet4!$D$2:$D$8408,Sheet3!BR$3,Sheet4!$E$2:$E$8408,Sheet3!BR$4,Sheet4!$A$2:$A$8408,Sheet3!$B$1,Sheet4!$B$2:$B$8408,Sheet3!$A$3) -> 97 | BS9: =+SUMIFS(Sheet4!$DM$2:$DM$8408,Sheet4!$C$2:$C$8408,Sheet3!$B9,Sheet4!$D$2:$D$8408,Sheet3!BS$3,Sheet4!$E$2:$E$8408,Sheet3!BS$4,Sheet4!$A$2:$A$8408,Sheet3!$B$1,Sheet4!$B$2:$B$8408,Sheet3!$A$3) -> 23 | BT9: =+SUMIFS(Sheet4!$DM$2:$DM$8408,Sheet4!$C$2:$C$8408,Sheet3!$B9,Sheet4!$D$2:$D$8408,Sheet3!BT$3,Sheet4!$E$2:$E$8408,Sheet3!BT$4,Sheet4!$A$2:$A$8408,Sheet3!$B$1,Sheet4!$B$2:$B$8408,Sheet3!$A$3) -> 4 | BU9: =+SUMIFS(Sheet4!$DM$2:$DM$8408,Sheet4!$C$2:$C$8408,Sheet3!$B9,Sheet4!$D$2:$D$8408,Sheet3!BU$3,Sheet4!$E$2:$E$8408,Sheet3!BU$4,Sheet4!$A$2:$A$8408,Sheet3!$B$1,Sheet4!$B$2:$B$8408,Sheet3!$A$3) -> 0 | BV9: =+SUMIFS(Sheet4!$DM$2:$DM$8408,Sheet4!$C$2:$C$8408,Sheet3!$B9,Sheet4!$D$2:$D$8408,Sheet3!BV$3,Sheet4!$E$2:$E$8408,Sheet3!BV$4,Sheet4!$A$2:$A$8408,Sheet3!$B$1,Sheet4!$B$2:$B$8408,Sheet3!$A$3) -> 155 | BW9: =+SUMIFS(Sheet4!$DM$2:$DM$8408,Sheet4!$C$2:$C$8408,Sheet3!$B9,Sheet4!$D$2:$D$8408,Sheet3!BW$3,Sheet4!$E$2:$E$8408,Sheet3!BW$4,Sheet4!$A$2:$A$8408,Sheet3!$B$1,Sheet4!$B$2:$B$8408,Sheet3!$A$3) -> 131 | BX9: =+SUMIFS(Sheet4!$DM$2:$DM$8408,Sheet4!$C$2:$C$8408,Sheet3!$B9,Sheet4!$D$2:$D$8408,Sheet3!BX$3,Sheet4!$E$2:$E$8408,Sheet3!BX$4,Sheet4!$A$2:$A$8408,Sheet3!$B$1,Sheet4!$B$2:$B$8408,Sheet3!$A$3) -> 18 | BY9: =+SUMIFS(Sheet4!$DM$2:$DM$8408,Sheet4!$C$2:$C$8408,Sheet3!$B9,Sheet4!$D$2:$D$8408,Sheet3!BY$3,Sheet4!$E$2:$E$8408,Sheet3!BY$4,Sheet4!$A$2:$A$8408,Sheet3!$B$1,Sheet4!$B$2:$B$8408,Sheet3!$A$3) -> 4 | BZ9: =+SUMIFS(Sheet4!$DM$2:$DM$8408,Sheet4!$C$2:$C$8408,Sheet3!$B9,Sheet4!$D$2:$D$8408,Sheet3!BZ$3,Sheet4!$E$2:$E$8408,Sheet3!BZ$4,Sheet4!$A$2:$A$8408,Sheet3!$B$1,Sheet4!$B$2:$B$8408,Sheet3!$A$3) -> 0 | CA9: =+SUMIFS(Sheet4!$DM$2:$DM$8408,Sheet4!$C$2:$C$8408,Sheet3!$B9,Sheet4!$D$2:$D$8408,Sheet3!CA$3,Sheet4!$E$2:$E$8408,Sheet3!CA$4,Sheet4!$A$2:$A$8408,Sheet3!$B$1,Sheet4!$B$2:$B$8408,Sheet3!$A$3) -> 357 | CB9: =+SUMIFS(Sheet4!$DM$2:$DM$8408,Sheet4!$C$2:$C$8408,Sheet3!$B9,Sheet4!$D$2:$D$8408,Sheet3!CB$3,Sheet4!$E$2:$E$8408,Sheet3!CB$4,Sheet4!$A$2:$A$8408,Sheet3!$B$1,Sheet4!$B$2:$B$8408,Sheet3!$A$3) -> 244 | CC9: =+SUMIFS(Sheet4!$DM$2:$DM$8408,Sheet4!$C$2:$C$8408,Sheet3!$B9,Sheet4!$D$2:$D$8408,Sheet3!CC$3,Sheet4!$E$2:$E$8408,Sheet3!CC$4,Sheet4!$A$2:$A$8408,Sheet3!$B$1,Sheet4!$B$2:$B$8408,Sheet3!$A$3) -> 14 | CD9: =+SUMIFS(Sheet4!$DM$2:$DM$8408,Sheet4!$C$2:$C$8408,Sheet3!$B9,Sheet4!$D$2:$D$8408,Sheet3!CD$3,Sheet4!$E$2:$E$8408,Sheet3!CD$4,Sheet4!$A$2:$A$8408,Sheet3!$B$1,Sheet4!$B$2:$B$8408,Sheet3!$A$3) -> 0 | CE9: =+SUMIFS(Sheet4!$DM$2:$DM$8408,Sheet4!$C$2:$C$8408,Sheet3!$B9,Sheet4!$D$2:$D$8408,Sheet3!CE$3,Sheet4!$E$2:$E$8408,Sheet3!CE$4,Sheet4!$A$2:$A$8408,Sheet3!$B$1,Sheet4!$B$2:$B$8408,Sheet3!$A$3) -> 0 | CF9: =+SUMIFS(Sheet4!$DM$2:$DM$8408,Sheet4!$C$2:$C$8408,Sheet3!$B9,Sheet4!$D$2:$D$8408,Sheet3!CF$3,Sheet4!$E$2:$E$8408,Sheet3!CF$4,Sheet4!$A$2:$A$8408,Sheet3!$B$1,Sheet4!$B$2:$B$8408,Sheet3!$A$3) -> 575 | CG9: =+SUMIFS(Sheet4!$DM$2:$DM$8408,Sheet4!$C$2:$C$8408,Sheet3!$B9,Sheet4!$D$2:$D$8408,Sheet3!CG$3,Sheet4!$E$2:$E$8408,Sheet3!CG$4,Sheet4!$A$2:$A$8408,Sheet3!$B$1,Sheet4!$B$2:$B$8408,Sheet3!$A$3) -> 242 | CH9: =+SUMIFS(Sheet4!$DM$2:$DM$8408,Sheet4!$C$2:$C$8408,Sheet3!$B9,Sheet4!$D$2:$D$8408,Sheet3!CH$3,Sheet4!$E$2:$E$8408,Sheet3!CH$4,Sheet4!$A$2:$A$8408,Sheet3!$B$1,Sheet4!$B$2:$B$8408,Sheet3!$A$3) -> 0 | CI9: =+SUMIFS(Sheet4!$DM$2:$DM$8408,Sheet4!$C$2:$C$8408,Sheet3!$B9,Sheet4!$D$2:$D$8408,Sheet3!CI$3,Sheet4!$E$2:$E$8408,Sheet3!CI$4,Sheet4!$A$2:$A$8408,Sheet3!$B$1,Sheet4!$B$2:$B$8408,Sheet3!$A$3) -> 0 | CJ9: =+SUMIFS(Sheet4!$DM$2:$DM$8408,Sheet4!$C$2:$C$8408,Sheet3!$B9,Sheet4!$D$2:$D$8408,Sheet3!CJ$3,Sheet4!$E$2:$E$8408,Sheet3!CJ$4,Sheet4!$A$2:$A$8408,Sheet3!$B$1,Sheet4!$B$2:$B$8408,Sheet3!$A$3) -> 0 | CK9: =+SUMIFS(Sheet4!$DM$2:$DM$8408,Sheet4!$C$2:$C$8408,Sheet3!$B9,Sheet4!$D$2:$D$8408,Sheet3!CK$3,Sheet4!$E$2:$E$8408,Sheet3!CK$4,Sheet4!$A$2:$A$8408,Sheet3!$B$1,Sheet4!$B$2:$B$8408,Sheet3!$A$3) -> 0 | CL9: =+SUMIFS(Sheet4!$DM$2:$DM$8408,Sheet4!$C$2:$C$8408,Sheet3!$B9,Sheet4!$D$2:$D$8408,Sheet3!CL$3,Sheet4!$E$2:$E$8408,Sheet3!CL$4,Sheet4!$A$2:$A$8408,Sheet3!$B$1,Sheet4!$B$2:$B$8408,Sheet3!$A$3) -> 0 | CM9: =+SUMIFS(Sheet4!$DM$2:$DM$8408,Sheet4!$C$2:$C$8408,Sheet3!$B9,Sheet4!$D$2:$D$8408,Sheet3!CM$3,Sheet4!$E$2:$E$8408,Sheet3!CM$4,Sheet4!$A$2:$A$8408,Sheet3!$B$1,Sheet4!$B$2:$B$8408,Sheet3!$A$3) -> 0 | CN9: =+SUMIFS(Sheet4!$DM$2:$DM$8408,Sheet4!$C$2:$C$8408,Sheet3!$B9,Sheet4!$D$2:$D$8408,Sheet3!CN$3,Sheet4!$E$2:$E$8408,Sheet3!CN$4,Sheet4!$A$2:$A$8408,Sheet3!$B$1,Sheet4!$B$2:$B$8408,Sheet3!$A$3) -> 0 | CO9: =+SUMIFS(Sheet4!$DM$2:$DM$8408,Sheet4!$C$2:$C$8408,Sheet3!$B9,Sheet4!$D$2:$D$8408,Sheet3!CO$3,Sheet4!$E$2:$E$8408,Sheet3!CO$4,Sheet4!$A$2:$A$8408,Sheet3!$B$1,Sheet4!$B$2:$B$8408,Sheet3!$A$3) -> 0 | CP9: =+SUMIFS(Sheet4!$DM$2:$DM$8408,Sheet4!$C$2:$C$8408,Sheet3!$B9,Sheet4!$D$2:$D$8408,Sheet3!CP$3,Sheet4!$E$2:$E$8408,Sheet3!CP$4,Sheet4!$A$2:$A$8408,Sheet3!$B$1,Sheet4!$B$2:$B$8408,Sheet3!$A$3) -> 0 | CQ9: =+SUMIFS(Sheet4!$DM$2:$DM$8408,Sheet4!$C$2:$C$8408,Sheet3!$B9,Sheet4!$D$2:$D$8408,Sheet3!CQ$3,Sheet4!$E$2:$E$8408,Sheet3!CQ$4,Sheet4!$A$2:$A$8408,Sheet3!$B$1,Sheet4!$B$2:$B$8408,Sheet3!$A$3) -> 0 | CR9: =+SUMIFS(Sheet4!$DM$2:$DM$8408,Sheet4!$C$2:$C$8408,Sheet3!$B9,Sheet4!$D$2:$D$8408,Sheet3!CR$3,Sheet4!$E$2:$E$8408,Sheet3!CR$4,Sheet4!$A$2:$A$8408,Sheet3!$B$1,Sheet4!$B$2:$B$8408,Sheet3!$A$3) -> 0 | CS9: =+SUMIFS(Sheet4!$DM$2:$DM$8408,Sheet4!$C$2:$C$8408,Sheet3!$B9,Sheet4!$D$2:$D$8408,Sheet3!CS$3,Sheet4!$E$2:$E$8408,Sheet3!CS$4,Sheet4!$A$2:$A$8408,Sheet3!$B$1,Sheet4!$B$2:$B$8408,Sheet3!$A$3) -> 0 | CT9: =+SUMIFS(Sheet4!$DM$2:$DM$8408,Sheet4!$C$2:$C$8408,Sheet3!$B9,Sheet4!$D$2:$D$8408,Sheet3!CT$3,Sheet4!$E$2:$E$8408,Sheet3!CT$4,Sheet4!$A$2:$A$8408,Sheet3!$B$1,Sheet4!$B$2:$B$8408,Sheet3!$A$3) -> 0 | CU9: =+IF(SUMIFS(Sheet4!$DN$2:$DN$8408,Sheet4!$C$2:$C$8408,Sheet3!$B9,Sheet4!$D$2:$D$8408,Sheet3!CU$3,Sheet4!$A$2:$A$8408,Sheet3!$B$1,Sheet4!$B$2:$B$8408,Sheet3!$A$3)<3,0,SUMIFS(Sheet4!$DN$2:$DN$8408,Sheet4!$C$2:$C$8408,Sheet3!$B9,Sheet4!$D$2:$D$8408,Sheet3!CU$3,Sheet4!$A$2:$A$8408,Sheet3!$B$1,Sheet4!$B$2:$B$8408,Sheet3!$A$3)) -> 0 | CV9: =+IF(SUMIFS(Sheet4!$DN$2:$DN$8408,Sheet4!$C$2:$C$8408,Sheet3!$B9,Sheet4!$D$2:$D$8408,Sheet3!CV$3,Sheet4!$A$2:$A$8408,Sheet3!$B$1,Sheet4!$B$2:$B$8408,Sheet3!$A$3)<3,0,SUMIFS(Sheet4!$DN$2:$DN$8408,Sheet4!$C$2:$C$8408,Sheet3!$B9,Sheet4!$D$2:$D$8408,Sheet3!CV$3,Sheet4!$A$2:$A$8408,Sheet3!$B$1,Sheet4!$B$2:$B$8408,Sheet3!$A$3)) -> 1011 | CW9: =+IF(SUMIFS(Sheet4!$DN$2:$DN$8408,Sheet4!$C$2:$C$8408,Sheet3!$B9,Sheet4!$D$2:$D$8408,Sheet3!CW$3,Sheet4!$A$2:$A$8408,Sheet3!$B$1,Sheet4!$B$2:$B$8408,Sheet3!$A$3)<3,0,SUMIFS(Sheet4!$DN$2:$DN$8408,Sheet4!$C$2:$C$8408,Sheet3!$B9,Sheet4!$D$2:$D$8408,Sheet3!CW$3,Sheet4!$A$2:$A$8408,Sheet3!$B$1,Sheet4!$B$2:$B$8408,Sheet3!$A$3)) -> 316 | CX9: =+IF(SUMIFS(Sheet4!$DN$2:$DN$8408,Sheet4!$C$2:$C$8408,Sheet3!$B9,Sheet4!$D$2:$D$8408,Sheet3!CX$3,Sheet4!$A$2:$A$8408,Sheet3!$B$1,Sheet4!$B$2:$B$8408,Sheet3!$A$3)<3,0,SUMIFS(Sheet4!$DN$2:$DN$8408,Sheet4!$C$2:$C$8408,Sheet3!$B9,Sheet4!$D$2:$D$8408,Sheet3!CX$3,Sheet4!$A$2:$A$8408,Sheet3!$B$1,Sheet4!$B$2:$B$8408,Sheet3!$A$3)) -> 0 | CY9: =+IF(SUMIFS(Sheet4!$DN$2:$DN$8408,Sheet4!$C$2:$C$8408,Sheet3!$B9,Sheet4!$D$2:$D$8408,Sheet3!CY$3,Sheet4!$A$2:$A$8408,Sheet3!$B$1,Sheet4!$B$2:$B$8408,Sheet3!$A$3)<3,0,SUMIFS(Sheet4!$DN$2:$DN$8408,Sheet4!$C$2:$C$8408,Sheet3!$B9,Sheet4!$D$2:$D$8408,Sheet3!CY$3,Sheet4!$A$2:$A$8408,Sheet3!$B$1,Sheet4!$B$2:$B$8408,Sheet3!$A$3)) -> 0 | CZ9: =+IF(SUMIFS(Sheet4!$DN$2:$DN$8408,Sheet4!$C$2:$C$8408,Sheet3!$B9,Sheet4!$D$2:$D$8408,Sheet3!CZ$3,Sheet4!$A$2:$A$8408,Sheet3!$B$1,Sheet4!$B$2:$B$8408,Sheet3!$A$3)<3,0,SUMIFS(Sheet4!$DN$2:$DN$8408,Sheet4!$C$2:$C$8408,Sheet3!$B9,Sheet4!$D$2:$D$8408,Sheet3!CZ$3,Sheet4!$A$2:$A$8408,Sheet3!$B$1,Sheet4!$B$2:$B$8408,Sheet3!$A$3)) -> 443 | DA9: =+IF(SUMIFS(Sheet4!$DN$2:$DN$8408,Sheet4!$C$2:$C$8408,Sheet3!$B9,Sheet4!$D$2:$D$8408,Sheet3!DA$3,Sheet4!$A$2:$A$8408,Sheet3!$B$1,Sheet4!$B$2:$B$8408,Sheet3!$A$3)<3,0,SUMIFS(Sheet4!$DN$2:$DN$8408,Sheet4!$C$2:$C$8408,Sheet3!$B9,Sheet4!$D$2:$D$8408,Sheet3!DA$3,Sheet4!$A$2:$A$8408,Sheet3!$B$1,Sheet4!$B$2:$B$8408,Sheet3!$A$3)) -> 125 | DB9: =+IF(SUMIFS(Sheet4!$DN$2:$DN$8408,Sheet4!$C$2:$C$8408,Sheet3!$B9,Sheet4!$D$2:$D$8408,Sheet3!DB$3,Sheet4!$A$2:$A$8408,Sheet3!$B$1,Sheet4!$B$2:$B$8408,Sheet3!$A$3)<3,0,SUMIFS(Sheet4!$DN$2:$DN$8408,Sheet4!$C$2:$C$8408,Sheet3!$B9,Sheet4!$D$2:$D$8408,Sheet3!DB$3,Sheet4!$A$2:$A$8408,Sheet3!$B$1,Sheet4!$B$2:$B$8408,Sheet3!$A$3)) -> 246 | DC9: =+IF(SUMIFS(Sheet4!$DN$2:$DN$8408,Sheet4!$C$2:$C$8408,Sheet3!$B9,Sheet4!$D$2:$D$8408,Sheet3!DC$3,Sheet4!$A$2:$A$8408,Sheet3!$B$1,Sheet4!$B$2:$B$8408,Sheet3!$A$3)<3,0,SUMIFS(Sheet4!$DN$2:$DN$8408,Sheet4!$C$2:$C$8408,Sheet3!$B9,Sheet4!$D$2:$D$8408,Sheet3!DC$3,Sheet4!$A$2:$A$8408,Sheet3!$B$1,Sheet4!$B$2:$B$8408,Sheet3!$A$3)) -> 0 | DD9: =+IF(SUMIFS(Sheet4!$DN$2:$DN$8408,Sheet4!$C$2:$C$8408,Sheet3!$B9,Sheet4!$D$2:$D$8408,Sheet3!DD$3,Sheet4!$A$2:$A$8408,Sheet3!$B$1,Sheet4!$B$2:$B$8408,Sheet3!$A$3)<3,0,SUMIFS(Sheet4!$DN$2:$DN$8408,Sheet4!$C$2:$C$8408,Sheet3!$B9,Sheet4!$D$2:$D$8408,Sheet3!DD$3,Sheet4!$A$2:$A$8408,Sheet3!$B$1,Sheet4!$B$2:$B$8408,Sheet3!$A$3)) -> 2073 | DE9: =+IF(SUMIFS(Sheet4!$DN$2:$DN$8408,Sheet4!$C$2:$C$8408,Sheet3!$B9,Sheet4!$D$2:$D$8408,Sheet3!DE$3,Sheet4!$A$2:$A$8408,Sheet3!$B$1,Sheet4!$B$2:$B$8408,Sheet3!$A$3)<3,0,SUMIFS(Sheet4!$DN$2:$DN$8408,Sheet4!$C$2:$C$8408,Sheet3!$B9,Sheet4!$D$2:$D$8408,Sheet3!DE$3,Sheet4!$A$2:$A$8408,Sheet3!$B$1,Sheet4!$B$2:$B$8408,Sheet3!$A$3)) -> 401 | DF9: =+IF(SUMIFS(Sheet4!$DN$2:$DN$8408,Sheet4!$C$2:$C$8408,Sheet3!$B9,Sheet4!$D$2:$D$8408,Sheet3!DF$3,Sheet4!$A$2:$A$8408,Sheet3!$B$1,Sheet4!$B$2:$B$8408,Sheet3!$A$3)<3,0,SUMIFS(Sheet4!$DN$2:$DN$8408,Sheet4!$C$2:$C$8408,Sheet3!$B9,Sheet4!$D$2:$D$8408,Sheet3!DF$3,Sheet4!$A$2:$A$8408,Sheet3!$B$1,Sheet4!$B$2:$B$8408,Sheet3!$A$3)) -> 100 | DG9: =+IF(SUMIFS(Sheet4!$DN$2:$DN$8408,Sheet4!$C$2:$C$8408,Sheet3!$B9,Sheet4!$D$2:$D$8408,Sheet3!DG$3,Sheet4!$A$2:$A$8408,Sheet3!$B$1,Sheet4!$B$2:$B$8408,Sheet3!$A$3)<3,0,SUMIFS(Sheet4!$DN$2:$DN$8408,Sheet4!$C$2:$C$8408,Sheet3!$B9,Sheet4!$D$2:$D$8408,Sheet3!DG$3,Sheet4!$A$2:$A$8408,Sheet3!$B$1,Sheet4!$B$2:$B$8408,Sheet3!$A$3)) -> 662 | DH9: =+IF(SUMIFS(Sheet4!$DN$2:$DN$8408,Sheet4!$C$2:$C$8408,Sheet3!$B9,Sheet4!$D$2:$D$8408,Sheet3!DH$3,Sheet4!$A$2:$A$8408,Sheet3!$B$1,Sheet4!$B$2:$B$8408,Sheet3!$A$3)<3,0,SUMIFS(Sheet4!$DN$2:$DN$8408,Sheet4!$C$2:$C$8408,Sheet3!$B9,Sheet4!$D$2:$D$8408,Sheet3!DH$3,Sheet4!$A$2:$A$8408,Sheet3!$B$1,Sheet4!$B$2:$B$8408,Sheet3!$A$3)) -> 170 | DI9: =+IF(SUMIFS(Sheet4!$DN$2:$DN$8408,Sheet4!$C$2:$C$8408,Sheet3!$B9,Sheet4!$D$2:$D$8408,Sheet3!DI$3,Sheet4!$A$2:$A$8408,Sheet3!$B$1,Sheet4!$B$2:$B$8408,Sheet3!$A$3)<3,0,SUMIFS(Sheet4!$DN$2:$DN$8408,Sheet4!$C$2:$C$8408,Sheet3!$B9,Sheet4!$D$2:$D$8408,Sheet3!DI$3,Sheet4!$A$2:$A$8408,Sheet3!$B$1,Sheet4!$B$2:$B$8408,Sheet3!$A$3)) -> 308 | DJ9: =+IF(SUMIFS(Sheet4!$DN$2:$DN$8408,Sheet4!$C$2:$C$8408,Sheet3!$B9,Sheet4!$D$2:$D$8408,Sheet3!DJ$3,Sheet4!$A$2:$A$8408,Sheet3!$B$1,Sheet4!$B$2:$B$8408,Sheet3!$A$3)<3,0,SUMIFS(Sheet4!$DN$2:$DN$8408,Sheet4!$C$2:$C$8408,Sheet3!$B9,Sheet4!$D$2:$D$8408,Sheet3!DJ$3,Sheet4!$A$2:$A$8408,Sheet3!$B$1,Sheet4!$B$2:$B$8408,Sheet3!$A$3)) -> 615 | DK9: =+IF(SUMIFS(Sheet4!$DN$2:$DN$8408,Sheet4!$C$2:$C$8408,Sheet3!$B9,Sheet4!$D$2:$D$8408,Sheet3!DK$3,Sheet4!$A$2:$A$8408,Sheet3!$B$1,Sheet4!$B$2:$B$8408,Sheet3!$A$3)<3,0,SUMIFS(Sheet4!$DN$2:$DN$8408,Sheet4!$C$2:$C$8408,Sheet3!$B9,Sheet4!$D$2:$D$8408,Sheet3!DK$3,Sheet4!$A$2:$A$8408,Sheet3!$B$1,Sheet4!$B$2:$B$8408,Sheet3!$A$3)) -> 821 | DL9: =+IF(SUMIFS(Sheet4!$DN$2:$DN$8408,Sheet4!$C$2:$C$8408,Sheet3!$B9,Sheet4!$D$2:$D$8408,Sheet3!DL$3,Sheet4!$A$2:$A$8408,Sheet3!$B$1,Sheet4!$B$2:$B$8408,Sheet3!$A$3)<3,0,SUMIFS(Sheet4!$DN$2:$DN$8408,Sheet4!$C$2:$C$8408,Sheet3!$B9,Sheet4!$D$2:$D$8408,Sheet3!DL$3,Sheet4!$A$2:$A$8408,Sheet3!$B$1,Sheet4!$B$2:$B$8408,Sheet3!$A$3)) -> 0 | DM9: =+IF(SUMIFS(Sheet4!$DN$2:$DN$8408,Sheet4!$C$2:$C$8408,Sheet3!$B9,Sheet4!$D$2:$D$8408,Sheet3!DM$3,Sheet4!$A$2:$A$8408,Sheet3!$B$1,Sheet4!$B$2:$B$8408,Sheet3!$A$3)<3,0,SUMIFS(Sheet4!$DN$2:$DN$8408,Sheet4!$C$2:$C$8408,Sheet3!$B9,Sheet4!$D$2:$D$8408,Sheet3!DM$3,Sheet4!$A$2:$A$8408,Sheet3!$B$1,Sheet4!$B$2:$B$8408,Sheet3!$A$3)) -> 0 | DN9: =+IF(SUMIFS(Sheet4!$DN$2:$DN$8408,Sheet4!$C$2:$C$8408,Sheet3!$B9,Sheet4!$E$2:$E$8408,Sheet3!DN$4,Sheet4!$A$2:$A$8408,Sheet3!$B$1,Sheet4!$B$2:$B$8408,Sheet3!$A$3)<3,0,SUMIFS(Sheet4!$DN$2:$DN$8408,Sheet4!$C$2:$C$8408,Sheet3!$B9,Sheet4!$E$2:$E$8408,Sheet3!DN$4,Sheet4!$A$2:$A$8408,Sheet3!$B$1,Sheet4!$B$2:$B$8408,Sheet3!$A$3)) -> 4387 | DO9: =+IF(SUMIFS(Sheet4!$DN$2:$DN$8408,Sheet4!$C$2:$C$8408,Sheet3!$B9,Sheet4!$E$2:$E$8408,Sheet3!DO$4,Sheet4!$A$2:$A$8408,Sheet3!$B$1,Sheet4!$B$2:$B$8408,Sheet3!$A$3)<3,0,SUMIFS(Sheet4!$DN$2:$DN$8408,Sheet4!$C$2:$C$8408,Sheet3!$B9,Sheet4!$E$2:$E$8408,Sheet3!DO$4,Sheet4!$A$2:$A$8408,Sheet3!$B$1,Sheet4!$B$2:$B$8408,Sheet3!$A$3)) -> 2173 | DP9: =+IF(SUMIFS(Sheet4!$DN$2:$DN$8408,Sheet4!$C$2:$C$8408,Sheet3!$B9,Sheet4!$E$2:$E$8408,Sheet3!DP$4,Sheet4!$A$2:$A$8408,Sheet3!$B$1,Sheet4!$B$2:$B$8408,Sheet3!$A$3)<3,0,SUMIFS(Sheet4!$DN$2:$DN$8408,Sheet4!$C$2:$C$8408,Sheet3!$B9,Sheet4!$E$2:$E$8408,Sheet3!DP$4,Sheet4!$A$2:$A$8408,Sheet3!$B$1,Sheet4!$B$2:$B$8408,Sheet3!$A$3)) -> 431 | DQ9: =+IF(SUMIFS(Sheet4!$DN$2:$DN$8408,Sheet4!$C$2:$C$8408,Sheet3!$B9,Sheet4!$E$2:$E$8408,Sheet3!DQ$4,Sheet4!$A$2:$A$8408,Sheet3!$B$1,Sheet4!$B$2:$B$8408,Sheet3!$A$3)<3,0,SUMIFS(Sheet4!$DN$2:$DN$8408,Sheet4!$C$2:$C$8408,Sheet3!$B9,Sheet4!$E$2:$E$8408,Sheet3!DQ$4,Sheet4!$A$2:$A$8408,Sheet3!$B$1,Sheet4!$B$2:$B$8408,Sheet3!$A$3)) -> 292 | DR9: =+IF(SUMIFS(Sheet4!$DN$2:$DN$8408,Sheet4!$C$2:$C$8408,Sheet3!$B9,Sheet4!$E$2:$E$8408,Sheet3!DR$4,Sheet4!$A$2:$A$8408,Sheet3!$B$1,Sheet4!$B$2:$B$8408,Sheet3!$A$3)<3,0,SUMIFS(Sheet4!$DN$2:$DN$8408,Sheet4!$C$2:$C$8408,Sheet3!$B9,Sheet4!$E$2:$E$8408,Sheet3!DR$4,Sheet4!$A$2:$A$8408,Sheet3!$B$1,Sheet4!$B$2:$B$8408,Sheet3!$A$3)) -> 14
A10: 1 | B10: 119 | C10: Ave | D10: =+SUMIFS(Sheet4!$DM$2:$DM$8408,Sheet4!$C$2:$C$8408,Sheet3!$B10,Sheet4!$D$2:$D$8408,Sheet3!D$3,Sheet4!$E$2:$E$8408,Sheet3!D$4,Sheet4!$A$2:$A$8408,Sheet3!$B$1,Sheet4!$B$2:$B$8408,Sheet3!$A$3) -> 0 | E10: =+SUMIFS(Sheet4!$DM$2:$DM$8408,Sheet4!$C$2:$C$8408,Sheet3!$B10,Sheet4!$D$2:$D$8408,Sheet3!E$3,Sheet4!$E$2:$E$8408,Sheet3!E$4,Sheet4!$A$2:$A$8408,Sheet3!$B$1,Sheet4!$B$2:$B$8408,Sheet3!$A$3) -> 0 | F10: =+SUMIFS(Sheet4!$DM$2:$DM$8408,Sheet4!$C$2:$C$8408,Sheet3!$B10,Sheet4!$D$2:$D$8408,Sheet3!F$3,Sheet4!$E$2:$E$8408,Sheet3!F$4,Sheet4!$A$2:$A$8408,Sheet3!$B$1,Sheet4!$B$2:$B$8408,Sheet3!$A$3) -> 0 | G10: =+SUMIFS(Sheet4!$DM$2:$DM$8408,Sheet4!$C$2:$C$8408,Sheet3!$B10,Sheet4!$D$2:$D$8408,Sheet3!G$3,Sheet4!$E$2:$E$8408,Sheet3!G$4,Sheet4!$A$2:$A$8408,Sheet3!$B$1,Sheet4!$B$2:$B$8408,Sheet3!$A$3) -> 0 | H10: =+SUMIFS(Sheet4!$DM$2:$DM$8408,Sheet4!$C$2:$C$8408,Sheet3!$B10,Sheet4!$D$2:$D$8408,Sheet3!H$3,Sheet4!$E$2:$E$8408,Sheet3!H$4,Sheet4!$A$2:$A$8408,Sheet3!$B$1,Sheet4!$B$2:$B$8408,Sheet3!$A$3) -> 0 | I10: =+SUMIFS(Sheet4!$DM$2:$DM$8408,Sheet4!$C$2:$C$8408,Sheet3!$B10,Sheet4!$D$2:$D$8408,Sheet3!I$3,Sheet4!$E$2:$E$8408,Sheet3!I$4,Sheet4!$A$2:$A$8408,Sheet3!$B$1,Sheet4!$B$2:$B$8408,Sheet3!$A$3) -> 433 | J10: =+SUMIFS(Sheet4!$DM$2:$DM$8408,Sheet4!$C$2:$C$8408,Sheet3!$B10,Sheet4!$D$2:$D$8408,Sheet3!J$3,Sheet4!$E$2:$E$8408,Sheet3!J$4,Sheet4!$A$2:$A$8408,Sheet3!$B$1,Sheet4!$B$2:$B$8408,Sheet3!$A$3) -> 30 | K10: =+SUMIFS(Sheet4!$DM$2:$DM$8408,Sheet4!$C$2:$C$8408,Sheet3!$B10,Sheet4!$D$2:$D$8408,Sheet3!K$3,Sheet4!$E$2:$E$8408,Sheet3!K$4,Sheet4!$A$2:$A$8408,Sheet3!$B$1,Sheet4!$B$2:$B$8408,Sheet3!$A$3) -> 6 | L10: =+SUMIFS(Sheet4!$DM$2:$DM$8408,Sheet4!$C$2:$C$8408,Sheet3!$B10,Sheet4!$D$2:$D$8408,Sheet3!L$3,Sheet4!$E$2:$E$8408,Sheet3!L$4,Sheet4!$A$2:$A$8408,Sheet3!$B$1,Sheet4!$B$2:$B$8408,Sheet3!$A$3) -> 0 | M10: =+SUMIFS(Sheet4!$DM$2:$DM$8408,Sheet4!$C$2:$C$8408,Sheet3!$B10,Sheet4!$D$2:$D$8408,Sheet3!M$3,Sheet4!$E$2:$E$8408,Sheet3!M$4,Sheet4!$A$2:$A$8408,Sheet3!$B$1,Sheet4!$B$2:$B$8408,Sheet3!$A$3) -> 0 | N10: =+SUMIFS(Sheet4!$DM$2:$DM$8408,Sheet4!$C$2:$C$8408,Sheet3!$B10,Sheet4!$D$2:$D$8408,Sheet3!N$3,Sheet4!$E$2:$E$8408,Sheet3!N$4,Sheet4!$A$2:$A$8408,Sheet3!$B$1,Sheet4!$B$2:$B$8408,Sheet3!$A$3) -> 133 | O10: =+SUMIFS(Sheet4!$DM$2:$DM$8408,Sheet4!$C$2:$C$8408,Sheet3!$B10,Sheet4!$D$2:$D$8408,Sheet3!O$3,Sheet4!$E$2:$E$8408,Sheet3!O$4,Sheet4!$A$2:$A$8408,Sheet3!$B$1,Sheet4!$B$2:$B$8408,Sheet3!$A$3) -> 10 | P10: =+SUMIFS(Sheet4!$DM$2:$DM$8408,Sheet4!$C$2:$C$8408,Sheet3!$B10,Sheet4!$D$2:$D$8408,Sheet3!P$3,Sheet4!$E$2:$E$8408,Sheet3!P$4,Sheet4!$A$2:$A$8408,Sheet3!$B$1,Sheet4!$B$2:$B$8408,Sheet3!$A$3) -> 0 | Q10: =+SUMIFS(Sheet4!$DM$2:$DM$8408,Sheet4!$C$2:$C$8408,Sheet3!$B10,Sheet4!$D$2:$D$8408,Sheet3!Q$3,Sheet4!$E$2:$E$8408,Sheet3!Q$4,Sheet4!$A$2:$A$8408,Sheet3!$B$1,Sheet4!$B$2:$B$8408,Sheet3!$A$3) -> 0 | R10: =+SUMIFS(Sheet4!$DM$2:$DM$8408,Sheet4!$C$2:$C$8408,Sheet3!$B10,Sheet4!$D$2:$D$8408,Sheet3!R$3,Sheet4!$E$2:$E$8408,Sheet3!R$4,Sheet4!$A$2:$A$8408,Sheet3!$B$1,Sheet4!$B$2:$B$8408,Sheet3!$A$3) -> 0 | S10: =+SUMIFS(Sheet4!$DM$2:$DM$8408,Sheet4!$C$2:$C$8408,Sheet3!$B10,Sheet4!$D$2:$D$8408,Sheet3!S$3,Sheet4!$E$2:$E$8408,Sheet3!S$4,Sheet4!$A$2:$A$8408,Sheet3!$B$1,Sheet4!$B$2:$B$8408,Sheet3!$A$3) -> 0 | T10: =+SUMIFS(Sheet4!$DM$2:$DM$8408,Sheet4!$C$2:$C$8408,Sheet3!$B10,Sheet4!$D$2:$D$8408,Sheet3!T$3,Sheet4!$E$2:$E$8408,Sheet3!T$4,Sheet4!$A$2:$A$8408,Sheet3!$B$1,Sheet4!$B$2:$B$8408,Sheet3!$A$3) -> 0 | U10: =+SUMIFS(Sheet4!$DM$2:$DM$8408,Sheet4!$C$2:$C$8408,Sheet3!$B10,Sheet4!$D$2:$D$8408,Sheet3!U$3,Sheet4!$E$2:$E$8408,Sheet3!U$4,Sheet4!$A$2:$A$8408,Sheet3!$B$1,Sheet4!$B$2:$B$8408,Sheet3!$A$3) -> 0 | V10: =+SUMIFS(Sheet4!$DM$2:$DM$8408,Sheet4!$C$2:$C$8408,Sheet3!$B10,Sheet4!$D$2:$D$8408,Sheet3!V$3,Sheet4!$E$2:$E$8408,Sheet3!V$4,Sheet4!$A$2:$A$8408,Sheet3!$B$1,Sheet4!$B$2:$B$8408,Sheet3!$A$3) -> 0 | W10: =+SUMIFS(Sheet4!$DM$2:$DM$8408,Sheet4!$C$2:$C$8408,Sheet3!$B10,Sheet4!$D$2:$D$8408,Sheet3!W$3,Sheet4!$E$2:$E$8408,Sheet3!W$4,Sheet4!$A$2:$A$8408,Sheet3!$B$1,Sheet4!$B$2:$B$8408,Sheet3!$A$3) -> 0 | X10: =+SUMIFS(Sheet4!$DM$2:$DM$8408,Sheet4!$C$2:$C$8408,Sheet3!$B10,Sheet4!$D$2:$D$8408,Sheet3!X$3,Sheet4!$E$2:$E$8408,Sheet3!X$4,Sheet4!$A$2:$A$8408,Sheet3!$B$1,Sheet4!$B$2:$B$8408,Sheet3!$A$3) -> 0 | Y10: =+SUMIFS(Sheet4!$DM$2:$DM$8408,Sheet4!$C$2:$C$8408,Sheet3!$B10,Sheet4!$D$2:$D$8408,Sheet3!Y$3,Sheet4!$E$2:$E$8408,Sheet3!Y$4,Sheet4!$A$2:$A$8408,Sheet3!$B$1,Sheet4!$B$2:$B$8408,Sheet3!$A$3) -> 0 | Z10: =+SUMIFS(Sheet4!$DM$2:$DM$8408,Sheet4!$C$2:$C$8408,Sheet3!$B10,Sheet4!$D$2:$D$8408,Sheet3!Z$3,Sheet4!$E$2:$E$8408,Sheet3!Z$4,Sheet4!$A$2:$A$8408,Sheet3!$B$1,Sheet4!$B$2:$B$8408,Sheet3!$A$3) -> 0 | AA10: =+SUMIFS(Sheet4!$DM$2:$DM$8408,Sheet4!$C$2:$C$8408,Sheet3!$B10,Sheet4!$D$2:$D$8408,Sheet3!AA$3,Sheet4!$E$2:$E$8408,Sheet3!AA$4,Sheet4!$A$2:$A$8408,Sheet3!$B$1,Sheet4!$B$2:$B$8408,Sheet3!$A$3) -> 0 | AB10: =+SUMIFS(Sheet4!$DM$2:$DM$8408,Sheet4!$C$2:$C$8408,Sheet3!$B10,Sheet4!$D$2:$D$8408,Sheet3!AB$3,Sheet4!$E$2:$E$8408,Sheet3!AB$4,Sheet4!$A$2:$A$8408,Sheet3!$B$1,Sheet4!$B$2:$B$8408,Sheet3!$A$3) -> 0 | AC10: =+SUMIFS(Sheet4!$DM$2:$DM$8408,Sheet4!$C$2:$C$8408,Sheet3!$B10,Sheet4!$D$2:$D$8408,Sheet3!AC$3,Sheet4!$E$2:$E$8408,Sheet3!AC$4,Sheet4!$A$2:$A$8408,Sheet3!$B$1,Sheet4!$B$2:$B$8408,Sheet3!$A$3) -> 53 | AD10: =+SUMIFS(Sheet4!$DM$2:$DM$8408,Sheet4!$C$2:$C$8408,Sheet3!$B10,Sheet4!$D$2:$D$8408,Sheet3!AD$3,Sheet4!$E$2:$E$8408,Sheet3!AD$4,Sheet4!$A$2:$A$8408,Sheet3!$B$1,Sheet4!$B$2:$B$8408,Sheet3!$A$3) -> 49 | AE10: =+SUMIFS(Sheet4!$DM$2:$DM$8408,Sheet4!$C$2:$C$8408,Sheet3!$B10,Sheet4!$D$2:$D$8408,Sheet3!AE$3,Sheet4!$E$2:$E$8408,Sheet3!AE$4,Sheet4!$A$2:$A$8408,Sheet3!$B$1,Sheet4!$B$2:$B$8408,Sheet3!$A$3) -> 14 | AF10: =+SUMIFS(Sheet4!$DM$2:$DM$8408,Sheet4!$C$2:$C$8408,Sheet3!$B10,Sheet4!$D$2:$D$8408,Sheet3!AF$3,Sheet4!$E$2:$E$8408,Sheet3!AF$4,Sheet4!$A$2:$A$8408,Sheet3!$B$1,Sheet4!$B$2:$B$8408,Sheet3!$A$3) -> 8 | AG10: =+SUMIFS(Sheet4!$DM$2:$DM$8408,Sheet4!$C$2:$C$8408,Sheet3!$B10,Sheet4!$D$2:$D$8408,Sheet3!AG$3,Sheet4!$E$2:$E$8408,Sheet3!AG$4,Sheet4!$A$2:$A$8408,Sheet3!$B$1,Sheet4!$B$2:$B$8408,Sheet3!$A$3) -> 0 | AH10: =+SUMIFS(Sheet4!$DM$2:$DM$8408,Sheet4!$C$2:$C$8408,Sheet3!$B10,Sheet4!$D$2:$D$8408,Sheet3!AH$3,Sheet4!$E$2:$E$8408,Sheet3!AH$4,Sheet4!$A$2:$A$8408,Sheet3!$B$1,Sheet4!$B$2:$B$8408,Sheet3!$A$3) -> 103 | AI10: =+SUMIFS(Sheet4!$DM$2:$DM$8408,Sheet4!$C$2:$C$8408,Sheet3!$B10,Sheet4!$D$2:$D$8408,Sheet3!AI$3,Sheet4!$E$2:$E$8408,Sheet3!AI$4,Sheet4!$A$2:$A$8408,Sheet3!$B$1,Sheet4!$B$2:$B$8408,Sheet3!$A$3) -> 143 | AJ10: =+SUMIFS(Sheet4!$DM$2:$DM$8408,Sheet4!$C$2:$C$8408,Sheet3!$B10,Sheet4!$D$2:$D$8408,Sheet3!AJ$3,Sheet4!$E$2:$E$8408,Sheet3!AJ$4,Sheet4!$A$2:$A$8408,Sheet3!$B$1,Sheet4!$B$2:$B$8408,Sheet3!$A$3) -> 30 | AK10: =+SUMIFS(Sheet4!$DM$2:$DM$8408,Sheet4!$C$2:$C$8408,Sheet3!$B10,Sheet4!$D$2:$D$8408,Sheet3!AK$3,Sheet4!$E$2:$E$8408,Sheet3!AK$4,Sheet4!$A$2:$A$8408,Sheet3!$B$1,Sheet4!$B$2:$B$8408,Sheet3!$A$3) -> 0 | AL10: =+SUMIFS(Sheet4!$DM$2:$DM$8408,Sheet4!$C$2:$C$8408,Sheet3!$B10,Sheet4!$D$2:$D$8408,Sheet3!AL$3,Sheet4!$E$2:$E$8408,Sheet3!AL$4,Sheet4!$A$2:$A$8408,Sheet3!$B$1,Sheet4!$B$2:$B$8408,Sheet3!$A$3) -> 0 | AM10: =+SUMIFS(Sheet4!$DM$2:$DM$8408,Sheet4!$C$2:$C$8408,Sheet3!$B10,Sheet4!$D$2:$D$8408,Sheet3!AM$3,Sheet4!$E$2:$E$8408,Sheet3!AM$4,Sheet4!$A$2:$A$8408,Sheet3!$B$1,Sheet4!$B$2:$B$8408,Sheet3!$A$3) -> 14 | AN10: =+SUMIFS(Sheet4!$DM$2:$DM$8408,Sheet4!$C$2:$C$8408,Sheet3!$B10,Sheet4!$D$2:$D$8408,Sheet3!AN$3,Sheet4!$E$2:$E$8408,Sheet3!AN$4,Sheet4!$A$2:$A$8408,Sheet3!$B$1,Sheet4!$B$2:$B$8408,Sheet3!$A$3) -> 77 | AO10: =+SUMIFS(Sheet4!$DM$2:$DM$8408,Sheet4!$C$2:$C$8408,Sheet3!$B10,Sheet4!$D$2:$D$8408,Sheet3!AO$3,Sheet4!$E$2:$E$8408,Sheet3!AO$4,Sheet4!$A$2:$A$8408,Sheet3!$B$1,Sheet4!$B$2:$B$8408,Sheet3!$A$3) -> 90 | AP10: =+SUMIFS(Sheet4!$DM$2:$DM$8408,Sheet4!$C$2:$C$8408,Sheet3!$B10,Sheet4!$D$2:$D$8408,Sheet3!AP$3,Sheet4!$E$2:$E$8408,Sheet3!AP$4,Sheet4!$A$2:$A$8408,Sheet3!$B$1,Sheet4!$B$2:$B$8408,Sheet3!$A$3) -> 14 | AQ10: =+SUMIFS(Sheet4!$DM$2:$DM$8408,Sheet4!$C$2:$C$8408,Sheet3!$B10,Sheet4!$D$2:$D$8408,Sheet3!AQ$3,Sheet4!$E$2:$E$8408,Sheet3!AQ$4,Sheet4!$A$2:$A$8408,Sheet3!$B$1,Sheet4!$B$2:$B$8408,Sheet3!$A$3) -> 0 | AR10: =+SUMIFS(Sheet4!$DM$2:$DM$8408,Sheet4!$C$2:$C$8408,Sheet3!$B10,Sheet4!$D$2:$D$8408,Sheet3!AR$3,Sheet4!$E$2:$E$8408,Sheet3!AR$4,Sheet4!$A$2:$A$8408,Sheet3!$B$1,Sheet4!$B$2:$B$8408,Sheet3!$A$3) -> 0 | AS10: =+SUMIFS(Sheet4!$DM$2:$DM$8408,Sheet4!$C$2:$C$8408,Sheet3!$B10,Sheet4!$D$2:$D$8408,Sheet3!AS$3,Sheet4!$E$2:$E$8408,Sheet3!AS$4,Sheet4!$A$2:$A$8408,Sheet3!$B$1,Sheet4!$B$2:$B$8408,Sheet3!$A$3) -> 0 | AT10: =+SUMIFS(Sheet4!$DM$2:$DM$8408,Sheet4!$C$2:$C$8408,Sheet3!$B10,Sheet4!$D$2:$D$8408,Sheet3!AT$3,Sheet4!$E$2:$E$8408,Sheet3!AT$4,Sheet4!$A$2:$A$8408,Sheet3!$B$1,Sheet4!$B$2:$B$8408,Sheet3!$A$3) -> 0 | AU10: =+SUMIFS(Sheet4!$DM$2:$DM$8408,Sheet4!$C$2:$C$8408,Sheet3!$B10,Sheet4!$D$2:$D$8408,Sheet3!AU$3,Sheet4!$E$2:$E$8408,Sheet3!AU$4,Sheet4!$A$2:$A$8408,Sheet3!$B$1,Sheet4!$B$2:$B$8408,Sheet3!$A$3) -> 0 | AV10: =+SUMIFS(Sheet4!$DM$2:$DM$8408,Sheet4!$C$2:$C$8408,Sheet3!$B10,Sheet4!$D$2:$D$8408,Sheet3!AV$3,Sheet4!$E$2:$E$8408,Sheet3!AV$4,Sheet4!$A$2:$A$8408,Sheet3!$B$1,Sheet4!$B$2:$B$8408,Sheet3!$A$3) -> 0 | AW10: =+SUMIFS(Sheet4!$DM$2:$DM$8408,Sheet4!$C$2:$C$8408,Sheet3!$B10,Sheet4!$D$2:$D$8408,Sheet3!AW$3,Sheet4!$E$2:$E$8408,Sheet3!AW$4,Sheet4!$A$2:$A$8408,Sheet3!$B$1,Sheet4!$B$2:$B$8408,Sheet3!$A$3) -> 618 | AX10: =+SUMIFS(Sheet4!$DM$2:$DM$8408,Sheet4!$C$2:$C$8408,Sheet3!$B10,Sheet4!$D$2:$D$8408,Sheet3!AX$3,Sheet4!$E$2:$E$8408,Sheet3!AX$4,Sheet4!$A$2:$A$8408,Sheet3!$B$1,Sheet4!$B$2:$B$8408,Sheet3!$A$3) -> 202 | AY10: =+SUMIFS(Sheet4!$DM$2:$DM$8408,Sheet4!$C$2:$C$8408,Sheet3!$B10,Sheet4!$D$2:$D$8408,Sheet3!AY$3,Sheet4!$E$2:$E$8408,Sheet3!AY$4,Sheet4!$A$2:$A$8408,Sheet3!$B$1,Sheet4!$B$2:$B$8408,Sheet3!$A$3) -> 13 | AZ10: =+SUMIFS(Sheet4!$DM$2:$DM$8408,Sheet4!$C$2:$C$8408,Sheet3!$B10,Sheet4!$D$2:$D$8408,Sheet3!AZ$3,Sheet4!$E$2:$E$8408,Sheet3!AZ$4,Sheet4!$A$2:$A$8408,Sheet3!$B$1,Sheet4!$B$2:$B$8408,Sheet3!$A$3) -> 0 | BA10: =+SUMIFS(Sheet4!$DM$2:$DM$8408,Sheet4!$C$2:$C$8408,Sheet3!$B10,Sheet4!$D$2:$D$8408,Sheet3!BA$3,Sheet4!$E$2:$E$8408,Sheet3!BA$4,Sheet4!$A$2:$A$8408,Sheet3!$B$1,Sheet4!$B$2:$B$8408,Sheet3!$A$3) -> 0 | BB10: =+SUMIFS(Sheet4!$DM$2:$DM$8408,Sheet4!$C$2:$C$8408,Sheet3!$B10,Sheet4!$D$2:$D$8408,Sheet3!BB$3,Sheet4!$E$2:$E$8408,Sheet3!BB$4,Sheet4!$A$2:$A$8408,Sheet3!$B$1,Sheet4!$B$2:$B$8408,Sheet3!$A$3) -> 0 | BC10: =+SUMIFS(Sheet4!$DM$2:$DM$8408,Sheet4!$C$2:$C$8408,Sheet3!$B10,Sheet4!$D$2:$D$8408,Sheet3!BC$3,Sheet4!$E$2:$E$8408,Sheet3!BC$4,Sheet4!$A$2:$A$8408,Sheet3!$B$1,Sheet4!$B$2:$B$8408,Sheet3!$A$3) -> 15 | BD10: =+SUMIFS(Sheet4!$DM$2:$DM$8408,Sheet4!$C$2:$C$8408,Sheet3!$B10,Sheet4!$D$2:$D$8408,Sheet3!BD$3,Sheet4!$E$2:$E$8408,Sheet3!BD$4,Sheet4!$A$2:$A$8408,Sheet3!$B$1,Sheet4!$B$2:$B$8408,Sheet3!$A$3) -> 19 | BE10: =+SUMIFS(Sheet4!$DM$2:$DM$8408,Sheet4!$C$2:$C$8408,Sheet3!$B10,Sheet4!$D$2:$D$8408,Sheet3!BE$3,Sheet4!$E$2:$E$8408,Sheet3!BE$4,Sheet4!$A$2:$A$8408,Sheet3!$B$1,Sheet4!$B$2:$B$8408,Sheet3!$A$3) -> 88 | BF10: =+SUMIFS(Sheet4!$DM$2:$DM$8408,Sheet4!$C$2:$C$8408,Sheet3!$B10,Sheet4!$D$2:$D$8408,Sheet3!BF$3,Sheet4!$E$2:$E$8408,Sheet3!BF$4,Sheet4!$A$2:$A$8408,Sheet3!$B$1,Sheet4!$B$2:$B$8408,Sheet3!$A$3) -> 6 | BG10: =+SUMIFS(Sheet4!$DM$2:$DM$8408,Sheet4!$C$2:$C$8408,Sheet3!$B10,Sheet4!$D$2:$D$8408,Sheet3!BG$3,Sheet4!$E$2:$E$8408,Sheet3!BG$4,Sheet4!$A$2:$A$8408,Sheet3!$B$1,Sheet4!$B$2:$B$8408,Sheet3!$A$3) -> 49 | BH10: =+SUMIFS(Sheet4!$DM$2:$DM$8408,Sheet4!$C$2:$C$8408,Sheet3!$B10,Sheet4!$D$2:$D$8408,Sheet3!BH$3,Sheet4!$E$2:$E$8408,Sheet3!BH$4,Sheet4!$A$2:$A$8408,Sheet3!$B$1,Sheet4!$B$2:$B$8408,Sheet3!$A$3) -> 95 | BI10: =+SUMIFS(Sheet4!$DM$2:$DM$8408,Sheet4!$C$2:$C$8408,Sheet3!$B10,Sheet4!$D$2:$D$8408,Sheet3!BI$3,Sheet4!$E$2:$E$8408,Sheet3!BI$4,Sheet4!$A$2:$A$8408,Sheet3!$B$1,Sheet4!$B$2:$B$8408,Sheet3!$A$3) -> 10 | BJ10: =+SUMIFS(Sheet4!$DM$2:$DM$8408,Sheet4!$C$2:$C$8408,Sheet3!$B10,Sheet4!$D$2:$D$8408,Sheet3!BJ$3,Sheet4!$E$2:$E$8408,Sheet3!BJ$4,Sheet4!$A$2:$A$8408,Sheet3!$B$1,Sheet4!$B$2:$B$8408,Sheet3!$A$3) -> 0 | BK10: =+SUMIFS(Sheet4!$DM$2:$DM$8408,Sheet4!$C$2:$C$8408,Sheet3!$B10,Sheet4!$D$2:$D$8408,Sheet3!BK$3,Sheet4!$E$2:$E$8408,Sheet3!BK$4,Sheet4!$A$2:$A$8408,Sheet3!$B$1,Sheet4!$B$2:$B$8408,Sheet3!$A$3) -> 0 | BL10: =+SUMIFS(Sheet4!$DM$2:$DM$8408,Sheet4!$C$2:$C$8408,Sheet3!$B10,Sheet4!$D$2:$D$8408,Sheet3!BL$3,Sheet4!$E$2:$E$8408,Sheet3!BL$4,Sheet4!$A$2:$A$8408,Sheet3!$B$1,Sheet4!$B$2:$B$8408,Sheet3!$A$3) -> 115 | BM10: =+SUMIFS(Sheet4!$DM$2:$DM$8408,Sheet4!$C$2:$C$8408,Sheet3!$B10,Sheet4!$D$2:$D$8408,Sheet3!BM$3,Sheet4!$E$2:$E$8408,Sheet3!BM$4,Sheet4!$A$2:$A$8408,Sheet3!$B$1,Sheet4!$B$2:$B$8408,Sheet3!$A$3) -> 173 | BN10: =+SUMIFS(Sheet4!$DM$2:$DM$8408,Sheet4!$C$2:$C$8408,Sheet3!$B10,Sheet4!$D$2:$D$8408,Sheet3!BN$3,Sheet4!$E$2:$E$8408,Sheet3!BN$4,Sheet4!$A$2:$A$8408,Sheet3!$B$1,Sheet4!$B$2:$B$8408,Sheet3!$A$3) -> 29 | BO10: =+SUMIFS(Sheet4!$DM$2:$DM$8408,Sheet4!$C$2:$C$8408,Sheet3!$B10,Sheet4!$D$2:$D$8408,Sheet3!BO$3,Sheet4!$E$2:$E$8408,Sheet3!BO$4,Sheet4!$A$2:$A$8408,Sheet3!$B$1,Sheet4!$B$2:$B$8408,Sheet3!$A$3) -> 0 | BP10: =+SUMIFS(Sheet4!$DM$2:$DM$8408,Sheet4!$C$2:$C$8408,Sheet3!$B10,Sheet4!$D$2:$D$8408,Sheet3!BP$3,Sheet4!$E$2:$E$8408,Sheet3!BP$4,Sheet4!$A$2:$A$8408,Sheet3!$B$1,Sheet4!$B$2:$B$8408,Sheet3!$A$3) -> 0 | BQ10: =+SUMIFS(Sheet4!$DM$2:$DM$8408,Sheet4!$C$2:$C$8408,Sheet3!$B10,Sheet4!$D$2:$D$8408,Sheet3!BQ$3,Sheet4!$E$2:$E$8408,Sheet3!BQ$4,Sheet4!$A$2:$A$8408,Sheet3!$B$1,Sheet4!$B$2:$B$8408,Sheet3!$A$3) -> 62 | BR10: =+SUMIFS(Sheet4!$DM$2:$DM$8408,Sheet4!$C$2:$C$8408,Sheet3!$B10,Sheet4!$D$2:$D$8408,Sheet3!BR$3,Sheet4!$E$2:$E$8408,Sheet3!BR$4,Sheet4!$A$2:$A$8408,Sheet3!$B$1,Sheet4!$B$2:$B$8408,Sheet3!$A$3) -> 339 | BS10: =+SUMIFS(Sheet4!$DM$2:$DM$8408,Sheet4!$C$2:$C$8408,Sheet3!$B10,Sheet4!$D$2:$D$8408,Sheet3!BS$3,Sheet4!$E$2:$E$8408,Sheet3!BS$4,Sheet4!$A$2:$A$8408,Sheet3!$B$1,Sheet4!$B$2:$B$8408,Sheet3!$A$3) -> 43 | BT10: =+SUMIFS(Sheet4!$DM$2:$DM$8408,Sheet4!$C$2:$C$8408,Sheet3!$B10,Sheet4!$D$2:$D$8408,Sheet3!BT$3,Sheet4!$E$2:$E$8408,Sheet3!BT$4,Sheet4!$A$2:$A$8408,Sheet3!$B$1,Sheet4!$B$2:$B$8408,Sheet3!$A$3) -> 0 | BU10: =+SUMIFS(Sheet4!$DM$2:$DM$8408,Sheet4!$C$2:$C$8408,Sheet3!$B10,Sheet4!$D$2:$D$8408,Sheet3!BU$3,Sheet4!$E$2:$E$8408,Sheet3!BU$4,Sheet4!$A$2:$A$8408,Sheet3!$B$1,Sheet4!$B$2:$B$8408,Sheet3!$A$3) -> 0 | BV10: =+SUMIFS(Sheet4!$DM$2:$DM$8408,Sheet4!$C$2:$C$8408,Sheet3!$B10,Sheet4!$D$2:$D$8408,Sheet3!BV$3,Sheet4!$E$2:$E$8408,Sheet3!BV$4,Sheet4!$A$2:$A$8408,Sheet3!$B$1,Sheet4!$B$2:$B$8408,Sheet3!$A$3) -> 243 | BW10: =+SUMIFS(Sheet4!$DM$2:$DM$8408,Sheet4!$C$2:$C$8408,Sheet3!$B10,Sheet4!$D$2:$D$8408,Sheet3!BW$3,Sheet4!$E$2:$E$8408,Sheet3!BW$4,Sheet4!$A$2:$A$8408,Sheet3!$B$1,Sheet4!$B$2:$B$8408,Sheet3!$A$3) -> 511 | BX10: =+SUMIFS(Sheet4!$DM$2:$DM$8408,Sheet4!$C$2:$C$8408,Sheet3!$B10,Sheet4!$D$2:$D$8408,Sheet3!BX$3,Sheet4!$E$2:$E$8408,Sheet3!BX$4,Sheet4!$A$2:$A$8408,Sheet3!$B$1,Sheet4!$B$2:$B$8408,Sheet3!$A$3) -> 73 | BY10: =+SUMIFS(Sheet4!$DM$2:$DM$8408,Sheet4!$C$2:$C$8408,Sheet3!$B10,Sheet4!$D$2:$D$8408,Sheet3!BY$3,Sheet4!$E$2:$E$8408,Sheet3!BY$4,Sheet4!$A$2:$A$8408,Sheet3!$B$1,Sheet4!$B$2:$B$8408,Sheet3!$A$3) -> 0 | BZ10: =+SUMIFS(Sheet4!$DM$2:$DM$8408,Sheet4!$C$2:$C$8408,Sheet3!$B10,Sheet4!$D$2:$D$8408,Sheet3!BZ$3,Sheet4!$E$2:$E$8408,Sheet3!BZ$4,Sheet4!$A$2:$A$8408,Sheet3!$B$1,Sheet4!$B$2:$B$8408,Sheet3!$A$3) -> 0 | CA10: =+SUMIFS(Sheet4!$DM$2:$DM$8408,Sheet4!$C$2:$C$8408,Sheet3!$B10,Sheet4!$D$2:$D$8408,Sheet3!CA$3,Sheet4!$E$2:$E$8408,Sheet3!CA$4,Sheet4!$A$2:$A$8408,Sheet3!$B$1,Sheet4!$B$2:$B$8408,Sheet3!$A$3) -> 248 | CB10: =+SUMIFS(Sheet4!$DM$2:$DM$8408,Sheet4!$C$2:$C$8408,Sheet3!$B10,Sheet4!$D$2:$D$8408,Sheet3!CB$3,Sheet4!$E$2:$E$8408,Sheet3!CB$4,Sheet4!$A$2:$A$8408,Sheet3!$B$1,Sheet4!$B$2:$B$8408,Sheet3!$A$3) -> 184 | CC10: =+SUMIFS(Sheet4!$DM$2:$DM$8408,Sheet4!$C$2:$C$8408,Sheet3!$B10,Sheet4!$D$2:$D$8408,Sheet3!CC$3,Sheet4!$E$2:$E$8408,Sheet3!CC$4,Sheet4!$A$2:$A$8408,Sheet3!$B$1,Sheet4!$B$2:$B$8408,Sheet3!$A$3) -> 24 | CD10: =+SUMIFS(Sheet4!$DM$2:$DM$8408,Sheet4!$C$2:$C$8408,Sheet3!$B10,Sheet4!$D$2:$D$8408,Sheet3!CD$3,Sheet4!$E$2:$E$8408,Sheet3!CD$4,Sheet4!$A$2:$A$8408,Sheet3!$B$1,Sheet4!$B$2:$B$8408,Sheet3!$A$3) -> 0 | CE10: =+SUMIFS(Sheet4!$DM$2:$DM$8408,Sheet4!$C$2:$C$8408,Sheet3!$B10,Sheet4!$D$2:$D$8408,Sheet3!CE$3,Sheet4!$E$2:$E$8408,Sheet3!CE$4,Sheet4!$A$2:$A$8408,Sheet3!$B$1,Sheet4!$B$2:$B$8408,Sheet3!$A$3) -> 0 | CF10: =+SUMIFS(Sheet4!$DM$2:$DM$8408,Sheet4!$C$2:$C$8408,Sheet3!$B10,Sheet4!$D$2:$D$8408,Sheet3!CF$3,Sheet4!$E$2:$E$8408,Sheet3!CF$4,Sheet4!$A$2:$A$8408,Sheet3!$B$1,Sheet4!$B$2:$B$8408,Sheet3!$A$3) -> 459 | CG10: =+SUMIFS(Sheet4!$DM$2:$DM$8408,Sheet4!$C$2:$C$8408,Sheet3!$B10,Sheet4!$D$2:$D$8408,Sheet3!CG$3,Sheet4!$E$2:$E$8408,Sheet3!CG$4,Sheet4!$A$2:$A$8408,Sheet3!$B$1,Sheet4!$B$2:$B$8408,Sheet3!$A$3) -> 131 | CH10: =+SUMIFS(Sheet4!$DM$2:$DM$8408,Sheet4!$C$2:$C$8408,Sheet3!$B10,Sheet4!$D$2:$D$8408,Sheet3!CH$3,Sheet4!$E$2:$E$8408,Sheet3!CH$4,Sheet4!$A$2:$A$8408,Sheet3!$B$1,Sheet4!$B$2:$B$8408,Sheet3!$A$3) -> 0 | CI10: =+SUMIFS(Sheet4!$DM$2:$DM$8408,Sheet4!$C$2:$C$8408,Sheet3!$B10,Sheet4!$D$2:$D$8408,Sheet3!CI$3,Sheet4!$E$2:$E$8408,Sheet3!CI$4,Sheet4!$A$2:$A$8408,Sheet3!$B$1,Sheet4!$B$2:$B$8408,Sheet3!$A$3) -> 0 | CJ10: =+SUMIFS(Sheet4!$DM$2:$DM$8408,Sheet4!$C$2:$C$8408,Sheet3!$B10,Sheet4!$D$2:$D$8408,Sheet3!CJ$3,Sheet4!$E$2:$E$8408,Sheet3!CJ$4,Sheet4!$A$2:$A$8408,Sheet3!$B$1,Sheet4!$B$2:$B$8408,Sheet3!$A$3) -> 0 | CK10: =+SUMIFS(Sheet4!$DM$2:$DM$8408,Sheet4!$C$2:$C$8408,Sheet3!$B10,Sheet4!$D$2:$D$8408,Sheet3!CK$3,Sheet4!$E$2:$E$8408,Sheet3!CK$4,Sheet4!$A$2:$A$8408,Sheet3!$B$1,Sheet4!$B$2:$B$8408,Sheet3!$A$3) -> 0 | CL10: =+SUMIFS(Sheet4!$DM$2:$DM$8408,Sheet4!$C$2:$C$8408,Sheet3!$B10,Sheet4!$D$2:$D$8408,Sheet3!CL$3,Sheet4!$E$2:$E$8408,Sheet3!CL$4,Sheet4!$A$2:$A$8408,Sheet3!$B$1,Sheet4!$B$2:$B$8408,Sheet3!$A$3) -> 0 | CM10: =+SUMIFS(Sheet4!$DM$2:$DM$8408,Sheet4!$C$2:$C$8408,Sheet3!$B10,Sheet4!$D$2:$D$8408,Sheet3!CM$3,Sheet4!$E$2:$E$8408,Sheet3!CM$4,Sheet4!$A$2:$A$8408,Sheet3!$B$1,Sheet4!$B$2:$B$8408,Sheet3!$A$3) -> 0 | CN10: =+SUMIFS(Sheet4!$DM$2:$DM$8408,Sheet4!$C$2:$C$8408,Sheet3!$B10,Sheet4!$D$2:$D$8408,Sheet3!CN$3,Sheet4!$E$2:$E$8408,Sheet3!CN$4,Sheet4!$A$2:$A$8408,Sheet3!$B$1,Sheet4!$B$2:$B$8408,Sheet3!$A$3) -> 0 | CO10: =+SUMIFS(Sheet4!$DM$2:$DM$8408,Sheet4!$C$2:$C$8408,Sheet3!$B10,Sheet4!$D$2:$D$8408,Sheet3!CO$3,Sheet4!$E$2:$E$8408,Sheet3!CO$4,Sheet4!$A$2:$A$8408,Sheet3!$B$1,Sheet4!$B$2:$B$8408,Sheet3!$A$3) -> 0 | CP10: =+SUMIFS(Sheet4!$DM$2:$DM$8408,Sheet4!$C$2:$C$8408,Sheet3!$B10,Sheet4!$D$2:$D$8408,Sheet3!CP$3,Sheet4!$E$2:$E$8408,Sheet3!CP$4,Sheet4!$A$2:$A$8408,Sheet3!$B$1,Sheet4!$B$2:$B$8408,Sheet3!$A$3) -> 0 | CQ10: =+SUMIFS(Sheet4!$DM$2:$DM$8408,Sheet4!$C$2:$C$8408,Sheet3!$B10,Sheet4!$D$2:$D$8408,Sheet3!CQ$3,Sheet4!$E$2:$E$8408,Sheet3!CQ$4,Sheet4!$A$2:$A$8408,Sheet3!$B$1,Sheet4!$B$2:$B$8408,Sheet3!$A$3) -> 0 | CR10: =+SUMIFS(Sheet4!$DM$2:$DM$8408,Sheet4!$C$2:$C$8408,Sheet3!$B10,Sheet4!$D$2:$D$8408,Sheet3!CR$3,Sheet4!$E$2:$E$8408,Sheet3!CR$4,Sheet4!$A$2:$A$8408,Sheet3!$B$1,Sheet4!$B$2:$B$8408,Sheet3!$A$3) -> 0 | CS10: =+SUMIFS(Sheet4!$DM$2:$DM$8408,Sheet4!$C$2:$C$8408,Sheet3!$B10,Sheet4!$D$2:$D$8408,Sheet3!CS$3,Sheet4!$E$2:$E$8408,Sheet3!CS$4,Sheet4!$A$2:$A$8408,Sheet3!$B$1,Sheet4!$B$2:$B$8408,Sheet3!$A$3) -> 0 | CT10: =+SUMIFS(Sheet4!$DM$2:$DM$8408,Sheet4!$C$2:$C$8408,Sheet3!$B10,Sheet4!$D$2:$D$8408,Sheet3!CT$3,Sheet4!$E$2:$E$8408,Sheet3!CT$4,Sheet4!$A$2:$A$8408,Sheet3!$B$1,Sheet4!$B$2:$B$8408,Sheet3!$A$3) -> 0 | CU10: =+IF(SUMIFS(Sheet4!$DN$2:$DN$8408,Sheet4!$C$2:$C$8408,Sheet3!$B10,Sheet4!$D$2:$D$8408,Sheet3!CU$3,Sheet4!$A$2:$A$8408,Sheet3!$B$1,Sheet4!$B$2:$B$8408,Sheet3!$A$3)<3,0,SUMIFS(Sheet4!$DN$2:$DN$8408,Sheet4!$C$2:$C$8408,Sheet3!$B10,Sheet4!$D$2:$D$8408,Sheet3!CU$3,Sheet4!$A$2:$A$8408,Sheet3!$B$1,Sheet4!$B$2:$B$8408,Sheet3!$A$3)) -> 3 | CV10: =+IF(SUMIFS(Sheet4!$DN$2:$DN$8408,Sheet4!$C$2:$C$8408,Sheet3!$B10,Sheet4!$D$2:$D$8408,Sheet3!CV$3,Sheet4!$A$2:$A$8408,Sheet3!$B$1,Sheet4!$B$2:$B$8408,Sheet3!$A$3)<3,0,SUMIFS(Sheet4!$DN$2:$DN$8408,Sheet4!$C$2:$C$8408,Sheet3!$B10,Sheet4!$D$2:$D$8408,Sheet3!CV$3,Sheet4!$A$2:$A$8408,Sheet3!$B$1,Sheet4!$B$2:$B$8408,Sheet3!$A$3)) -> 478 | CW10: =+IF(SUMIFS(Sheet4!$DN$2:$DN$8408,Sheet4!$C$2:$C$8408,Sheet3!$B10,Sheet4!$D$2:$D$8408,Sheet3!CW$3,Sheet4!$A$2:$A$8408,Sheet3!$B$1,Sheet4!$B$2:$B$8408,Sheet3!$A$3)<3,0,SUMIFS(Sheet4!$DN$2:$DN$8408,Sheet4!$C$2:$C$8408,Sheet3!$B10,Sheet4!$D$2:$D$8408,Sheet3!CW$3,Sheet4!$A$2:$A$8408,Sheet3!$B$1,Sheet4!$B$2:$B$8408,Sheet3!$A$3)) -> 144 | CX10: =+IF(SUMIFS(Sheet4!$DN$2:$DN$8408,Sheet4!$C$2:$C$8408,Sheet3!$B10,Sheet4!$D$2:$D$8408,Sheet3!CX$3,Sheet4!$A$2:$A$8408,Sheet3!$B$1,Sheet4!$B$2:$B$8408,Sheet3!$A$3)<3,0,SUMIFS(Sheet4!$DN$2:$DN$8408,Sheet4!$C$2:$C$8408,Sheet3!$B10,Sheet4!$D$2:$D$8408,Sheet3!CX$3,Sheet4!$A$2:$A$8408,Sheet3!$B$1,Sheet4!$B$2:$B$8408,Sheet3!$A$3)) -> 0 | CY10: =+IF(SUMIFS(Sheet4!$DN$2:$DN$8408,Sheet4!$C$2:$C$8408,Sheet3!$B10,Sheet4!$D$2:$D$8408,Sheet3!CY$3,Sheet4!$A$2:$A$8408,Sheet3!$B$1,Sheet4!$B$2:$B$8408,Sheet3!$A$3)<3,0,SUMIFS(Sheet4!$DN$2:$DN$8408,Sheet4!$C$2:$C$8408,Sheet3!$B10,Sheet4!$D$2:$D$8408,Sheet3!CY$3,Sheet4!$A$2:$A$8408,Sheet3!$B$1,Sheet4!$B$2:$B$8408,Sheet3!$A$3)) -> 0 | CZ10: =+IF(SUMIFS(Sheet4!$DN$2:$DN$8408,Sheet4!$C$2:$C$8408,Sheet3!$B10,Sheet4!$D$2:$D$8408,Sheet3!CZ$3,Sheet4!$A$2:$A$8408,Sheet3!$B$1,Sheet4!$B$2:$B$8408,Sheet3!$A$3)<3,0,SUMIFS(Sheet4!$DN$2:$DN$8408,Sheet4!$C$2:$C$8408,Sheet3!$B10,Sheet4!$D$2:$D$8408,Sheet3!CZ$3,Sheet4!$A$2:$A$8408,Sheet3!$B$1,Sheet4!$B$2:$B$8408,Sheet3!$A$3)) -> 129 | DA10: =+IF(SUMIFS(Sheet4!$DN$2:$DN$8408,Sheet4!$C$2:$C$8408,Sheet3!$B10,Sheet4!$D$2:$D$8408,Sheet3!DA$3,Sheet4!$A$2:$A$8408,Sheet3!$B$1,Sheet4!$B$2:$B$8408,Sheet3!$A$3)<3,0,SUMIFS(Sheet4!$DN$2:$DN$8408,Sheet4!$C$2:$C$8408,Sheet3!$B10,Sheet4!$D$2:$D$8408,Sheet3!DA$3,Sheet4!$A$2:$A$8408,Sheet3!$B$1,Sheet4!$B$2:$B$8408,Sheet3!$A$3)) -> 278 | DB10: =+IF(SUMIFS(Sheet4!$DN$2:$DN$8408,Sheet4!$C$2:$C$8408,Sheet3!$B10,Sheet4!$D$2:$D$8408,Sheet3!DB$3,Sheet4!$A$2:$A$8408,Sheet3!$B$1,Sheet4!$B$2:$B$8408,Sheet3!$A$3)<3,0,SUMIFS(Sheet4!$DN$2:$DN$8408,Sheet4!$C$2:$C$8408,Sheet3!$B10,Sheet4!$D$2:$D$8408,Sheet3!DB$3,Sheet4!$A$2:$A$8408,Sheet3!$B$1,Sheet4!$B$2:$B$8408,Sheet3!$A$3)) -> 198 | DC10: =+IF(SUMIFS(Sheet4!$DN$2:$DN$8408,Sheet4!$C$2:$C$8408,Sheet3!$B10,Sheet4!$D$2:$D$8408,Sheet3!DC$3,Sheet4!$A$2:$A$8408,Sheet3!$B$1,Sheet4!$B$2:$B$8408,Sheet3!$A$3)<3,0,SUMIFS(Sheet4!$DN$2:$DN$8408,Sheet4!$C$2:$C$8408,Sheet3!$B10,Sheet4!$D$2:$D$8408,Sheet3!DC$3,Sheet4!$A$2:$A$8408,Sheet3!$B$1,Sheet4!$B$2:$B$8408,Sheet3!$A$3)) -> 4 | DD10: =+IF(SUMIFS(Sheet4!$DN$2:$DN$8408,Sheet4!$C$2:$C$8408,Sheet3!$B10,Sheet4!$D$2:$D$8408,Sheet3!DD$3,Sheet4!$A$2:$A$8408,Sheet3!$B$1,Sheet4!$B$2:$B$8408,Sheet3!$A$3)<3,0,SUMIFS(Sheet4!$DN$2:$DN$8408,Sheet4!$C$2:$C$8408,Sheet3!$B10,Sheet4!$D$2:$D$8408,Sheet3!DD$3,Sheet4!$A$2:$A$8408,Sheet3!$B$1,Sheet4!$B$2:$B$8408,Sheet3!$A$3)) -> 838 | DE10: =+IF(SUMIFS(Sheet4!$DN$2:$DN$8408,Sheet4!$C$2:$C$8408,Sheet3!$B10,Sheet4!$D$2:$D$8408,Sheet3!DE$3,Sheet4!$A$2:$A$8408,Sheet3!$B$1,Sheet4!$B$2:$B$8408,Sheet3!$A$3)<3,0,SUMIFS(Sheet4!$DN$2:$DN$8408,Sheet4!$C$2:$C$8408,Sheet3!$B10,Sheet4!$D$2:$D$8408,Sheet3!DE$3,Sheet4!$A$2:$A$8408,Sheet3!$B$1,Sheet4!$B$2:$B$8408,Sheet3!$A$3)) -> 133 | DF10: =+IF(SUMIFS(Sheet4!$DN$2:$DN$8408,Sheet4!$C$2:$C$8408,Sheet3!$B10,Sheet4!$D$2:$D$8408,Sheet3!DF$3,Sheet4!$A$2:$A$8408,Sheet3!$B$1,Sheet4!$B$2:$B$8408,Sheet3!$A$3)<3,0,SUMIFS(Sheet4!$DN$2:$DN$8408,Sheet4!$C$2:$C$8408,Sheet3!$B10,Sheet4!$D$2:$D$8408,Sheet3!DF$3,Sheet4!$A$2:$A$8408,Sheet3!$B$1,Sheet4!$B$2:$B$8408,Sheet3!$A$3)) -> 155 | DG10: =+IF(SUMIFS(Sheet4!$DN$2:$DN$8408,Sheet4!$C$2:$C$8408,Sheet3!$B10,Sheet4!$D$2:$D$8408,Sheet3!DG$3,Sheet4!$A$2:$A$8408,Sheet3!$B$1,Sheet4!$B$2:$B$8408,Sheet3!$A$3)<3,0,SUMIFS(Sheet4!$DN$2:$DN$8408,Sheet4!$C$2:$C$8408,Sheet3!$B10,Sheet4!$D$2:$D$8408,Sheet3!DG$3,Sheet4!$A$2:$A$8408,Sheet3!$B$1,Sheet4!$B$2:$B$8408,Sheet3!$A$3)) -> 320 | DH10: =+IF(SUMIFS(Sheet4!$DN$2:$DN$8408,Sheet4!$C$2:$C$8408,Sheet3!$B10,Sheet4!$D$2:$D$8408,Sheet3!DH$3,Sheet4!$A$2:$A$8408,Sheet3!$B$1,Sheet4!$B$2:$B$8408,Sheet3!$A$3)<3,0,SUMIFS(Sheet4!$DN$2:$DN$8408,Sheet4!$C$2:$C$8408,Sheet3!$B10,Sheet4!$D$2:$D$8408,Sheet3!DH$3,Sheet4!$A$2:$A$8408,Sheet3!$B$1,Sheet4!$B$2:$B$8408,Sheet3!$A$3)) -> 445 | DI10: =+IF(SUMIFS(Sheet4!$DN$2:$DN$8408,Sheet4!$C$2:$C$8408,Sheet3!$B10,Sheet4!$D$2:$D$8408,Sheet3!DI$3,Sheet4!$A$2:$A$8408,Sheet3!$B$1,Sheet4!$B$2:$B$8408,Sheet3!$A$3)<3,0,SUMIFS(Sheet4!$DN$2:$DN$8408,Sheet4!$C$2:$C$8408,Sheet3!$B10,Sheet4!$D$2:$D$8408,Sheet3!DI$3,Sheet4!$A$2:$A$8408,Sheet3!$B$1,Sheet4!$B$2:$B$8408,Sheet3!$A$3)) -> 833 | DJ10: =+IF(SUMIFS(Sheet4!$DN$2:$DN$8408,Sheet4!$C$2:$C$8408,Sheet3!$B10,Sheet4!$D$2:$D$8408,Sheet3!DJ$3,Sheet4!$A$2:$A$8408,Sheet3!$B$1,Sheet4!$B$2:$B$8408,Sheet3!$A$3)<3,0,SUMIFS(Sheet4!$DN$2:$DN$8408,Sheet4!$C$2:$C$8408,Sheet3!$B10,Sheet4!$D$2:$D$8408,Sheet3!DJ$3,Sheet4!$A$2:$A$8408,Sheet3!$B$1,Sheet4!$B$2:$B$8408,Sheet3!$A$3)) -> 456 | DK10: =+IF(SUMIFS(Sheet4!$DN$2:$DN$8408,Sheet4!$C$2:$C$8408,Sheet3!$B10,Sheet4!$D$2:$D$8408,Sheet3!DK$3,Sheet4!$A$2:$A$8408,Sheet3!$B$1,Sheet4!$B$2:$B$8408,Sheet3!$A$3)<3,0,SUMIFS(Sheet4!$DN$2:$DN$8408,Sheet4!$C$2:$C$8408,Sheet3!$B10,Sheet4!$D$2:$D$8408,Sheet3!DK$3,Sheet4!$A$2:$A$8408,Sheet3!$B$1,Sheet4!$B$2:$B$8408,Sheet3!$A$3)) -> 592 | DL10: =+IF(SUMIFS(Sheet4!$DN$2:$DN$8408,Sheet4!$C$2:$C$8408,Sheet3!$B10,Sheet4!$D$2:$D$8408,Sheet3!DL$3,Sheet4!$A$2:$A$8408,Sheet3!$B$1,Sheet4!$B$2:$B$8408,Sheet3!$A$3)<3,0,SUMIFS(Sheet4!$DN$2:$DN$8408,Sheet4!$C$2:$C$8408,Sheet3!$B10,Sheet4!$D$2:$D$8408,Sheet3!DL$3,Sheet4!$A$2:$A$8408,Sheet3!$B$1,Sheet4!$B$2:$B$8408,Sheet3!$A$3)) -> 0 | DM10: =+IF(SUMIFS(Sheet4!$DN$2:$DN$8408,Sheet4!$C$2:$C$8408,Sheet3!$B10,Sheet4!$D$2:$D$8408,Sheet3!DM$3,Sheet4!$A$2:$A$8408,Sheet3!$B$1,Sheet4!$B$2:$B$8408,Sheet3!$A$3)<3,0,SUMIFS(Sheet4!$DN$2:$DN$8408,Sheet4!$C$2:$C$8408,Sheet3!$B10,Sheet4!$D$2:$D$8408,Sheet3!DM$3,Sheet4!$A$2:$A$8408,Sheet3!$B$1,Sheet4!$B$2:$B$8408,Sheet3!$A$3)) -> 0 | DN10: =+IF(SUMIFS(Sheet4!$DN$2:$DN$8408,Sheet4!$C$2:$C$8408,Sheet3!$B10,Sheet4!$E$2:$E$8408,Sheet3!DN$4,Sheet4!$A$2:$A$8408,Sheet3!$B$1,Sheet4!$B$2:$B$8408,Sheet3!$A$3)<3,0,SUMIFS(Sheet4!$DN$2:$DN$8408,Sheet4!$C$2:$C$8408,Sheet3!$B10,Sheet4!$E$2:$E$8408,Sheet3!DN$4,Sheet4!$A$2:$A$8408,Sheet3!$B$1,Sheet4!$B$2:$B$8408,Sheet3!$A$3)) -> 2541 | DO10: =+IF(SUMIFS(Sheet4!$DN$2:$DN$8408,Sheet4!$C$2:$C$8408,Sheet3!$B10,Sheet4!$E$2:$E$8408,Sheet3!DO$4,Sheet4!$A$2:$A$8408,Sheet3!$B$1,Sheet4!$B$2:$B$8408,Sheet3!$A$3)<3,0,SUMIFS(Sheet4!$DN$2:$DN$8408,Sheet4!$C$2:$C$8408,Sheet3!$B10,Sheet4!$E$2:$E$8408,Sheet3!DO$4,Sheet4!$A$2:$A$8408,Sheet3!$B$1,Sheet4!$B$2:$B$8408,Sheet3!$A$3)) -> 1967 | DP10: =+IF(SUMIFS(Sheet4!$DN$2:$DN$8408,Sheet4!$C$2:$C$8408,Sheet3!$B10,Sheet4!$E$2:$E$8408,Sheet3!DP$4,Sheet4!$A$2:$A$8408,Sheet3!$B$1,Sheet4!$B$2:$B$8408,Sheet3!$A$3)<3,0,SUMIFS(Sheet4!$DN$2:$DN$8408,Sheet4!$C$2:$C$8408,Sheet3!$B10,Sheet4!$E$2:$E$8408,Sheet3!DP$4,Sheet4!$A$2:$A$8408,Sheet3!$B$1,Sheet4!$B$2:$B$8408,Sheet3!$A$3)) -> 370 | DQ10: =+IF(SUMIFS(Sheet4!$DN$2:$DN$8408,Sheet4!$C$2:$C$8408,Sheet3!$B10,Sheet4!$E$2:$E$8408,Sheet3!DQ$4,Sheet4!$A$2:$A$8408,Sheet3!$B$1,Sheet4!$B$2:$B$8408,Sheet3!$A$3)<3,0,SUMIFS(Sheet4!$DN$2:$DN$8408,Sheet4!$C$2:$C$8408,Sheet3!$B10,Sheet4!$E$2:$E$8408,Sheet3!DQ$4,Sheet4!$A$2:$A$8408,Sheet3!$B$1,Sheet4!$B$2:$B$8408,Sheet3!$A$3)) -> 124 | DR10: =+IF(SUMIFS(Sheet4!$DN$2:$DN$8408,Sheet4!$C$2:$C$8408,Sheet3!$B10,Sheet4!$E$2:$E$8408,Sheet3!DR$4,Sheet4!$A$2:$A$8408,Sheet3!$B$1,Sheet4!$B$2:$B$8408,Sheet3!$A$3)<3,0,SUMIFS(Sheet4!$DN$2:$DN$8408,Sheet4!$C$2:$C$8408,Sheet3!$B10,Sheet4!$E$2:$E$8408,Sheet3!DR$4,Sheet4!$A$2:$A$8408,Sheet3!$B$1,Sheet4!$B$2:$B$8408,Sheet3!$A$3)) -> 6
